Workbook

Sheet LDC Info
Z3: 1 | AA3: Algoma Power Inc.
Z4: 2 | AA4: Atikokan Hydro Inc.
Z5: 3 | AA5: Attawapiskat Power Corporation
Z6: 4 | AA6: Bluewater Power Distribution Corporation
Z7: 5 | AA7: Brantford Power Inc.
Z8: 6 | AA8: Burlington Hydro Inc.
Z9: 7 | AA9: Canadian Niagara Power Inc.
Z10: 8 | AA10: Centre Wellington Hydro Ltd.
Z11: 9 | AA11: Chapleau Public Utilities Corporation
Z12: 10 | AA12: COLLUS PowerStream Corp.
Z13: 11 | AA13: Cooperative Hydro Embrun Inc.
D14: Utility Name | E14: Hydro Hawkesbury Inc. | Z14: 12 | AA14: E.L.K. Energy Inc.
Z15: 13 | AA15: Energy + Inc.
D16: Assigned EB Number | E16: EB-2017-0048 | Z16: 14 | AA16: Enersource Hydro Mississauga Inc.
Z17: 15 | AA17: Entegrus Powerlines Inc.
D18: Name of Contact and Title | E18: Michel Poulin, Genral Manager | Z18: 16 | AA18: ENWIN Utilities Ltd.
Z19: 17 | AA19: Erie Thames Powerlines Corporation
D20: Phone Number | E20: 613-632-6689 | Z20: 18 | AA20: Espanola Regional Hydro Distribution Corporation
Z21: 19 | AA21: Essex Powerlines Corporation
D22: Email Address | E22: mpoulin@hydrohawkesbury.ca | Z22: 20 | AA22: Festival Hydro Inc.
Z23: 21 | AA23: Fort Albany Power Corporation
D24: Test Year | E24: 2018 | Z24: 22 | AA24: Fort Frances Power Corporation
Z25: 23 | AA25: Greater Sudbury Hydro Inc.
D26: Bridge Year | E26: =IF(ISBLANK(E24), "", E24-1) -> 2017 | Z26: 24 | AA26: Grimsby Power Inc.
Z27: 25 | AA27: Guelph Hydro Electric Systems Inc.
D28: Last Rebasing Year | E28: 2014 | Z28: 26 | AA28: Haldimand County Hydro Inc.
Z29: 27 | AA29: Halton Hills Hydro Inc.
A30: Identify the accounting standard used for the test year | Z30: 28 | AA30: Hearst Power Distribution Company Limited
E31: NewCGAAP | Z31: 29 | AA31: Horizon Utilities Corporation
Z32: 30 | AA32: Hydro 2000 Inc.
A33: Did you update your depreciation and capitalization policies and reflect the changes in policies in a prior rebasing application? | Z33: 31 | AA33: Hydro Hawkesbury Inc.
E34: Yes | Z34: 32 | AA34: Hydro One Brampton Networks Inc.
Z35: 33 | AA35: Hydro One Networks Inc.
A36: When did you update your actual depreciation and capitalization policies? | Z36: 34 | AA36: Hydro One Networks Inc. - Norfolk
E37: 2001-01-01 | F37: 2013 | Z37: 35 | AA37: Hydro One Remote Communities Inc.
Z38: 36 | AA38: Hydro Ottawa Limited
A39: Identify the year the applicant adopted IFRS for financial reporting purposes | Z39: 37 | AA39: Innpower Corporation
E40: 2015 | Z40: 38 | AA40: Kashechewan Power Corporation
Z41: 39 | AA41: Kenora Hydro Electric Corporation Ltd.
Z42: 40 | AA42: Kingston Hydro Corporation
A43: Are you applying for cost recovery for the test and/or future year(s) for Green Energy initiatives? | Z43: 41 | AA43: Kitchener-Wilmot Hydro Inc.
E44: No | Z44: 42 | AA44: Lakefront Utilities Inc.
Z45: 43 | AA45: Lakeland Power Distribution Ltd.
A46: ="Is " & E14 & " an embedded distributor?" -> Is Hydro Hawkesbury Inc. an embedded distributor? | E46: Yes | Z46: 44 | AA46: London Hydro Inc.
Z47: 45 | AA47: Midland Power Utility Corporation
Z48: 46 | AA48: Milton Hydro Distribution Inc.
B49: Notes | Z49: 47 | AA49: Newmarket-Tay Power Distribution Ltd.
Z50: 48 | AA50: Niagara Peninsula Energy Inc.
C51: Pale green cells represent input cells. | Z51: 49 | AA51: Niagara-on-the-Lake Hydro Inc.
Z52: 50 | AA52: North Bay Hydro Distribution Limited
C53: Pale blue cells represent drop-down lists. The applicant should select the appropriate item from the drop-down list. | Z53: 51 | AA53: Northern Ontario Wires Inc.
Z54: 52 | AA54: Oakville Hydro Electricity Distribution Inc.
C55: White cells contain fixed values, automatically generated values or formulae. | N55: =IF(LEN($G55)>1, (SUMPRODUCT(--($C$78:$C$1000=$C55),--($A$78:$A$1000=$D55), --($B$78:$B$1000=$B55&"_TOTAL"), $L$78:$L$1000)), "") ->  | O55: =IF(LEN($G55)>1, (SUMPRODUCT(--($C$78:$C$1000=$C55),--($A$78:$A$1000=$D55), --($B$78:$B$1000=$B55&"_TOTAL"), $M$78:$M$1000)), "") ->  | Z55: 53 | AA55: Orangeville Hydro Limited
N56: =IF(LEN($G56)>1, (SUMPRODUCT(--($C$78:$C$1000=$C56),--($A$78:$A$1000=$D56), --($B$78:$B$1000=$B56&"_TOTAL"), $L$78:$L$1000)), "") ->  | O56: =IF(LEN($G56)>1, (SUMPRODUCT(--($C$78:$C$1000=$C56),--($A$78:$A$1000=$D56), --($B$78:$B$1000=$B56&"_TOTAL"), $M$78:$M$1000)), "") ->  | Z56: 54 | AA56: Orillia Power Distribution Corporation
Z57: 55 | AA57: Oshawa PUC Networks Inc.
Z58: 56 | AA58: Ottawa River Power Corporation
Z59: 57 | AA59: Peterborough Distribution Inc.
Z60: 58 | AA60: PowerStream Inc.
Z61: 59 | AA61: PUC Distribution Inc.
Z62: 60 | AA62: Renfrew Hydro Inc.
Z63: 61 | AA63: Rideau St. Lawrence Distribution Inc.
Z64: 62 | AA64: Sioux Lookout Hydro Inc.
Z65: 63 | AA65: St. Thomas Energy Inc.
Z66: 64 | AA66: Thunder Bay Hydro Electricity Distribution Inc.
Z67: 65 | AA67: Tillsonburg Hydro Inc.
Z68: 66 | AA68: Toronto Hydro-Electric System Limited
Z69: 67 | AA69: Veridian Connections Inc.
Z70: 68 | AA70: Wasaga Distribution Inc.
Z71: 69 | AA71: Waterloo North Hydro Inc.
Z72: 70 | AA72: Welland Hydro-Electric System Corp.
Z73: 71 | AA73: Wellington North Power Inc.
Z74: 72 | AA74: West Coast Huron Energy Inc.
Z75: 73 | AA75: Westario Power Inc.
Z76: 74 | AA76: Whitby Hydro Electric Corporation
Z77: 75 | AA77: Woodstock Hydro Services Inc.

Sheet Index
A15: 1 | B15: LDC Information Sheet | E15: 27 | F15: App.2-G: Service Reliability Indicators
A16: 2 | B16: Index | E16: 28 | F16: App.2-H: Other Operating Revenue
A17: 3 | B17: Cost of Service Application Flowchart | E17: 29 | F17: App.2-I: Load Forecast CDM Adjustment Workform
A18: 4 | B18: List of Key References | E18: 30 | F18: App.2-IA: Load Forecast Data Instructions
A19: 5 | B19: App.2-A: List of Requested Approvals | E19: 31 | F19: App.2-IB: Actual and Forecast Load and Customer Data
A20: 6 | B20: App.2-AA: Capital Projects Table | E20: 32 | F20: App.2-JA: OM&A Summary Analysis
A21: 7 | B21: App.2-AB: Capital Expenditures | E21: 33 | F21: App.2-JB: Recoverable OM&A Cost Driver Table
A22: 8 | B22: App. 2-AC: Customer Engagement Worksheet | E22: 34 | F22: App.2-JC: OM&A Programs Table
A23: 9 | B23: App.2-B: General Accounting Instructions | E23: 35 | F23: App.2-K: Employee Costs
A24: 10 | B24: App.2-BA: Fixed Asset Continuity Schedule | E24: 36 | F24: App.2-KA: OPEBs (Other Post-Employment Benefits) Costs
A25: 11 | B25: Appendix 2-BB: Service Life Comparison | E25: 37 | F25: App.2-L: Recoverable OM&A Cost per Customer and per FTE
A26: 12 | B26: App.2-CA: Year 1 Depreciation and Amortization Expense (Old CGAAP) | E26: 38 | F26: App.2-M: Regulatory Costs Schedule
A27: 13 | B27: App.2-CB: Year 1 Depreciation and Amortization Expense (New CGAAP) | E27: 39 | F27: App.2-N: Shared Services and Corporate Cost Allocation
A28: 14 | B28: App.2-CC: Year 2 Depreciation and Amortization Expense (New CGAAP) | E28: 40 | F28: App.2-OA: Capital Structure and Cost of Capital
A29: 15 | B29: App.2-CD: Year 3 Depreciation and Amortization Expense (New CGAAP or MIFRS) | E29: 41 | F29: App.2-OB: Debt Instruments
A30: 16 | B30: App.2-CE: Year 4 Depreciation and Amortization Expense (MIFRS) | E30: 42 | F30: App.2-Q: Cost of Serving Embedded Distributor(s)
A31: 17 | B31: App.2-CF: Year 5 Depreciation and Amortization Expense (MIFRS) | E31: 43 | F31: App.2-R: Loss Factors
A32: 18 | B32: App.2-CG: Year 6 Depreciation and Amortization Expense (Old CGAAP) | E32: 44 | F32: App.2-S: Stranded Meter Treatment
A33: 19 | B33: App.2-CH: Depreciation and Amortization Expense (MIFRS) | E33: 45 | F33: App.2-Y: Transition to MIFRS Summary Impact
A34: 20 | B34: App.2-D: Overhead Expenses | E34: 46 | F34: App.2-YA: One-Time Incremental IFRS Transition Costs
A35: 21 | B35: App.2-EA: Account 1575 PP&E Deferral Account (2015 IFRS Adopters)
A36: 22 | B36: App.2-EB: Account 1576 - Accounting Changes Under CGAAP (2012 Changes)
A37: 23 | B37: App.2-EC: Account 1576 - Accounting Changes Under CGAAP (2013 Changes)
A38: 24 | B38: App.2-FA: Renewable Generation Connection Investment Summary
A39: 25 | B39: App.2-FB: Calculation of Renewable Generation Connection Direct Benefits/Provincial Amount: Renewable Enabling Improvement Investments
A40: 26 | B40: App.2-FC: Calculation of Renewable Generation Connection Direct Benefits/Provincial Amount: Renewable Expansion Investments
A42: Note: | B42: Appendices for the Tariff of Rates and Charges at Current and Proposed Rates, and for the Bill Impacts are now in a separate spreadsheet model. These appendices were formerly 2-Z and 2-W.

Sheet COS Flowchart
B4: Cost of Service Rate Application Schematic
B6: The Cost of Service Rate Application Schematic is a flowchart that is included as a guide for the components of an application. The schematic demonstrates how demand and costs interrelate to derive the revenue requirement and how the revenue requirement is allocated between classes and through fixed/variable splits to derive rates that will be compensatory for the annual revenue requirement, based on the the forecasted demand. There is no form to be filled out; therefore, this Schedule is not required to be filed.

Sheet List of Key References
B3: List of Key References
A5: A list of key references for understanding the Filing Requirements has been embedded in the document below. To access the list of references and associated hyperlinks double-click the icon below.

Sheet App.2-A_Requested_Approvals
G1: File Number: | H1: =EBNUMBER -> EB-2017-0048
G2: Exhibit:
G3: Tab:
G4: Schedule:
G5: Page:
G7: Date:
B9: Appendix 2-A
B10: List of Requested Approvals
B12: The distributor must fill out the following sheet with the complete list of specific approvals requested and relevant section(s) of the legislation must be provided. All approvals, including accounting orders (deferral and variance accounts) new rate classes, revised specific service charges or retail service charges which the applicant is seeking, must be separately identified, as well being clearly documented in the appropriate sections of the application.
B14: Additional requests may be added by copying and pasting blank input rows, as needed.
B16: If additional requests arise, or requested approvals are removed, during the processing of the application, the distributor should update this list.
B18: =CONCATENATE('LDC Info'!E14," is seeking the following approvals in this application:") -> Hydro Hawkesbury Inc. is seeking the following approvals in this application:
B20: 1 | F20: Approval to charge distribution rates effective January 1, 2018 to recover a service revenue requirement of $1,174,699 which includes a revenue deficiency of $180,736 as detailed in Exhibit 6. The schedule of proposed rates is set out in Exhibit 8.
F22: Approval of the Distribution System Plan as outlined in Exhibit 2 Section 2.5.2
F24: Approval of a revised Microfit monthly service charge as outlined in Exhibit 3 and 8.
F26: Approval to adjust the Retail Transmission Rates – Network and Connection as detailed in Exhibit 8.
F28: Approval of the proposed loss factors as detailed in Exhibit 8.
F30: Approval to continue to charge Wholesale Market and Rural Rate Protection Charges approved in the Board Decision and Order in the matter of HHI 2017 Distribution Rates (EB-2016-0079).
F32: Approval to continue the Specific Service Charges, Retail Service Charges, and Transformer Allowance approved in the Board Decision and Order in the matter of HHI’s 2017 Distribution Rates (EB-2016-0079).
F34: Approval of the rate riders for a one year disposition of the Group 1 and Group 2 and Other Deferral and Variance Accounts as detailed in Exhibit 9.
F36: Approval to dispose of balances in the LRAM variance account as presented in Exhibit 9.
F38: Such other approvals that HHI may request and that the OEB accepts.

Sheet App.2-AA_Capital Projects
A8: App-2-AA Capital projects table
A10: Reporting basis | B10: Reporting basis | D10: Cgaap | F10: Newgaap | H10: Newgaap | J10: Mifrs | L10: Cgaap | N10: Mifrs | P10: Mifrs
A11: Projects | B11: Projects | C11: Usoa | D11: 2012 | E11: Note | F11: 2013 | G11: Note | H11: 2014 | I11: Note | J11: 2015 | K11: Note | L11: 2016 | M11: Note | N11: 2017 | O11: Note | P11: 2018
A13: System access | B13: System access
A14: Metering | B14: Sub 115kv for station betterment and dismantle building | C14: 1815 | D14: 8890 | E14: 1
A15: New 3 phase line | B15: New commercial service | C15: 1830 | D15: 63385 | E15: 2
A16: Loop system | B16: Existing subdivision | C16: 1845 | D16: 4935.66 | E16: 3
A17: New services | B17: Connecting new customers to grid | C17: 1855 | D17: 2234.12 | F17: 959.77 | H17: 1095.13 | J17: =666.73 -> 666.73 | K17: 5 | L17: 241.48
A18: Smart meter | B18: Smart meter | C18: 1860 | D18: 619033.11 | E18: 4 | F18: =4100.07 -> 4100.07 | G18: 8 | H18: -44691.33 | I18: 7 | J18: -826.82 | K18: 6 | L18: =27626-4906 -> 22720 | M18: 1
A19: New subdivision rock | B19: New subdivision rock | C19: 1845 | L19: 11013.01 | M19: 1
A20: New subdivision rock | B20: New subdivision rock | C20: 1850 | L20: 5696 | M20: 2
A22: New subdivision | B22: New subdivision | C22: 1845 | N22: 135 | O22: 1
A23: New services | B23: Connecting new customers to grid | C23: 1855 | N23: 987 | O23: 2
A24: Smart meter | B24: Smart meter | C24: 1860 | N24: 40566 | O24: 3
B25: For HHI use and /or subdivision | C25: 1850 | N25: 10905 | O25: 4
A26: New subdivision | B26: New subdivision | C26: 1845 | P26: 10000 | Q26: 1
A27: New services | B27: Connecting new customers to grid | C27: 1855 | P27: 3500 | Q27: 2
A28: Smart meter | B28: Smart meter | C28: 1860 | P28: 14300 | Q28: 3
B29: For hhi use and /or subdivision | C29: 1850 | P29: 9000 | Q29: 4
B32: Sub-total system access | D32: =SUM(D14:D31) -> 698477.89 | F32: =SUM(F14:F31) -> 5059.84 | H32: =SUM(H14:H31) -> -43596.2 | J32: =SUM(J14:J31) -> -160.09 | L32: =SUM(L14:L31) -> 39670.49 | N32: =SUM(N14:N31) -> 52593 | P32: =SUM(P14:P31) -> 36800
A33: Contributed capital
C34: 1995
B38: Contributed capital | D38: =SUM(D34:D37) -> 0 | F38: =SUM(F34:F37) -> 0 | H38: =SUM(H34:H37) -> 0 | J38: =SUM(J34:J37) -> 0 | L38: =SUM(L34:L37) -> 0 | N38: =SUM(N34:N37) -> 0 | P38: =SUM(P34:P37) -> 0
A39: Total system access | B39: Total system access | D39: =SUM(D32)+SUM(D38) -> 698477.89 | F39: =SUM(F32)+SUM(F38) -> 5059.84 | H39: =SUM(H32)+SUM(H38) -> -43596.2 | J39: =SUM(J32)+SUM(J38) -> -160.09 | L39: =SUM(L32)+SUM(L38) -> 39670.49 | N39: =SUM(N32)+SUM(N38) -> 52593 | P39: =SUM(P32)+SUM(P38) -> 36800 | S39: Ok
A41: Explanatory notes on projects
A42: Notes on system access
A44: Notes 2012
A45: 1) dismanttle meetering and assure all ct's are not affected by operations. 2) New line extention 3 phase on west st for new service on hwy 17 (pole and hardware) 3) no subdivision- ug. Loop system paul crs. To allow switching in case of power failure caused by damaged priimary ug 4) smart meters re-distribute sm expenses after may 1, 2012 as per oeb guidelines ( capital cost transfer)
A48: Notes 2013
A49: Note 8: smart meter purchase and related salary (installation)
A51: Notes 2014
A52: 7) commercial smart meters for the general customer replacement of conventionnal meters $ 6,899.37. Residential meters ( new customers and replacement of faulty meters $ 2766.30… Cos 2014 disp of convenitonnal meters-actuals disp and stranded meter costs -$246,912.13
A55: Notes 2015
A56: 5) new services account for $666.73 While year end ifrs assets conversion ($9610.48) 6) New meters ( residential and commercial) $ 8016.18. Included ( $144976.51) Year end ifrs asset conversion
A59: Notes 2016
A60: 1) commercial smart meters to replace conventional. $ 14740.28 And communication antenas $ 1279.42, Residential meters to replace faulty elsters and new construction $ 8910.80. Commercial meters adpators $ 2449.83
A62: Notes 2017
A63: 1) new subdivision ouest hawkesbury $10,000 2) new customer connection in 2017 $2,500 3) smart meters commercial and residential $30169 4)transformer for inventory
A66: Notes 2018
A67: 1) new subdivision ouest hawkesbury $10,000 2) new customer connection in 2018 $3,500 3) smart meters commercial and residential $14300 4)transformer for inventory
A73: System renewal | B73: System renewal | C73: Usoa | D73: 2012 | E73: Note | F73: 2013 | G73: Note | H73: 2014 | I73: Note | J73: 2015 | K73: Note | L73: 2016 | M73: Note | N73: 2017 | O73: Note | P73: 2018 | Q73: Note
A74: Faulty transformer | B74: Sub 115 kv | C74: 1815 | D74: 16000 | E74: 1 | J74: =1946.9 -> 1946.9 | K74: 6 | L74: 59243.61 | M74: 3
A75: Sub 44kv | B75: Sub 44kv | C75: 1820 | D75: 4632.27 | E75: 2 | H75: 42750 | I75: 13 | J75: =320188 -> 320188 | K75: 7 | L75: 54101.25 | M75: 4
A76: Asset management plan | B76: Replace poles, fixtures as per asset management plan | C76: 1830 | D76: 17517.08 | F76: 85061 | G76: 13 | H76: 24310.27 | I76: 14 | J76: =88559.57 -> 88559.57 | K76: 8 | L76: =68412-2839 -> 65573 | M76: 1
A77: Asset management plan | B77: Replace 3/0 primary with new 336 mcm | C77: 1835 | D77: 27772.63 | E77: 3 | F77: 5920 | G77: 4 | H77: 31221.29 | I77: 15 | J77: =27607.26 -> 27607.26 | K77: 9 | L77: 69003 | M77: 2
A78: Capital acquisition | B78: Lightning arresters ( polymere) | C78: 1850 | F78: 20047 | G78: 5 | J78: 11110 | K78: 12
B80: Sub 115kv for station betterment | C80: 1815 | N80: 3525000 | O80: 1
B81: Insulators etc | C81: 1820 | N81: 3400 | O81: 2
B82: Replace poles, fixtures as per asset management plan | C82: 1830 | N82: 64183 | O82: 3
B83: Change insulators for polymere | C83: 1835 | N83: 19658 | O83: 4
B84: Lightning arresters ( polymere) | C84: 1850 | N84: 1875 | O84: 5
B85: Strucutre an reclosers | C85: 1815
B86: Strucutre an reclosers | C86: 1820
B87: Replace poles, fixtures as per asset management plan | C87: 1830 | P87: 81500 | Q87: 1
B88: Replace 3/0 primary with new 336 mcm ( wilson to caisse) | C88: 1835 | P88: 10000 | Q88: 2
B89: Change insulators for polymere | C89: 1835 | P89: 17930 | Q89: 3
B90: Lightning arresters ( polymere) | C90: 1850 | P90: 8350 | Q90: 4
B93: Sub-total system renewal | D93: =SUM(D74:D92) -> 65921.98 | F93: =SUM(F74:F92) -> 111028 | H93: =SUM(H74:H92) -> 98281.56 | J93: =SUM(J74:J92) -> 449411.73 | L93: =SUM(L74:L92) -> 247920.86 | N93: =SUM(N74:N92) -> 3614116 | P93: =SUM(P74:P92) -> 117780
A94: Contributed capital
C95: 1995
B99: Contributed capital | D99: =SUM(D95:D98) -> 0 | F99: =SUM(F95:F98) -> 0 | H99: =SUM(H95:H98) -> 0 | J99: =SUM(J95:J98) -> 0 | L99: =SUM(L95:L98) -> 0 | N99: =SUM(N95:N98) -> 0 | P99: =SUM(P95:P98) -> 0
A100: Total system renewal | B100: Total system renewal | D100: =SUM(D93)+SUM(D99) -> 65921.98 | F100: =SUM(F93)+SUM(F99) -> 111028 | H100: =SUM(H93)+SUM(H99) -> 98281.56 | J100: =SUM(J93)+SUM(J99) -> 449411.73 | L100: =SUM(L93)+SUM(L99) -> 247920.86 | N100: =SUM(N93)+SUM(N99) -> 3614116 | P100: =SUM(P93)+SUM(P99) -> 117780
A102: Explanatory notes on projects
A103: Notes on system renewal
A105: Notes 2012
A106: 1) internal tap changer repairs following recongnision that 55t1 is faulty. Change all auxiliary contacts 55t1 and 55t2 2) add stone withing enclosure for worker security as per annual inspection
A108: 3) replace 3/0 o.H. Primary feeder from spence to 44 kv substation with 336 mcm tulip.
A110: Notes 2013
A111: 4) replace 3/0 o.H. Primary on circuit 43f2 with 336 mcm tulip 5) hhi invested in 2 three phase pad mounted (300kva /347/600- 300kva /120/208 ) transformers and one 100 kva polemount
A113: 13) pole replacement following annual maintenance requirements $ 85060
A115: Notes 2014
A116: 13) inspection and repairs 43t1 in sub 44kv by ge 14) new poles stella $9105.80/ Rest is pole replacement , installation and hardware $15204.47 15) 336 Mcm conductor, labour and material as well as outsource services ( linecrews ) to replace old 3/0 priomary conductor on lansdown from chamberlain to cameron .
A119: Notes 2015
A120: 6) moe assesment fees for the 115 kv oil containment $ 1946.90 & ($108056.74) For yeard end ifrs assets conversion 7) $320,188 spent to refurbish our old ferhantie transformer following the blowup of our new pioneer. Our board chose to make the refurbishement as it is cretical to supply power to our customers. We now have 2 transformer at our 44 kv station. ($165860) For yeard end ifrs assets conversion. 8) Capital project pole replacement and modification of 1 circuit to hawkesbury general hospital ( 88559.57) . ($145340.32 ) For yeard end ifrs assets conversion 9) modification of circuit for hgh $27607.26. ($275813.23) For yeard end ifrs assets conversion 12) transformers purchased for $ 11110 and ($227035.41) For yeard end ifrs assets conversion
A123: Notes 2016
A124: 1) pole replacement following annual inspection $14634.74. Also replace 16old poles coming out of 115 station. All major circuit on these poles. Changed to class 2 as per stantec design $ 53777.18 2) Wire replacement 3/0 to 336 mcm $35,229.83 Switches for operations $ 13708.37 Change insulators on spence to polymere$ 20064.78 3) Switch sub 115 kv $5043.61 And controls for circuit switchers $ 54200 4) testing and installation revamped 44kv transformer ( see 2015) $ 52971.25 And tap changer counter on pioneer transformer $ 1130
A127: Notes 2017
A128: 1) 115kv station revamp $3,525,000 2) insulator $5,000 3) poles replacement follwing annual inspection $60,000 4) replace insulators as per annual inpection $21,720 5) replace lightning arrestors $7,864
A134: Notes 2018
A135: 1) poles replacement following annual inspection $81,500 2) 336 mcm conductor main st. ( Section) $10,000 3)porcelain insulator changeout to polymere $17,930 4) porcelaine air gap lightning arrestor changeout to polymere solid dielectric type $7,864
A142: System service | B142: System service | C142: Usoa | D142: 2012 | E142: Note | F142: 2013 | G142: Note | H142: 2014 | I142: Note | J142: 2015 | K142: Note | L142: 2016 | M142: Note | N142: 2017 | O142: Note | P142: 2018 | Q142: Note
A143: Asset management plan | B143: New 336 mcm to new commercial customer | C143: 1835 | D143: 42115 | E143: 1
A144: 44 kv transformer station | B144: Addition new transformer | C144: 1820 | F144: 841977.24 | G144: 2
B146: New subdivision rock
B147: Existing subdivision | C147: 1845 | P147: 10000 | Q147: 2
B150: Sub-total system service | D150: =SUM(D143:D149) -> 42115 | F150: =SUM(F143:F149) -> 841977.24 | H150: =SUM(H143:H149) -> 0 | J150: =SUM(J143:J149) -> 0 | L150: =SUM(L143:L149) -> 0 | N150: =SUM(N143:N149) -> 0 | P150: =SUM(P143:P149) -> 10000
A151: Contributed capital
C152: 1995 | P152: -10000
B156: Contributed capital | D156: =SUM(D152:D155) -> 0 | F156: =SUM(F152:F155) -> 0 | H156: =SUM(H152:H155) -> 0 | J156: =SUM(J152:J155) -> 0 | L156: =SUM(L152:L155) -> 0 | N156: =SUM(N152:N155) -> 0 | P156: =SUM(P152:P155) -> -10000
A157: Total system service | B157: Total system service | D157: =SUM(D150)+SUM(D156) -> 42115 | F157: =SUM(F150)+SUM(F156) -> 841977.24 | H157: =SUM(H150)+SUM(H156) -> 0 | J157: =SUM(J150)+SUM(J156) -> 0 | L157: =SUM(L150)+SUM(L156) -> 0 | N157: =SUM(N150)+SUM(N156) -> 0 | P157: =SUM(P150)+SUM(P156) -> 0
A159: Explanatory notes on projects
A160: Notes 2012
A161: 1) new 336 mcm new line extention 3 phase on west st for new service on hwy 17 ( conductors) to comple new line extension ( note 1)
A163: Notes 2013
A164: 2) regular expenditures ( new transformer) on 43t2/testing for warrantee and transfer icm expenses from eb-2011-0173. Extra expenses due to poor soil condition
A166: Notes 2016
A167: 1 and 2) new subdivision rock st.
A169: Notes 2017
A171: Notes 2018
A172: 1) loop existing subdivision
A175: General plant | B175: General plant | C175: Usoa | D175: 2012 | E175: Note | F175: 2013 | G175: Note | H175: 2014 | I175: Note | J175: 2015 | K175: Note | L175: 2016 | M175: Note | N175: 2017 | O175: Note | P175: 2018 | Q175: Note
A176: Computer equipment | B176: Compter hardware | C176: 1920 | D176: 2656.32 | F176: 2961.11 | H176: 1403.56 | L176: 843.55
A177: Software | B177: Software for different applications | C177: 1611 | D177: 44231.5 | E177: 1 | F177: 24254.21 | G177: 3 | H177: 13783.75 | I177: 10 | J177: =5812.8 -> 5812.8 | K177: 11 | L177: 3999 | M177: 3
A178: Tolls an equipment | B178: Lin crew equipment | C178: 1940 | D178: 2967 | F178: 1584
A179: Capital investment | B179: Building | C179: 1908 | F179: 38205 | G179: 2 | H179: 13386 | I179: 12 | L179: 52500 | M179: 1
A180: Capital investment | B180: Office furniture ( shredder and fire proof safe) | C180: 1915 | F180: 5599.13 | G180: 14 | H180: 457 | J180: =7254.44 -> 7254.44 | K180: 5
A181: Tolls an equipment | B181: Power tools lineman equipment | C181: 1950 | F181: 1654.99
A182: Transporattion equipement | B182: Transporattion equipement | C182: 1930 | I182: 13
A183: Pole testing device | B183: Pole testing device | C183: 1940 | L183: 7415.07 | M183: 2
B185: Building | C185: 1908 | N185: 1500 | O185: 1
B186: Office furniture | C186: 1915 | N186: 3845 | O186: 2
B187: Compter hardware-server | C187: 1920 | N187: 2077 | O187: 3
B188: Software ns upgrade | C188: 1611 | N188: 32399 | O188: 4
B189: Tools s linecrew | C189: 1940 | N189: 0 | O189: 5
B190: Powered tools line crew | C190: 1950 | N190: 670 | O190: 6
B192: Building | C192: 1908 | P192: 2000 | Q192: 1
B193: Office furniture | C193: 1915 | P193: 3750 | Q193: 2
B194: Compter hardware-server | C194: 1920 | P194: 4500 | Q194: 3
B195: Software ns upgrade | C195: 1611 | P195: 1000 | Q195: 4
B198: Sub-total general plant | D198: =SUM(D176:D197) -> 49854.82 | F198: =SUM(F176:F197) -> 74258.44 | H198: =SUM(H176:H197) -> 29030.31 | J198: =SUM(J176:J197) -> 13067.24 | L198: =SUM(L176:L197) -> 64757.62 | N198: =SUM(N176:N197) -> 40491 | P198: =SUM(P176:P197) -> 11250
A199: Contributed capital
B200: System access | C200: 1995 | J200: -93493.16 | L200: -17741
B204: Contributed capital | D204: =SUM(D200:D203) -> 0 | F204: =SUM(F200:F203) -> 0 | H204: =SUM(H200:H203) -> 0 | J204: =SUM(J200:J203) -> -93493.16 | L204: =SUM(L200:L203) -> -17741 | N204: =SUM(N200:N203) -> 0 | P204: =SUM(P200:P203) -> 0
A205: Total system service | B205: Total system service | D205: =SUM(D198)+SUM(D204) -> 49854.82 | F205: =SUM(F198)+SUM(F204) -> 74258.44 | H205: =SUM(H198)+SUM(H204) -> 29030.31 | J205: =SUM(J198)+SUM(J204) -> -80425.92 | L205: =SUM(L198)+SUM(L204) -> 47016.62 | N205: =SUM(N198)+SUM(N204) -> 40491 | P205: =SUM(P198)+SUM(P204) -> 11250
A207: Total capital expenditures | D207: =D39+D100+D157+D205 -> 856369.69 | F207: =F39+F100+F157+F205 -> 1032323.52 | H207: =H39+H100+H157+H205 -> 83715.67 | J207: =J39+J100+J157+J205 -> 368825.72 | L207: =L39+L100+L157+L205 -> 334607.97 | N207: =N39+N100+N157+N205 -> 3707200 | P207: =P39+P100+P157+P205 -> 165830
A209: Yearly additions | H209: 845104.15 | J209: 519212.6 | L209: 1496256.99 | N209: 899943.08 | P209: 165830
A210: Yearly disposal | H210: -54357 | J210: -8842.89 | L210: -7745.76 | N210: 0 | P210: 0
A211: Construction in progress | H211: 707031.39 | J211: 141543.88 | L211: 1153904.39 | N211: -2807256.92 | P211: 0
A212: Variance to yearly additions | H212: =H207-(H209+H210-H211) -> -0.09000000003 | J212: =J207-(J209+J210-J211) -> -0.1099999999 | L212: =L207-(L209+L210-L211) -> 1.13 | N212: =N207-(N209+N210-N211) -> 0 | P212: =P207-(P209+P210-P211) -> 0
A216: Explanatory notes on projects
A217: Notes 2012
A218: 1) accpac, hassen software ( telephone call software), plus smart meter (ami et software capital cost transfer following oeb guidelines eb-2012-0198
A221: Notes 2013
A222: 2) building 21 years old eater infiltration into curtain wall. Corrections required ( $11941) replace carpets in common area and 2 offices( $13891) replace 2 out 5 furnases in office area bottom floor $(7924) roof inspection report by garlan canada. Remove existing caulking, termination bars and detoriated butyl tape na dreplace same. Also re-seals the seams with new butyl tape and urethane caulking ($4450) 3) yearly upgrades and licensing requirements accpac, hansen ($225), erth holdings ($500), cupr ($6873.21), D&a business ($2031) web presentment for custmomer interaction. Asset management software to support oeb requirement on asset management plan ($8625)
A224: 14) shreder(docs destruction) safe and printers
A226: Notes2014
A227: 10) office 365 $79/ accpac 300erp and sql upgrade , eft installation configuration and training $2699.75/ Asset management software renewat $ 3105/ loris scanning and archiving software ( install and training included) $ 7900 12) replace 3 furnaces 13) disposition gmc pick up
A230: Notes 2015
A233: Notes 2016
A234: 1) refurbishe all roof at 850 tupper 2) pole testing device purchased with embrun hydro to split cost. 3) New revamped website and ucpr it services
A237: Notes 2017
A238: 1) building support colunm fromnt of building 2) csr furniture ( desks) 3) computer server 4)billing system upgrade. Ns 6.4 5) Tools line crew 6) powered tolls line crew
A242: Notes 2018
A243: 1) building 2) admin office furniture ( fire proof cabiniet) 3) computer hardware admin desktops and screens. 4) Software sage 50

Sheet App.2-AB_Capital Expenditures
S1: File Number: | U1: =EBNUMBER -> EB-2017-0048
S2: Exhibit:
S3: Tab:
S4: Schedule:
S5: Page:
S7: Date:
A9: Appendix 2-AB
A10: Table 2 - Capital Expenditure Summary from Chapter 5 Consolidated Distribution System Plan Filing Requirements
A12: First year of Forecast Period: | B12: =TestYear -> 2018
A13: CATEGORY | B13: Historical Period (previous plan1 & actual) | Q13: Forecast Period (planned)
B14: =E14-1 -> 2013 | E14: =H14-1 -> 2014 | H14: =K14-1 -> 2015 | K14: =N14-1 -> 2016 | N14: =Q14-1 -> 2017 | Q14: =B12 -> 2018 | R14: =Q14+1 -> 2019 | S14: =R14+1 -> 2020 | T14: 2021 | U14: 2022
B15: Plan | C15: Actual | D15: Var | E15: Plan | F15: Actual | G15: Var | H15: Plan | I15: Actual | J15: Var | K15: Plan | L15: Actual | M15: Var | N15: Plan | O15: Actual2 | P15: Var
B16: $ '000 | D16: % | E16: $ '000 | G16: % | H16: $ '000 | J16: % | K16: $ '000 | M16: % | N16: $ '000 | P16: % | Q16: $ '000
A17: System Access | C17: 5060 | D17: =IF(ISERROR((C17-B17)/B17),"--",(C17-B17)/B17) -> -- | F17: -43596 | G17: =IF(ISERROR((F17-E17)/E17),"--",(F17-E17)/E17) -> -- | I17: -160 | J17: =IF(ISERROR((I17-H17)/H17),"--",(I17-H17)/H17) -> -- | L17: 39670 | M17: =IF(ISERROR((L17-K17)/K17),"--",(L17-K17)/K17) -> -- | N17: 51669 | O17: 0 | P17: =IF(ISERROR((O17-N17)/N17),"--",(O17-N17)/N17) -> -1 | Q17: 36800 | R17: 86895 | S17: 31010 | T17: 31510 | U17: 31610
A18: System Renewal | C18: 111028 | D18: =IF(ISERROR((C18-B18)/B18),"--",(C18-B18)/B18) -> -- | F18: 98281 | G18: =IF(ISERROR((F18-E18)/E18),"--",(F18-E18)/E18) -> -- | I18: 449412 | J18: =IF(ISERROR((I18-H18)/H18),"--",(I18-H18)/H18) -> -- | L18: 247921 | M18: =IF(ISERROR((L18-K18)/K18),"--",(L18-K18)/K18) -> -- | N18: 3619584 | O18: 0 | P18: =IF(ISERROR((O18-N18)/N18),"--",(O18-N18)/N18) -> -1 | Q18: 117780 | R18: 131825 | S18: 488350 | T18: 149205 | U18: 139500
A19: System Service | C19: 841977 | D19: -- | F19: 0 | G19: -- | I19: 0 | J19: -- | L19: 0 | M19: -- | N19: 0 | O19: 0 | P19: -- | Q19: 0 | R19: 10000 | S19: 10000 | T19: 10500 | U19: 10500
A20: General Plant | C20: 74259 | D20: -- | F20: 29031 | G20: -- | I20: 13067 | J20: -- | L20: 64758 | M20: -- | N20: 41100 | O20: 0 | P20: -1 | Q20: 11250 | R20: 8800 | S20: 11900 | T20: 11900 | U20: 9000
A21: TOTAL EXPENDITURE | B21: 1560990 | C21: =SUM(C17:C20) -> 1032324 | D21: -0.3386735341 | E21: 1560990 | F21: 83716 | G21: -0.9463699319 | H21: 1560990 | I21: 462319 | J21: -0.7038296209 | K21: 1560990 | L21: 352349 | M21: -0.7742785027 | N21: 3712353 | O21: 0 | P21: -1 | Q21: 165830 | R21: 237520 | S21: 541260 | T21: 203115 | U21: =SUM(U17:U20) -> 190610
A22: System O&M | C22: 302571 | D22: -- | F22: 232855 | G22: -- | I22: 235940 | J22: -- | L22: 236871 | M22: -- | N22: 296376 | O22: 0 | P22: -1 | Q22: 300107 | R22: 295674 | S22: 322178 | T22: 329586 | U22: 374253
A24: Notes to the Table:
A25: 1. Historical “previous plan” data is not required unless a plan has previously been filed. However, use the last Board-approved, at least on a Total (Capital) Expenditure basis for the last cost of service rebasing year, and the applicant should include their planned budget in each subsequent historical year up to and including the Bridge Year.
A26: 2. Indicate the number of months of 'actual' data included in the last year of the Historical Period (normally a 'bridge' year):

Sheet App.2-AC_Customer Engagement
B1: File Number: | C1: =EBNUMBER -> EB-2017-0048
B2: Exhibit:
B3: Tab:
B4: Schedule:
B5: Page:
B7: Date:
A9: Appendix 2-AC
A10: Customer Engagement Activities Summary
A12: Provide a list of customer engagement activities | B12: Provide a list of customer needs and preferences identified through each engagement activity | C12: Actions taken to respond to identified needs and preferences. If no action was taken, explain why.
A13: Newsletter on 2017-2018 Capital Spending sent via bill insert and email | B13: No comments received | C13: No action required
A14: Information posted on the Website | B14: No comments on proposed capital budget. | C14: No action required
A15: Customer Satisfaction Survey | B15: List of comments is presented at Appendix D of this Exhibits | C15: Comments were address on the utility’s website and notice posted on social media.
A19: Note: Use "ALT-ENTER" to go to the next line within a cell

Sheet App.2-B_Acctg Instructions
A1: General Instructions to MIFRS Appendices
A2: Types of Schedules to File
A4: The purpose of this tab is to provide general instructions. The specific instructions to each appendix are listed in footnotes of each appendix.
A6: The typical applicant is expected to have made capitalization and depreciation policy changes under CGAAP as permitted by the Board on January 1, 2012 or mandated by the Board by January 1, 2013, and adopted IFRS for reporting purposes on January 1, 2015 (transition date January 1, 2014). Some distributors filing for 2017 rates have rebased with these accounting changes reflected in a prior rebasing application. If that is the case, information relating to pre-accounting policy changes is not generally required. The information to be provided by applicants will depend on when the accounting policy changes were made and when they last rebased. In general, applicants should provide the following information in the appendices:
E9: Reflecting Accounting Policy Changes in Current Application | G9: Reflected Accounting Policy Changes in Prior Application3
E10: Accounting Policy Changes in 2012 and Adopted IFRS in 2015 | F10: Accounting Policy Changes in 2013 and Adopted IFRS in 2015 | G10: Adopted IFRS in 2015
A11: Information to be filed in 2017 CoS Application | B11: 2017 | C11: Test | E11: MIFRS | F11: MIFRS | G11: MIFRS
B12: 2016 | C12: Bridge | E12: MIFRS | F12: MIFRS | G12: MIFRS
B13: 2015 | C13: Historical | E13: MIFRS | F13: MIFRS | G13: MIFRS
B14: 2014 | C14: Historical | E14: MIFRS and Revised CGAAP1 | F14: MIFRS and Revised CGAAP1 | G14: MIFRS and Revised CGAAP1
B15: 2013 | C15: Historical | E15: Revised CGAAP | F15: CGAAP and Revised CGAAP2 | G15: Rebased under Revised CGAAP
B16: 2012 | C16: Historical | E16: CGAAP and Revised CGAAP2 | F16: CGAAP | G16: Rebased under Revised CGAAP
B17: Prior | C17: Historicals | E17: Rebased under CGAAP | F17: Rebased under CGAAP | G17: N/A
A19: 1) For the transition year (2014), the applicant may file two appendices, one under Revised CGAAP and one under MIFRS, depending on the materiality of impacts. See the specific instructions under each appendix below for further details.
A20: 2) For applicants that are reflecting accounting policy changes for the first time in a rebasing application, the applicant must file two appendices in the year that the applicant implemented changes to its capitalization and depreciation policies (2012 or 2013), one before and one after the policy changes.
A21: 3) Applicants should provide CGGAP and Revised CGAAP schedules (i.e. as indicated in the first two columns of the above table) to support balances in Account 1576 if the account has yet to be disposed of.
A23: Appendix 2-BA - Fixed Asset Schedule
A25: Applicants are to provide Appendix 2-BA in accordance with the years and corresponding accounting standards noted in the above table to provide a year over year continuity in fixed assets.
A26: For the transition year (2014), the applicant should file two appendices, one under Revised CGAAP and one under MIFRS if the change between Revised CGAAP and MIFRS is material. If the change from the accounting standards is not material, the applicant may choose to only provide one appendix under MIFRS. However, the applicant must also indicate the fixed asset net book value balance under Revised CGAAP, the total dollar value of the change and explain why it is not material.
A30: Regulatory Gross Assets of Property, Plant and Equipment
A32: For an applicant that adopted IFRS on January 1, 2015 for financial reporting purposes, the applicant must establish the continuity of historic cost by using the December 31, 2013 regulatory gross assets of property, plant and equipment as the opening January 1, 2014 regulatory gross assets. The applicant must provide schedules (including Appendix 2-BA, Fixed Asset Continuity Schedule) which must identify the following details to substantiate the continuity of historic cost for regulatory purposes:
A35: · December 31, 2013 regulatory gross assets of property, plant and equipment, by asset class; and
A36: · January 1, 2014 regulatory gross assets of property, plant and equipment, by asset class.
A38: Accumulated Depreciation
A40: For an applicant that adopted IFRS on January 1, 2015 for financial reporting purposes, the applicant must establish the continuity of historic cost by using the December 31, 2013 regulatory accumulated depreciation as the opening January 1, 2014 regulatory accumulated depreciation. The applicant must provide schedules (including Appendix 2-BA, Fixed Asset Continuity Schedule) which must identify the following details to substantiate the continuity of historic cost for regulatory purposes:
A43: · December 31, 2013 regulatory accumulated depreciation, by asset class; and
A44: · January 1, 2014 regulatory accumulated depreciation, by asset class.
A46: Appendix 2-Cx - Depreciation and Amortization
A48: Applicants are to provide Appendix 2-Cx in accordance with the years and corresponding accounting standards listed in the above table.
A49: · | B49: If an applicant is reflecting changes to its depreciation policies for the first time in a rebasing application, the applicant should complete Appendix 2-CA to 2-CG (changes made in 2012) or Appendix 2-CA to 2-CF (changes made in 2013). In this set of appendices, the applicant will need to indicate the year it made the accounting policy changes. The applicant must provide data starting from the year it made changes to its capitalization and depreciation policies.
B52: *Depreciation accounting policy changes were mandated by the Board by January 1, 2013. In general, no further changes to an applicant's depreciation policy (i.e. assets' service lives) are expected after the Board mandated changes by January 1, 2013. The set of Appendix 2-CA to 2-CG assumes this to be the case. If the applicant has made any changes to its depreciation policy subsequent to the Board mandated changes, applicants must identify the change, explain the nature of the change, the reason for the change, quantify the impact of the change, and quantify the depreciation expense before and after the change.
A53: · | B53: If an applicant changed depreciation policies and reflected these changes in a prior rebasing application, the applicant should complete Appendix 2-CH. The applicant must provide data starting from the earlier of 1) all historical years back to its last rebasing; or 2) at least three years of historical actuals, in addition to Bridge Year and Test Year forecasts.
A56: Appendix 2-E - Account 1575, IFRS-CGAAP Transitional PP&E Amounts (2-EA), Account 1576, Accounting Changes Under CGAAP (2-EB, 2-EC)
A58: 1) For an applicant that has a balance in Account 1576 to dispose:
A59: · | B59: If an applicant changed capitalization and depreciation policies effective January 1, 2012, the applicant must complete Appendix 2-EB
A60: · | B60: If an applicant changed capitalization and depreciation policies effective January 1, 2013, the applicant must complete Appendix 2-EC
A62: 2) For an applicant that has a balance in Account 1575 to dispose:
A63: · | B63: The applicant must complete 2-EA
A64: If the applicant did not make any further PP&E accounting policy changes beyond the capitalization and depreciation policy changes as mandated by the Board by January 1, 2013 (i.e. no further changes made on transition to IFRS), the applicant must indicate this and does not need to complete Appendix 2-EA.
A69: Please refer to section 2.12.4 and 2.12.5 of the Filing Requirements for further details.
A71: Appendix 2-Y - Summary of Impacts to Revenue Requirement from Transition to MIFRS
A73: An applicant must provide a summary of the dollar impacts of MIFRS to each component of the revenue requirement (e.g. rate base, operating costs, etc.), including the overall impact on the proposed revenue requirement. Accordingly, the applicant must identify financial differences and resulting revenue requirement impacts arising from the adoption of MIFRS as compared to CGAAP. If the applicant is reflecting the changes in capitalization and depreciation policies for the first time in a rebasing application, then a comparison between MIFRS and CGAAP before the change in accounting policies should be completed. If the applicant changed capitalization and depreciation policies and reflected these changes in a prior rebasing application, then a comparison between MIFRS and CGAAP after the change in accounting policies should be completed.

Sheet App.2-BA_Fixed Asset Cont
A1: Appendix 2-BA
A2: Fixed Asset Continuity Schedule 1
F4: Year | G4: 2014 | H4: IFRS
D6: Cost | M6: Accumulated Depreciation
A7: CCA Class | B7: OEB | C7: Description | D7: Opening Balance | E7: CGAAP to IFRS Adjustments | F7: Additions | G7: Disposals | H7: Closing Balance | I7: RRR | K7: Opening Balance | L7: CGAAP to IFRS Adjustments | M7: Additions | N7: Disposals | O7: Closing Balance | P7: Net Book Value
A8: 12 | B8: 1611 | C8: Computer Software (Formally known as Account 1925) | D8: 205278.32 | E8: -152303.13 | F8: 13783.75 | G8: 0 | H8: =SUM(D8:G8) -> 66758.94 | I8: 219062.07 | K8: 152303.13 | L8: -152303.13 | M8: 19751 | N8: 0 | O8: =SUM(K8:N8) -> 19751 | P8: =H8-O8 -> 47007.94
A9: CEC | B9: 1612 | C9: Land Rights (Formally known as Account 1906 and 1806) | D9: 8588 | E9: -2608 | F9: 0 | G9: 0 | H9: =SUM(D9:G9) -> 5980 | I9: 8588 | K9: 2608 | L9: -2608 | M9: 0 | N9: 0 | O9: =SUM(K9:N9) -> 0 | P9: 5980
A10: N/A | B10: 1805 | C10: Land | D10: 20000 | E10: 0 | F10: 0 | G10: 0 | H10: 20000 | I10: 20000 | K10: 0 | L10: 0 | M10: 0 | N10: 0 | O10: 0 | P10: 20000
A11: 47 | B11: 1808 | C11: Buildings | D11: 0 | E11: 0 | F11: 0 | G11: 0 | H11: 0 | K11: 0 | L11: 0 | M11: 0 | N11: 0 | O11: 0 | P11: 0
A12: 13 | B12: 1810 | C12: Leasehold Improvements | D12: 0 | E12: 0 | F12: 0 | G12: 0 | H12: 0 | K12: 0 | L12: 0 | M12: 0 | N12: 0 | O12: 0 | P12: 0
A13: 47 | B13: 1815 | C13: Transformer Station Equipment >50 kV | D13: 482801.74 | E13: -108056.74 | F13: 0 | G13: 0 | H13: 374745 | I13: 482801.74 | K13: 108056.74 | L13: -108056.74 | M13: 9831 | N13: 0 | O13: 9831 | P13: 364914
A14: 47 | B14: 1820 | C14: Distribution Station Equipment <50 kV | D14: 1098160.33 | E14: -165860 | F14: 42750 | G14: 0 | H14: 975050.33 | I14: 1140910.33 | K14: 165860 | L14: -165860 | M14: 27936 | N14: 0 | O14: 27936 | P14: 947114.33
A15: 47 | B15: 1825 | C15: Storage Battery Equipment | D15: 0 | E15: 0 | F15: 0 | G15: 0 | H15: 0 | I15: 0 | K15: 0 | L15: 0 | M15: 0 | N15: 0 | O15: 0 | P15: 0
A16: 47 | B16: 1830 | C16: Poles, Towers & Fixtures | D16: 544687.78 | E16: -145340.32 | F16: 24310.27 | G16: 0 | H16: 423657.73 | I16: 568998.05 | K16: 241985.63 | L16: -241985.63 | M16: 19143.33 | N16: 0 | O16: 19143.33 | P16: 404514.4
A17: 47 | B17: 1835 | C17: Overhead Conductors & Devices | D17: 481750.46 | E17: -275813.23 | F17: 31221.29 | G17: 0 | H17: 237158.52 | I17: 512971.75 | K17: 275813.23 | L17: -275813.23 | M17: 10363 | N17: 0 | O17: 10363 | P17: 226795.52
A18: 47 | B18: 1840 | C18: Underground Conduit | D18: 113855.12 | E18: -74586.12 | F18: 0 | G18: 0 | H18: 39269 | I18: 113855.12 | K18: 74586.12 | L18: -74586.12 | M18: 2748 | N18: 0 | O18: 2748 | P18: 36521
A19: 47 | B19: 1845 | C19: Underground Conductors & Devices | D19: 265912.57 | E19: -130845.6 | F19: 0 | G19: 0 | H19: 135066.97 | I19: 265912.57 | K19: 130845.6 | L19: -130845.6 | M19: 9978 | N19: 0 | O19: 9978 | P19: 125088.97
A20: 47 | B20: 1850 | C20: Line Transformers | D20: 428839.76 | E20: -227035.41 | F20: 0 | G20: 0 | H20: 201804.35 | I20: 428839.76 | K20: 227035.41 | L20: -227035.41 | M20: 9934 | N20: 0 | O20: 9934 | P20: 191870.35
A21: 47 | B21: 1855 | C21: Services (Overhead & Underground) | D21: 33379.59 | E21: -9610.48 | F21: 1095.13 | G21: 0 | H21: 24864.24 | I21: 34474.72 | K21: 9610.48 | L21: -9610.48 | M21: 1130 | N21: 0 | O21: 1130 | P21: 23734.24
A22: 47 | B22: 1860 | C22: Meters | D22: 254843.38 | E22: -193343.13 | F22: 0 | G22: -54357 | H22: 7143.25 | I22: 640595.49 | K22: 193343.13 | L22: -193343.13 | M22: -6826.25 | N22: 7143.25 | O22: 317 | P22: 6826.25
A23: 47 | B23: 1860 | C23: Meters (Smart Meters) | D23: 622998.57 | E23: -135345.62 | F23: 9665.67 | G23: 0 | H23: 497318.62 | I23: 0 | K23: 146729.69 | L23: -146729.69 | M23: 42488.33 | N23: 0 | O23: 42488.33 | P23: 454830.29
A24: N/A | B24: 1905 | C24: Land | D24: 28299.7 | E24: 0 | F24: 0 | G24: 0 | H24: 28299.7 | I24: 28299.7 | K24: 0 | L24: 0 | M24: 0 | N24: 0 | O24: 0 | P24: 28299.7
A25: 47 | B25: 1908 | C25: Buildings & Fixtures | D25: 862328.77 | E25: -252893.77 | F25: 13386 | G25: 0 | H25: 622821 | I25: 875714.77 | K25: 252893.77 | L25: -252893.77 | M25: 33825 | N25: 0 | O25: 33825 | P25: 588996
A26: 13 | B26: 1910 | C26: Leasehold Improvements | D26: 0 | E26: 0 | F26: 0 | G26: 0 | H26: 0 | I26: 0 | K26: 0 | L26: 0 | M26: 0 | N26: 0 | O26: 0 | P26: 0
A27: 8 | B27: 1915 | C27: Office Furniture & Equipment (10 years) | D27: 39383.09 | E27: -23355.73 | F27: 457.09 | G27: 0 | H27: 16484.45 | I27: 39840.18 | K27: 23355.73 | L27: -23355.73 | M27: 2966 | N27: 0 | O27: 2966 | P27: 13518.45
A28: 8 | B28: 1915 | C28: Office Furniture & Equipment (5 years) | D28: 0 | E28: 0 | F28: 0 | G28: 0 | H28: 0 | K28: 0 | L28: 0 | M28: 0 | N28: 0 | O28: 0 | P28: 0
A29: 10 | B29: 1920 | C29: Computer Equipment - Hardware | D29: 0 | E29: 0 | F29: 0 | G29: 0 | H29: 0 | K29: 0 | L29: 0 | M29: 0 | N29: 0 | O29: 0 | P29: 0
A30: 45 | B30: 1920 | C30: Computer Equip.-Hardware(Post Mar. 22/04) | D30: 0 | E30: 0 | F30: 0 | G30: 0 | H30: 0 | K30: 0 | L30: 0 | M30: 0 | N30: 0 | O30: 0 | P30: 0
A31: 45.1 | B31: 1920 | C31: Computer Equip.-Hardware(Post Mar. 19/07) | D31: 57839.22 | E31: -50774.41 | F31: 1403.56 | G31: 0 | H31: 8468.37 | I31: 59242.78 | K31: 50774.41 | L31: -50774.41 | M31: 2803 | N31: 0 | O31: 2803 | P31: 5665.37
A32: 10 | B32: 1930 | C32: Transportation Equipment | D32: 204793.8 | E32: -198401.8 | F32: 0 | G32: 0 | H32: 6392 | I32: 189045.8 | K32: 198401.8 | L32: -198401.8 | M32: 2556 | N32: 0 | O32: 2556 | P32: 3836
A33: 8 | B33: 1935 | C33: Stores Equipment | D33: 0 | E33: 0 | F33: 0 | G33: 0 | H33: 0 | K33: 0 | L33: 0 | M33: 0 | N33: 0 | O33: 0 | P33: 0
A34: 8 | B34: 1940 | C34: Tools, Shop & Garage Equipment | D34: 29580.47 | E34: -16018.5 | F34: 0 | G34: 0 | H34: 13561.97 | I34: 29580.47 | K34: 16018.5 | L34: -16018.5 | M34: 2279 | N34: 0 | O34: 2279 | P34: 11282.97
A35: 8 | B35: 1945 | C35: Measurement & Testing Equipment | D35: 0 | E35: 0 | F35: 0 | G35: 0 | H35: 0 | K35: 0 | L35: 0 | M35: 0 | N35: 0 | O35: 0 | P35: 0
A36: 8 | B36: 1950 | C36: Power Operated Equipment | D36: 6018.28 | E36: -4466.29 | F36: 0 | G36: 0 | H36: 1551.99 | I36: 6018.28 | K36: 4466.29 | L36: -4466.29 | M36: 207 | N36: 0 | O36: 207 | P36: 1344.99
A37: 8 | B37: 1955 | C37: Communications Equipment | D37: 0 | E37: 0 | F37: 0 | G37: 0 | H37: 0 | K37: 0 | L37: 0 | M37: 0 | N37: 0 | O37: 0 | P37: 0
A38: 8 | B38: 1955 | C38: Communication Equipment (Smart Meters) | D38: 0 | E38: 0 | F38: 0 | G38: 0 | H38: 0 | K38: 0 | L38: 0 | M38: 0 | N38: 0 | O38: 0 | P38: 0
A39: 8 | B39: 1960 | C39: Miscellaneous Equipment | D39: 0 | E39: 0 | F39: 0 | G39: 0 | H39: 0 | K39: 0 | L39: 0 | M39: 0 | N39: 0 | O39: 0 | P39: 0
A40: 47 | B40: 1970 | C40: Load Management Controls Customer Premises | D40: 0 | E40: 0 | F40: 0 | G40: 0 | H40: 0 | K40: 0 | L40: 0 | M40: 0 | N40: 0 | O40: 0 | P40: 0
A41: 47 | B41: 1975 | C41: Load Management Controls Utility Premises | D41: 0 | E41: 0 | F41: 0 | G41: 0 | H41: 0 | K41: 0 | L41: 0 | M41: 0 | N41: 0 | O41: 0 | P41: 0
A42: 47 | B42: 1980 | C42: System Supervisor Equipment | D42: 0 | E42: 0 | F42: 0 | G42: 0 | H42: 0 | K42: 0 | L42: 0 | M42: 0 | N42: 0 | O42: 0 | P42: 0
A43: 47 | B43: 1985 | C43: Miscellaneous Fixed Assets | D43: 0 | E43: 0 | F43: 0 | G43: 0 | H43: 0 | K43: 0 | L43: 0 | M43: 0 | N43: 0 | O43: 0 | P43: 0
A44: 47 | B44: 1990 | C44: Other Tangible Property | D44: 0 | E44: 0 | F44: 0 | G44: 0 | H44: 0 | K44: 0 | L44: 0 | M44: 0 | N44: 0 | O44: 0 | P44: 0
A45: 47 | B45: 1995 | C45: Contributions & Grants | D45: -254514.18 | E45: 254514.18 | F45: 0 | G45: 0 | H45: 0 | I45: -220027.76 | K45: -28084.42 | L45: 28084.42 | M45: 0 | N45: 0 | O45: 0 | P45: 0
A46: N/A | B46: etc. | C46: Construction in progress | D46: 0 | E46: 804777.26 | F46: 707031.39 | G46: 0 | H46: 1511808.65 | K46: 0 | L46: 0 | M46: 0 | N46: 0 | O46: 0 | P46: 1511808.65
B47: etc. | C47: Contributions & Grants | D47: 0 | E47: -226429.76 | F47: 0 | G47: 0 | H47: -226429.76 | K47: 0 | L47: 0 | M47: -6402 | N47: 0 | O47: -6402 | P47: -220027.76
B48: etc. | D48: 0 | E48: 0 | F48: 0 | G48: 0 | H48: 0 | K48: 0 | M48: 0 | N48: 0 | O48: 0 | P48: 0
B49: etc. | D49: 0 | E49: 0 | F49: 0 | G49: 0 | H49: 0 | K49: 0 | M49: 0 | N49: 0 | O49: 0 | P49: 0
B50: etc. | D50: 0 | E50: 0 | F50: 0 | G50: 0 | H50: 0 | K50: 0 | M50: 0 | N50: 0 | O50: 0 | P50: 0
B51: etc. | D51: 0 | E51: 0 | F51: 0 | G51: 0 | H51: 0 | K51: 0 | M51: 0 | N51: 0 | O51: 0 | P51: 0
B52: etc. | D52: 0 | E52: 0 | F52: 0 | G52: 0 | H52: 0 | K52: 0 | M52: 0 | N52: 0 | O52: 0 | P52: 0
B53: etc. | D53: 0 | E53: 0 | F53: 0 | G53: 0 | H53: 0 | K53: 0 | M53: 0 | N53: 0 | O53: 0 | P53: 0
B54: etc. | D54: 0 | E54: 0 | F54: 0 | G54: 0 | H54: 0 | K54: 0 | M54: 0 | N54: 0 | O54: 0 | P54: 0
B55: etc. | D55: 0 | E55: 0 | F55: 0 | G55: 0 | H55: 0 | K55: 0 | M55: 0 | N55: 0 | O55: 0 | P55: 0
B56: etc. | D56: 0 | E56: 0 | F56: 0 | G56: 0 | H56: 0 | K56: 0 | M56: 0 | N56: 0 | O56: 0 | P56: 0
H57: 0 | K57: 0 | M57: 0 | N57: 0 | O57: 0 | P57: 0
C58: Sub-Total | D58: =SUM(D8:D57) -> 5534824.77 | E58: =SUM(E8:E57) -> -1333796.6 | F58: =SUM(F8:F57) -> 845104.15 | G58: =SUM(G8:G57) -> -54357 | H58: =SUM(H8:H57) -> 4991775.32 | I58: =SUM(I8:I57) -> 5444723.82 | K58: 2246603.24 | L58: -2246603.24 | M58: =SUM(M8:M57) -> 184710.41 | N58: 7143.25 | O58: =SUM(O8:O57) -> 191853.66 | P58: 4799921.66
C59: Less Socialized Renewable Energy Generation Investments (input as negative)Less Socialized Renewable Energy Generation Investments (input as negative) | H59: =D59+F59+G59 -> 0 | O59: =K59+M59+N59 -> 0 | P59: =H59+O59 -> 0
C60: Less Other Non Rate-Regulated Utility Assets (input as negative)Less Other Non Rate-Regulated Utility Assets (input as negative) | H60: =D60+F60+G60 -> 0 | O60: =K60+M60+N60 -> 0 | P60: =H60+O60 -> 0
C61: Total PP&E | D61: =SUM(D58:D60) -> 5534824.77 | F61: =SUM(F58:F60) -> 845104.15 | G61: =SUM(G58:G60) -> -54357 | H61: =SUM(H58:H60) -> 4991775.32 | K61: =SUM(K58:K60) -> 2246603.24 | M61: =SUM(M58:M60) -> 184710.41 | N61: =SUM(N58:N60) -> 7143.25 | O61: =SUM(O58:O60) -> 191853.66 | P61: =SUM(P58:P60) -> 4799921.66
C62: Depreciation Expense adj. from gain or loss on the retirement of assets (pool of like assets)
C63: Total | M63: =M61+M62 -> 184710.41
H65: Less: Fully Allocated Depreciation
A66: 10 | C66: Transportation | H66: Transportation
A67: 8 | C67: Stores Equipment | H67: Stores Equipment
A68: 8 | C68: Tools, Shop | H68: Tools, Shop
A69: 8 | C69: Meas/Testing | H69: Meas/Testing
A70: 8 | C70: Communication | H70: Communication
H71: Net Depreciation | M71: =M63+M66+M70+M67+M68+M69 -> 184710.41
F73: Year | G73: 2015 | H73: IFRS
D75: Cost | M75: Accumulated Depreciation
A76: CCA Class | B76: OEB | C76: Description | D76: Opening Balance | F76: Additions | G76: Disposals | H76: Closing Balance | I76: RRR | K76: Opening Balance | M76: Additions | N76: Disposals | O76: Closing Balance | P76: Net Book Value
A77: 12 | B77: 1611 | C77: Computer Software (Formally known as Account 1925) | D77: =H8 -> 66758.94 | E77: 0 | F77: 5812.8 | G77: 0 | H77: =D77+F77+G77 -> 72571.74 | I77: 224874.87 | K77: =O8 -> 19751 | L77: 0 | M77: 19862 | N77: 0 | O77: =K77+M77+N77 -> 39613 | P77: =H77-O77 -> 32958.74
A78: CEC | B78: 1612 | C78: Land Rights (Formally known as Account 1906 and 1806) | D78: 5980 | E78: 0 | F78: 0 | G78: 0 | H78: =D78+F78+G78 -> 5980 | I78: 8588 | K78: 0 | L78: 0 | M78: 0 | N78: 0 | O78: =K78+M78+N78 -> 0 | P78: =H78-O78 -> 5980
A79: N/A | B79: 1805 | C79: Land | D79: 20000 | E79: 0 | F79: 0 | G79: 0 | H79: =D79+F79+G79 -> 20000 | I79: 20000 | K79: 0 | L79: 0 | M79: 0 | N79: 0 | O79: =K79+M79+N79 -> 0 | P79: 20000
A80: 47 | B80: 1808 | C80: Buildings | D80: 0 | E80: 0 | F80: 0 | G80: 0 | H80: =D80+F80+G80 -> 0 | K80: 0 | L80: 0 | M80: 0 | N80: 0 | O80: =K80+M80+N80 -> 0 | P80: 0
A81: 13 | B81: 1810 | C81: Leasehold Improvements | D81: 0 | E81: 0 | F81: 0 | G81: 0 | H81: 0 | K81: 0 | L81: 0 | M81: 0 | N81: 0 | O81: 0 | P81: 0
A82: 47 | B82: 1815 | C82: Transformer Station Equipment >50 kV | D82: 374745 | E82: 0 | F82: 1946.9 | G82: 0 | H82: 376691.9 | I82: 484748.64 | K82: 9831 | L82: 0 | M82: 9845 | N82: 0 | O82: 19676 | P82: 357015.9
A83: 47 | B83: 1820 | C83: Distribution Station Equipment <50 kV | D83: 975050.33 | E83: 0 | F83: 320188 | G83: 0 | H83: 1295238.33 | I83: 1461098.33 | K83: 27936 | L83: 0 | M83: 29807 | N83: 0 | O83: 57743 | P83: 1237495.33
A84: 47 | B84: 1825 | C84: Storage Battery Equipment | D84: 0 | E84: 0 | F84: 0 | G84: 0 | H84: 0 | I84: 0 | K84: 0 | L84: 0 | M84: 0 | N84: 0 | O84: 0 | P84: 0
A85: 47 | B85: 1830 | C85: Poles, Towers & Fixtures | D85: 423657.73 | E85: 0 | F85: 88559.57 | G85: 0 | H85: 512217.3 | I85: 657557.62 | K85: 19143.33 | L85: 0 | M85: 20115.16 | N85: 0 | O85: 39258.49 | P85: 472958.81
A86: 47 | B86: 1835 | C86: Overhead Conductors & Devices | D86: 237158.52 | E86: 0 | F86: 27607.26 | G86: 0 | H86: 264765.78 | I86: 540579.01 | K86: 10363 | L86: 0 | M86: 10700 | N86: 0 | O86: 21063 | P86: 243702.78
A87: 47 | B87: 1840 | C87: Underground Conduit | D87: 39269 | E87: 0 | F87: 0 | G87: 0 | H87: 39269 | I87: 113855.12 | K87: 2748 | L87: 0 | M87: 2748 | N87: 0 | O87: 5496 | P87: 33773
A88: 47 | B88: 1845 | C88: Underground Conductors & Devices | D88: 135066.97 | E88: 0 | F88: 0 | G88: 0 | H88: 135066.97 | I88: 265912.57 | K88: 9978 | L88: 0 | M88: 9714 | N88: 0 | O88: 19692 | P88: 115374.97
A89: 47 | B89: 1850 | C89: Line Transformers | D89: 201804.35 | E89: 0 | F89: 11110 | G89: 0 | H89: 212914.35 | I89: 439949.76 | K89: 9934 | L89: 0 | M89: 9613 | N89: 0 | O89: 19547 | P89: 193367.35
A90: 47 | B90: 1855 | C90: Services (Overhead & Underground) | D90: 24864.24 | E90: 0 | F90: 666.73 | G90: 0 | H90: 25530.97 | I90: 35141.45 | K90: 1130 | L90: 0 | M90: 1156 | N90: 0 | O90: 2286 | P90: 23244.97
A91: 47 | B91: 1860 | C91: Meters | D91: 7143.25 | E91: 0 | F91: 0 | G91: 0 | H91: 7143.25 | K91: 317 | L91: 0 | M91: 317 | N91: 0 | O91: 634 | P91: 6509.25
A92: 47 | B92: 1860 | C92: Meters (Smart Meters) | D92: 497318.62 | E92: 0 | F92: 8016.18 | G92: -8842.89 | H92: 496491.91 | I92: 648611.67 | K92: 42488.33 | L92: 0 | M92: 42698.4 | N92: -1138.21 | O92: 84048.52 | P92: 412443.39
A93: N/A | B93: 1905 | C93: Land | D93: 28299.7 | E93: 0 | F93: 0 | G93: 0 | H93: 28299.7 | I93: 28299.7 | K93: 0 | L93: 0 | M93: 0 | N93: 0 | O93: 0 | P93: 28299.7
A94: 47 | B94: 1908 | C94: Buildings & Fixtures | D94: 622821 | E94: 0 | F94: 0 | G94: 0 | H94: 622821 | I94: 875714.77 | K94: 33825 | L94: 0 | M94: 34271 | N94: 0 | O94: 68096 | P94: 554725
A95: 13 | B95: 1910 | C95: Leasehold Improvements | D95: 0 | E95: 0 | F95: 0 | G95: 0 | H95: 0 | I95: 0 | K95: 0 | L95: 0 | M95: 0 | N95: 0 | O95: 0 | P95: 0
A96: 8 | B96: 1915 | C96: Office Furniture & Equipment (10 years) | D96: 16484.45 | E96: 0 | F96: 7254.44 | G96: 0 | H96: 23738.89 | I96: 47094.62 | K96: 2966 | L96: 0 | M96: 3395 | N96: 0 | O96: 6361 | P96: 17377.89
A97: 8 | B97: 1915 | C97: Office Furniture & Equipment (5 years) | D97: 0 | E97: 0 | F97: 0 | G97: 0 | H97: 0 | K97: 0 | L97: 0 | M97: 0 | N97: 0 | O97: 0 | P97: 0
A98: 10 | B98: 1920 | C98: Computer Equipment - Hardware | D98: 0 | E98: 0 | F98: 0 | G98: 0 | H98: 0 | K98: 0 | L98: 0 | M98: 0 | N98: 0 | O98: 0 | P98: 0
A99: 45 | B99: 1920 | C99: Computer Equip.-Hardware(Post Mar. 22/04) | D99: 0 | E99: 0 | F99: 0 | G99: 0 | H99: 0 | K99: 0 | L99: 0 | M99: 0 | N99: 0 | O99: 0 | P99: 0
A100: 45.1 | B100: 1920 | C100: Computer Equip.-Hardware(Post Mar. 19/07) | D100: 8468.37 | E100: 0 | F100: 0 | G100: 0 | H100: 8468.37 | I100: 59242.78 | K100: 2803 | L100: 0 | M100: 2195 | N100: 0 | O100: 4998 | P100: 3470.37
A101: 10 | B101: 1930 | C101: Transportation Equipment | D101: 6392 | E101: 0 | F101: 0 | G101: 0 | H101: 6392 | I101: 189045.8 | K101: 2556 | L101: 0 | M101: 2556 | N101: 0 | O101: 5112 | P101: 1280
A102: 8 | B102: 1935 | C102: Stores Equipment | D102: 0 | E102: 0 | F102: 0 | G102: 0 | H102: 0 | K102: 0 | L102: 0 | M102: 0 | N102: 0 | O102: 0 | P102: 0
A103: 8 | B103: 1940 | C103: Tools, Shop & Garage Equipment | D103: 13561.97 | E103: 0 | F103: 0 | G103: 0 | H103: 13561.97 | I103: 29580.47 | K103: 2279 | L103: 0 | M103: 2279 | N103: 0 | O103: 4558 | P103: 9003.97
A104: 8 | B104: 1945 | C104: Measurement & Testing Equipment | D104: 0 | E104: 0 | F104: 0 | G104: 0 | H104: 0 | K104: 0 | L104: 0 | M104: 0 | N104: 0 | O104: 0 | P104: 0
A105: 8 | B105: 1950 | C105: Power Operated Equipment | D105: 1551.99 | E105: 0 | F105: 0 | G105: 0 | H105: 1551.99 | I105: 6018.58 | K105: 207 | L105: 0 | M105: 207 | N105: 0 | O105: 414 | P105: 1137.99
A106: 8 | B106: 1955 | C106: Communications Equipment | D106: 0 | E106: 0 | F106: 0 | G106: 0 | H106: 0 | K106: 0 | L106: 0 | M106: 0 | N106: 0 | O106: 0 | P106: 0
A107: 8 | B107: 1955 | C107: Communication Equipment (Smart Meters) | D107: 0 | E107: 0 | F107: 0 | G107: 0 | H107: 0 | K107: 0 | L107: 0 | M107: 0 | N107: 0 | O107: 0 | P107: 0
A108: 8 | B108: 1960 | C108: Miscellaneous Equipment | D108: 0 | E108: 0 | F108: 0 | G108: 0 | H108: 0 | K108: 0 | L108: 0 | M108: 0 | N108: 0 | O108: 0 | P108: 0
A109: 47 | B109: 1970 | C109: Load Management Controls Customer Premises | D109: 0 | E109: 0 | F109: 0 | G109: 0 | H109: 0 | K109: 0 | L109: 0 | M109: 0 | N109: 0 | O109: 0 | P109: 0
A110: 47 | B110: 1975 | C110: Load Management Controls Utility Premises | D110: 0 | E110: 0 | F110: 0 | G110: 0 | H110: 0 | K110: 0 | L110: 0 | M110: 0 | N110: 0 | O110: 0 | P110: 0
A111: 47 | B111: 1980 | C111: System Supervisor Equipment | D111: 0 | E111: 0 | F111: 0 | G111: 0 | H111: 0 | K111: 0 | L111: 0 | M111: 0 | N111: 0 | O111: 0 | P111: 0
A112: 47 | B112: 1985 | C112: Miscellaneous Fixed Assets | D112: 0 | E112: 0 | F112: 0 | G112: 0 | H112: 0 | K112: 0 | L112: 0 | M112: 0 | N112: 0 | O112: 0 | P112: 0
A113: 47 | B113: 1990 | C113: Other Tangible Property | D113: 0 | E113: 0 | F113: 0 | G113: 0 | H113: 0 | K113: 0 | L113: 0 | M113: 0 | N113: 0 | O113: 0 | P113: 0
A114: 47 | B114: 1995 | C114: Contributions & Grants | D114: 0 | E114: 0 | F114: 0 | G114: 0 | H114: 0 | I114: -306162.92 | K114: 0 | L114: 0 | M114: 0 | N114: 0 | O114: 0 | P114: 0
A115: N/A | B115: 2055 | C115: Construction in progress | D115: 1511808.65 | E115: 0 | F115: 141543.88 | G115: 0 | H115: 1653352.53 | K115: 0 | L115: 0 | M115: 0 | N115: 0 | O115: 0 | P115: 1653352.53
B116: etc. | C116: Contributions & Grants | D116: -226429.76 | E116: 0 | F116: -93493.16 | G116: 0 | H116: -319922.92 | K116: -6402 | L116: 0 | M116: -6561 | N116: 0 | O116: -12963 | P116: -306959.92
B117: etc. | D117: 0 | E117: 0 | F117: 0 | G117: 0 | H117: 0 | L117: 0 | M117: 0 | N117: 0 | O117: 0 | P117: 0
B118: etc. | D118: 0 | E118: 0 | F118: 0 | G118: 0 | H118: 0 | L118: 0 | M118: 0 | N118: 0 | O118: 0 | P118: 0
B119: etc. | D119: 0 | E119: 0 | F119: 0 | G119: 0 | H119: 0 | L119: 0 | M119: 0 | N119: 0 | O119: 0 | P119: 0
B120: etc. | D120: 0 | E120: 0 | F120: 0 | G120: 0 | H120: 0 | L120: 0 | M120: 0 | N120: 0 | O120: 0 | P120: 0
B121: etc. | D121: 0 | E121: 0 | F121: 0 | G121: 0 | H121: 0 | L121: 0 | M121: 0 | N121: 0 | O121: 0 | P121: 0
B122: etc. | D122: 0 | E122: 0 | F122: 0 | G122: 0 | H122: 0 | L122: 0 | M122: 0 | N122: 0 | O122: 0 | P122: 0
B123: etc. | D123: 0 | E123: 0 | F123: 0 | G123: 0 | H123: 0 | L123: 0 | M123: 0 | N123: 0 | O123: 0 | P123: 0
B124: etc. | D124: 0 | E124: 0 | F124: 0 | G124: 0 | H124: 0 | L124: 0 | M124: 0 | N124: 0 | O124: 0 | P124: 0
B125: etc. | D125: =H56 -> 0 | E125: 0 | F125: 0 | G125: 0 | H125: =D125+F125+G125 -> 0 | L125: 0 | M125: 0 | N125: 0 | O125: 0 | P125: 0
D126: =H57 -> 0 | H126: =D126+F126+G126 -> 0 | K126: =O57 -> 0 | M126: 0 | N126: 0 | O126: 0 | P126: 0
C127: Sub-Total | D127: =SUM(D77:D126) -> 4991775.32 | E127: 0 | F127: 519212.6 | G127: -8842.89 | H127: 5502145.03 | I127: 5829750.84 | K127: =SUM(K77:K126) -> 191853.66 | L127: 0 | M127: 194917.56 | N127: -1138.21 | O127: 385633.01 | P127: 5116512.02
C128: Less Socialized Renewable Energy Generation Investments (input as negative)Less Socialized Renewable Energy Generation Investments (input as negative) | H128: =D128+F128+G128 -> 0 | O128: =K128+M128+N128 -> 0 | P128: =H128+O128 -> 0
C129: Less Other Non Rate-Regulated Utility Assets (input as negative)Less Other Non Rate-Regulated Utility Assets (input as negative) | H129: =D129+F129+G129 -> 0 | O129: =K129+M129+N129 -> 0 | P129: =H129+O129 -> 0
C130: Total PP&E | D130: =SUM(D127:D129) -> 4991775.32 | F130: =SUM(F127:F129) -> 519212.6 | G130: =SUM(G127:G129) -> -8842.89 | H130: =SUM(H127:H129) -> 5502145.03 | K130: =SUM(K127:K129) -> 191853.66 | M130: =SUM(M127:M129) -> 194917.56 | N130: =SUM(N127:N129) -> -1138.21 | O130: =SUM(O127:O129) -> 385633.01 | P130: =SUM(P127:P129) -> 5116512.02
C131: Depreciation Expense adj. from gain or loss on the retirement of assets (pool of like assets)
C132: Total | M132: =M130+M131 -> 194917.56
H134: Less: Fully Allocated Depreciation
A135: 10 | C135: Transportation | H135: Transportation
A136: 8 | C136: Stores Equipment | H136: Stores Equipment
A137: 8 | C137: Tools, Shop | H137: Tools, Shop
A138: 8 | C138: Meas/Testing | H138: Meas/Testing
A139: 8 | C139: Communication | H139: Communication
H140: Net Depreciation | M140: =M132+M135+M139+M136+M137+M138 -> 194917.56
F142: Year | G142: 2016 | H142: IFRS
D144: Cost | M144: Accumulated Depreciation
A145: CCA Class | B145: OEB | C145: Description | D145: Opening Balance | E145: CGAAP to IFRS Adjustments | F145: Additions | G145: Disposals | H145: Closing Balance | I145: RRR | K145: Opening Balance | L145: CGAAP to IFRS Adjustments | M145: Additions | N145: Disposals | O145: Closing Balance | P145: Net Book Value
A146: 12 | B146: 1611 | C146: Computer Software (Formally known as Account 1925) | D146: =H77 -> 72571.74 | E146: 0 | F146: 3999 | G146: 0 | H146: =D146+F146+G146 -> 76570.74 | I146: 76570.74 | K146: =O77 -> 39613 | L146: 0 | M146: 14126.74 | N146: 0 | O146: =K146+M146+N146 -> 53739.74 | P146: =H146-O146 -> 22831
A147: CEC | B147: 1612 | C147: Land Rights (Formally known as Account 1906 and 1806) | D147: 5980 | E147: 0 | F147: 0 | G147: 0 | H147: =D147+F147+G147 -> 5980 | I147: 5980 | K147: 0 | L147: 0 | M147: 0 | N147: 0 | O147: =K147+M147+N147 -> 0 | P147: =H147-O147 -> 5980
A148: N/A | B148: 1805 | C148: Land | D148: 20000 | E148: 0 | F148: 0 | G148: 0 | H148: =D148+F148+G148 -> 20000 | I148: 20000 | K148: 0 | L148: 0 | M148: 0 | N148: 0 | O148: =K148+M148+N148 -> 0 | P148: 20000
A149: 47 | B149: 1808 | C149: Buildings | D149: 0 | E149: 0 | F149: 0 | G149: 0 | H149: =D149+F149+G149 -> 0 | K149: 0 | L149: 0 | M149: 0 | N149: 0 | O149: =K149+M149+N149 -> 0 | P149: 0
A150: 13 | B150: 1810 | C150: Leasehold Improvements | D150: 0 | E150: 0 | F150: 0 | G150: 0 | H150: 0 | K150: 0 | L150: 0 | M150: 0 | N150: 0 | O150: 0 | P150: 0
A151: 47 | B151: 1815 | C151: Transformer Station Equipment >50 kV | D151: 376691.9 | E151: 0 | F151: 59243.61 | G151: 0 | H151: 435935.51 | I151: 435935.51 | K151: 19676 | L151: 0 | M151: 9930.51 | N151: 0 | O151: 29606.51 | P151: 406329
A152: 47 | B152: 1820 | C152: Distribution Station Equipment <50 kV | D152: 1295238.33 | E152: 0 | F152: 54101.25 | G152: 0 | H152: 1349339.58 | I152: 1349339.58 | K152: 57743 | L152: 0 | M152: 36217.58 | N152: 0 | O152: 93960.58 | P152: 1255379
A153: 47 | B153: 1825 | C153: Storage Battery Equipment | D153: 0 | E153: 0 | F153: 0 | G153: 0 | H153: 0 | I153: 0 | K153: 0 | L153: 0 | M153: 0 | N153: 0 | O153: 0 | P153: 0
A154: 47 | B154: 1830 | C154: Poles, Towers & Fixtures | D154: 512217.3 | E154: 0 | F154: 68411.92 | G154: -2839.28 | H154: 577789.94 | I154: 577789.94 | K154: 39258.49 | L154: 0 | M154: 21616.91 | N154: -482.46 | O154: 60392.94 | P154: 517397
A155: 47 | B155: 1835 | C155: Overhead Conductors & Devices | D155: 264765.78 | E155: 0 | F155: 69002.98 | G155: 0 | H155: 333768.76 | I155: 333768.76 | K155: 21063 | L155: 0 | M155: 11058.76 | N155: 0 | O155: 32121.76 | P155: 301647
A156: 47 | B156: 1840 | C156: Underground Conduit | D156: 39269 | E156: 0 | F156: 0 | G156: 0 | H156: 39269 | I156: 39269 | K156: 5496 | L156: 0 | M156: 2698 | N156: 0 | O156: 8194 | P156: 31075
A157: 47 | B157: 1845 | C157: Underground Conductors & Devices | D157: 135066.97 | E157: 0 | F157: 11013.02 | G157: 0 | H157: 146079.99 | I157: 146079.99 | K157: 19692 | L157: 0 | M157: 9385.99 | N157: 0 | O157: 29077.99 | P157: 117002
A158: 47 | B158: 1850 | C158: Line Transformers | D158: 212914.35 | E158: 0 | F158: 5695.75 | G158: 0 | H158: 218610.1 | I158: 218610.1 | K158: 19547 | L158: 0 | M158: 9495.1 | N158: 0 | O158: 29042.1 | P158: 189568
A159: 47 | B159: 1855 | C159: Services (Overhead & Underground) | D159: 25530.97 | E159: 0 | F159: 241.48 | G159: 0 | H159: 25772.45 | I159: 25772.45 | K159: 2286 | L159: 0 | M159: 1175.45 | N159: 0 | O159: 3461.45 | P159: 22311
A160: 47 | B160: 1860 | C160: Meters | D160: 7143.25 | E160: 0 | F160: =1279.42-1279.42 -> 0 | G160: 0 | H160: 7143.25 | I160: 526354.34 | K160: 634 | L160: 0 | M160: 316.25 | N160: 0 | O160: 950.25 | P160: 6193
A161: 47 | B161: 1860 | C161: Meters (Smart Meters) | D161: 496491.91 | E161: 0 | F161: 27625.66 | G161: -4906.48 | H161: 519211.09 | I161: 0 | K161: 84048.52 | L161: 0 | M161: 43291.66 | N161: -1076.49 | O161: 126263.69 | P161: 392947.4
A162: N/A | B162: 1905 | C162: Land | D162: 28299.7 | E162: 0 | F162: 0 | G162: 0 | H162: 28299.7 | I162: 28299.7 | K162: 0 | L162: 0 | M162: 0 | N162: 0 | O162: 0 | P162: 28299.7
A163: 47 | B163: 1908 | C163: Buildings & Fixtures | D163: 622821 | E163: 0 | F163: 52500 | G163: 0 | H163: 675321 | I163: 675321 | K163: 68096 | L163: 0 | M163: 34446 | N163: 0 | O163: 102542 | P163: 572779
A164: 13 | B164: 1910 | C164: Leasehold Improvements | D164: 0 | E164: 0 | F164: 0 | G164: 0 | H164: 0 | I164: 0 | K164: 0 | L164: 0 | M164: 0 | N164: 0 | O164: 0 | P164: 0
A165: 8 | B165: 1915 | C165: Office Furniture & Equipment (10 years) | D165: 23738.89 | E165: 0 | F165: 0 | G165: 0 | H165: 23738.89 | I165: 23738.89 | K165: 6361 | L165: 0 | M165: 3494.89 | N165: 0 | O165: 9855.89 | P165: 13883
A166: 8 | B166: 1915 | C166: Office Furniture & Equipment (5 years) | D166: 0 | E166: 0 | F166: 0 | G166: 0 | H166: 0 | K166: 0 | L166: 0 | M166: 0 | N166: 0 | O166: 0 | P166: 0
A167: 10 | B167: 1920 | C167: Computer Equipment - Hardware | D167: 0 | E167: 0 | F167: 0 | G167: 0 | H167: 0 | K167: 0 | L167: 0 | M167: 0 | N167: 0 | O167: 0 | P167: 0
A168: 45 | B168: 1920 | C168: Computer Equip.-Hardware(Post Mar. 22/04) | D168: 0 | E168: 0 | F168: 0 | G168: 0 | H168: 0 | I168: 6392 | K168: 0 | L168: 0 | M168: 0 | N168: 0 | O168: 0 | P168: 0
A169: 45.1 | B169: 1920 | C169: Computer Equip.-Hardware(Post Mar. 19/07) | D169: 8468.37 | E169: 0 | F169: 843.55 | G169: 0 | H169: 9311.92 | I169: 9311.92 | K169: 4998 | L169: 0 | M169: 1668.92 | N169: 0 | O169: 6666.92 | P169: 2645
A170: 10 | B170: 1930 | C170: Transportation Equipment | D170: 6392 | E170: 0 | F170: 0 | G170: 0 | H170: 6392 | I170: 6392 | K170: 5112 | L170: 0 | M170: 1280 | N170: 0 | O170: 6392 | P170: 0
A171: 8 | B171: 1935 | C171: Stores Equipment | D171: 0 | E171: 0 | F171: 0 | G171: 0 | H171: 0 | K171: 0 | L171: 0 | M171: 0 | N171: 0 | O171: 0 | P171: 0
A172: 8 | B172: 1940 | C172: Tools, Shop & Garage Equipment | D172: 13561.97 | E172: 0 | F172: 7415.07 | G172: 0 | H172: 20977.04 | I172: 20977.04 | K172: 4558 | L172: 0 | M172: 2053.04 | N172: 0 | O172: 6611.04 | P172: 14366
A173: 8 | B173: 1945 | C173: Measurement & Testing Equipment | D173: 0 | E173: 0 | F173: 0 | G173: 0 | H173: 0 | K173: 0 | L173: 0 | M173: 0 | N173: 0 | O173: 0 | P173: 0
A174: 8 | B174: 1950 | C174: Power Operated Equipment | D174: 1551.99 | E174: 0 | F174: 0 | G174: 0 | H174: 1551.99 | I174: 0 | K174: 414 | L174: 0 | M174: 206.99 | N174: 0 | O174: 620.99 | P174: 931
A175: 8 | B175: 1955 | C175: Communications Equipment | D175: 0 | E175: 0 | F175: 0 | G175: 0 | H175: 0 | K175: 0 | L175: 0 | M175: 0 | N175: 0 | O175: 0 | P175: 0
A176: 8 | B176: 1955 | C176: Communication Equipment (Smart Meters) | D176: 0 | E176: 0 | F176: 0 | G176: 0 | H176: 0 | K176: 0 | L176: 0 | M176: 0 | N176: 0 | O176: 0 | P176: 0
A177: 8 | B177: 1960 | C177: Miscellaneous Equipment | D177: 0 | E177: 0 | F177: 0 | G177: 0 | H177: 0 | K177: 0 | L177: 0 | M177: 0 | N177: 0 | O177: 0 | P177: 0
A178: 47 | B178: 1970 | C178: Load Management Controls Customer Premises | D178: 0 | E178: 0 | F178: 0 | G178: 0 | H178: 0 | K178: 0 | L178: 0 | M178: 0 | N178: 0 | O178: 0 | P178: 0
A179: 47 | B179: 1975 | C179: Load Management Controls Utility Premises | D179: 0 | E179: 0 | F179: 0 | G179: 0 | H179: 0 | K179: 0 | L179: 0 | M179: 0 | N179: 0 | O179: 0 | P179: 0
A180: 47 | B180: 1980 | C180: System Supervisor Equipment | D180: 0 | E180: 0 | F180: 0 | G180: 0 | H180: 0 | K180: 0 | L180: 0 | M180: 0 | N180: 0 | O180: 0 | P180: 0
A181: 47 | B181: 1985 | C181: Miscellaneous Fixed Assets | D181: 0 | E181: 0 | F181: 0 | G181: 0 | H181: 0 | K181: 0 | L181: 0 | M181: 0 | N181: 0 | O181: 0 | P181: 0
A182: 47 | B182: 1990 | C182: Other Tangible Property | D182: 0 | E182: 0 | F182: 0 | G182: 0 | H182: 0 | K182: 0 | L182: 0 | M182: 0 | N182: 0 | O182: 0 | P182: 0
A183: 47 | B183: 1995 | C183: Contributions & Grants | D183: 0 | E183: 0 | F183: 0 | G183: 0 | H183: 0 | I183: 0 | K183: 0 | L183: 0 | M183: 0 | N183: 0 | O183: 0 | P183: 0
A184: N/A | B184: 2055 | C184: Construction in progress | D184: 1653352.53 | E184: 0 | F184: 1153904.39 | G184: 0 | H184: 2807256.92 | I184: 2807256.92 | K184: 0 | L184: 0 | M184: 0 | N184: 0 | O184: 0 | P184: 2807256.92
B185: etc. | C185: Contributions & Grants | D185: -319922.92 | E185: 0 | F185: -17740.69 | G185: 0 | H185: -337663.61 | K185: -12963 | L185: 0 | M185: -8374.61 | N185: 0 | O185: -21337.61 | P185: -316326
B186: etc. | D186: 0 | E186: 0 | F186: 0 | G186: 0 | H186: 0 | K186: 0 | L186: 0 | M186: 0 | N186: 0 | O186: 0 | P186: 0
B187: etc. | D187: 0 | E187: 0 | F187: 0 | G187: 0 | H187: 0 | K187: 0 | L187: 0 | M187: 0 | N187: 0 | O187: 0 | P187: 0
B188: etc. | D188: 0 | E188: 0 | F188: 0 | G188: 0 | H188: 0 | K188: 0 | L188: 0 | M188: 0 | N188: 0 | O188: 0 | P188: 0
B189: etc. | D189: 0 | E189: 0 | F189: 0 | G189: 0 | H189: 0 | K189: 0 | L189: 0 | M189: 0 | N189: 0 | O189: 0 | P189: 0
B190: etc. | D190: 0 | E190: 0 | F190: 0 | G190: 0 | H190: 0 | K190: 0 | L190: 0 | M190: 0 | N190: 0 | O190: 0 | P190: 0
B191: etc. | D191: 0 | E191: 0 | F191: 0 | G191: 0 | H191: 0 | K191: 0 | L191: 0 | M191: 0 | N191: 0 | O191: 0 | P191: 0
B192: etc. | D192: 0 | E192: 0 | F192: 0 | G192: 0 | H192: 0 | K192: 0 | L192: 0 | M192: 0 | N192: 0 | O192: 0 | P192: 0
B193: etc. | D193: 0 | E193: 0 | F193: 0 | G193: 0 | H193: 0 | K193: 0 | L193: 0 | M193: 0 | N193: 0 | O193: 0 | P193: 0
B194: etc. | D194: =H125 -> 0 | E194: 0 | F194: 0 | G194: 0 | H194: =D194+F194+G194 -> 0 | K194: =O125 -> 0 | L194: 0 | M194: 0 | N194: 0 | O194: 0 | P194: 0
D195: =H126 -> 0 | H195: =D195+F195+G195 -> 0 | K195: =O126 -> 0 | M195: 0 | N195: 0 | O195: 0 | P195: 0
C196: Sub-Total | D196: =SUM(D146:D195) -> 5502145.03 | E196: =SUM(E146:E195) -> 0 | F196: =SUM(F146:F195) -> 1496256.99 | G196: =SUM(G146:G195) -> -7745.76 | H196: =SUM(H146:H195) -> 6990656.26 | I196: =SUM(I77:I126) -> 5829750.84 | K196: =SUM(K146:K195) -> 385633.01 | L196: =SUM(L146:L195) -> 0 | M196: 194088.18 | N196: =SUM(N146:N195) -> -1558.95 | O196: =SUM(O146:O195) -> 578162.24 | P196: =SUM(P146:P195) -> 6412494.02
C197: Less Socialized Renewable Energy Generation Investments (input as negative)Less Socialized Renewable Energy Generation Investments (input as negative) | H197: =D197+F197+G197 -> 0 | O197: =K197+M197+N197 -> 0 | P197: =H197+O197 -> 0
C198: Less Other Non Rate-Regulated Utility Assets (input as negative)Less Other Non Rate-Regulated Utility Assets (input as negative) | H198: =D198+F198+G198 -> 0 | O198: =K198+M198+N198 -> 0 | P198: =H198+O198 -> 0
C199: Total PP&E | D199: =SUM(D196:D198) -> 5502145.03 | F199: =SUM(F196:F198) -> 1496256.99 | G199: =SUM(G196:G198) -> -7745.76 | H199: =SUM(H196:H198) -> 6990656.26 | K199: =SUM(K196:K198) -> 385633.01 | M199: =SUM(M196:M198) -> 194088.18 | N199: =SUM(N196:N198) -> -1558.95 | O199: =SUM(O196:O198) -> 578162.24 | P199: =SUM(P196:P198) -> 6412494.02
C200: Depreciation Expense adj. from gain or loss on the retirement of assets (pool of like assets)
C201: Total | M201: =M199+M200 -> 194088.18
H203: Less: Fully Allocated Depreciation
A204: 10 | C204: Transportation | H204: Transportation
A205: 8 | C205: Stores Equipment | H205: Stores Equipment
A206: 8 | C206: Tools, Shop | H206: Tools, Shop
A207: 8 | C207: Meas/Testing | H207: Meas/Testing
A208: 8 | C208: Communication | H208: Communication
H209: Net Depreciation | M209: =M201+M204+M208+M205+M206+M207 -> 194088.18
... 130 more rows

Sheet Appendix 2-BB Service Life
N1: File Number: | P1: 0
N2: Exhibit:
N3: Tab:
N4: Schedule:
N5: Page:
N7: Date:
A9: Appendix 2-BB
A10: Service Life Comparison
A11: Table F-1 from Kinetrics Report1
C14: Asset Details | F14: Useful Life | J14: USoA Account Number | K14: USoA Account Description | L14: Current | N14: Proposed | P14: Outside Range of Min, Max TUL?
A15: Parent* | B15: # | C15: Category| Component | Type | F15: MIN UL | G15: TUL | H15: MAX UL | L15: Years | M15: Rate | N15: Years | O15: Rate | P15: Below Min TUL | Q15: Above Max TUL
A16: OH | B16: 1 | C16: Fully Dressed Wood Poles | D16: Overall | F16: 35 | G16: 45 | H16: 75 | M16: =IF(ISERROR(1/L16), "", 1/L16) ->  | O16: =IF(ISERROR(1/N16), "", 1/N16) ->  | P16: =IF(ISBLANK(N16),"",IF(N16<F16,"Yes","No")) ->  | Q16: =IF(ISBLANK(N16),"",IF(N16>H16,"Yes","No")) -> 
D17: Cross Arm | E17: Wood | F17: 20 | G17: 40 | H17: 55 | M17: =IF(ISERROR(1/L17), "", 1/L17) ->  | O17: =IF(ISERROR(1/N17), "", 1/N17) ->  | P17: =IF(ISBLANK(N17),"",IF(N17<F17,"Yes","No")) ->  | Q17: =IF(ISBLANK(N17),"",IF(N17>H17,"Yes","No")) -> 
E18: Steel | F18: 30 | G18: 70 | H18: 95
B19: 2 | C19: Fully Dressed Concrete Poles | D19: Overall | F19: 50 | G19: 60 | H19: 80
D20: Cross Arm | E20: Wood | F20: 20 | G20: 40 | H20: 55
E21: Steel | F21: 30 | G21: 70 | H21: 95
B22: 3 | C22: Fully Dressed Steel Poles | D22: Overall | F22: 60 | G22: 60 | H22: 80
D23: Cross Arm | E23: Wood | F23: 20 | G23: 40 | H23: 55
E24: Steel | F24: 30 | G24: 70 | H24: 95
B25: 4 | C25: OH Line Switch | F25: 30 | G25: 45 | H25: 55
B26: 5 | C26: OH Line Switch Motor | F26: 15 | G26: 25 | H26: 25
B27: 6 | C27: OH Line Switch RTU | F27: 15 | G27: 20 | H27: 20
B28: 7 | C28: OH Integral Switches | F28: 35 | G28: 45 | H28: 60
B29: 8 | C29: OH Conductors | F29: 50 | G29: 60 | H29: 75
B30: 9 | C30: OH Transformers & Voltage Regulators | F30: 30 | G30: 40 | H30: 60
B31: 10 | C31: OH Shunt Capacitor Banks | F31: 25 | G31: 30 | H31: 40
B32: 11 | C32: Reclosers | F32: 25 | G32: 40 | H32: 55
A33: TS & MS | B33: 12 | C33: Power Transformers | D33: Overall | F33: 30 | G33: 45 | H33: 60
D34: Bushing | F34: 10 | G34: 20 | H34: 30
D35: Tap Changer | F35: 20 | G35: 30 | H35: 60
B36: 13 | C36: Station Service Transformer | F36: 30 | G36: 45 | H36: 55
B37: 14 | C37: Station Grounding Transformer | F37: 30 | G37: 40 | H37: 40
B38: 15 | C38: Station DC System | D38: Overall | F38: 10 | G38: 20 | H38: 30
D39: Battery Bank | F39: 10 | G39: 15 | H39: 15
D40: Charger | F40: 20 | G40: 20 | H40: 30
B41: 16 | C41: Station Metal Clad Switchgear | D41: Overall | F41: 30 | G41: 40 | H41: 60
D42: Removable Breaker | F42: 25 | G42: 40 | H42: 60
B43: 17 | C43: Station Independent Breakers | F43: 35 | G43: 45 | H43: 65
B44: 18 | C44: Station Switch | F44: 30 | G44: 50 | H44: 60
B45: 19 | C45: Electromechanical Relays | F45: 25 | G45: 35 | H45: 50
B46: 20 | C46: Solid State Relays | F46: 10 | G46: 30 | H46: 45
B47: 21 | C47: Digital & Numeric Relays | F47: 15 | G47: 20 | H47: 20
B48: 22 | C48: Rigid Busbars | F48: 30 | G48: 55 | H48: 60
B49: 23 | C49: Steel Structure | F49: 35 | G49: 50 | H49: 90
A50: UG | B50: 24 | C50: Primary Paper Insulated Lead Covered (PILC) Cables | F50: 60 | G50: 65 | H50: 75
B51: 25 | C51: Primary Ethylene-Propylene Rubber (EPR) Cables | F51: 20 | G51: 25 | H51: 25
B52: 26 | C52: Primary Non-Tree Retardant (TR) Cross Linked Polyethylene (XLPE) Cables Direct Buried | F52: 20 | G52: 25 | H52: 30
B53: 27 | C53: Primary Non-TR XLPE Cables in Duct | F53: 20 | G53: 25 | H53: 30
B54: 30 | C54: Secondary PILC Cables | F54: 70 | G54: 75 | H54: 80
B55: 31 | C55: Secondary Cables Direct Buried | F55: 25 | G55: 35 | H55: 40
B56: 32 | C56: Secondary Cables in Duct | F56: 35 | G56: 40 | H56: 60
B57: 33 | C57: Network Tranformers | D57: Overall | F57: 20 | G57: 35 | H57: 50
D58: Protector | F58: 20 | G58: 35 | H58: 40
B59: 34 | C59: Pad-Mounted Transformers | F59: 25 | G59: 40 | H59: 45
B60: 35 | C60: Submersible/Vault Transformers | F60: 25 | G60: 35 | H60: 45
B61: 36 | C61: UG Foundation | F61: 35 | G61: 55 | H61: 70
B62: 37 | C62: UG Vaults | D62: Overall | F62: 40 | G62: 60 | H62: 80
D63: Roof | F63: 20 | G63: 30 | H63: 45
B64: 38 | C64: UG Vault Switches | F64: 20 | G64: 35 | H64: 50
B65: 39 | C65: Pad-Mounted Switchgear | F65: 20 | G65: 30 | H65: 45
B66: 40 | C66: Ducts | F66: 30 | G66: 50 | H66: 85
B67: 41 | C67: Concrete Encased Duct Banks | F67: 35 | G67: 55 | H67: 80
B68: 42 | C68: Cable Chambers | F68: 50 | G68: 60 | H68: 80
A69: S | B69: 43 | C69: Remote SCADA | F69: 15 | G69: 20 | H69: 30
A72: Table F-2 from Kinetrics Report1
C74: Asset Details | F74: Useful Life Range | J74: USoA Account Number | K74: USoA Account Description | L74: Current | N74: Proposed | P74: Outside Range of Min, Max TUL?
B75: # | C75: Category| Component | Type | L75: Years | M75: Rate | N75: Years | O75: Rate | P75: Below Min Range | Q75: Above Max Range
B76: 1 | C76: Office Equipment | F76: 5 | G76: 15 | M76: =IF(ISERROR(1/L76), "", 1/L76) ->  | O76: =IF(ISERROR(1/N76), "", 1/N76) ->  | P76: =IF(ISBLANK(N76),"",IF(N76<F76,"Yes","No")) ->  | Q76: =IF(ISBLANK(N76),"",IF(N76>G76,"Yes","No")) -> 
B77: 2 | C77: Vehicles | D77: Trucks & Buckets | F77: 5 | G77: 15 | M77: =IF(ISERROR(1/L77), "", 1/L77) ->  | O77: =IF(ISERROR(1/N77), "", 1/N77) ->  | P77: =IF(ISBLANK(N77),"",IF(N77<F77,"Yes","No")) ->  | Q77: =IF(ISBLANK(N77),"",IF(N77>G77,"Yes","No")) -> 
D78: Trailers | F78: 5 | G78: 20
D79: Vans | F79: 5 | G79: 10
B80: 3 | C80: Administrative Buildings | F80: 50 | G80: 75
B81: 4 | C81: Leasehold Improvements | F81: Lease dependent
B82: 5 | C82: Station Buildings | D82: Station Buildings | F82: 50 | G82: 75
D83: Parking | F83: 25 | G83: 30
D84: Fence | F84: 25 | G84: 60
D85: Roof | F85: 20 | G85: 30
B86: 6 | C86: Computer Equipment | D86: Hardware | F86: 3 | G86: 5
D87: Software | F87: 2 | G87: 5
B88: 7 | C88: Equipment | D88: Power Operated | F88: 5 | G88: 10
D89: Stores | F89: 5 | G89: 10
D90: Tools, Shop, Garage Equipment | F90: 5 | G90: 10
D91: Measurement & Testing Equipment | F91: 5 | G91: 10
B92: 8 | C92: Communication | D92: Towers | F92: 60 | G92: 70
D93: Wireless | F93: 2 | G93: 10
B94: 9 | C94: Residential Energy Meters | F94: 25 | G94: 35
B95: 10 | C95: Industrial/Commercial Energy Meters | F95: 25 | G95: 35
B96: 11 | C96: Wholesale Energy Meters | F96: 15 | G96: 30
B97: 12 | C97: Current & Potential Transformer (CT & PT) | F97: 35 | G97: 50
B98: 13 | C98: Smart Meters | F98: 5 | G98: 15
B99: 14 | C99: Repeaters - Smart Metering | F99: 10 | G99: 15
B100: 15 | C100: Data Collectors - Smart Metering | F100: 15 | G100: 20
A103: * TS & MS = Transformer and Municipal Stations UG = Underground Systems S = Monitoring and Control Systems
A105: Note 1: | B105: Tables F-1 and F-2 above are to be used as a reference in order to complete columns J, K, L and N.
B106: See pages 17-19 of Kinetrics Report

Sheet App.2-CA_OldCGAAPDepExp_Yr1
K1: File Number: | L1: =EBNUMBER -> EB-2017-0048
K2: Exhibit:
K3: Tab:
K4: Schedule:
K5: Page:
K7: Date:
A9: Appendix 2-CA
A10: Depreciation and Amortization Expense
B11: Former CGAAP (Year 1)
A13: Select the set of appendices that apply | K13: Year Reflected in Schedule Below | L13: Accounting Standard
A14: 2012 Set of Appendices (2-CA to 2-CG) | C14: Assumes the applicant made capitalization and depreciation expense accounting policy changes under CGAAP effective January 1, 2012 and has adopted IFRS for financial reporting purposes effective January 1, 2015. Assumes that the applicant is reflecting these changes in a rebasing application for the first time. | K14: 2012 | L14: Former CGAAP
A15: 2013 Set of Appendices (2-CA to 2-CF) | C15: Assumes the applicant made capitalization and depreciation expense accounting policy changes under CGAAP effective January 1, 2013 and has adopted IFRS for financial reporting purposes effective January 1, 2015. Assumes that the applicant is reflecting these changes in a rebasing application for the first time. | K15: 2013 | L15: Former CGAAP
A18: Account | B18: Description | C18: Opening Regulatory Gross PP&E as at Jan. 1 | D18: Less Fully Depreciated | E18: Net for Depreciation | F18: Additions | G18: Total for Depreciation 1 | H18: Years | I18: Depreciation Rate | J18: Current Year Depreciation Expense | K18: Depreciation Expense per Appendix 2-BA Fixed Assets, Column J (l) | L18: Variance 2
C19: (a) | D19: (b) | E19: (c) | F19: (d) | G19: (e) = (c) + ½ x (d) | H19: (f) | I19: (g) = 1 / (f) | J19: (h) = (e) / (f) | L19: (m) = (h) - (l)
A20: 1611 | B20: Computer Software (Formally known as Account 1925) | E20: =C20-D20 -> 0 | G20: =E20+0.5*F20 -> 0 | I20: =IF(H20=0,0,1/H20) -> 0 | J20: =IF(H20=0,0,G20/H20) -> 0 | L20: =IF(ISERROR(+J20-K20), 0, +J20-K20) -> 0
A21: 1612 | B21: Land Rights (Formally known as Account 1906) | E21: =C21-D21 -> 0 | G21: =E21+0.5*F21 -> 0 | I21: 0 | J21: 0 | L21: 0
A22: 1805 | B22: Land | E22: 0 | G22: 0 | I22: 0 | J22: 0 | L22: 0
A23: 1808 | B23: Buildings | E23: 0 | G23: 0 | I23: 0 | J23: 0 | L23: 0
A24: 1810 | B24: Leasehold Improvements | E24: 0 | G24: 0 | I24: 0 | J24: 0 | L24: 0
A25: 1815 | B25: Transformer Station Equipment >50 kV | E25: 0 | G25: 0 | I25: 0 | J25: 0 | L25: 0
A26: 1820 | B26: Distribution Station Equipment <50 kV | E26: 0 | G26: 0 | I26: 0 | J26: 0 | L26: 0
A27: 1825 | B27: Storage Battery Equipment | E27: 0 | G27: 0 | I27: 0 | J27: 0 | L27: 0
A28: 1830 | B28: Poles, Towers & Fixtures | E28: 0 | G28: 0 | I28: 0 | J28: 0 | L28: 0
A29: 1835 | B29: Overhead Conductors & Devices | E29: 0 | G29: 0 | I29: 0 | J29: 0 | L29: 0
A30: 1840 | B30: Underground Conduit | E30: 0 | G30: 0 | I30: 0 | J30: 0 | L30: 0
A31: 1845 | B31: Underground Conductors & Devices | E31: 0 | G31: 0 | I31: 0 | J31: 0 | L31: 0
A32: 1850 | B32: Line Transformers | E32: 0 | G32: 0 | I32: 0 | J32: 0 | L32: 0
A33: 1855 | B33: Services (Overhead & Underground) | E33: 0 | G33: 0 | I33: 0 | J33: 0 | L33: 0
A34: 1860 | B34: Meters | E34: 0 | G34: 0 | I34: 0 | J34: 0 | L34: 0
A35: 1860 | B35: Meters (Smart Meters) | E35: 0 | G35: 0 | I35: 0 | J35: 0 | L35: 0
A36: 1905 | B36: Land | E36: 0 | G36: 0 | I36: 0 | J36: 0 | L36: 0
A37: 1908 | B37: Buildings & Fixtures | E37: 0 | G37: 0 | I37: 0 | J37: 0 | L37: 0
A38: 1910 | B38: Leasehold Improvements | E38: 0 | G38: 0 | I38: 0 | J38: 0 | L38: 0
A39: 1915 | B39: Office Furniture & Equipment (10 years) | E39: 0 | G39: 0 | I39: 0 | J39: 0 | L39: 0
A40: 1915 | B40: Office Furniture & Equipment (5 years) | E40: 0 | G40: 0 | I40: 0 | J40: 0 | L40: 0
A41: 1920 | B41: Computer Equipment - Hardware | E41: 0 | G41: 0 | I41: 0 | J41: 0 | L41: 0
A42: 1920 | B42: Computer Equip.-Hardware(Post Mar. 22/04) | E42: 0 | G42: 0 | I42: 0 | J42: 0 | L42: 0
A43: 1920 | B43: Computer Equip.-Hardware(Post Mar. 19/07) | E43: 0 | G43: 0 | I43: 0 | J43: 0 | L43: 0
A44: 1930 | B44: Transportation Equipment | E44: 0 | G44: 0 | I44: 0 | J44: 0 | L44: 0
A45: 1935 | B45: Stores Equipment | E45: 0 | G45: 0 | I45: 0 | J45: 0 | L45: 0
A46: 1940 | B46: Tools, Shop & Garage Equipment | E46: 0 | G46: 0 | I46: 0 | J46: 0 | L46: 0
A47: 1945 | B47: Measurement & Testing Equipment | E47: 0 | G47: 0 | I47: 0 | J47: 0 | L47: 0
A48: 1950 | B48: Power Operated Equipment | E48: 0 | G48: 0 | I48: 0 | J48: 0 | L48: 0
A49: 1955 | B49: Communications Equipment | E49: 0 | G49: 0 | I49: 0 | J49: 0 | L49: 0
A50: 1955 | B50: Communication Equipment (Smart Meters) | E50: 0 | G50: 0 | I50: 0 | J50: 0 | L50: 0
A51: 1960 | B51: Miscellaneous Equipment | E51: 0 | G51: 0 | I51: 0 | J51: 0 | L51: 0
A52: 1970 | B52: Load Management Controls Customer Premises | E52: 0 | G52: 0 | I52: 0 | J52: 0 | L52: 0
A53: 1975 | B53: Load Management Controls Utility Premises | E53: 0 | G53: 0 | I53: 0 | J53: 0 | L53: 0
A54: 1980 | B54: System Supervisor Equipment | E54: 0 | G54: 0 | I54: 0 | J54: 0 | L54: 0
A55: 1985 | B55: Miscellaneous Fixed Assets | E55: 0 | G55: 0 | I55: 0 | J55: 0 | L55: 0
A56: 1990 | B56: Other Tangible Property | E56: 0 | G56: 0 | I56: 0 | J56: 0 | L56: 0
A57: 1995 | B57: Contributions & Grants | E57: 0 | G57: 0 | I57: 0 | J57: 0 | L57: 0
B58: Total | C58: =SUM(C20:C57) -> 0 | D58: =SUM(D20:D57) -> 0 | E58: =SUM(E20:E57) -> 0 | F58: =SUM(F20:F57) -> 0 | G58: =SUM(G20:G57) -> 0 | J58: =SUM(J20:J57) -> 0 | K58: =SUM(K20:K57) -> 0 | L58: =SUM(L20:L57) -> 0
A60: Notes:
A62: 1 | B62: Board policy of the "half-year" rule - the applicant must ensure that additions in the year attract a half-year depreciation expense in the first year. Deviations from this standard practice must be supported in the application.
A63: 2 | B63: The applicant must provide an explanation of material variances.
A65: General | B65: Applicants must provide a breakdown of depreciation and amortization expense in the above format for all relevant accounts. Asset Retirement Obligations (AROs), depreciation and accretion expense should be disclosed separately consistent with the Notes of historical Audited Financial Statements.

Sheet App.2-CB_NewCGAAP_DepExp_Yr1
N1: File Number: | O1: =EBNUMBER -> EB-2017-0048
N2: Exhibit:
N3: Tab:
N4: Schedule:
N5: Page:
N7: Date:
A9: Appendix 2-CB
A10: Depreciation and Amortization Expense
A11: Revised CGAAP (Year 1)
A13: Select the set of appendices that apply | L13: Year Reflected in Schedule Below | N13: Accounting Standard
A14: 2012 Set of Appendices (2-CA to 2-CG) | C14: Assumes the applicant made capitalization and depreciation expense accounting policy changes under CGAAP effective January 1, 2012 and has adopted IFRS for financial reporting purposes effective January 1, 2015. Assumes that the applicant is reflecting these changes in a rebasing application for the first time. | L14: 2012 | N14: Revised CGAAP
A15: 2013 Set of Appendices (2-CA to 2-CF) | C15: Assumes the applicant made capitalization and depreciation expense accounting policy changes under CGAAP effective January 1, 2013 and has adopted IFRS for financial reporting purposes effective January 1, 2015. Assumes that the applicant is reflecting these changes in a rebasing application for the first time. | L15: 2013 | N15: Revised CGAAP
A18: Account | B18: Description | C18: Opening NBV as at Jan 15 | D18: Additions | E18: Average Remaining Life of Opening NBV 4 | F18: Years (new additions only) 3 | G18: Depreciation Rate on New Additions | H18: Depreciation Expense on Opening NBV | I18: Depreciation Expense on Additions 1 | J18: Current Year Depreciation Expense | K18: Depreciation Expense per Appendix 2-BA Fixed Assets, Column J (l) | L18: Variance 2 | M18: Depreciation Expense on Current Full Year Additions | N18: Less Depreciation Expense on Assets Fully Depreciated During the Year (o) | O18: Current Full Year Depreciation 6
C19: (a) | D19: (d) | E19: (i) | F19: (f) | G19: (g) = 1 / (f) | H19: (j) = (a) / (i) | I19: (h)=((d)*0.5)/(f) | J19: (k) = (j) + (h) | L19: (m) = (k) - (l) | M19: (n) = (d)/(f) | O19: (p) = (j) + (n) - (o)
A20: 1611 | B20: Computer Software (Formally known as Account 1925) | G20: =IF(F20=0,0,1/F20) -> 0 | H20: =IF(E20=0,0,+C20/E20) -> 0 | I20: =IF(F20=0,0,+(D20*0.5)/F20) -> 0 | J20: =IF(ISERROR(+H20+I20), 0, +H20+I20) -> 0 | L20: =IF(ISERROR(+J20-K20), 0, +J20-K20) -> 0 | M20: =IF(F20=0,0,+(D20)/F20) -> 0 | O20: =IF(ISERROR(+M20+H20-N20), 0, +M20+H20-N20) -> 0
A21: 1612 | B21: Land Rights (Formally known as Account 1906) | G21: 0 | H21: 0 | I21: 0 | J21: 0 | L21: 0 | M21: 0 | O21: =IF(ISERROR(+M21+H21-N21), 0, +M21+H21-N21) -> 0
A22: 1805 | B22: Land | G22: 0 | H22: 0 | I22: 0 | J22: 0 | L22: 0 | M22: 0 | O22: 0
A23: 1808 | B23: Buildings | G23: 0 | H23: 0 | I23: 0 | J23: 0 | L23: 0 | M23: 0 | O23: 0
A24: 1810 | B24: Leasehold Improvements | G24: 0 | H24: 0 | I24: 0 | J24: 0 | L24: 0 | M24: 0 | O24: 0
A25: 1815 | B25: Transformer Station Equipment >50 kV | G25: 0 | H25: 0 | I25: 0 | J25: 0 | L25: 0 | M25: 0 | O25: 0
A26: 1820 | B26: Distribution Station Equipment <50 kV | G26: 0 | H26: 0 | I26: 0 | J26: 0 | L26: 0 | M26: 0 | O26: 0
A27: 1825 | B27: Storage Battery Equipment | G27: 0 | H27: 0 | I27: 0 | J27: 0 | L27: 0 | M27: 0 | O27: 0
A28: 1830 | B28: Poles, Towers & Fixtures | G28: 0 | H28: 0 | I28: 0 | J28: 0 | L28: 0 | M28: 0 | O28: 0
A29: 1835 | B29: Overhead Conductors & Devices | G29: 0 | H29: 0 | I29: 0 | J29: 0 | L29: 0 | M29: 0 | O29: 0
A30: 1840 | B30: Underground Conduit | G30: 0 | H30: 0 | I30: 0 | J30: 0 | L30: 0 | M30: 0 | O30: 0
A31: 1845 | B31: Underground Conductors & Devices | G31: 0 | H31: 0 | I31: 0 | J31: 0 | L31: 0 | M31: 0 | O31: 0
A32: 1850 | B32: Line Transformers | G32: 0 | H32: 0 | I32: 0 | J32: 0 | L32: 0 | M32: 0 | O32: 0
A33: 1855 | B33: Services (Overhead & Underground) | G33: 0 | H33: 0 | I33: 0 | J33: 0 | L33: 0 | M33: 0 | O33: 0
A34: 1860 | B34: Meters | G34: 0 | H34: 0 | I34: 0 | J34: 0 | L34: 0 | M34: 0 | O34: 0
A35: 1860 | B35: Meters (Smart Meters) | G35: 0 | H35: 0 | I35: 0 | J35: 0 | L35: 0 | M35: 0 | O35: 0
A36: 1905 | B36: Land | G36: 0 | H36: 0 | I36: 0 | J36: 0 | L36: 0 | M36: 0 | O36: 0
A37: 1908 | B37: Buildings & Fixtures | G37: 0 | H37: 0 | I37: 0 | J37: 0 | L37: 0 | M37: 0 | O37: 0
A38: 1910 | B38: Leasehold Improvements | G38: 0 | H38: 0 | I38: 0 | J38: 0 | L38: 0 | M38: 0 | O38: 0
A39: 1915 | B39: Office Furniture & Equipment (10 years) | G39: 0 | H39: 0 | I39: 0 | J39: 0 | L39: 0 | M39: 0 | O39: 0
A40: 1915 | B40: Office Furniture & Equipment (5 years) | G40: 0 | H40: 0 | I40: 0 | J40: 0 | L40: 0 | M40: 0 | O40: 0
A41: 1920 | B41: Computer Equipment - Hardware | G41: 0 | H41: 0 | I41: 0 | J41: 0 | L41: 0 | M41: 0 | O41: 0
A42: 1920 | B42: Computer Equip.-Hardware(Post Mar. 22/04) | G42: 0 | H42: 0 | I42: 0 | J42: 0 | L42: 0 | M42: 0 | O42: 0
A43: 1920 | B43: Computer Equip.-Hardware(Post Mar. 19/07) | G43: 0 | H43: 0 | I43: 0 | J43: 0 | L43: 0 | M43: 0 | O43: 0
A44: 1930 | B44: Transportation Equipment | G44: 0 | H44: 0 | I44: 0 | J44: 0 | L44: 0 | M44: 0 | O44: 0
A45: 1935 | B45: Stores Equipment | G45: 0 | H45: 0 | I45: 0 | J45: 0 | L45: 0 | M45: 0 | O45: 0
A46: 1940 | B46: Tools, Shop & Garage Equipment | G46: 0 | H46: 0 | I46: 0 | J46: 0 | L46: 0 | M46: 0 | O46: 0
A47: 1945 | B47: Measurement & Testing Equipment | G47: 0 | H47: 0 | I47: 0 | J47: 0 | L47: 0 | M47: 0 | O47: 0
A48: 1950 | B48: Power Operated Equipment | G48: 0 | H48: 0 | I48: 0 | J48: 0 | L48: 0 | M48: 0 | O48: 0
A49: 1955 | B49: Communications Equipment | G49: 0 | H49: 0 | I49: 0 | J49: 0 | L49: 0 | M49: 0 | O49: 0
A50: 1955 | B50: Communication Equipment (Smart Meters) | G50: 0 | H50: 0 | I50: 0 | J50: 0 | L50: 0 | M50: 0 | O50: 0
A51: 1960 | B51: Miscellaneous Equipment | G51: 0 | H51: 0 | I51: 0 | J51: 0 | L51: 0 | M51: 0 | O51: 0
A52: 1970 | B52: Load Management Controls Customer Premises | G52: 0 | H52: 0 | I52: 0 | J52: 0 | L52: 0 | M52: 0 | O52: 0
A53: 1975 | B53: Load Management Controls Utility Premises | G53: 0 | H53: 0 | I53: 0 | J53: 0 | L53: 0 | M53: 0 | O53: 0
A54: 1980 | B54: System Supervisor Equipment | G54: 0 | H54: 0 | I54: 0 | J54: 0 | L54: 0 | M54: 0 | O54: 0
A55: 1985 | B55: Miscellaneous Fixed Assets | G55: 0 | H55: 0 | I55: 0 | J55: 0 | L55: 0 | M55: 0 | O55: 0
A56: 1990 | B56: Other Tangible Property | G56: 0 | H56: 0 | I56: 0 | J56: 0 | L56: 0 | M56: 0 | O56: 0
A57: 1995 | B57: Contributions & Grants | G57: 0 | H57: 0 | I57: 0 | J57: 0 | L57: 0 | M57: 0 | O57: 0
B58: Total | C58: =SUM(C20:C57) -> 0 | D58: =SUM(D20:D57) -> 0 | H58: =SUM(H20:H57) -> 0 | I58: 0 | J58: 0 | K58: 0 | L58: 0 | M58: 0 | N58: 0 | O58: 0
A60: Notes:
A62: 1 | B62: Board policy of the "half-year" rule - the applicant must ensure that additions in the year attract a half-year depreciation expense in the first year. Deviations from this standard practice must be supported in the application.
A63: 2 | B63: The applicant must provide an explanation of material variances in evidence.
A64: 3 | B64: The applicant should ensure that the years for new additions of assets are the asset useful lives determined by management in accordance with the Board's regulatory accounting policies. The capitalization and depreciation expense accounting changes should be implemented consistent with the Board’s regulatory accounting policies as set out for modified IFRS as contained in the Report of the Board, Transition to International Financial Reporting Standards, EB-2008-0408, the Kinectrics Report, and the Revised 2012 Accounting Procedures Handbook for Electricity Distributors (“APH”).
A65: 4 | B65: A recalculation should be performed to determine the average remaining life of opening balance of assets (i.e. excluding current year's additions) under the change in policies under CGAAP. For example, Asset A had a useful life of 20 years under CGAAP without the change in policies. On January 1 of the year of policy changes, Asset A was 3 years depreciated. As a result, Asset A would have a remaining service life of 17 years (20 years less 3 years) as at January 1 of the year of policy changes. Due to making the change in policies under CGAAP, management re-assessed the asset useful lives and concluded that the revised useful life of Asset A is now 30 years. Therefore, the average remaining useful life of the opening balance of Asset A is determined to be 27 years (30 years less 3 years) under the revised CGAAP as at January 1 of the year of policy changes.
A66: 5 | B66: NBV must exclude assets still on the books but which have been fully amortized or depreciated.
A67: 6 | B67: This column refers to the calculated full year depreciation but excludes the depreciation expense on assets fully depreciated during the year. This column is used for the purpose of calculating depreciation expense in the following year on the next worksheet.
A69: General: | B69: Applicants must provide a breakdown of depreciation and amortization expense in the above format for all relevant accounts. Asset Retirement Obligations (AROs), depreciation and accretion expense should be disclosed separately consistent with the Notes of historical Audited Financial Statements.

Sheet App.2-CC_DepExp_Yr2
J1: File Number: | K1: =EBNUMBER -> EB-2017-0048
J2: Exhibit:
J3: Tab:
J4: Schedule:
J5: Page:
J7: Date:
A9: Appendix 2-CC
A10: Depreciation and Amortization Expense
A11: Revised CGAAP (Year 2)
A13: Select the set of appendices that apply | J13: Year Reflected in Schedule Below | K13: Accounting Standard
A14: 2012 Set of Appendices (2-CA to 2-CG) | C14: Assumes the applicant made capitalization and depreciation expense accounting policy changes under CGAAP effective January 1, 2012 and has adopted IFRS for financial reporting purposes effective January 1, 2015. Assumes that the applicant is reflecting these changes in a rebasing application for the first time. | J14: 2013 | K14: Revised CGAAP
A15: 2013 Set of Appendices (2-CA to 2-CF) | C15: Assumes the applicant made capitalization and depreciation expense accounting policy changes under CGAAP effective January 1, 2013 and has adopted IFRS for financial reporting purposes effective January 1, 2015. Assumes that the applicant is reflecting these changes in a rebasing application for the first time. | J15: 2014 | K15: Revised CGAAP
A18: Account | B18: Description | C18: Additions | D18: Years (new additions only) | E18: Depreciation Rate on New Additions | F18: Current Year Depreciation Expense 1 | G18: Depreciation Expense per Apppendix 2-BA Fixed Assets, Column J (l) | H18: Variance 2 | I18: Depreciation Expense on Current Full Year Additions | J18: Less Depreciation Expense on Assets Fully Depreciated During the Year (o) | K18: Current Full Year Depreciation 3
C19: (d) | D19: (f) | E19: (g) = 1 / (f) | F19: (h)= Prior Full Year Deprecation + ((d)*0.5)/(f) | H19: (m) = (h) - (l) | I19: (n)=((d))/(f) | K19: (p) = Prior Full Year Depreciation + (n) - (o)
A20: 1611 | B20: Computer Software (Formally known as Account 1925) | E20: =IF(D20=0,0,1/D20) -> 0 | F20: =IF(D20=0,+'App.2-CB_NewCGAAP_DepExp_Yr1'!O20,+'App.2-CB_NewCGAAP_DepExp_Yr1'!O20+((C20*0.5)/D20)) -> 0 | H20: =IF(ISERROR(+F20-G20), 0, +F20-G20) -> 0 | I20: =IF(D20=0,0,+(C20)/D20) -> 0 | K20: =IF(ISERROR(+I20+'App.2-CB_NewCGAAP_DepExp_Yr1'!O20-J20), 0, +I20+'App.2-CB_NewCGAAP_DepExp_Yr1'!O20-J20) -> 0
A21: 1612 | B21: Land Rights (Formally known as Account 1906) | E21: 0 | F21: =IF(D21=0,+'App.2-CB_NewCGAAP_DepExp_Yr1'!O21,+'App.2-CB_NewCGAAP_DepExp_Yr1'!O21+((C21*0.5)/D21)) -> 0 | H21: 0 | I21: 0 | K21: =IF(ISERROR(+I21+'App.2-CB_NewCGAAP_DepExp_Yr1'!O21-J21), 0, +I21+'App.2-CB_NewCGAAP_DepExp_Yr1'!O21-J21) -> 0
A22: 1805 | B22: Land | E22: 0 | F22: =IF(D22=0,+'App.2-CB_NewCGAAP_DepExp_Yr1'!O22,+'App.2-CB_NewCGAAP_DepExp_Yr1'!O22+((C22*0.5)/D22)) -> 0 | H22: 0 | I22: 0 | K22: =IF(ISERROR(+I22+'App.2-CB_NewCGAAP_DepExp_Yr1'!O22-J22), 0, +I22+'App.2-CB_NewCGAAP_DepExp_Yr1'!O22-J22) -> 0
A23: 1808 | B23: Buildings | E23: 0 | F23: =IF(D23=0,+'App.2-CB_NewCGAAP_DepExp_Yr1'!O23,+'App.2-CB_NewCGAAP_DepExp_Yr1'!O23+((C23*0.5)/D23)) -> 0 | H23: 0 | I23: 0 | K23: =IF(ISERROR(+I23+'App.2-CB_NewCGAAP_DepExp_Yr1'!O23-J23), 0, +I23+'App.2-CB_NewCGAAP_DepExp_Yr1'!O23-J23) -> 0
A24: 1810 | B24: Leasehold Improvements | E24: 0 | F24: =IF(D24=0,+'App.2-CB_NewCGAAP_DepExp_Yr1'!O24,+'App.2-CB_NewCGAAP_DepExp_Yr1'!O24+((C24*0.5)/D24)) -> 0 | H24: 0 | I24: 0 | K24: =IF(ISERROR(+I24+'App.2-CB_NewCGAAP_DepExp_Yr1'!O24-J24), 0, +I24+'App.2-CB_NewCGAAP_DepExp_Yr1'!O24-J24) -> 0
A25: 1815 | B25: Transformer Station Equipment >50 kV | E25: 0 | F25: =IF(D25=0,+'App.2-CB_NewCGAAP_DepExp_Yr1'!O25,+'App.2-CB_NewCGAAP_DepExp_Yr1'!O25+((C25*0.5)/D25)) -> 0 | H25: 0 | I25: 0 | K25: =IF(ISERROR(+I25+'App.2-CB_NewCGAAP_DepExp_Yr1'!O25-J25), 0, +I25+'App.2-CB_NewCGAAP_DepExp_Yr1'!O25-J25) -> 0
A26: 1820 | B26: Distribution Station Equipment <50 kV | E26: 0 | F26: =IF(D26=0,+'App.2-CB_NewCGAAP_DepExp_Yr1'!O26,+'App.2-CB_NewCGAAP_DepExp_Yr1'!O26+((C26*0.5)/D26)) -> 0 | H26: 0 | I26: 0 | K26: =IF(ISERROR(+I26+'App.2-CB_NewCGAAP_DepExp_Yr1'!O26-J26), 0, +I26+'App.2-CB_NewCGAAP_DepExp_Yr1'!O26-J26) -> 0
A27: 1825 | B27: Storage Battery Equipment | E27: 0 | F27: =IF(D27=0,+'App.2-CB_NewCGAAP_DepExp_Yr1'!O27,+'App.2-CB_NewCGAAP_DepExp_Yr1'!O27+((C27*0.5)/D27)) -> 0 | H27: 0 | I27: 0 | K27: =IF(ISERROR(+I27+'App.2-CB_NewCGAAP_DepExp_Yr1'!O27-J27), 0, +I27+'App.2-CB_NewCGAAP_DepExp_Yr1'!O27-J27) -> 0
A28: 1830 | B28: Poles, Towers & Fixtures | E28: 0 | F28: =IF(D28=0,+'App.2-CB_NewCGAAP_DepExp_Yr1'!O28,+'App.2-CB_NewCGAAP_DepExp_Yr1'!O28+((C28*0.5)/D28)) -> 0 | H28: 0 | I28: 0 | K28: =IF(ISERROR(+I28+'App.2-CB_NewCGAAP_DepExp_Yr1'!O28-J28), 0, +I28+'App.2-CB_NewCGAAP_DepExp_Yr1'!O28-J28) -> 0
A29: 1835 | B29: Overhead Conductors & Devices | E29: 0 | F29: =IF(D29=0,+'App.2-CB_NewCGAAP_DepExp_Yr1'!O29,+'App.2-CB_NewCGAAP_DepExp_Yr1'!O29+((C29*0.5)/D29)) -> 0 | H29: 0 | I29: 0 | K29: =IF(ISERROR(+I29+'App.2-CB_NewCGAAP_DepExp_Yr1'!O29-J29), 0, +I29+'App.2-CB_NewCGAAP_DepExp_Yr1'!O29-J29) -> 0
A30: 1840 | B30: Underground Conduit | E30: 0 | F30: =IF(D30=0,+'App.2-CB_NewCGAAP_DepExp_Yr1'!O30,+'App.2-CB_NewCGAAP_DepExp_Yr1'!O30+((C30*0.5)/D30)) -> 0 | H30: 0 | I30: 0 | K30: =IF(ISERROR(+I30+'App.2-CB_NewCGAAP_DepExp_Yr1'!O30-J30), 0, +I30+'App.2-CB_NewCGAAP_DepExp_Yr1'!O30-J30) -> 0
A31: 1845 | B31: Underground Conductors & Devices | E31: 0 | F31: =IF(D31=0,+'App.2-CB_NewCGAAP_DepExp_Yr1'!O31,+'App.2-CB_NewCGAAP_DepExp_Yr1'!O31+((C31*0.5)/D31)) -> 0 | H31: 0 | I31: 0 | K31: =IF(ISERROR(+I31+'App.2-CB_NewCGAAP_DepExp_Yr1'!O31-J31), 0, +I31+'App.2-CB_NewCGAAP_DepExp_Yr1'!O31-J31) -> 0
A32: 1850 | B32: Line Transformers | E32: 0 | F32: =IF(D32=0,+'App.2-CB_NewCGAAP_DepExp_Yr1'!O32,+'App.2-CB_NewCGAAP_DepExp_Yr1'!O32+((C32*0.5)/D32)) -> 0 | H32: 0 | I32: 0 | K32: =IF(ISERROR(+I32+'App.2-CB_NewCGAAP_DepExp_Yr1'!O32-J32), 0, +I32+'App.2-CB_NewCGAAP_DepExp_Yr1'!O32-J32) -> 0
A33: 1855 | B33: Services (Overhead & Underground) | E33: 0 | F33: =IF(D33=0,+'App.2-CB_NewCGAAP_DepExp_Yr1'!O33,+'App.2-CB_NewCGAAP_DepExp_Yr1'!O33+((C33*0.5)/D33)) -> 0 | H33: 0 | I33: 0 | K33: =IF(ISERROR(+I33+'App.2-CB_NewCGAAP_DepExp_Yr1'!O33-J33), 0, +I33+'App.2-CB_NewCGAAP_DepExp_Yr1'!O33-J33) -> 0
A34: 1860 | B34: Meters | E34: 0 | F34: =IF(D34=0,+'App.2-CB_NewCGAAP_DepExp_Yr1'!O34,+'App.2-CB_NewCGAAP_DepExp_Yr1'!O34+((C34*0.5)/D34)) -> 0 | H34: 0 | I34: 0 | K34: =IF(ISERROR(+I34+'App.2-CB_NewCGAAP_DepExp_Yr1'!O34-J34), 0, +I34+'App.2-CB_NewCGAAP_DepExp_Yr1'!O34-J34) -> 0
A35: 1860 | B35: Meters (Smart Meters) | E35: 0 | F35: =IF(D35=0,+'App.2-CB_NewCGAAP_DepExp_Yr1'!O35,+'App.2-CB_NewCGAAP_DepExp_Yr1'!O35+((C35*0.5)/D35)) -> 0 | H35: 0 | I35: 0 | K35: =IF(ISERROR(+I35+'App.2-CB_NewCGAAP_DepExp_Yr1'!O35-J35), 0, +I35+'App.2-CB_NewCGAAP_DepExp_Yr1'!O35-J35) -> 0
A36: 1905 | B36: Land | E36: 0 | F36: =IF(D36=0,+'App.2-CB_NewCGAAP_DepExp_Yr1'!O36,+'App.2-CB_NewCGAAP_DepExp_Yr1'!O36+((C36*0.5)/D36)) -> 0 | H36: 0 | I36: 0 | K36: =IF(ISERROR(+I36+'App.2-CB_NewCGAAP_DepExp_Yr1'!O36-J36), 0, +I36+'App.2-CB_NewCGAAP_DepExp_Yr1'!O36-J36) -> 0
A37: 1908 | B37: Buildings & Fixtures | E37: 0 | F37: =IF(D37=0,+'App.2-CB_NewCGAAP_DepExp_Yr1'!O37,+'App.2-CB_NewCGAAP_DepExp_Yr1'!O37+((C37*0.5)/D37)) -> 0 | H37: 0 | I37: 0 | K37: =IF(ISERROR(+I37+'App.2-CB_NewCGAAP_DepExp_Yr1'!O37-J37), 0, +I37+'App.2-CB_NewCGAAP_DepExp_Yr1'!O37-J37) -> 0
A38: 1910 | B38: Leasehold Improvements | E38: 0 | F38: =IF(D38=0,+'App.2-CB_NewCGAAP_DepExp_Yr1'!O38,+'App.2-CB_NewCGAAP_DepExp_Yr1'!O38+((C38*0.5)/D38)) -> 0 | H38: 0 | I38: 0 | K38: =IF(ISERROR(+I38+'App.2-CB_NewCGAAP_DepExp_Yr1'!O38-J38), 0, +I38+'App.2-CB_NewCGAAP_DepExp_Yr1'!O38-J38) -> 0
A39: 1915 | B39: Office Furniture & Equipment (10 years) | E39: 0 | F39: =IF(D39=0,+'App.2-CB_NewCGAAP_DepExp_Yr1'!O39,+'App.2-CB_NewCGAAP_DepExp_Yr1'!O39+((C39*0.5)/D39)) -> 0 | H39: 0 | I39: 0 | K39: =IF(ISERROR(+I39+'App.2-CB_NewCGAAP_DepExp_Yr1'!O39-J39), 0, +I39+'App.2-CB_NewCGAAP_DepExp_Yr1'!O39-J39) -> 0
A40: 1915 | B40: Office Furniture & Equipment (5 years) | E40: 0 | F40: =IF(D40=0,+'App.2-CB_NewCGAAP_DepExp_Yr1'!O40,+'App.2-CB_NewCGAAP_DepExp_Yr1'!O40+((C40*0.5)/D40)) -> 0 | H40: 0 | I40: 0 | K40: =IF(ISERROR(+I40+'App.2-CB_NewCGAAP_DepExp_Yr1'!O40-J40), 0, +I40+'App.2-CB_NewCGAAP_DepExp_Yr1'!O40-J40) -> 0
A41: 1920 | B41: Computer Equipment - Hardware | E41: 0 | F41: =IF(D41=0,+'App.2-CB_NewCGAAP_DepExp_Yr1'!O41,+'App.2-CB_NewCGAAP_DepExp_Yr1'!O41+((C41*0.5)/D41)) -> 0 | H41: 0 | I41: 0 | K41: =IF(ISERROR(+I41+'App.2-CB_NewCGAAP_DepExp_Yr1'!O41-J41), 0, +I41+'App.2-CB_NewCGAAP_DepExp_Yr1'!O41-J41) -> 0
A42: 1920 | B42: Computer Equip.-Hardware(Post Mar. 22/04) | E42: 0 | F42: =IF(D42=0,+'App.2-CB_NewCGAAP_DepExp_Yr1'!O42,+'App.2-CB_NewCGAAP_DepExp_Yr1'!O42+((C42*0.5)/D42)) -> 0 | H42: 0 | I42: 0 | K42: =IF(ISERROR(+I42+'App.2-CB_NewCGAAP_DepExp_Yr1'!O42-J42), 0, +I42+'App.2-CB_NewCGAAP_DepExp_Yr1'!O42-J42) -> 0
A43: 1920 | B43: Computer Equip.-Hardware(Post Mar. 19/07) | E43: 0 | F43: =IF(D43=0,+'App.2-CB_NewCGAAP_DepExp_Yr1'!O43,+'App.2-CB_NewCGAAP_DepExp_Yr1'!O43+((C43*0.5)/D43)) -> 0 | H43: 0 | I43: 0 | K43: =IF(ISERROR(+I43+'App.2-CB_NewCGAAP_DepExp_Yr1'!O43-J43), 0, +I43+'App.2-CB_NewCGAAP_DepExp_Yr1'!O43-J43) -> 0
A44: 1930 | B44: Transportation Equipment | E44: 0 | F44: =IF(D44=0,+'App.2-CB_NewCGAAP_DepExp_Yr1'!O44,+'App.2-CB_NewCGAAP_DepExp_Yr1'!O44+((C44*0.5)/D44)) -> 0 | H44: 0 | I44: 0 | K44: =IF(ISERROR(+I44+'App.2-CB_NewCGAAP_DepExp_Yr1'!O44-J44), 0, +I44+'App.2-CB_NewCGAAP_DepExp_Yr1'!O44-J44) -> 0
A45: 1935 | B45: Stores Equipment | E45: 0 | F45: =IF(D45=0,+'App.2-CB_NewCGAAP_DepExp_Yr1'!O45,+'App.2-CB_NewCGAAP_DepExp_Yr1'!O45+((C45*0.5)/D45)) -> 0 | H45: 0 | I45: 0 | K45: =IF(ISERROR(+I45+'App.2-CB_NewCGAAP_DepExp_Yr1'!O45-J45), 0, +I45+'App.2-CB_NewCGAAP_DepExp_Yr1'!O45-J45) -> 0
A46: 1940 | B46: Tools, Shop & Garage Equipment | E46: 0 | F46: =IF(D46=0,+'App.2-CB_NewCGAAP_DepExp_Yr1'!O46,+'App.2-CB_NewCGAAP_DepExp_Yr1'!O46+((C46*0.5)/D46)) -> 0 | H46: 0 | I46: 0 | K46: =IF(ISERROR(+I46+'App.2-CB_NewCGAAP_DepExp_Yr1'!O46-J46), 0, +I46+'App.2-CB_NewCGAAP_DepExp_Yr1'!O46-J46) -> 0
A47: 1945 | B47: Measurement & Testing Equipment | E47: 0 | F47: =IF(D47=0,+'App.2-CB_NewCGAAP_DepExp_Yr1'!O47,+'App.2-CB_NewCGAAP_DepExp_Yr1'!O47+((C47*0.5)/D47)) -> 0 | H47: 0 | I47: 0 | K47: =IF(ISERROR(+I47+'App.2-CB_NewCGAAP_DepExp_Yr1'!O47-J47), 0, +I47+'App.2-CB_NewCGAAP_DepExp_Yr1'!O47-J47) -> 0
A48: 1950 | B48: Power Operated Equipment | E48: 0 | F48: =IF(D48=0,+'App.2-CB_NewCGAAP_DepExp_Yr1'!O48,+'App.2-CB_NewCGAAP_DepExp_Yr1'!O48+((C48*0.5)/D48)) -> 0 | H48: 0 | I48: 0 | K48: =IF(ISERROR(+I48+'App.2-CB_NewCGAAP_DepExp_Yr1'!O48-J48), 0, +I48+'App.2-CB_NewCGAAP_DepExp_Yr1'!O48-J48) -> 0
A49: 1955 | B49: Communications Equipment | E49: 0 | F49: =IF(D49=0,+'App.2-CB_NewCGAAP_DepExp_Yr1'!O49,+'App.2-CB_NewCGAAP_DepExp_Yr1'!O49+((C49*0.5)/D49)) -> 0 | H49: 0 | I49: 0 | K49: =IF(ISERROR(+I49+'App.2-CB_NewCGAAP_DepExp_Yr1'!O49-J49), 0, +I49+'App.2-CB_NewCGAAP_DepExp_Yr1'!O49-J49) -> 0
A50: 1955 | B50: Communication Equipment (Smart Meters) | E50: 0 | F50: =IF(D50=0,+'App.2-CB_NewCGAAP_DepExp_Yr1'!O50,+'App.2-CB_NewCGAAP_DepExp_Yr1'!O50+((C50*0.5)/D50)) -> 0 | H50: 0 | I50: 0 | K50: =IF(ISERROR(+I50+'App.2-CB_NewCGAAP_DepExp_Yr1'!O50-J50), 0, +I50+'App.2-CB_NewCGAAP_DepExp_Yr1'!O50-J50) -> 0
A51: 1960 | B51: Miscellaneous Equipment | E51: 0 | F51: =IF(D51=0,+'App.2-CB_NewCGAAP_DepExp_Yr1'!O51,+'App.2-CB_NewCGAAP_DepExp_Yr1'!O51+((C51*0.5)/D51)) -> 0 | H51: 0 | I51: 0 | K51: =IF(ISERROR(+I51+'App.2-CB_NewCGAAP_DepExp_Yr1'!O51-J51), 0, +I51+'App.2-CB_NewCGAAP_DepExp_Yr1'!O51-J51) -> 0
A52: 1970 | B52: Load Management Controls Customer Premises | E52: 0 | F52: =IF(D52=0,+'App.2-CB_NewCGAAP_DepExp_Yr1'!O52,+'App.2-CB_NewCGAAP_DepExp_Yr1'!O52+((C52*0.5)/D52)) -> 0 | H52: 0 | I52: 0 | K52: =IF(ISERROR(+I52+'App.2-CB_NewCGAAP_DepExp_Yr1'!O52-J52), 0, +I52+'App.2-CB_NewCGAAP_DepExp_Yr1'!O52-J52) -> 0
A53: 1975 | B53: Load Management Controls Utility Premises | E53: 0 | F53: =IF(D53=0,+'App.2-CB_NewCGAAP_DepExp_Yr1'!O53,+'App.2-CB_NewCGAAP_DepExp_Yr1'!O53+((C53*0.5)/D53)) -> 0 | H53: 0 | I53: 0 | K53: =IF(ISERROR(+I53+'App.2-CB_NewCGAAP_DepExp_Yr1'!O53-J53), 0, +I53+'App.2-CB_NewCGAAP_DepExp_Yr1'!O53-J53) -> 0
A54: 1980 | B54: System Supervisor Equipment | E54: 0 | F54: =IF(D54=0,+'App.2-CB_NewCGAAP_DepExp_Yr1'!O54,+'App.2-CB_NewCGAAP_DepExp_Yr1'!O54+((C54*0.5)/D54)) -> 0 | H54: 0 | I54: 0 | K54: =IF(ISERROR(+I54+'App.2-CB_NewCGAAP_DepExp_Yr1'!O54-J54), 0, +I54+'App.2-CB_NewCGAAP_DepExp_Yr1'!O54-J54) -> 0
A55: 1985 | B55: Miscellaneous Fixed Assets | E55: 0 | F55: =IF(D55=0,+'App.2-CB_NewCGAAP_DepExp_Yr1'!O55,+'App.2-CB_NewCGAAP_DepExp_Yr1'!O55+((C55*0.5)/D55)) -> 0 | H55: 0 | I55: 0 | K55: =IF(ISERROR(+I55+'App.2-CB_NewCGAAP_DepExp_Yr1'!O55-J55), 0, +I55+'App.2-CB_NewCGAAP_DepExp_Yr1'!O55-J55) -> 0
A56: 1990 | B56: Other Tangible Property | E56: 0 | F56: =IF(D56=0,+'App.2-CB_NewCGAAP_DepExp_Yr1'!O56,+'App.2-CB_NewCGAAP_DepExp_Yr1'!O56+((C56*0.5)/D56)) -> 0 | H56: 0 | I56: 0 | K56: =IF(ISERROR(+I56+'App.2-CB_NewCGAAP_DepExp_Yr1'!O56-J56), 0, +I56+'App.2-CB_NewCGAAP_DepExp_Yr1'!O56-J56) -> 0
A57: 1995 | B57: Contributions & Grants | E57: 0 | F57: =IF(D57=0,+'App.2-CB_NewCGAAP_DepExp_Yr1'!O57,+'App.2-CB_NewCGAAP_DepExp_Yr1'!O57+((C57*0.5)/D57)) -> 0 | H57: 0 | I57: 0 | K57: =IF(ISERROR(+I57+'App.2-CB_NewCGAAP_DepExp_Yr1'!O57-J57), 0, +I57+'App.2-CB_NewCGAAP_DepExp_Yr1'!O57-J57) -> 0
B58: Total | C58: =SUM(C20:C57) -> 0 | F58: =SUM(F20:F57) -> 0 | G58: 0 | H58: 0 | I58: 0 | J58: 0 | K58: 0
A60: Notes:
A61: 1 | B61: Board policy of the "half-year" rule - the applicant must ensure that additions in the year attract a half-year depreciation expense in the first year. Deviations from this standard practice must be supported in the application.
A62: 2 | B62: The applicant must provide an explanation of material variances in evidence.
A63: 3 | B63: This column refers to the calculated full year depreciation but excludes the depreciation expense on assets fully depreciated during the year. This column is used for the purpose of calculating depreciation expense in the following year on the next worksheet.
A65: General: | B65: Applicants must provide a breakdown of depreciation and amortization expense in the above format for all relevant accounts. Asset Retirement Obligations (AROs), depreciation and accretion expense should be disclosed separately consistent with the Notes of historical Audited Financial Statements.

Sheet App.2-CD_DepExp_Yr3
J1: File Number: | K1: =EBNUMBER -> EB-2017-0048
J2: Exhibit:
J3: Tab:
J4: Schedule:
J5: Page:
J7: Date:
A9: Appendix 2-CD
A10: Depreciation and Amortization Expense
A11: Revised CGAAP or MIFRS (Year 3)
A13: Select the set of appendices that apply | J13: Year Reflected in Schedule Below | K13: Accounting Standard
A14: 2012 Set of Appendices (2-CA to 2-CG) | C14: Assumes the applicant made capitalization and depreciation expense accounting policy changes under CGAAP effective January 1, 2012 and has adopted IFRS for financial reporting purposes effective January 1, 2015. Assumes that the applicant is reflecting these changes in a rebasing application for the first time. | J14: 2014 | K14: Revised CGAAP
A15: 2013 Set of Appendices (2-CA to 2-CF) | C15: Assumes the applicant made capitalization and depreciation expense accounting policy changes under CGAAP effective January 1, 2013 and has adopted IFRS for financial reporting purposes effective January 1, 2015. Assumes that the applicant is reflecting these changes in a rebasing application for the first time. | J15: 2015 | K15: MIFRS
A18: Account | B18: Description | C18: Additions | D18: Years (new additions only) | E18: Depreciation Rate on New Additions | F18: Current Year Depreciation Expense1 | G18: Depreciation Expense per Apppendix 2-BA Fixed Assets, Column J (l) | H18: Variance 2 | I18: Depreciation Expense on Current Full Year Additions | J18: Less Depreciation Expense on Assets Fully Depreciated During the Year (o) | K18: Current Full Year Depreciation 3
C19: (d) | D19: (f) | E19: (g) = 1 / (f) | F19: (h) = Prior Full Year Deprecation + ((d)*0.5)/(f) | H19: (m) = (h) - (l) | I19: (n)=((d))/(f) | K19: (p) = Prior Full Year Depreciation + (n) - (o)
A20: 1611 | B20: Computer Software (Formally known as Account 1925) | E20: =IF(D20=0,0,1/D20) -> 0 | F20: =IF(D20=0,+'App.2-CC_DepExp_Yr2'!K20,+'App.2-CC_DepExp_Yr2'!K20+((C20*0.5)/D20)) -> 0 | H20: =IF(ISERROR(+F20-G20), 0, +F20-G20) -> 0 | I20: =IF(D20=0,0,+(C20)/D20) -> 0 | K20: =IF(ISERROR(+I20+'App.2-CC_DepExp_Yr2'!K20-J20), 0, +I20+'App.2-CC_DepExp_Yr2'!K20-J20) -> 0
A21: 1612 | B21: Land Rights (Formally known as Account 1906) | E21: 0 | F21: =IF(D21=0,+'App.2-CC_DepExp_Yr2'!K21,+'App.2-CC_DepExp_Yr2'!K21+((C21*0.5)/D21)) -> 0 | H21: 0 | I21: =IF(D21=0,0,+(C21)/D21) -> 0 | K21: =IF(ISERROR(+I21+'App.2-CC_DepExp_Yr2'!K21-J21), 0, +I21+'App.2-CC_DepExp_Yr2'!K21-J21) -> 0
A22: 1805 | B22: Land | E22: 0 | F22: =IF(D22=0,+'App.2-CC_DepExp_Yr2'!K22,+'App.2-CC_DepExp_Yr2'!K22+((C22*0.5)/D22)) -> 0 | H22: 0 | I22: 0 | K22: =IF(ISERROR(+I22+'App.2-CC_DepExp_Yr2'!K22-J22), 0, +I22+'App.2-CC_DepExp_Yr2'!K22-J22) -> 0
A23: 1808 | B23: Buildings | E23: 0 | F23: =IF(D23=0,+'App.2-CC_DepExp_Yr2'!K23,+'App.2-CC_DepExp_Yr2'!K23+((C23*0.5)/D23)) -> 0 | H23: 0 | I23: 0 | K23: =IF(ISERROR(+I23+'App.2-CC_DepExp_Yr2'!K23-J23), 0, +I23+'App.2-CC_DepExp_Yr2'!K23-J23) -> 0
A24: 1810 | B24: Leasehold Improvements | E24: 0 | F24: =IF(D24=0,+'App.2-CC_DepExp_Yr2'!K24,+'App.2-CC_DepExp_Yr2'!K24+((C24*0.5)/D24)) -> 0 | H24: 0 | I24: 0 | K24: =IF(ISERROR(+I24+'App.2-CC_DepExp_Yr2'!K24-J24), 0, +I24+'App.2-CC_DepExp_Yr2'!K24-J24) -> 0
A25: 1815 | B25: Transformer Station Equipment >50 kV | E25: 0 | F25: =IF(D25=0,+'App.2-CC_DepExp_Yr2'!K25,+'App.2-CC_DepExp_Yr2'!K25+((C25*0.5)/D25)) -> 0 | H25: 0 | I25: 0 | K25: =IF(ISERROR(+I25+'App.2-CC_DepExp_Yr2'!K25-J25), 0, +I25+'App.2-CC_DepExp_Yr2'!K25-J25) -> 0
A26: 1820 | B26: Distribution Station Equipment <50 kV | E26: 0 | F26: =IF(D26=0,+'App.2-CC_DepExp_Yr2'!K26,+'App.2-CC_DepExp_Yr2'!K26+((C26*0.5)/D26)) -> 0 | H26: 0 | I26: 0 | K26: =IF(ISERROR(+I26+'App.2-CC_DepExp_Yr2'!K26-J26), 0, +I26+'App.2-CC_DepExp_Yr2'!K26-J26) -> 0
A27: 1825 | B27: Storage Battery Equipment | E27: 0 | F27: =IF(D27=0,+'App.2-CC_DepExp_Yr2'!K27,+'App.2-CC_DepExp_Yr2'!K27+((C27*0.5)/D27)) -> 0 | H27: 0 | I27: 0 | K27: =IF(ISERROR(+I27+'App.2-CC_DepExp_Yr2'!K27-J27), 0, +I27+'App.2-CC_DepExp_Yr2'!K27-J27) -> 0
A28: 1830 | B28: Poles, Towers & Fixtures | E28: 0 | F28: =IF(D28=0,+'App.2-CC_DepExp_Yr2'!K28,+'App.2-CC_DepExp_Yr2'!K28+((C28*0.5)/D28)) -> 0 | H28: 0 | I28: 0 | K28: =IF(ISERROR(+I28+'App.2-CC_DepExp_Yr2'!K28-J28), 0, +I28+'App.2-CC_DepExp_Yr2'!K28-J28) -> 0
A29: 1835 | B29: Overhead Conductors & Devices | E29: 0 | F29: =IF(D29=0,+'App.2-CC_DepExp_Yr2'!K29,+'App.2-CC_DepExp_Yr2'!K29+((C29*0.5)/D29)) -> 0 | H29: 0 | I29: 0 | K29: =IF(ISERROR(+I29+'App.2-CC_DepExp_Yr2'!K29-J29), 0, +I29+'App.2-CC_DepExp_Yr2'!K29-J29) -> 0
A30: 1840 | B30: Underground Conduit | E30: 0 | F30: =IF(D30=0,+'App.2-CC_DepExp_Yr2'!K30,+'App.2-CC_DepExp_Yr2'!K30+((C30*0.5)/D30)) -> 0 | H30: 0 | I30: 0 | K30: =IF(ISERROR(+I30+'App.2-CC_DepExp_Yr2'!K30-J30), 0, +I30+'App.2-CC_DepExp_Yr2'!K30-J30) -> 0
A31: 1845 | B31: Underground Conductors & Devices | E31: 0 | F31: =IF(D31=0,+'App.2-CC_DepExp_Yr2'!K31,+'App.2-CC_DepExp_Yr2'!K31+((C31*0.5)/D31)) -> 0 | H31: 0 | I31: 0 | K31: =IF(ISERROR(+I31+'App.2-CC_DepExp_Yr2'!K31-J31), 0, +I31+'App.2-CC_DepExp_Yr2'!K31-J31) -> 0
A32: 1850 | B32: Line Transformers | E32: 0 | F32: =IF(D32=0,+'App.2-CC_DepExp_Yr2'!K32,+'App.2-CC_DepExp_Yr2'!K32+((C32*0.5)/D32)) -> 0 | H32: 0 | I32: 0 | K32: =IF(ISERROR(+I32+'App.2-CC_DepExp_Yr2'!K32-J32), 0, +I32+'App.2-CC_DepExp_Yr2'!K32-J32) -> 0
A33: 1855 | B33: Services (Overhead & Underground) | E33: 0 | F33: =IF(D33=0,+'App.2-CC_DepExp_Yr2'!K33,+'App.2-CC_DepExp_Yr2'!K33+((C33*0.5)/D33)) -> 0 | H33: 0 | I33: 0 | K33: =IF(ISERROR(+I33+'App.2-CC_DepExp_Yr2'!K33-J33), 0, +I33+'App.2-CC_DepExp_Yr2'!K33-J33) -> 0
A34: 1860 | B34: Meters | E34: 0 | F34: =IF(D34=0,+'App.2-CC_DepExp_Yr2'!K34,+'App.2-CC_DepExp_Yr2'!K34+((C34*0.5)/D34)) -> 0 | H34: 0 | I34: 0 | K34: =IF(ISERROR(+I34+'App.2-CC_DepExp_Yr2'!K34-J34), 0, +I34+'App.2-CC_DepExp_Yr2'!K34-J34) -> 0
A35: 1860 | B35: Meters (Smart Meters) | E35: 0 | F35: =IF(D35=0,+'App.2-CC_DepExp_Yr2'!K35,+'App.2-CC_DepExp_Yr2'!K35+((C35*0.5)/D35)) -> 0 | H35: 0 | I35: 0 | K35: =IF(ISERROR(+I35+'App.2-CC_DepExp_Yr2'!K35-J35), 0, +I35+'App.2-CC_DepExp_Yr2'!K35-J35) -> 0
A36: 1905 | B36: Land | E36: 0 | F36: =IF(D36=0,+'App.2-CC_DepExp_Yr2'!K36,+'App.2-CC_DepExp_Yr2'!K36+((C36*0.5)/D36)) -> 0 | H36: 0 | I36: 0 | K36: =IF(ISERROR(+I36+'App.2-CC_DepExp_Yr2'!K36-J36), 0, +I36+'App.2-CC_DepExp_Yr2'!K36-J36) -> 0
A37: 1908 | B37: Buildings & Fixtures | E37: 0 | F37: =IF(D37=0,+'App.2-CC_DepExp_Yr2'!K37,+'App.2-CC_DepExp_Yr2'!K37+((C37*0.5)/D37)) -> 0 | H37: 0 | I37: 0 | K37: =IF(ISERROR(+I37+'App.2-CC_DepExp_Yr2'!K37-J37), 0, +I37+'App.2-CC_DepExp_Yr2'!K37-J37) -> 0
A38: 1910 | B38: Leasehold Improvements | E38: 0 | F38: =IF(D38=0,+'App.2-CC_DepExp_Yr2'!K38,+'App.2-CC_DepExp_Yr2'!K38+((C38*0.5)/D38)) -> 0 | H38: 0 | I38: 0 | K38: =IF(ISERROR(+I38+'App.2-CC_DepExp_Yr2'!K38-J38), 0, +I38+'App.2-CC_DepExp_Yr2'!K38-J38) -> 0
A39: 1915 | B39: Office Furniture & Equipment (10 years) | E39: 0 | F39: =IF(D39=0,+'App.2-CC_DepExp_Yr2'!K39,+'App.2-CC_DepExp_Yr2'!K39+((C39*0.5)/D39)) -> 0 | H39: 0 | I39: 0 | K39: =IF(ISERROR(+I39+'App.2-CC_DepExp_Yr2'!K39-J39), 0, +I39+'App.2-CC_DepExp_Yr2'!K39-J39) -> 0
A40: 1915 | B40: Office Furniture & Equipment (5 years) | E40: 0 | F40: =IF(D40=0,+'App.2-CC_DepExp_Yr2'!K40,+'App.2-CC_DepExp_Yr2'!K40+((C40*0.5)/D40)) -> 0 | H40: 0 | I40: 0 | K40: =IF(ISERROR(+I40+'App.2-CC_DepExp_Yr2'!K40-J40), 0, +I40+'App.2-CC_DepExp_Yr2'!K40-J40) -> 0
A41: 1920 | B41: Computer Equipment - Hardware | E41: 0 | F41: =IF(D41=0,+'App.2-CC_DepExp_Yr2'!K41,+'App.2-CC_DepExp_Yr2'!K41+((C41*0.5)/D41)) -> 0 | H41: 0 | I41: 0 | K41: =IF(ISERROR(+I41+'App.2-CC_DepExp_Yr2'!K41-J41), 0, +I41+'App.2-CC_DepExp_Yr2'!K41-J41) -> 0
A42: 1920 | B42: Computer Equip.-Hardware(Post Mar. 22/04) | E42: 0 | F42: =IF(D42=0,+'App.2-CC_DepExp_Yr2'!K42,+'App.2-CC_DepExp_Yr2'!K42+((C42*0.5)/D42)) -> 0 | H42: 0 | I42: 0 | K42: =IF(ISERROR(+I42+'App.2-CC_DepExp_Yr2'!K42-J42), 0, +I42+'App.2-CC_DepExp_Yr2'!K42-J42) -> 0
A43: 1920 | B43: Computer Equip.-Hardware(Post Mar. 19/07) | E43: 0 | F43: =IF(D43=0,+'App.2-CC_DepExp_Yr2'!K43,+'App.2-CC_DepExp_Yr2'!K43+((C43*0.5)/D43)) -> 0 | H43: 0 | I43: 0 | K43: =IF(ISERROR(+I43+'App.2-CC_DepExp_Yr2'!K43-J43), 0, +I43+'App.2-CC_DepExp_Yr2'!K43-J43) -> 0
A44: 1930 | B44: Transportation Equipment | E44: 0 | F44: =IF(D44=0,+'App.2-CC_DepExp_Yr2'!K44,+'App.2-CC_DepExp_Yr2'!K44+((C44*0.5)/D44)) -> 0 | H44: 0 | I44: 0 | K44: =IF(ISERROR(+I44+'App.2-CC_DepExp_Yr2'!K44-J44), 0, +I44+'App.2-CC_DepExp_Yr2'!K44-J44) -> 0
A45: 1935 | B45: Stores Equipment | E45: 0 | F45: =IF(D45=0,+'App.2-CC_DepExp_Yr2'!K45,+'App.2-CC_DepExp_Yr2'!K45+((C45*0.5)/D45)) -> 0 | H45: 0 | I45: 0 | K45: =IF(ISERROR(+I45+'App.2-CC_DepExp_Yr2'!K45-J45), 0, +I45+'App.2-CC_DepExp_Yr2'!K45-J45) -> 0
A46: 1940 | B46: Tools, Shop & Garage Equipment | E46: 0 | F46: =IF(D46=0,+'App.2-CC_DepExp_Yr2'!K46,+'App.2-CC_DepExp_Yr2'!K46+((C46*0.5)/D46)) -> 0 | H46: 0 | I46: 0 | K46: =IF(ISERROR(+I46+'App.2-CC_DepExp_Yr2'!K46-J46), 0, +I46+'App.2-CC_DepExp_Yr2'!K46-J46) -> 0
A47: 1945 | B47: Measurement & Testing Equipment | E47: 0 | F47: =IF(D47=0,+'App.2-CC_DepExp_Yr2'!K47,+'App.2-CC_DepExp_Yr2'!K47+((C47*0.5)/D47)) -> 0 | H47: 0 | I47: 0 | K47: =IF(ISERROR(+I47+'App.2-CC_DepExp_Yr2'!K47-J47), 0, +I47+'App.2-CC_DepExp_Yr2'!K47-J47) -> 0
A48: 1950 | B48: Power Operated Equipment | E48: 0 | F48: =IF(D48=0,+'App.2-CC_DepExp_Yr2'!K48,+'App.2-CC_DepExp_Yr2'!K48+((C48*0.5)/D48)) -> 0 | H48: 0 | I48: 0 | K48: =IF(ISERROR(+I48+'App.2-CC_DepExp_Yr2'!K48-J48), 0, +I48+'App.2-CC_DepExp_Yr2'!K48-J48) -> 0
A49: 1955 | B49: Communications Equipment | E49: 0 | F49: =IF(D49=0,+'App.2-CC_DepExp_Yr2'!K49,+'App.2-CC_DepExp_Yr2'!K49+((C49*0.5)/D49)) -> 0 | H49: 0 | I49: 0 | K49: =IF(ISERROR(+I49+'App.2-CC_DepExp_Yr2'!K49-J49), 0, +I49+'App.2-CC_DepExp_Yr2'!K49-J49) -> 0
A50: 1955 | B50: Communication Equipment (Smart Meters) | E50: 0 | F50: =IF(D50=0,+'App.2-CC_DepExp_Yr2'!K50,+'App.2-CC_DepExp_Yr2'!K50+((C50*0.5)/D50)) -> 0 | H50: 0 | I50: 0 | K50: =IF(ISERROR(+I50+'App.2-CC_DepExp_Yr2'!K50-J50), 0, +I50+'App.2-CC_DepExp_Yr2'!K50-J50) -> 0
A51: 1960 | B51: Miscellaneous Equipment | E51: 0 | F51: =IF(D51=0,+'App.2-CC_DepExp_Yr2'!K51,+'App.2-CC_DepExp_Yr2'!K51+((C51*0.5)/D51)) -> 0 | H51: 0 | I51: 0 | K51: =IF(ISERROR(+I51+'App.2-CC_DepExp_Yr2'!K51-J51), 0, +I51+'App.2-CC_DepExp_Yr2'!K51-J51) -> 0
A52: 1970 | B52: Load Management Controls Customer Premises | E52: 0 | F52: =IF(D52=0,+'App.2-CC_DepExp_Yr2'!K52,+'App.2-CC_DepExp_Yr2'!K52+((C52*0.5)/D52)) -> 0 | H52: 0 | I52: 0 | K52: =IF(ISERROR(+I52+'App.2-CC_DepExp_Yr2'!K52-J52), 0, +I52+'App.2-CC_DepExp_Yr2'!K52-J52) -> 0
A53: 1975 | B53: Load Management Controls Utility Premises | E53: 0 | F53: =IF(D53=0,+'App.2-CC_DepExp_Yr2'!K53,+'App.2-CC_DepExp_Yr2'!K53+((C53*0.5)/D53)) -> 0 | H53: 0 | I53: 0 | K53: =IF(ISERROR(+I53+'App.2-CC_DepExp_Yr2'!K53-J53), 0, +I53+'App.2-CC_DepExp_Yr2'!K53-J53) -> 0
A54: 1980 | B54: System Supervisor Equipment | E54: 0 | F54: =IF(D54=0,+'App.2-CC_DepExp_Yr2'!K54,+'App.2-CC_DepExp_Yr2'!K54+((C54*0.5)/D54)) -> 0 | H54: 0 | I54: 0 | K54: =IF(ISERROR(+I54+'App.2-CC_DepExp_Yr2'!K54-J54), 0, +I54+'App.2-CC_DepExp_Yr2'!K54-J54) -> 0
A55: 1985 | B55: Miscellaneous Fixed Assets | E55: 0 | F55: =IF(D55=0,+'App.2-CC_DepExp_Yr2'!K55,+'App.2-CC_DepExp_Yr2'!K55+((C55*0.5)/D55)) -> 0 | H55: 0 | I55: 0 | K55: =IF(ISERROR(+I55+'App.2-CC_DepExp_Yr2'!K55-J55), 0, +I55+'App.2-CC_DepExp_Yr2'!K55-J55) -> 0
A56: 1990 | B56: Other Tangible Property | E56: 0 | F56: =IF(D56=0,+'App.2-CC_DepExp_Yr2'!K56,+'App.2-CC_DepExp_Yr2'!K56+((C56*0.5)/D56)) -> 0 | H56: 0 | I56: 0 | K56: =IF(ISERROR(+I56+'App.2-CC_DepExp_Yr2'!K56-J56), 0, +I56+'App.2-CC_DepExp_Yr2'!K56-J56) -> 0
A57: 1995 | B57: Contributions & Grants | E57: =IF(D57=0,0,1/D57) -> 0 | F57: =IF(D57=0,+'App.2-CC_DepExp_Yr2'!K57,+'App.2-CC_DepExp_Yr2'!K57+((C57*0.5)/D57)) -> 0 | H57: 0 | I57: 0 | K57: =IF(ISERROR(+I57+'App.2-CC_DepExp_Yr2'!K57-J57), 0, +I57+'App.2-CC_DepExp_Yr2'!K57-J57) -> 0
B58: Total | C58: =SUM(C20:C57) -> 0 | F58: =SUM(F20:F57) -> 0 | G58: 0 | H58: 0 | I58: 0 | J58: 0 | K58: 0
B59: Depreciation exp. adj. from gain or loss on the retirement of assets (pool of like assets) (under MIFRS)
B60: Total Depreciation Expense | F60: =+F59+F58 -> 0
A62: Notes:
A63: 1 | B63: Board policy of the "half-year" rule - the applicant must ensure that additions in the year attract a half-year depreciation expense in the first year. Deviations from this standard practice must be supported in the application.
A64: 2 | B64: The applicant must provide an explanation of material variances in evidence.
A65: 3 | B65: This column refers to the calculated full year depreciation but excludes the depreciation expense on assets fully depreciated during the year. This column is used for the purpose of calculating depreciation expense in the following year on the next worksheet.
A67: General: | B67: Applicants must provide a breakdown of depreciation and amortization expense in the above format for all relevant accounts. Asset Retirement Obligations (AROs), depreciation and accretion expense should be disclosed separately consistent with the Notes of historical Audited Financial Statements.

Sheet App.2-CE_DepExp_Yr4
J1: File Number: | K1: =EBNUMBER -> EB-2017-0048
J2: Exhibit:
J3: Tab:
J4: Schedule:
J5: Page:
J7: Date:
A9: Appendix 2-CE
A10: Depreciation and Amortization Expense
A11: MIFRS (Year 4)
A13: Select the set of appendices that apply | J13: Year Reflected in Schedule Below | K13: Accounting Standard
A14: 2012 Set of Appendices (2-CA to 2-CG) | C14: Assumes the applicant made capitalization and depreciation expense accounting policy changes under CGAAP effective January 1, 2012 and has adopted IFRS for financial reporting purposes effective January 1, 2015. Assumes that the applicant is reflecting these changes in a rebasing application for the first time. | J14: 2015 | K14: MIFRS
A15: 2013 Set of Appendices (2-CA to 2-CF) | C15: Assumes the applicant made capitalization and depreciation expense accounting policy changes under CGAAP effective January 1, 2013 and has adopted IFRS for financial reporting purposes effective January 1, 2015. Assumes that the applicant is reflecting these changes in a rebasing application for the first time. | J15: 2016 | K15: MIFRS
A18: Account | B18: Description | C18: Additions | D18: Years (new additions only) | E18: Depreciation Rate on New Additions | F18: Current Year Depreciation Expense1 | G18: Depreciation Expense per Appendix 2-BA Fixed Assets, Column J (l) | H18: Variance 2 | I18: Depreciation Expense on Current Full Year Additions | J18: Less Depreciation Expense on Assets Fully Depreciated During the Year (o) | K18: Current Full Year Depreciation 3
C19: (d) | D19: (f) | E19: (g) = 1 / (f) | F19: (h)=Prior Full Year Depreciation + ((d)*0.5)/(f) | H19: (m) = (h) - (l) | I19: (n)=((d))/(f) | K19: (p) = Prior Full Year Depreciation + (n) - (o)
A20: 1611 | B20: Computer Software (Formally known as Account 1925) | E20: =IF(D20=0,0,1/D20) -> 0 | F20: =IF(D20=0,'App.2-CD_DepExp_Yr3'!K20,+'App.2-CD_DepExp_Yr3'!K20+((C20*0.5)/D20)) -> 0 | H20: =IF(ISERROR(+F20-G20), 0, +F20-G20) -> 0 | I20: =IF(D20=0,0,+(C20)/D20) -> 0 | K20: =IF(ISERROR(+I20+'App.2-CD_DepExp_Yr3'!K20-J20), 0, +I20+'App.2-CD_DepExp_Yr3'!K20-J20) -> 0
A21: 1612 | B21: Land Rights (Formally known as Account 1906) | E21: 0 | F21: =IF(D21=0,'App.2-CD_DepExp_Yr3'!K21,+'App.2-CD_DepExp_Yr3'!K21+((C21*0.5)/D21)) -> 0 | H21: 0 | I21: =IF(D21=0,0,+(C21)/D21) -> 0 | K21: =IF(ISERROR(+I21+'App.2-CD_DepExp_Yr3'!K21-J21), 0, +I21+'App.2-CD_DepExp_Yr3'!K21-J21) -> 0
A22: 1805 | B22: Land | E22: 0 | F22: =IF(D22=0,'App.2-CD_DepExp_Yr3'!K22,+'App.2-CD_DepExp_Yr3'!K22+((C22*0.5)/D22)) -> 0 | H22: 0 | I22: 0 | K22: =IF(ISERROR(+I22+'App.2-CD_DepExp_Yr3'!K22-J22), 0, +I22+'App.2-CD_DepExp_Yr3'!K22-J22) -> 0
A23: 1808 | B23: Buildings | E23: 0 | F23: =IF(D23=0,'App.2-CD_DepExp_Yr3'!K23,+'App.2-CD_DepExp_Yr3'!K23+((C23*0.5)/D23)) -> 0 | H23: 0 | I23: 0 | K23: =IF(ISERROR(+I23+'App.2-CD_DepExp_Yr3'!K23-J23), 0, +I23+'App.2-CD_DepExp_Yr3'!K23-J23) -> 0
A24: 1810 | B24: Leasehold Improvements | E24: 0 | F24: =IF(D24=0,'App.2-CD_DepExp_Yr3'!K24,+'App.2-CD_DepExp_Yr3'!K24+((C24*0.5)/D24)) -> 0 | H24: 0 | I24: 0 | K24: =IF(ISERROR(+I24+'App.2-CD_DepExp_Yr3'!K24-J24), 0, +I24+'App.2-CD_DepExp_Yr3'!K24-J24) -> 0
A25: 1815 | B25: Transformer Station Equipment >50 kV | E25: 0 | F25: =IF(D25=0,'App.2-CD_DepExp_Yr3'!K25,+'App.2-CD_DepExp_Yr3'!K25+((C25*0.5)/D25)) -> 0 | H25: 0 | I25: 0 | K25: =IF(ISERROR(+I25+'App.2-CD_DepExp_Yr3'!K25-J25), 0, +I25+'App.2-CD_DepExp_Yr3'!K25-J25) -> 0
A26: 1820 | B26: Distribution Station Equipment <50 kV | E26: 0 | F26: =IF(D26=0,'App.2-CD_DepExp_Yr3'!K26,+'App.2-CD_DepExp_Yr3'!K26+((C26*0.5)/D26)) -> 0 | H26: 0 | I26: 0 | K26: =IF(ISERROR(+I26+'App.2-CD_DepExp_Yr3'!K26-J26), 0, +I26+'App.2-CD_DepExp_Yr3'!K26-J26) -> 0
A27: 1825 | B27: Storage Battery Equipment | E27: 0 | F27: =IF(D27=0,'App.2-CD_DepExp_Yr3'!K27,+'App.2-CD_DepExp_Yr3'!K27+((C27*0.5)/D27)) -> 0 | H27: 0 | I27: 0 | K27: =IF(ISERROR(+I27+'App.2-CD_DepExp_Yr3'!K27-J27), 0, +I27+'App.2-CD_DepExp_Yr3'!K27-J27) -> 0
A28: 1830 | B28: Poles, Towers & Fixtures | E28: 0 | F28: =IF(D28=0,'App.2-CD_DepExp_Yr3'!K28,+'App.2-CD_DepExp_Yr3'!K28+((C28*0.5)/D28)) -> 0 | H28: 0 | I28: 0 | K28: =IF(ISERROR(+I28+'App.2-CD_DepExp_Yr3'!K28-J28), 0, +I28+'App.2-CD_DepExp_Yr3'!K28-J28) -> 0
A29: 1835 | B29: Overhead Conductors & Devices | E29: 0 | F29: =IF(D29=0,'App.2-CD_DepExp_Yr3'!K29,+'App.2-CD_DepExp_Yr3'!K29+((C29*0.5)/D29)) -> 0 | H29: 0 | I29: 0 | K29: =IF(ISERROR(+I29+'App.2-CD_DepExp_Yr3'!K29-J29), 0, +I29+'App.2-CD_DepExp_Yr3'!K29-J29) -> 0
A30: 1840 | B30: Underground Conduit | E30: 0 | F30: =IF(D30=0,'App.2-CD_DepExp_Yr3'!K30,+'App.2-CD_DepExp_Yr3'!K30+((C30*0.5)/D30)) -> 0 | H30: 0 | I30: 0 | K30: =IF(ISERROR(+I30+'App.2-CD_DepExp_Yr3'!K30-J30), 0, +I30+'App.2-CD_DepExp_Yr3'!K30-J30) -> 0
A31: 1845 | B31: Underground Conductors & Devices | E31: 0 | F31: =IF(D31=0,'App.2-CD_DepExp_Yr3'!K31,+'App.2-CD_DepExp_Yr3'!K31+((C31*0.5)/D31)) -> 0 | H31: 0 | I31: 0 | K31: =IF(ISERROR(+I31+'App.2-CD_DepExp_Yr3'!K31-J31), 0, +I31+'App.2-CD_DepExp_Yr3'!K31-J31) -> 0
A32: 1850 | B32: Line Transformers | E32: 0 | F32: =IF(D32=0,'App.2-CD_DepExp_Yr3'!K32,+'App.2-CD_DepExp_Yr3'!K32+((C32*0.5)/D32)) -> 0 | H32: 0 | I32: 0 | K32: =IF(ISERROR(+I32+'App.2-CD_DepExp_Yr3'!K32-J32), 0, +I32+'App.2-CD_DepExp_Yr3'!K32-J32) -> 0
A33: 1855 | B33: Services (Overhead & Underground) | E33: 0 | F33: =IF(D33=0,'App.2-CD_DepExp_Yr3'!K33,+'App.2-CD_DepExp_Yr3'!K33+((C33*0.5)/D33)) -> 0 | H33: 0 | I33: 0 | K33: =IF(ISERROR(+I33+'App.2-CD_DepExp_Yr3'!K33-J33), 0, +I33+'App.2-CD_DepExp_Yr3'!K33-J33) -> 0
A34: 1860 | B34: Meters | E34: 0 | F34: =IF(D34=0,'App.2-CD_DepExp_Yr3'!K34,+'App.2-CD_DepExp_Yr3'!K34+((C34*0.5)/D34)) -> 0 | H34: 0 | I34: 0 | K34: =IF(ISERROR(+I34+'App.2-CD_DepExp_Yr3'!K34-J34), 0, +I34+'App.2-CD_DepExp_Yr3'!K34-J34) -> 0
A35: 1860 | B35: Meters (Smart Meters) | E35: 0 | F35: =IF(D35=0,'App.2-CD_DepExp_Yr3'!K35,+'App.2-CD_DepExp_Yr3'!K35+((C35*0.5)/D35)) -> 0 | H35: 0 | I35: 0 | K35: =IF(ISERROR(+I35+'App.2-CD_DepExp_Yr3'!K35-J35), 0, +I35+'App.2-CD_DepExp_Yr3'!K35-J35) -> 0
A36: 1905 | B36: Land | E36: 0 | F36: =IF(D36=0,'App.2-CD_DepExp_Yr3'!K36,+'App.2-CD_DepExp_Yr3'!K36+((C36*0.5)/D36)) -> 0 | H36: 0 | I36: 0 | K36: =IF(ISERROR(+I36+'App.2-CD_DepExp_Yr3'!K36-J36), 0, +I36+'App.2-CD_DepExp_Yr3'!K36-J36) -> 0
A37: 1908 | B37: Buildings & Fixtures | E37: 0 | F37: =IF(D37=0,'App.2-CD_DepExp_Yr3'!K37,+'App.2-CD_DepExp_Yr3'!K37+((C37*0.5)/D37)) -> 0 | H37: 0 | I37: 0 | K37: =IF(ISERROR(+I37+'App.2-CD_DepExp_Yr3'!K37-J37), 0, +I37+'App.2-CD_DepExp_Yr3'!K37-J37) -> 0
A38: 1910 | B38: Leasehold Improvements | E38: 0 | F38: =IF(D38=0,'App.2-CD_DepExp_Yr3'!K38,+'App.2-CD_DepExp_Yr3'!K38+((C38*0.5)/D38)) -> 0 | H38: 0 | I38: 0 | K38: =IF(ISERROR(+I38+'App.2-CD_DepExp_Yr3'!K38-J38), 0, +I38+'App.2-CD_DepExp_Yr3'!K38-J38) -> 0
A39: 1915 | B39: Office Furniture & Equipment (10 years) | E39: 0 | F39: =IF(D39=0,'App.2-CD_DepExp_Yr3'!K39,+'App.2-CD_DepExp_Yr3'!K39+((C39*0.5)/D39)) -> 0 | H39: 0 | I39: 0 | K39: =IF(ISERROR(+I39+'App.2-CD_DepExp_Yr3'!K39-J39), 0, +I39+'App.2-CD_DepExp_Yr3'!K39-J39) -> 0
A40: 1915 | B40: Office Furniture & Equipment (5 years) | E40: 0 | F40: =IF(D40=0,'App.2-CD_DepExp_Yr3'!K40,+'App.2-CD_DepExp_Yr3'!K40+((C40*0.5)/D40)) -> 0 | H40: 0 | I40: 0 | K40: =IF(ISERROR(+I40+'App.2-CD_DepExp_Yr3'!K40-J40), 0, +I40+'App.2-CD_DepExp_Yr3'!K40-J40) -> 0
A41: 1920 | B41: Computer Equipment - Hardware | E41: 0 | F41: =IF(D41=0,'App.2-CD_DepExp_Yr3'!K41,+'App.2-CD_DepExp_Yr3'!K41+((C41*0.5)/D41)) -> 0 | H41: 0 | I41: 0 | K41: =IF(ISERROR(+I41+'App.2-CD_DepExp_Yr3'!K41-J41), 0, +I41+'App.2-CD_DepExp_Yr3'!K41-J41) -> 0
A42: 1920 | B42: Computer Equip.-Hardware(Post Mar. 22/04) | E42: 0 | F42: =IF(D42=0,'App.2-CD_DepExp_Yr3'!K42,+'App.2-CD_DepExp_Yr3'!K42+((C42*0.5)/D42)) -> 0 | H42: 0 | I42: 0 | K42: =IF(ISERROR(+I42+'App.2-CD_DepExp_Yr3'!K42-J42), 0, +I42+'App.2-CD_DepExp_Yr3'!K42-J42) -> 0
A43: 1920 | B43: Computer Equip.-Hardware(Post Mar. 19/07) | E43: 0 | F43: =IF(D43=0,'App.2-CD_DepExp_Yr3'!K43,+'App.2-CD_DepExp_Yr3'!K43+((C43*0.5)/D43)) -> 0 | H43: 0 | I43: 0 | K43: =IF(ISERROR(+I43+'App.2-CD_DepExp_Yr3'!K43-J43), 0, +I43+'App.2-CD_DepExp_Yr3'!K43-J43) -> 0
A44: 1930 | B44: Transportation Equipment | E44: 0 | F44: =IF(D44=0,'App.2-CD_DepExp_Yr3'!K44,+'App.2-CD_DepExp_Yr3'!K44+((C44*0.5)/D44)) -> 0 | H44: 0 | I44: 0 | K44: =IF(ISERROR(+I44+'App.2-CD_DepExp_Yr3'!K44-J44), 0, +I44+'App.2-CD_DepExp_Yr3'!K44-J44) -> 0
A45: 1935 | B45: Stores Equipment | E45: 0 | F45: =IF(D45=0,'App.2-CD_DepExp_Yr3'!K45,+'App.2-CD_DepExp_Yr3'!K45+((C45*0.5)/D45)) -> 0 | H45: 0 | I45: 0 | K45: =IF(ISERROR(+I45+'App.2-CD_DepExp_Yr3'!K45-J45), 0, +I45+'App.2-CD_DepExp_Yr3'!K45-J45) -> 0
A46: 1940 | B46: Tools, Shop & Garage Equipment | E46: 0 | F46: =IF(D46=0,'App.2-CD_DepExp_Yr3'!K46,+'App.2-CD_DepExp_Yr3'!K46+((C46*0.5)/D46)) -> 0 | H46: 0 | I46: 0 | K46: =IF(ISERROR(+I46+'App.2-CD_DepExp_Yr3'!K46-J46), 0, +I46+'App.2-CD_DepExp_Yr3'!K46-J46) -> 0
A47: 1945 | B47: Measurement & Testing Equipment | E47: 0 | F47: =IF(D47=0,'App.2-CD_DepExp_Yr3'!K47,+'App.2-CD_DepExp_Yr3'!K47+((C47*0.5)/D47)) -> 0 | H47: 0 | I47: 0 | K47: =IF(ISERROR(+I47+'App.2-CD_DepExp_Yr3'!K47-J47), 0, +I47+'App.2-CD_DepExp_Yr3'!K47-J47) -> 0
A48: 1950 | B48: Power Operated Equipment | E48: 0 | F48: =IF(D48=0,'App.2-CD_DepExp_Yr3'!K48,+'App.2-CD_DepExp_Yr3'!K48+((C48*0.5)/D48)) -> 0 | H48: 0 | I48: 0 | K48: =IF(ISERROR(+I48+'App.2-CD_DepExp_Yr3'!K48-J48), 0, +I48+'App.2-CD_DepExp_Yr3'!K48-J48) -> 0
A49: 1955 | B49: Communications Equipment | E49: 0 | F49: =IF(D49=0,'App.2-CD_DepExp_Yr3'!K49,+'App.2-CD_DepExp_Yr3'!K49+((C49*0.5)/D49)) -> 0 | H49: 0 | I49: 0 | K49: =IF(ISERROR(+I49+'App.2-CD_DepExp_Yr3'!K49-J49), 0, +I49+'App.2-CD_DepExp_Yr3'!K49-J49) -> 0
A50: 1955 | B50: Communication Equipment (Smart Meters) | E50: 0 | F50: =IF(D50=0,'App.2-CD_DepExp_Yr3'!K50,+'App.2-CD_DepExp_Yr3'!K50+((C50*0.5)/D50)) -> 0 | H50: 0 | I50: 0 | K50: =IF(ISERROR(+I50+'App.2-CD_DepExp_Yr3'!K50-J50), 0, +I50+'App.2-CD_DepExp_Yr3'!K50-J50) -> 0
A51: 1960 | B51: Miscellaneous Equipment | E51: 0 | F51: =IF(D51=0,'App.2-CD_DepExp_Yr3'!K51,+'App.2-CD_DepExp_Yr3'!K51+((C51*0.5)/D51)) -> 0 | H51: 0 | I51: 0 | K51: =IF(ISERROR(+I51+'App.2-CD_DepExp_Yr3'!K51-J51), 0, +I51+'App.2-CD_DepExp_Yr3'!K51-J51) -> 0
A52: 1970 | B52: Load Management Controls Customer Premises | E52: 0 | F52: =IF(D52=0,'App.2-CD_DepExp_Yr3'!K52,+'App.2-CD_DepExp_Yr3'!K52+((C52*0.5)/D52)) -> 0 | H52: 0 | I52: 0 | K52: =IF(ISERROR(+I52+'App.2-CD_DepExp_Yr3'!K52-J52), 0, +I52+'App.2-CD_DepExp_Yr3'!K52-J52) -> 0
A53: 1975 | B53: Load Management Controls Utility Premises | E53: 0 | F53: =IF(D53=0,'App.2-CD_DepExp_Yr3'!K53,+'App.2-CD_DepExp_Yr3'!K53+((C53*0.5)/D53)) -> 0 | H53: 0 | I53: 0 | K53: =IF(ISERROR(+I53+'App.2-CD_DepExp_Yr3'!K53-J53), 0, +I53+'App.2-CD_DepExp_Yr3'!K53-J53) -> 0
A54: 1980 | B54: System Supervisor Equipment | E54: 0 | F54: =IF(D54=0,'App.2-CD_DepExp_Yr3'!K54,+'App.2-CD_DepExp_Yr3'!K54+((C54*0.5)/D54)) -> 0 | H54: 0 | I54: 0 | K54: =IF(ISERROR(+I54+'App.2-CD_DepExp_Yr3'!K54-J54), 0, +I54+'App.2-CD_DepExp_Yr3'!K54-J54) -> 0
A55: 1985 | B55: Miscellaneous Fixed Assets | E55: 0 | F55: =IF(D55=0,'App.2-CD_DepExp_Yr3'!K55,+'App.2-CD_DepExp_Yr3'!K55+((C55*0.5)/D55)) -> 0 | H55: 0 | I55: 0 | K55: =IF(ISERROR(+I55+'App.2-CD_DepExp_Yr3'!K55-J55), 0, +I55+'App.2-CD_DepExp_Yr3'!K55-J55) -> 0
A56: 1990 | B56: Other Tangible Property | E56: 0 | F56: =IF(D56=0,'App.2-CD_DepExp_Yr3'!K56,+'App.2-CD_DepExp_Yr3'!K56+((C56*0.5)/D56)) -> 0 | H56: 0 | I56: 0 | K56: =IF(ISERROR(+I56+'App.2-CD_DepExp_Yr3'!K56-J56), 0, +I56+'App.2-CD_DepExp_Yr3'!K56-J56) -> 0
A57: 1995 | B57: Contributions & Grants | E57: 0 | F57: =IF(D57=0,'App.2-CD_DepExp_Yr3'!K57,+'App.2-CD_DepExp_Yr3'!K57+((C57*0.5)/D57)) -> 0 | H57: 0 | I57: 0 | K57: =IF(ISERROR(+I57+'App.2-CD_DepExp_Yr3'!K57-J57), 0, +I57+'App.2-CD_DepExp_Yr3'!K57-J57) -> 0
B58: Total | C58: =SUM(C20:C57) -> 0 | F58: =SUM(F20:F57) -> 0 | G58: =SUM(G20:G57) -> 0 | H58: =SUM(H20:H57) -> 0 | I58: =SUM(I20:I57) -> 0 | J58: 0 | K58: =SUM(K20:K57) -> 0
B59: Depreciation exp. adj. from gain or loss on the retirement of assets (pool of like assets)
B60: Total Depreciation Expense | F60: =SUM(F58:F59) -> 0
A61: Notes:
A62: 1 | B62: Board policy of the "half-year" rule - the applicant must ensure that additions in the year attract a half-year depreciation expense in the first year. Deviations from this standard practice must be supported in the application.
A63: 2 | B63: The applicant must provide an explanation of material variances in evidence.
A64: 3 | B64: This column refers to the calculated full year depreciation but excludes the depreciation expense on assets fully depreciated during the year. This column is used for the purpose of calculating depreciation expense in the following year on the next worksheet.
A66: General: | B66: Applicants must provide a breakdown of depreciation and amortization expense in the above format for all relevant accounts. Asset Retirement Obligations (AROs), depreciation and accretion expense should be disclosed separately consistent with the Notes of historical Audited Financial Statements.

Sheet App.2-CF_DepExp_Yr5
J1: File Number: | K1: =EBNUMBER -> EB-2017-0048
J2: Exhibit:
J3: Tab:
J4: Schedule:
J5: Page:
J7: Date:
A9: Appendix 2-CF
A10: Depreciation and Amortization Expense
A11: MIFRS (Year 5)
A13: Select the set of appendices that apply | J13: Year Reflected in Schedule Below | K13: Accounting Standard
A14: 2012 Set of Appendices (2-CA to 2-CG) | C14: Assumes the applicant made capitalization and depreciation expense accounting policy changes under CGAAP effective January 1, 2012 and has adopted IFRS for financial reporting purposes effective January 1, 2015. Assumes that the applicant is reflecting these changes in a rebasing application for the first time. | J14: 2016 | K14: MIFRS
A15: 2013 Set of Appendices (2-CA to 2-CF) | C15: Assumes the applicant made capitalization and depreciation expense accounting policy changes under CGAAP effective January 1, 2013 and has adopted IFRS for financial reporting purposes effective January 1, 2015. Assumes that the applicant is reflecting these changes in a rebasing application for the first time. | J15: 2017 | K15: MIFRS
A18: Account | B18: Description | C18: Additions | D18: Years (new additions only) | E18: Depreciation Rate on New Additions | F18: Current Depreciation Expense1 | G18: Depreciation Expense per Appendix 2-BA Fixed Assets, Column J (l) | H18: Variance 2 | I18: Depreciation Expense on Current Full Year Additions | J18: Less Depreciation Expense on Assets Fully Depreciated During the Year (o) | K18: Current Full Year Depreciation 3
C19: (d) | D19: (f) | E19: (g) = 1 / (f) | F19: (h)= Prior Full Year Depreciation + ((d)*0.5)/(f) | H19: (m) = (h) - (l) | I19: (n)=((d))/(f) | K19: (p) = Prior Full Year Depreciation + (n) - (o)
A20: 1611 | B20: Computer Software (Formally known as Account 1925) | E20: =IF(D20=0,0,1/D20) -> 0 | F20: =IF(D20=0,'App.2-CE_DepExp_Yr4'!K20,+'App.2-CE_DepExp_Yr4'!K20+((C20*0.5)/D20)) -> 0 | H20: =IF(ISERROR(+F20-G20), 0, +F20-G20) -> 0 | I20: =IF(D20=0,0,+(C20)/D20) -> 0 | K20: =IF(ISERROR(+I20+'App.2-CE_DepExp_Yr4'!K20-J20), 0, +'App.2-CE_DepExp_Yr4'!K20-J20) -> 0
A21: 1612 | B21: Land Rights (Formally known as Account 1906) | E21: 0 | F21: =IF(D21=0,'App.2-CE_DepExp_Yr4'!K21,+'App.2-CE_DepExp_Yr4'!K21+((C21*0.5)/D21)) -> 0 | H21: 0 | I21: =IF(D21=0,0,+(C21)/D21) -> 0 | K21: =IF(ISERROR(+I21+'App.2-CE_DepExp_Yr4'!K21-J21), 0, +'App.2-CE_DepExp_Yr4'!K21-J21) -> 0
A22: 1805 | B22: Land | E22: 0 | F22: =IF(D22=0,'App.2-CE_DepExp_Yr4'!K22,+'App.2-CE_DepExp_Yr4'!K22+((C22*0.5)/D22)) -> 0 | H22: 0 | I22: 0 | K22: =IF(ISERROR(+I22+'App.2-CE_DepExp_Yr4'!K22-J22), 0, +'App.2-CE_DepExp_Yr4'!K22-J22) -> 0
A23: 1808 | B23: Buildings | E23: 0 | F23: =IF(D23=0,'App.2-CE_DepExp_Yr4'!K23,+'App.2-CE_DepExp_Yr4'!K23+((C23*0.5)/D23)) -> 0 | H23: 0 | I23: 0 | K23: =IF(ISERROR(+I23+'App.2-CE_DepExp_Yr4'!K23-J23), 0, +'App.2-CE_DepExp_Yr4'!K23-J23) -> 0
A24: 1810 | B24: Leasehold Improvements | E24: 0 | F24: =IF(D24=0,'App.2-CE_DepExp_Yr4'!K24,+'App.2-CE_DepExp_Yr4'!K24+((C24*0.5)/D24)) -> 0 | H24: 0 | I24: 0 | K24: =IF(ISERROR(+I24+'App.2-CE_DepExp_Yr4'!K24-J24), 0, +'App.2-CE_DepExp_Yr4'!K24-J24) -> 0
A25: 1815 | B25: Transformer Station Equipment >50 kV | E25: 0 | F25: =IF(D25=0,'App.2-CE_DepExp_Yr4'!K25,+'App.2-CE_DepExp_Yr4'!K25+((C25*0.5)/D25)) -> 0 | H25: 0 | I25: 0 | K25: =IF(ISERROR(+I25+'App.2-CE_DepExp_Yr4'!K25-J25), 0, +'App.2-CE_DepExp_Yr4'!K25-J25) -> 0
A26: 1820 | B26: Distribution Station Equipment <50 kV | E26: 0 | F26: =IF(D26=0,'App.2-CE_DepExp_Yr4'!K26,+'App.2-CE_DepExp_Yr4'!K26+((C26*0.5)/D26)) -> 0 | H26: 0 | I26: 0 | K26: =IF(ISERROR(+I26+'App.2-CE_DepExp_Yr4'!K26-J26), 0, +'App.2-CE_DepExp_Yr4'!K26-J26) -> 0
A27: 1825 | B27: Storage Battery Equipment | E27: 0 | F27: =IF(D27=0,'App.2-CE_DepExp_Yr4'!K27,+'App.2-CE_DepExp_Yr4'!K27+((C27*0.5)/D27)) -> 0 | H27: 0 | I27: 0 | K27: =IF(ISERROR(+I27+'App.2-CE_DepExp_Yr4'!K27-J27), 0, +'App.2-CE_DepExp_Yr4'!K27-J27) -> 0
A28: 1830 | B28: Poles, Towers & Fixtures | E28: 0 | F28: =IF(D28=0,'App.2-CE_DepExp_Yr4'!K28,+'App.2-CE_DepExp_Yr4'!K28+((C28*0.5)/D28)) -> 0 | H28: 0 | I28: 0 | K28: =IF(ISERROR(+I28+'App.2-CE_DepExp_Yr4'!K28-J28), 0, +'App.2-CE_DepExp_Yr4'!K28-J28) -> 0
A29: 1835 | B29: Overhead Conductors & Devices | E29: 0 | F29: =IF(D29=0,'App.2-CE_DepExp_Yr4'!K29,+'App.2-CE_DepExp_Yr4'!K29+((C29*0.5)/D29)) -> 0 | H29: 0 | I29: 0 | K29: =IF(ISERROR(+I29+'App.2-CE_DepExp_Yr4'!K29-J29), 0, +'App.2-CE_DepExp_Yr4'!K29-J29) -> 0
A30: 1840 | B30: Underground Conduit | E30: 0 | F30: =IF(D30=0,'App.2-CE_DepExp_Yr4'!K30,+'App.2-CE_DepExp_Yr4'!K30+((C30*0.5)/D30)) -> 0 | H30: 0 | I30: 0 | K30: =IF(ISERROR(+I30+'App.2-CE_DepExp_Yr4'!K30-J30), 0, +'App.2-CE_DepExp_Yr4'!K30-J30) -> 0
A31: 1845 | B31: Underground Conductors & Devices | E31: 0 | F31: =IF(D31=0,'App.2-CE_DepExp_Yr4'!K31,+'App.2-CE_DepExp_Yr4'!K31+((C31*0.5)/D31)) -> 0 | H31: 0 | I31: 0 | K31: =IF(ISERROR(+I31+'App.2-CE_DepExp_Yr4'!K31-J31), 0, +'App.2-CE_DepExp_Yr4'!K31-J31) -> 0
A32: 1850 | B32: Line Transformers | E32: 0 | F32: =IF(D32=0,'App.2-CE_DepExp_Yr4'!K32,+'App.2-CE_DepExp_Yr4'!K32+((C32*0.5)/D32)) -> 0 | H32: 0 | I32: 0 | K32: =IF(ISERROR(+I32+'App.2-CE_DepExp_Yr4'!K32-J32), 0, +'App.2-CE_DepExp_Yr4'!K32-J32) -> 0
A33: 1855 | B33: Services (Overhead & Underground) | E33: 0 | F33: =IF(D33=0,'App.2-CE_DepExp_Yr4'!K33,+'App.2-CE_DepExp_Yr4'!K33+((C33*0.5)/D33)) -> 0 | H33: 0 | I33: 0 | K33: =IF(ISERROR(+I33+'App.2-CE_DepExp_Yr4'!K33-J33), 0, +'App.2-CE_DepExp_Yr4'!K33-J33) -> 0
A34: 1860 | B34: Meters | E34: 0 | F34: =IF(D34=0,'App.2-CE_DepExp_Yr4'!K34,+'App.2-CE_DepExp_Yr4'!K34+((C34*0.5)/D34)) -> 0 | H34: 0 | I34: 0 | K34: =IF(ISERROR(+I34+'App.2-CE_DepExp_Yr4'!K34-J34), 0, +'App.2-CE_DepExp_Yr4'!K34-J34) -> 0
A35: 1860 | B35: Meters (Smart Meters) | E35: 0 | F35: =IF(D35=0,'App.2-CE_DepExp_Yr4'!K35,+'App.2-CE_DepExp_Yr4'!K35+((C35*0.5)/D35)) -> 0 | H35: 0 | I35: 0 | K35: =IF(ISERROR(+I35+'App.2-CE_DepExp_Yr4'!K35-J35), 0, +'App.2-CE_DepExp_Yr4'!K35-J35) -> 0
A36: 1905 | B36: Land | E36: 0 | F36: =IF(D36=0,'App.2-CE_DepExp_Yr4'!K36,+'App.2-CE_DepExp_Yr4'!K36+((C36*0.5)/D36)) -> 0 | H36: 0 | I36: 0 | K36: =IF(ISERROR(+I36+'App.2-CE_DepExp_Yr4'!K36-J36), 0, +'App.2-CE_DepExp_Yr4'!K36-J36) -> 0
A37: 1908 | B37: Buildings & Fixtures | E37: 0 | F37: =IF(D37=0,'App.2-CE_DepExp_Yr4'!K37,+'App.2-CE_DepExp_Yr4'!K37+((C37*0.5)/D37)) -> 0 | H37: 0 | I37: 0 | K37: =IF(ISERROR(+I37+'App.2-CE_DepExp_Yr4'!K37-J37), 0, +'App.2-CE_DepExp_Yr4'!K37-J37) -> 0
A38: 1910 | B38: Leasehold Improvements | E38: 0 | F38: =IF(D38=0,'App.2-CE_DepExp_Yr4'!K38,+'App.2-CE_DepExp_Yr4'!K38+((C38*0.5)/D38)) -> 0 | H38: 0 | I38: 0 | K38: =IF(ISERROR(+I38+'App.2-CE_DepExp_Yr4'!K38-J38), 0, +'App.2-CE_DepExp_Yr4'!K38-J38) -> 0
A39: 1915 | B39: Office Furniture & Equipment (10 years) | E39: 0 | F39: =IF(D39=0,'App.2-CE_DepExp_Yr4'!K39,+'App.2-CE_DepExp_Yr4'!K39+((C39*0.5)/D39)) -> 0 | H39: 0 | I39: 0 | K39: =IF(ISERROR(+I39+'App.2-CE_DepExp_Yr4'!K39-J39), 0, +'App.2-CE_DepExp_Yr4'!K39-J39) -> 0
A40: 1915 | B40: Office Furniture & Equipment (5 years) | E40: 0 | F40: =IF(D40=0,'App.2-CE_DepExp_Yr4'!K40,+'App.2-CE_DepExp_Yr4'!K40+((C40*0.5)/D40)) -> 0 | H40: 0 | I40: 0 | K40: =IF(ISERROR(+I40+'App.2-CE_DepExp_Yr4'!K40-J40), 0, +'App.2-CE_DepExp_Yr4'!K40-J40) -> 0
A41: 1920 | B41: Computer Equipment - Hardware | E41: 0 | F41: =IF(D41=0,'App.2-CE_DepExp_Yr4'!K41,+'App.2-CE_DepExp_Yr4'!K41+((C41*0.5)/D41)) -> 0 | H41: 0 | I41: 0 | K41: =IF(ISERROR(+I41+'App.2-CE_DepExp_Yr4'!K41-J41), 0, +'App.2-CE_DepExp_Yr4'!K41-J41) -> 0
A42: 1920 | B42: Computer Equip.-Hardware(Post Mar. 22/04) | E42: 0 | F42: =IF(D42=0,'App.2-CE_DepExp_Yr4'!K42,+'App.2-CE_DepExp_Yr4'!K42+((C42*0.5)/D42)) -> 0 | H42: 0 | I42: 0 | K42: =IF(ISERROR(+I42+'App.2-CE_DepExp_Yr4'!K42-J42), 0, +'App.2-CE_DepExp_Yr4'!K42-J42) -> 0
A43: 1920 | B43: Computer Equip.-Hardware(Post Mar. 19/07) | E43: 0 | F43: =IF(D43=0,'App.2-CE_DepExp_Yr4'!K43,+'App.2-CE_DepExp_Yr4'!K43+((C43*0.5)/D43)) -> 0 | H43: 0 | I43: 0 | K43: =IF(ISERROR(+I43+'App.2-CE_DepExp_Yr4'!K43-J43), 0, +'App.2-CE_DepExp_Yr4'!K43-J43) -> 0
A44: 1930 | B44: Transportation Equipment | E44: 0 | F44: =IF(D44=0,'App.2-CE_DepExp_Yr4'!K44,+'App.2-CE_DepExp_Yr4'!K44+((C44*0.5)/D44)) -> 0 | H44: 0 | I44: 0 | K44: =IF(ISERROR(+I44+'App.2-CE_DepExp_Yr4'!K44-J44), 0, +'App.2-CE_DepExp_Yr4'!K44-J44) -> 0
A45: 1935 | B45: Stores Equipment | E45: 0 | F45: =IF(D45=0,'App.2-CE_DepExp_Yr4'!K45,+'App.2-CE_DepExp_Yr4'!K45+((C45*0.5)/D45)) -> 0 | H45: 0 | I45: 0 | K45: =IF(ISERROR(+I45+'App.2-CE_DepExp_Yr4'!K45-J45), 0, +'App.2-CE_DepExp_Yr4'!K45-J45) -> 0
A46: 1940 | B46: Tools, Shop & Garage Equipment | E46: 0 | F46: =IF(D46=0,'App.2-CE_DepExp_Yr4'!K46,+'App.2-CE_DepExp_Yr4'!K46+((C46*0.5)/D46)) -> 0 | H46: 0 | I46: 0 | K46: =IF(ISERROR(+I46+'App.2-CE_DepExp_Yr4'!K46-J46), 0, +'App.2-CE_DepExp_Yr4'!K46-J46) -> 0
A47: 1945 | B47: Measurement & Testing Equipment | E47: 0 | F47: =IF(D47=0,'App.2-CE_DepExp_Yr4'!K47,+'App.2-CE_DepExp_Yr4'!K47+((C47*0.5)/D47)) -> 0 | H47: 0 | I47: 0 | K47: =IF(ISERROR(+I47+'App.2-CE_DepExp_Yr4'!K47-J47), 0, +'App.2-CE_DepExp_Yr4'!K47-J47) -> 0
A48: 1950 | B48: Power Operated Equipment | E48: 0 | F48: =IF(D48=0,'App.2-CE_DepExp_Yr4'!K48,+'App.2-CE_DepExp_Yr4'!K48+((C48*0.5)/D48)) -> 0 | H48: 0 | I48: 0 | K48: =IF(ISERROR(+I48+'App.2-CE_DepExp_Yr4'!K48-J48), 0, +'App.2-CE_DepExp_Yr4'!K48-J48) -> 0
A49: 1955 | B49: Communications Equipment | E49: 0 | F49: =IF(D49=0,'App.2-CE_DepExp_Yr4'!K49,+'App.2-CE_DepExp_Yr4'!K49+((C49*0.5)/D49)) -> 0 | H49: 0 | I49: 0 | K49: =IF(ISERROR(+I49+'App.2-CE_DepExp_Yr4'!K49-J49), 0, +'App.2-CE_DepExp_Yr4'!K49-J49) -> 0
A50: 1955 | B50: Communication Equipment (Smart Meters) | E50: 0 | F50: =IF(D50=0,'App.2-CE_DepExp_Yr4'!K50,+'App.2-CE_DepExp_Yr4'!K50+((C50*0.5)/D50)) -> 0 | H50: 0 | I50: 0 | K50: =IF(ISERROR(+I50+'App.2-CE_DepExp_Yr4'!K50-J50), 0, +'App.2-CE_DepExp_Yr4'!K50-J50) -> 0
A51: 1960 | B51: Miscellaneous Equipment | E51: 0 | F51: =IF(D51=0,'App.2-CE_DepExp_Yr4'!K51,+'App.2-CE_DepExp_Yr4'!K51+((C51*0.5)/D51)) -> 0 | H51: 0 | I51: 0 | K51: =IF(ISERROR(+I51+'App.2-CE_DepExp_Yr4'!K51-J51), 0, +'App.2-CE_DepExp_Yr4'!K51-J51) -> 0
A52: 1970 | B52: Load Management Controls Customer Premises | E52: 0 | F52: =IF(D52=0,'App.2-CE_DepExp_Yr4'!K52,+'App.2-CE_DepExp_Yr4'!K52+((C52*0.5)/D52)) -> 0 | H52: 0 | I52: 0 | K52: =IF(ISERROR(+I52+'App.2-CE_DepExp_Yr4'!K52-J52), 0, +'App.2-CE_DepExp_Yr4'!K52-J52) -> 0
A53: 1975 | B53: Load Management Controls Utility Premises | E53: 0 | F53: =IF(D53=0,'App.2-CE_DepExp_Yr4'!K53,+'App.2-CE_DepExp_Yr4'!K53+((C53*0.5)/D53)) -> 0 | H53: 0 | I53: 0 | K53: =IF(ISERROR(+I53+'App.2-CE_DepExp_Yr4'!K53-J53), 0, +'App.2-CE_DepExp_Yr4'!K53-J53) -> 0
A54: 1980 | B54: System Supervisor Equipment | E54: 0 | F54: =IF(D54=0,'App.2-CE_DepExp_Yr4'!K54,+'App.2-CE_DepExp_Yr4'!K54+((C54*0.5)/D54)) -> 0 | H54: 0 | I54: 0 | K54: =IF(ISERROR(+I54+'App.2-CE_DepExp_Yr4'!K54-J54), 0, +'App.2-CE_DepExp_Yr4'!K54-J54) -> 0
A55: 1985 | B55: Miscellaneous Fixed Assets | E55: 0 | F55: =IF(D55=0,'App.2-CE_DepExp_Yr4'!K55,+'App.2-CE_DepExp_Yr4'!K55+((C55*0.5)/D55)) -> 0 | H55: 0 | I55: 0 | K55: =IF(ISERROR(+I55+'App.2-CE_DepExp_Yr4'!K55-J55), 0, +'App.2-CE_DepExp_Yr4'!K55-J55) -> 0
A56: 1990 | B56: Other Tangible Property | E56: 0 | F56: =IF(D56=0,'App.2-CE_DepExp_Yr4'!K56,+'App.2-CE_DepExp_Yr4'!K56+((C56*0.5)/D56)) -> 0 | H56: 0 | I56: 0 | K56: =IF(ISERROR(+I56+'App.2-CE_DepExp_Yr4'!K56-J56), 0, +'App.2-CE_DepExp_Yr4'!K56-J56) -> 0
A57: 1995 | B57: Contributions & Grants | E57: 0 | F57: =IF(D57=0,'App.2-CE_DepExp_Yr4'!K57,+'App.2-CE_DepExp_Yr4'!K57+((C57*0.5)/D57)) -> 0 | H57: 0 | I57: 0 | K57: =IF(ISERROR(+I57+'App.2-CE_DepExp_Yr4'!K57-J57), 0, +'App.2-CE_DepExp_Yr4'!K57-J57) -> 0
B58: Total | C58: =SUM(C20:C57) -> 0 | F58: =SUM(F20:F57) -> 0 | G58: =SUM(G20:G57) -> 0 | H58: =SUM(H20:H57) -> 0 | I58: =SUM(I20:I57) -> 0 | J58: 0 | K58: 0
B59: Depreciation exp. adj. from gain or loss on the retirement of assets (pool of like assets)
B60: Total Depreciation Expense | F60: =SUM(F58:F59) -> 0
A61: Notes:
A62: 1 | B62: Board policy of the "half-year" rule - the applicant must ensure that additions in the year attract a half-year depreciation expense in the first year. Deviations from this standard practice must be supported in the application.
A63: 2 | B63: The applicant must provide an explanation of material variances in evidence.
A64: 3 | B64: This column refers to the calculated full year depreciation but excludes the depreciation expense on assets fully depreciated during the year. This column is used for the purpose of calculating depreciation expense in the following year on the next worksheet.
A66: General: | B66: Applicants must provide a breakdown of depreciation and amortization expense in the above format for all relevant accounts. Asset Retirement Obligations (AROs), depreciation and accretion expense should be disclosed separately consistent with the Notes of historical Audited Financial Statements.

Sheet App.2-CG_DepExp_Yr6
J1: File Number: | K1: =EBNUMBER -> EB-2017-0048
J2: Exhibit:
J3: Tab:
J4: Schedule:
J5: Page:
J7: Date:
A9: Appendix 2-CG
A10: Depreciation and Amortization Expense
A11: MIFRS (Year 6)
A13: Select the set of appendices that apply | J13: Year Reflected in Schedule Below | K13: Accounting Standard
A14: 2012 Set of Appendices (2-CA to 2-CG) | C14: Assumes the applicant made capitalization and depreciation expense accounting policy changes under CGAAP effective January 1, 2012 and has adopted IFRS for financial reporting purposes effective January 1, 2015. Assumes that the applicant is reflecting these changes in a rebasing application for the first time. | J14: 2017 | K14: MIFRS
A15: N/A | B15: 2013 Set of Appendices | C15: Not applicable as the test year depreciation is already calculated in Appendix 2-CF. Note that this appendix is not to be used even though depreciation expense calculations will flow through from previous years to this appendix. | J15: N/A | K15: N/A
A18: Account | B18: Description | C18: Additions | D18: Years (new additions only) | E18: Depreciation Rate on New Additions | F18: Current Depreciation Expense1 | G18: Depreciation Expense per Appendix 2-BA Fixed Assets, Column J (l) | H18: Variance 2
C19: (d) | D19: (f) | E19: (g) = 1 / (f) | F19: (h)= Prior Full Year Depreciation + ((d)*0.5)/(f) | H19: (m) = (h) - (l)
A20: 1611 | B20: Computer Software (Formally known as Account 1925) | E20: =IF(D20=0,0,1/D20) -> 0 | F20: =IF(D20=0,'App.2-CF_DepExp_Yr5'!K20,+'App.2-CF_DepExp_Yr5'!K20+((C20*0.5)/D20)) -> 0 | H20: =IF(ISERROR(+F20-G20), 0, +F20-G20) -> 0
A21: 1612 | B21: Land Rights (Formally known as Account 1906) | E21: 0 | F21: =IF(D21=0,'App.2-CF_DepExp_Yr5'!K21,+'App.2-CF_DepExp_Yr5'!K21+((C21*0.5)/D21)) -> 0 | H21: 0
A22: 1805 | B22: Land | E22: 0 | F22: =IF(D22=0,'App.2-CF_DepExp_Yr5'!K22,+'App.2-CF_DepExp_Yr5'!K22+((C22*0.5)/D22)) -> 0 | H22: 0
A23: 1808 | B23: Buildings | E23: 0 | F23: =IF(D23=0,'App.2-CF_DepExp_Yr5'!K23,+'App.2-CF_DepExp_Yr5'!K23+((C23*0.5)/D23)) -> 0 | H23: 0
A24: 1810 | B24: Leasehold Improvements | E24: 0 | F24: =IF(D24=0,'App.2-CF_DepExp_Yr5'!K24,+'App.2-CF_DepExp_Yr5'!K24+((C24*0.5)/D24)) -> 0 | H24: 0
A25: 1815 | B25: Transformer Station Equipment >50 kV | E25: 0 | F25: =IF(D25=0,'App.2-CF_DepExp_Yr5'!K25,+'App.2-CF_DepExp_Yr5'!K25+((C25*0.5)/D25)) -> 0 | H25: 0
A26: 1820 | B26: Distribution Station Equipment <50 kV | E26: 0 | F26: =IF(D26=0,'App.2-CF_DepExp_Yr5'!K26,+'App.2-CF_DepExp_Yr5'!K26+((C26*0.5)/D26)) -> 0 | H26: 0
A27: 1825 | B27: Storage Battery Equipment | E27: 0 | F27: =IF(D27=0,'App.2-CF_DepExp_Yr5'!K27,+'App.2-CF_DepExp_Yr5'!K27+((C27*0.5)/D27)) -> 0 | H27: 0
A28: 1830 | B28: Poles, Towers & Fixtures | E28: 0 | F28: =IF(D28=0,'App.2-CF_DepExp_Yr5'!K28,+'App.2-CF_DepExp_Yr5'!K28+((C28*0.5)/D28)) -> 0 | H28: 0
A29: 1835 | B29: Overhead Conductors & Devices | E29: 0 | F29: =IF(D29=0,'App.2-CF_DepExp_Yr5'!K29,+'App.2-CF_DepExp_Yr5'!K29+((C29*0.5)/D29)) -> 0 | H29: 0
A30: 1840 | B30: Underground Conduit | E30: 0 | F30: =IF(D30=0,'App.2-CF_DepExp_Yr5'!K30,+'App.2-CF_DepExp_Yr5'!K30+((C30*0.5)/D30)) -> 0 | H30: 0
A31: 1845 | B31: Underground Conductors & Devices | E31: 0 | F31: =IF(D31=0,'App.2-CF_DepExp_Yr5'!K31,+'App.2-CF_DepExp_Yr5'!K31+((C31*0.5)/D31)) -> 0 | H31: 0
A32: 1850 | B32: Line Transformers | E32: 0 | F32: =IF(D32=0,'App.2-CF_DepExp_Yr5'!K32,+'App.2-CF_DepExp_Yr5'!K32+((C32*0.5)/D32)) -> 0 | H32: 0
A33: 1855 | B33: Services (Overhead & Underground) | E33: 0 | F33: =IF(D33=0,'App.2-CF_DepExp_Yr5'!K33,+'App.2-CF_DepExp_Yr5'!K33+((C33*0.5)/D33)) -> 0 | H33: 0
A34: 1860 | B34: Meters | E34: 0 | F34: =IF(D34=0,'App.2-CF_DepExp_Yr5'!K34,+'App.2-CF_DepExp_Yr5'!K34+((C34*0.5)/D34)) -> 0 | H34: 0
A35: 1860 | B35: Meters (Smart Meters) | E35: 0 | F35: =IF(D35=0,'App.2-CF_DepExp_Yr5'!K35,+'App.2-CF_DepExp_Yr5'!K35+((C35*0.5)/D35)) -> 0 | H35: 0
A36: 1905 | B36: Land | E36: 0 | F36: =IF(D36=0,'App.2-CF_DepExp_Yr5'!K36,+'App.2-CF_DepExp_Yr5'!K36+((C36*0.5)/D36)) -> 0 | H36: 0
A37: 1908 | B37: Buildings & Fixtures | E37: 0 | F37: =IF(D37=0,'App.2-CF_DepExp_Yr5'!K37,+'App.2-CF_DepExp_Yr5'!K37+((C37*0.5)/D37)) -> 0 | H37: 0
A38: 1910 | B38: Leasehold Improvements | E38: 0 | F38: =IF(D38=0,'App.2-CF_DepExp_Yr5'!K38,+'App.2-CF_DepExp_Yr5'!K38+((C38*0.5)/D38)) -> 0 | H38: 0
A39: 1915 | B39: Office Furniture & Equipment (10 years) | E39: 0 | F39: =IF(D39=0,'App.2-CF_DepExp_Yr5'!K39,+'App.2-CF_DepExp_Yr5'!K39+((C39*0.5)/D39)) -> 0 | H39: 0
A40: 1915 | B40: Office Furniture & Equipment (5 years) | E40: 0 | F40: =IF(D40=0,'App.2-CF_DepExp_Yr5'!K40,+'App.2-CF_DepExp_Yr5'!K40+((C40*0.5)/D40)) -> 0 | H40: 0
A41: 1920 | B41: Computer Equipment - Hardware | E41: 0 | F41: =IF(D41=0,'App.2-CF_DepExp_Yr5'!K41,+'App.2-CF_DepExp_Yr5'!K41+((C41*0.5)/D41)) -> 0 | H41: 0
A42: 1920 | B42: Computer Equip.-Hardware(Post Mar. 22/04) | E42: 0 | F42: =IF(D42=0,'App.2-CF_DepExp_Yr5'!K42,+'App.2-CF_DepExp_Yr5'!K42+((C42*0.5)/D42)) -> 0 | H42: 0
A43: 1920 | B43: Computer Equip.-Hardware(Post Mar. 19/07) | E43: 0 | F43: =IF(D43=0,'App.2-CF_DepExp_Yr5'!K43,+'App.2-CF_DepExp_Yr5'!K43+((C43*0.5)/D43)) -> 0 | H43: 0
A44: 1930 | B44: Transportation Equipment | E44: 0 | F44: =IF(D44=0,'App.2-CF_DepExp_Yr5'!K44,+'App.2-CF_DepExp_Yr5'!K44+((C44*0.5)/D44)) -> 0 | H44: 0
A45: 1935 | B45: Stores Equipment | E45: 0 | F45: =IF(D45=0,'App.2-CF_DepExp_Yr5'!K45,+'App.2-CF_DepExp_Yr5'!K45+((C45*0.5)/D45)) -> 0 | H45: 0
A46: 1940 | B46: Tools, Shop & Garage Equipment | E46: 0 | F46: =IF(D46=0,'App.2-CF_DepExp_Yr5'!K46,+'App.2-CF_DepExp_Yr5'!K46+((C46*0.5)/D46)) -> 0 | H46: 0
A47: 1945 | B47: Measurement & Testing Equipment | E47: 0 | F47: =IF(D47=0,'App.2-CF_DepExp_Yr5'!K47,+'App.2-CF_DepExp_Yr5'!K47+((C47*0.5)/D47)) -> 0 | H47: 0
A48: 1950 | B48: Power Operated Equipment | E48: 0 | F48: =IF(D48=0,'App.2-CF_DepExp_Yr5'!K48,+'App.2-CF_DepExp_Yr5'!K48+((C48*0.5)/D48)) -> 0 | H48: 0
A49: 1955 | B49: Communications Equipment | E49: 0 | F49: =IF(D49=0,'App.2-CF_DepExp_Yr5'!K49,+'App.2-CF_DepExp_Yr5'!K49+((C49*0.5)/D49)) -> 0 | H49: 0
A50: 1955 | B50: Communication Equipment (Smart Meters) | E50: 0 | F50: =IF(D50=0,'App.2-CF_DepExp_Yr5'!K50,+'App.2-CF_DepExp_Yr5'!K50+((C50*0.5)/D50)) -> 0 | H50: 0
A51: 1960 | B51: Miscellaneous Equipment | E51: 0 | F51: =IF(D51=0,'App.2-CF_DepExp_Yr5'!K51,+'App.2-CF_DepExp_Yr5'!K51+((C51*0.5)/D51)) -> 0 | H51: 0
A52: 1970 | B52: Load Management Controls Customer Premises | E52: 0 | F52: =IF(D52=0,'App.2-CF_DepExp_Yr5'!K52,+'App.2-CF_DepExp_Yr5'!K52+((C52*0.5)/D52)) -> 0 | H52: 0
A53: 1975 | B53: Load Management Controls Utility Premises | E53: 0 | F53: =IF(D53=0,'App.2-CF_DepExp_Yr5'!K53,+'App.2-CF_DepExp_Yr5'!K53+((C53*0.5)/D53)) -> 0 | H53: 0
A54: 1980 | B54: System Supervisor Equipment | E54: 0 | F54: =IF(D54=0,'App.2-CF_DepExp_Yr5'!K54,+'App.2-CF_DepExp_Yr5'!K54+((C54*0.5)/D54)) -> 0 | H54: 0
A55: 1985 | B55: Miscellaneous Fixed Assets | E55: 0 | F55: =IF(D55=0,'App.2-CF_DepExp_Yr5'!K55,+'App.2-CF_DepExp_Yr5'!K55+((C55*0.5)/D55)) -> 0 | H55: 0
A56: 1990 | B56: Other Tangible Property | E56: 0 | F56: =IF(D56=0,'App.2-CF_DepExp_Yr5'!K56,+'App.2-CF_DepExp_Yr5'!K56+((C56*0.5)/D56)) -> 0 | H56: 0
A57: 1995 | B57: Contributions & Grants | E57: 0 | F57: =IF(D57=0,'App.2-CF_DepExp_Yr5'!K57,+'App.2-CF_DepExp_Yr5'!K57+((C57*0.5)/D57)) -> 0 | H57: 0
B58: Total | C58: =SUM(C20:C57) -> 0 | F58: =SUM(F20:F57) -> 0 | G58: =SUM(G20:G57) -> 0 | H58: =SUM(H20:H57) -> 0
B59: Depreciation exp. adj. from gain or loss on the retirement of assets (pool of like assets)
B60: Total Depreciation Expense | F60: =SUM(F58:F59) -> 0
A61: Notes:
A62: 1 | B62: Board policy of the "half-year" rule - the applicant must ensure that additions in the year attract a half-year depreciation expense in the first year. Deviations from this standard practice must be supported in the application.
A63: 2 | B63: The applicant must provide an explanation of material variances in evidence.
A66: General: | B66: Applicants must provide a breakdown of depreciation and amortization expense in the above format for all relevant accounts. Asset Retirement Obligations (AROs), depreciation and accretion expense should be disclosed separately consistent with the Notes of historical Audited Financial Statements.

Sheet App.2-CH_DepExp
K1: File Number: | L1: =EBNUMBER -> EB-2017-0048
K2: Exhibit:
K3: Tab:
K4: Schedule:
K5: Page:
K7: Date:
A9: Appendix 2-CH1
A10: Depreciation and Amortization Expense
C11: Year | D11: 2014 | E11: IFRS | F11: (same as NewCGAAP)
A12: Account | B12: Description | C12: Opening Regulatory Gross PP&E as at Jan 1, 2014 | D12: Less Fully Depreciated | E12: Net for Depreciation | F12: Additions | G12: Total for Depreciation | H12: Years | I12: Depreciation Rate | J12: 2014 Depreciation Expense | K12: 2014 Depreciation Expense per Appendix 2-B Fixed Assets, Column K (l) | L12: Variance 2
C13: (a) | D13: (b) | E13: (c) | F13: (d) | G13: (e) = (c) + ½ x (d) 1 | H13: (f) | I13: (g) = 1 / (f) | J13: (h) = (e) / (f) | L13: (m) = (h) - (l)
A14: 1611 | B14: Computer Software (Formally known as Account 1925) | C14: 52975.19 | D14: -38887.94 | E14: =C14-D14 -> 91863.13 | F14: 13783.75 | G14: =E14+0.5*F14 -> 98755.005 | H14: 5 | I14: =IF(H14=0,"",1/H14) -> 0.2 | J14: =IF(H14=0,0,G14/H14) -> 19751.001 | K14: 19751 | L14: =IF(ISERROR(+J14-K14), "", +J14-K14) -> 0.001
A15: 1612 | B15: Land Rights (Formally known as Account 1906) | C15: 5980 | E15: =C15-D15 -> 5980 | G15: =E15+0.5*F15 -> 5980 | H15: 0 | J15: 0 | K15: 0 | L15: =IF(ISERROR(+J15-K15), "", +J15-K15) -> 0
A16: 1612 | B16: Land Rights (Formally known as Account 1906) | E16: 0 | G16: 0 | H16: 70 | I16: 0.01428571429 | J16: 0 | L16: 0
A17: 1805 | B17: Land | C17: 20000 | E17: 20000 | G17: 20000 | H17: 0 | J17: 0 | L17: 0
A18: 1808 | B18: Buildings - Equipment | E18: 0 | G18: 0 | H18: 10 | I18: 0.1 | J18: 0 | L18: 0
A19: 1808 | B19: Buildings - Equipment | E19: 0 | G19: 0 | H19: 20 | I19: 0.05 | J19: 0
A20: 1808 | B20: Buildings - Major Repairs | E20: 0 | G20: 0 | H20: 25 | I20: 0.04 | J20: 0 | L20: 0
A21: 1808 | B21: Buildings - Major Repairs | E21: 0 | G21: 0 | H21: 30 | I21: 0.03333333333 | J21: 0 | L21: 0
A22: 1808 | B22: Buildings - Brick, Stone, Concrete and Steel | E22: 0 | G22: 0 | H22: 50 | I22: 0.02 | J22: 0 | L22: 0
A23: 1810 | B23: Leasehold Improvements | E23: 0 | G23: 0 | J23: 0 | L23: 0
A24: 1815 | B24: Transformer Station Equipment >50 kV | C24: 374745 | D24: -67650 | E24: 442395 | G24: 442395 | H24: 45 | I24: 0.02222222222 | J24: 9831 | K24: 9831 | L24: 0
A25: 1820 | B25: Distribution Station Equipment <50 kV | C25: 932300.33 | D25: -303444.67 | E25: 1235745 | F25: 42750 | G25: 1257120 | H25: 45 | I25: 0.02222222222 | J25: 27936 | K25: 27936 | L25: 0
A26: 1825 | B26: Storage Battery Equipment | E26: 0 | G26: 0 | J26: 0 | K26: 0 | L26: 0
A27: 1830 | B27: Poles, Towers & Fixtures | C27: 399347.46 | D27: -449947.26 | E27: 849294.72 | F27: 24310.27 | G27: 861449.855 | H27: 45 | I27: 0.02222222222 | J27: 19143.33011 | K27: 19143.33 | L27: 0.0001111111087
A28: 1835 | B28: Overhead Conductors & Devices | C28: 205937.23 | D28: -400232.13 | E28: 606169.36 | F28: 31221.29 | G28: 621780.005 | H28: 60 | I28: 0.01666666667 | J28: 10363.00008 | K28: 10363 | L28: 8.333333608e-05
A29: 1840 | B29: Underground Conduit | C29: 39269 | D29: -98131 | E29: 137400 | G29: 137400 | H29: 50 | I29: 0.02 | J29: 2748 | K29: 2748 | L29: 0
A30: 1845 | B30: Underground Conductors & Devices | C30: 135066.97 | D30: -164273.03 | E30: 299340 | G30: 299340 | H30: 30 | I30: 0.03333333333 | J30: 9978 | K30: 9978 | L30: 0
A31: 1850 | B31: Line Transformers | C31: 201804.35 | D31: -195555.65 | E31: 397360 | G31: 397360 | H31: 40 | I31: 0.025 | J31: 9934 | K31: 9934 | L31: 0
A32: 1855 | B32: Services (Overhead & Underground) | C32: 23769.11 | D32: -9583.33 | E32: 33352.44 | F32: 1095.13 | G32: 33900.005 | H32: 30 | I32: 0.03333333333 | J32: 1130.000167 | K32: 1130 | L32: 0.0001666666665
A33: 1860 | B33: Meters | C33: 61500.25 | D33: 204978 | E33: -143477.75 | F33: -54357 | G33: -170656.25 | H33: 25 | I33: 0.04 | J33: -6826.25 | K33: -6826.25 | L33: 0
A34: 1860 | B34: Meters (Smart Meters) | C34: 487652.95 | D34: -144839.17 | E34: 632492.12 | F34: 9665.67 | G34: 637324.955 | H34: 15 | I34: 0.06666666667 | J34: 42488.33033 | K34: 42488.33 | L34: 0.0003333333298
A35: 1905 | B35: Land | C35: 28299.7 | E35: 28299.7 | G35: 28299.7 | H35: 0 | J35: 0 | L35: 0
A36: 1908 | B36: Buildings & Fixtures - Equipment | C36: 185427 | D36: -82440 | E36: 267867 | F36: 13386 | G36: 274560 | H36: 15 | I36: 0.06666666667 | J36: 18304 | K36: 18304 | L36: 0
A37: 1908 | B37: Buildings & Fixtures - Driveways | E37: 0 | G37: 0 | H37: 20 | I37: 0.05 | J37: 0 | L37: 0
A38: 1908 | B38: Buildings & Fixtures - Major Repairs | C38: 130259 | D38: -51316 | E38: 181575 | G38: 181575 | H38: 25 | I38: 0.04 | J38: 7263 | K38: 7263 | L38: 0
A39: 1908 | B39: Buildings & Fixtures - Brick Store etc | C39: 293749 | D39: -119151 | E39: 412900 | G39: 412900 | H39: 50 | I39: 0.02 | J39: 8258 | K39: 8258 | L39: 0
A40: 1910 | B40: Leasehold Improvements | E40: 0 | G40: 0 | J40: 0 | L40: 0
A41: 1915 | B41: Office Furniture & Equipment (10 years) | C41: 16027.36 | D41: -13404.1 | E41: 29431.46 | F41: 457.09 | G41: 29660.005 | H41: 10 | I41: 0.1 | J41: 2966.0005 | K41: 2966 | L41: 0.0004999999996
A42: 1915 | B42: Office Furniture & Equipment (5 years) | E42: 0 | G42: 0 | J42: 0 | K42: 0 | L42: 0
A43: 1920 | B43: Computer Equipment - Hardware | E43: 0 | G43: 0 | H43: 5 | I43: 0.2 | J43: 0 | K43: 0 | L43: 0
A44: 1920 | B44: Computer Equip.-Hardware(Post Mar. 22/04) | E44: 0 | G44: 0 | J44: 0 | L44: 0
A45: 1920 | B45: Computer Equip.-Hardware(Post Mar. 19/07) | C45: 7064.81 | D45: -6248.41 | E45: 13313.22 | F45: 1403.56 | G45: 14015 | H45: 5 | I45: 0.2 | J45: 2803 | K45: 2803 | L45: -4.547473509e-13
A46: 1930 | B46: Transportation Equipment - under 3 Tons | E46: 0 | G46: 0 | H46: 5 | I46: 0.2 | J46: 0 | L46: 0
A47: 1930 | B47: Transportation Equipment - 3 Tons & Over | C47: 6392 | D47: -14056 | E47: 20448 | G47: 20448 | H47: 8 | J47: 2556 | K47: 2556 | L47: 0
A48: 1935 | B48: Stores Equipment | E48: 0 | G48: 0 | H48: 10 | I48: 0.1 | J48: 0 | K48: 0 | L48: 0
A49: 1940 | B49: Tools, Shop & Garage Equipment | C49: 13561.97 | D49: -9228.03 | E49: 22790 | G49: 22790 | H49: 10 | I49: 0.1 | J49: 2279 | K49: 2279 | L49: 0
A50: 1945 | B50: Measurement & Testing Equipment | E50: 0 | G50: 0 | H50: 10 | I50: 0.1 | J50: 0 | K50: 0 | L50: 0
A51: 1950 | B51: Power Operated Equipment | C51: 1551.99 | D51: -104.01 | E51: 1656 | G51: 1656 | H51: 8 | I51: 0.125 | J51: 207 | K51: 207 | L51: -2.842170943e-14
A52: 1955 | B52: Communications Equipment | E52: 0 | G52: 0 | J52: 0 | L52: 0
A53: 1955 | B53: Communication Equipment (Smart Meters) | E53: 0 | G53: 0 | J53: 0 | L53: 0
A54: 1960 | B54: Miscellaneous Equipment | E54: 0 | G54: 0 | J54: 0 | L54: 0
A55: 1970 | B55: Load Management Controls Customer Premises | E55: =C55-D55 -> 0 | G55: =E55+0.5*F55 -> 0 | I55: =IF(H55=0,"",1/H55) ->  | J55: =IF(H55=0,0,G55/H55) -> 0 | L55: =IF(ISERROR(+J55-K55), "", +J55-K55) -> 0
A56: 1975 | B56: Load Management Controls Utility Premises | E56: =C56-D56 -> 0 | G56: =E56+0.5*F56 -> 0 | I56: =IF(H56=0,"",1/H56) ->  | J56: =IF(H56=0,0,G56/H56) -> 0 | L56: =IF(ISERROR(+J56-K56), "", +J56-K56) -> 0
A57: 1980 | B57: System Supervisor Equipment | E57: 0 | G57: 0 | H57: 15 | I57: 0.06666666667 | J57: 0 | L57: 0
A58: 1985 | B58: Miscellaneous Fixed Assets | E58: 0 | G58: 0 | J58: 0 | L58: 0
A59: 1990 | B59: Other Tangible Property | E59: =C59-D59 -> 0 | G59: =E59+0.5*F59 -> 0 | I59: =IF(H59=0,"",1/H59) ->  | J59: =IF(H59=0,0,G59/H59) -> 0 | L59: =IF(ISERROR(+J59-K59), "", +J59-K59) -> 0
A60: 1995 | B60: Contributions & Grants | E60: 0 | G60: 0 | H60: 39.75 | I60: 0.0251572327 | J60: 0 | K60: 0 | L60: 0
A61: etc. | B61: Construction in progress | C61: 804777.26 | E61: =C61-D61 -> 804777.26 | F61: 707031.39 | G61: =E61+0.5*F61 -> 1158292.955 | I61: =IF(H61=0,"",1/H61) ->  | J61: =IF(H61=0,0,G61/H61) -> 0 | L61: =IF(ISERROR(+J61-K61), "", +J61-K61) -> 0
A62: etc. | C62: -226429.76 | E62: =C62-D62 -> -226429.76 | G62: =E62+0.5*F62 -> -226429.76 | I62: =IF(H62=0,"",1/H62) ->  | J62: =IF(H62=0,0,G62/H62) -> 0 | K62: -6402 | L62: =IF(ISERROR(+J62-K62), "", +J62-K62) -> 6402
E63: 0 | G63: 0 | J63: 0 | L63: 0
B64: Total | C64: =SUM(C14:C63) -> 4201028.17 | D64: =SUM(D14:D63) -> -1963513.73 | E64: =SUM(E14:E63) -> 6164541.9 | F64: =SUM(F14:F63) -> 790747.15 | G64: =SUM(G14:G63) -> 6559915.475 | J64: =SUM(J14:J63) -> 191112.4122 | K64: =SUM(K14:K63) -> 184710.41 | L64: =SUM(L14:L63) -> 6402.002194
H65: 24
C68: Year | D68: 2015 | E68: IFRS
A70: Account | B70: Description | C70: Opening Regulatory Gross PP&E as at Jan 1, 2015 | D70: Less Fully Depreciated | E70: Net for Depreciation | F70: Additions | G70: Total for Depreciation | H70: Years | I70: Depreciation Rate | J70: 2015 Depreciation Expense | K70: 2015 Depreciation Expense per Appendix 2-B Fixed Assets, Column K (l) | L70: Variance 2
C71: (a) | D71: (b) | E71: (c) | F71: (d) | G71: (e) = (c) + ½ x (d) 1 | H71: (f) | I71: (g) = 1 / (f) | J71: (h) = (e) / (f) | L71: (m) = (h) - (l)
A72: 1611 | B72: Computer Software (Formally known as Account 1925) | C72: 66758.94 | D72: -29644.66 | E72: =C72-D72 -> 96403.6 | F72: 5812.8 | G72: =E72+0.5*F72 -> 99310 | H72: 5 | I72: =IF(H72=0,"",1/H72) -> 0.2 | J72: =IF(H72=0,0,G72/H72) -> 19862 | K72: 19862 | L72: =IF(ISERROR(+J72-K72), "", +J72-K72) -> 0
A73: 1612 | B73: Land Rights (Formally known as Account 1906) | C73: 5980 | E73: =C73-D73 -> 5980 | G73: =E73+0.5*F73 -> 5980 | H73: 0 | J73: 0 | K73: 0 | L73: =IF(ISERROR(+J73-K73), "", +J73-K73) -> 0
A74: 1612 | B74: Land Rights (Formally known as Account 1906) | E74: 0 | G74: 0 | H74: 70 | I74: 0.01428571429 | J74: 0 | L74: 0
A75: 1805 | B75: Land | C75: 20000 | E75: 20000 | G75: 20000 | H75: 0 | J75: 0 | L75: 0
A76: 1808 | B76: Buildings - Equipment | E76: 0 | G76: 0 | H76: 10 | I76: 0.1 | J76: 0 | L76: 0
A77: 1808 | B77: Buildings - Equipment | E77: 0 | G77: =E77+0.5*F77 -> 0 | H77: 15 | I77: 0.06666666667 | J77: 0 | L77: 0
A78: 1808 | B78: Buildings - Equipment | E78: 0 | G78: =E78+0.5*F78 -> 0 | H78: 20 | I78: 0.05 | J78: 0 | L78: 0
A79: 1808 | B79: Buildings - Major Repairs | E79: 0 | G79: 0 | H79: 25 | I79: 0.04 | J79: 0 | L79: 0
A80: 1808 | B80: Buildings - Major Repairs | E80: 0 | G80: 0 | H80: 30 | I80: 0.03333333333 | J80: 0 | L80: 0
A81: 1808 | B81: Buildings - Brick, Stone, Concrete and Steel | E81: 0 | G81: 0 | H81: 50 | I81: 0.02 | J81: 0 | L81: 0
A82: 1810 | B82: Leasehold Improvements | E82: 0 | G82: 0 | H82: 0 | J82: 0 | L82: 0
A83: 1815 | B83: Transformer Station Equipment >50 kV | C83: 374745 | D83: -67306.55 | E83: 442051.55 | F83: 1946.9 | G83: 443025 | H83: 45 | I83: 0.02222222222 | J83: 9845 | K83: 9845 | L83: 0
A84: 1820 | B84: Distribution Station Equipment <50 kV | C84: 975050.33 | D84: -206170.67 | E84: 1181221 | F84: 320188 | G84: 1341315 | H84: 45 | I84: 0.02222222222 | J84: 29807 | K84: 29807 | L84: 0
A85: 1825 | B85: Storage Battery Equipment | E85: 0 | G85: 0 | H85: 0 | J85: 0 | L85: 0
A86: 1830 | B86: Poles, Towers & Fixtures | C86: 423657.73 | D86: -437244.69 | E86: 860902.42 | F86: 88559.57 | G86: 905182.205 | H86: 45 | I86: 0.02222222222 | J86: 20115.16011 | K86: 20115.16 | L86: 0.0001111111087
A87: 1835 | B87: Overhead Conductors & Devices | C87: 237158.52 | D87: -391037.85 | E87: 628196.37 | F87: 27607.26 | G87: 642000 | H87: 60 | I87: 0.01666666667 | J87: 10700 | K87: 10700 | L87: 0
A88: 1840 | B88: Underground Conduit | C88: 39269 | D88: -98131 | E88: 137400 | G88: 137400 | H88: 50 | I88: 0.02 | J88: 2748 | K88: 2748 | L88: 0
A89: 1845 | B89: Underground Conductors & Devices | C89: 135066.97 | D89: -156353.03 | E89: 291420 | G89: 291420 | H89: 30 | I89: 0.03333333333 | J89: 9714 | K89: 9714 | L89: 0
A90: 1850 | B90: Line Transformers | C90: 201804.35 | D90: -177160.65 | E90: 378965 | F90: 11110 | G90: 384520 | H90: 40 | I90: 0.025 | J90: 9613 | K90: 9613 | L90: 0
A91: 1855 | B91: Services (Overhead & Underground) | C91: 24864.24 | D91: -9482.4 | E91: 34346.64 | F91: 666.73 | G91: 34680.005 | H91: 30 | I91: 0.03333333333 | J91: 1156.000167 | K91: 1156 | L91: 0.0001666666665
A92: 1860 | B92: Meters | C92: 7143.25 | D92: -781.75 | E92: 7925 | G92: 7925 | H92: 25 | I92: 0.04 | J92: 317 | K92: 317 | L92: 0
A93: 1860 | B93: Meters (Smart Meters) | C93: 497318.62 | D93: -143570.74 | E93: 640889.36 | F93: =8016.18-8842.89 -> -826.71 | G93: 640476.005 | H93: 15 | I93: 0.06666666667 | J93: 42698.40033 | K93: 42698.4 | L93: 0.0003333333298
A94: 1905 | B94: Land | C94: 28299.7 | E94: 28299.7 | G94: 28299.7 | H94: 0 | J94: 0 | L94: 0
A95: 1908 | B95: Buildings & Fixtures - Equipment | C95: 198813 | D95: -82437 | E95: 281250 | G95: 281250 | H95: 15 | I95: 0.06666666667 | J95: 18750 | K95: 18750 | L95: 0
A96: 1908 | B96: Buildings & Fixtures - Equipment | E96: 0 | G96: 0 | H96: 15 | I96: 0.06666666667 | J96: 0 | L96: 0
A97: 1908 | B97: Buildings & Fixtures - Driveways | E97: 0 | G97: 0 | H97: 20 | I97: 0.05 | J97: 0 | L97: 0
A98: 1908 | B98: Buildings & Fixtures - Major Repairs | C98: 130259 | D98: -51316 | E98: 181575 | G98: 181575 | H98: 25 | I98: 0.04 | J98: 7263 | K98: 7263 | L98: 0
A99: 1908 | B99: Buildings & Fixtures - Brick Store etc | C99: 293749 | D99: -119151 | E99: 412900 | G99: 412900 | H99: 50 | I99: 0.02 | J99: 8258 | K99: 8258 | L99: 0
A100: 1910 | B100: Leasehold Improvements | E100: 0 | G100: 0 | J100: 0 | L100: 0
A101: 1915 | B101: Office Furniture & Equipment (10 years) | C101: 16484.45 | D101: -13838.33 | E101: 30322.78 | F101: 7254.44 | G101: 33950 | H101: 10 | I101: 0.1 | J101: 3395 | K101: 3395 | L101: 0
A102: 1915 | B102: Office Furniture & Equipment (5 years) | E102: 0 | G102: 0 | J102: 0 | L102: 0
A103: 1920 | B103: Computer Equipment - Hardware | E103: 0 | G103: 0 | H103: 5 | I103: 0.2 | J103: 0 | L103: 0
A104: 1920 | B104: Computer Equip.-Hardware(Post Mar. 22/04) | E104: 0 | G104: 0 | J104: 0 | L104: 0
A105: 1920 | B105: Computer Equip.-Hardware(Post Mar. 19/07) | C105: 8468.37 | D105: -2506.63 | E105: 10975 | G105: 10975 | H105: 5 | I105: 0.2 | J105: 2195 | K105: 2195 | L105: 0
A106: 1930 | B106: Transportation Equipment - under 3 Tons | E106: 0 | G106: 0 | H106: 5 | I106: 0.2 | J106: 0 | L106: 0
A107: 1930 | B107: Transportation Equipment - 3 Tons & Over | C107: 6392 | D107: -14056 | E107: 20448 | G107: 20448 | H107: 8 | I107: 0.125 | J107: 2556 | K107: 2556 | L107: 0
A108: 1935 | B108: Stores Equipment | E108: 0 | G108: 0 | H108: 10 | I108: 0.1 | J108: 0 | L108: 0
A109: 1940 | B109: Tools, Shop & Garage Equipment | C109: 13561.97 | D109: -9228.03 | E109: 22790 | G109: 22790 | H109: 10 | I109: 0.1 | J109: 2279 | K109: 2279 | L109: 0
A110: 1945 | B110: Measurement & Testing Equipment | E110: 0 | G110: 0 | H110: 10 | I110: 0.1 | J110: 0 | L110: 0
A111: 1950 | B111: Power Operated Equipment | C111: 1551.99 | D111: -104.01 | E111: 1656 | G111: 1656 | H111: 8 | I111: 0.125 | J111: 207 | K111: 207 | L111: 0
A112: 1955 | B112: Communications Equipment | E112: 0 | G112: 0 | J112: 0 | L112: 0
A113: 1955 | B113: Communication Equipment (Smart Meters) | E113: 0 | G113: 0 | J113: 0 | L113: 0
A114: 1960 | B114: Miscellaneous Equipment | E114: 0 | G114: 0 | J114: 0 | L114: 0
A115: 1970 | B115: Load Management Controls Customer Premises | E115: =C115-D115 -> 0 | G115: =E115+0.5*F115 -> 0 | I115: =IF(H115=0,"",1/H115) ->  | J115: =IF(H115=0,0,G115/H115) -> 0 | L115: =IF(ISERROR(+J115-K115), "", +J115-K115) -> 0
A116: 1975 | B116: Load Management Controls Utility Premises | E116: =C116-D116 -> 0 | G116: =E116+0.5*F116 -> 0 | I116: =IF(H116=0,"",1/H116) ->  | J116: =IF(H116=0,0,G116/H116) -> 0 | L116: =IF(ISERROR(+J116-K116), "", +J116-K116) -> 0
A117: 1980 | B117: System Supervisor Equipment | E117: 0 | G117: 0 | J117: 0 | L117: 0
A118: 1985 | B118: Miscellaneous Fixed Assets | E118: 0 | G118: 0 | J118: 0 | L118: 0
A119: 1990 | B119: Other Tangible Property | E119: =C119-D119 -> 0 | G119: =E119+0.5*F119 -> 0 | I119: =IF(H119=0,"",1/H119) ->  | J119: =IF(H119=0,0,G119/H119) -> 0 | L119: =IF(ISERROR(+J119-K119), "", +J119-K119) -> 0
A120: 1995 | B120: Contributions & Grants | E120: 0 | G120: 0 | J120: 0 | L120: 0
A121: 1609 | B121: Other Tangible Property | C121: 1511808.65 | E121: 1511808.65 | F121: 141543.88 | G121: 1582580.59 | J121: 0 | L121: 0
A122: etc. | B122: Construction in progress | C122: -226429.76 | E122: -226429.76 | F122: -93493.16 | G122: -273176.34 | H122: 41.6364 | I122: 0.02401744627 | J122: -6560.998069 | K122: -6561 | L122: 0.00193100268
A123: etc. | E123: 0 | G123: 0 | J123: 0 | L123: 0
E124: 0 | G124: 0 | J124: 0 | L124: 0
B125: Total | C125: =SUM(C72:C124) -> 4991775.32 | D125: =SUM(D72:D124) -> -2009520.99 | E125: =SUM(E72:E124) -> 7001296.31 | F125: =SUM(F72:F124) -> 510369.71 | G125: =SUM(G72:G124) -> 7256481.165 | J125: =SUM(J72:J124) -> 194917.5625 | K125: =SUM(K72:K124) -> 194917.56 | L125: =SUM(L72:L124) -> 0.002542113785
C129: Year | D129: 2016 | E129: IFRS
A131: Account | B131: Description | C131: Opening Regulatory Gross PP&E as at Jan 1, 2016 | D131: Less Fully Depreciated | E131: Net for Depreciation | F131: Additions | G131: Total for Depreciation | H131: Years | I131: Depreciation Rate | J131: 2016 Depreciation Expense | K131: 2016 Depreciation Expense per Appendix 2-B Fixed Assets, Column K (l) | L131: Variance 2
C132: (a) | D132: (b) | E132: (c) | F132: (d) | G132: (e) = (c) + ½ x (d) 1 | H132: (f) | I132: (g) = 1 / (f) | J132: (h) = (e) / (f) | L132: (m) = (h) - (l)
A133: 1611 | B133: Computer Software (Formally known as Account 1925) | C133: 72571.74 | D133: 3937.54 | E133: =C133-D133 -> 68634.2 | F133: 3999 | G133: =E133+0.5*F133 -> 70633.7 | H133: 5 | I133: =IF(H133=0,"",1/H133) -> 0.2 | J133: =IF(H133=0,0,G133/H133) -> 14126.74 | K133: 14126.74 | L133: =IF(ISERROR(+J133-K133), "", +J133-K133) -> 1.818989404e-12
A134: 1612 | B134: Land Rights (Formally known as Account 1906) | C134: 5980 | E134: =C134-D134 -> 5980 | G134: =E134+0.5*F134 -> 5980 | H134: 0 | J134: 0 | K134: 0 | L134: =IF(ISERROR(+J134-K134), "", +J134-K134) -> 0
A135: 1612 | B135: Land Rights (Formally known as Account 1906) | E135: 0 | G135: 0 | H135: 70 | I135: 0.01428571429 | J135: 0 | L135: 0
A136: 1805 | B136: Land | C136: 20000 | E136: 20000 | G136: 20000 | J136: 0 | L136: 0
A137: 1808 | B137: Buildings | E137: 0 | G137: 0 | H137: 10 | I137: 0.1 | J137: 0 | L137: 0
A138: 1808 | B138: Buildings | E138: 0 | G138: 0 | H138: 15 | I138: 0.06666666667 | J138: 0 | L138: 0
A139: 1808 | B139: Buildings | E139: 0 | G139: 0 | H139: 20 | I139: 0.05 | J139: 0 | L139: 0
A140: 1808 | B140: Buildings | E140: 0 | G140: 0 | H140: 25 | I140: 0.04 | J140: 0 | L140: 0
A141: 1808 | B141: Buildings | E141: 0 | G141: 0 | H141: 30 | I141: 0.03333333333 | J141: 0 | L141: 0
A142: 1808 | B142: Buildings | E142: 0 | G142: 0 | H142: 50 | I142: 0.02 | J142: 0 | L142: 0
A143: 1810 | B143: Leasehold Improvements | E143: 0 | G143: 0 | J143: 0 | L143: 0
A144: 1815 | B144: Transformer Station Equipment >50 kV | C144: 376691.9 | D144: -40559.25 | E144: 417251.15 | F144: 59243.61 | G144: 446872.955 | H144: 45 | I144: 0.02222222222 | J144: 9930.510111 | K144: 9930.51 | L144: 0.0001111111105
A145: 1820 | B145: Distribution Station Equipment <50 kV | C145: 1295238.33 | D145: -307502.15 | E145: 1602740.48 | F145: 54101.25 | G145: 1629791.105 | H145: 45 | I145: 0.02222222222 | J145: 36217.58011 | K145: 36217.58 | L145: 0.0001111111123
A146: 1825 | B146: Storage Battery Equipment | E146: 0 | G146: 0 | J146: 0 | L146: 0
A147: 1830 | B147: Poles, Towers & Fixtures | C147: 512217.3 | D147: -427757.33 | E147: 939974.63 | F147: =68411.92-2839.28 -> 65572.64 | G147: 972760.95 | H147: 45 | I147: 0.02222222222 | J147: 21616.91 | K147: 21616.91 | L147: 0
A148: 1835 | B148: Overhead Conductors & Devices | C148: 264765.78 | D148: -364258.33 | E148: 629024.11 | F148: 69002.98 | G148: 663525.6 | H148: 60 | I148: 0.01666666667 | J148: 11058.76 | K148: 11058.76 | L148: 1.818989404e-12
A149: 1840 | B149: Underground Conduit | C149: 39269 | D149: -95631 | E149: 134900 | G149: 134900 | H149: 50 | I149: 0.02 | J149: 2698 | K149: 2698 | L149: 0
A150: 1845 | B150: Underground Conductors & Devices | C150: 135066.97 | D150: -141006.22 | E150: 276073.19 | F150: 11013.02 | G150: 281579.7 | H150: 30 | I150: 0.03333333333 | J150: 9385.99 | K150: 9385.99 | L150: 0
A151: 1850 | B151: Line Transformers | C151: 212914.35 | D151: -164041.78 | E151: 376956.13 | F151: 5695.75 | G151: 379804.005 | H151: 40 | I151: 0.025 | J151: 9495.100125 | K151: 9495.1 | L151: 0.0001250000005
A152: 1855 | B152: Services (Overhead & Underground) | C152: 25530.97 | D152: -9611.79 | E152: 35142.76 | F152: 241.48 | G152: 35263.5 | H152: 30 | I152: 0.03333333333 | J152: 1175.45 | K152: 1175.45 | L152: 0
A153: 1860 | B153: Meters | C153: 7143.25 | D153: -763 | E153: 7906.25 | G153: 7906.25 | H153: 25 | I153: 0.04 | J153: 316.25 | K153: 316.25 | L153: 0
A154: 1860 | B154: Meters (Smart Meters) | C154: 496491.91 | D154: -141523.4 | E154: 638015.31 | F154: =27625.66-4906.48 -> 22719.18 | G154: 649374.9 | H154: 15 | I154: 0.06666666667 | J154: 43291.66 | K154: 43291.66 | L154: -7.275957614e-12
A155: 1905 | B155: Land | C155: 28299.7 | E155: 28299.7 | G155: 28299.7 | J155: 0 | L155: 0
A156: 1908 | B156: Buildings & Fixtures | E156: 0 | G156: 0 | H156: 5 | I156: 0.2 | J156: 0 | L156: 0
A157: 1908 | B157: Buildings & Fixtures - Equipment | E157: 0 | G157: 0 | H157: 10 | I157: 0.1 | J157: 0 | L157: 0
A158: 1908 | B158: Buildings & Fixtures - Equipment | C158: 198813 | D158: -82437 | E158: 281250 | G158: 281250 | H158: 15 | I158: 0.06666666667 | J158: 18750 | K158: 18750 | L158: 0
A159: 1908 | B159: Buildings & Fixtures - Driveways | E159: 0 | G159: 0 | H159: 20 | I159: 0.05 | J159: 0 | L159: 0
A160: 1908 | B160: Buildings & Fixtures - Major Repairs | C160: 130259 | D160: -51316 | E160: 181575 | G160: 181575 | H160: 25 | I160: 0.04 | J160: 7263 | K160: 7263 | L160: 0
A161: 1908 | B161: Buildings & Fixtures - Brick Store etc | C161: 293749 | D161: -101651 | E161: 395400 | F161: 52500 | G161: 421650 | H161: 50 | I161: 0.02 | J161: 8433 | K161: 8433 | L161: 0
A162: 1910 | B162: Leasehold Improvements | E162: 0 | G162: 0 | J162: 0 | L162: 0
A163: 1915 | B163: Office Furniture & Equipment (10 years) | C163: 23738.89 | D163: -11210.01 | E163: 34948.9 | G163: 34948.9 | H163: 10 | I163: 0.1 | J163: 3494.89 | K163: 3494.89 | L163: 4.547473509e-13
A164: 1915 | B164: Office Furniture & Equipment (5 years) | E164: 0 | G164: 0 | J164: 0 | L164: 0
A165: 1920 | B165: Computer Equipment - Hardware | E165: 0 | G165: 0 | H165: 5 | I165: 0.2 | J165: 0 | L165: 0
A166: 1920 | B166: Computer Equip.-Hardware(Post Mar. 22/04) | E166: 0 | G166: 0 | J166: 0 | L166: 0
A167: 1920 | B167: Computer Equip.-Hardware(Post Mar. 19/07) | C167: 8468.37 | D167: 545.55 | E167: 7922.82 | F167: 843.55 | G167: 8344.595 | H167: 5 | I167: 0.2 | J167: 1668.919 | K167: 1668.92 | L167: -0.0009999999997
A168: 1930 | B168: Transportation Equipment | E168: 0 | G168: 0 | H168: 5 | I168: 0.2 | J168: 0 | L168: 0
A169: 1930 | B169: Transportation Equipment | C169: 6392 | D169: -3848 | E169: 10240 | G169: 10240 | H169: 8 | I169: 0.125 | J169: 1280 | K169: 1280 | L169: 0
A170: 1935 | B170: Stores Equipment | E170: 0 | G170: 0 | J170: 0 | L170: 0
A171: 1940 | B171: Tools, Shop & Garage Equipment | C171: 13561.97 | D171: -3260.9 | E171: 16822.87 | F171: 7415.07 | G171: 20530.405 | H171: 10 | I171: 0.1 | J171: 2053.0405 | K171: 2053.04 | L171: 0.0005000000001
A172: 1945 | B172: Measurement & Testing Equipment | E172: 0 | G172: 0 | H172: 10 | I172: 0.1 | J172: 0 | L172: 0
A173: 1950 | B173: Power Operated Equipment | C173: 1551.99 | D173: -103.93 | E173: 1655.92 | G173: 1655.92 | H173: 8 | I173: 0.125 | J173: 206.99 | K173: 206.99 | L173: 0
A174: 1955 | B174: Communications Equipment | E174: 0 | G174: 0 | J174: 0 | L174: 0
A175: 1955 | B175: Communication Equipment (Smart Meters) | E175: 0 | G175: 0 | J175: 0 | L175: 0
A176: 1960 | B176: Miscellaneous Equipment | E176: 0 | G176: 0 | J176: 0 | L176: 0
A177: 1970 | B177: Load Management Controls Customer Premises | E177: =C177-D177 -> 0 | G177: =E177+0.5*F177 -> 0 | I177: =IF(H177=0,"",1/H177) ->  | J177: =IF(H177=0,0,G177/H177) -> 0 | L177: 0
A178: 1975 | B178: Load Management Controls Utility Premises | E178: =C178-D178 -> 0 | G178: =E178+0.5*F178 -> 0 | I178: =IF(H178=0,"",1/H178) ->  | J178: =IF(H178=0,0,G178/H178) -> 0 | L178: 0
A179: 1980 | B179: System Supervisor Equipment | E179: 0 | G179: 0 | J179: 0 | L179: 0
A180: 1985 | B180: Miscellaneous Fixed Assets | E180: 0 | G180: 0 | J180: 0 | L180: 0
A181: 1990 | B181: Miscellaneous Fixed Assets | E181: =C181-D181 -> 0 | G181: =E181+0.5*F181 -> 0 | I181: =IF(H181=0,"",1/H181) ->  | J181: =IF(H181=0,0,G181/H181) -> 0 | L181: 0
A182: 1995 | B182: Contributions & Grants | E182: 0 | G182: 0 | J182: 0 | L182: 0
A183: 1609 | B183: Other Tangible Property | C183: 1653352.53 | E183: 1653352.53 | F183: 1153904.39 | G183: 2230304.725 | J183: 0 | L183: 0
A184: 2055 | B184: Construction in progress | C184: -319922.92 | E184: -319922.92 | F184: -17740.69 | G184: -328793.265 | H184: 39.2607 | I184: 0.02547076338 | J184: -8374.615455 | K184: -8374.61 | L184: -0.005455149805
A185: etc. | E185: 0 | G185: 0 | J185: 0 | L185: 0
B186: Total | C186: =SUM(C133:C185) -> 5502145.03 | D186: =SUM(D133:D185) -> -1941998 | E186: =SUM(E133:E185) -> 7444143.03 | F186: =SUM(F133:F185) -> 1488511.23 | G186: =SUM(G133:G185) -> 8188398.645 | J186: =SUM(J133:J185) -> 194088.1744 | K186: =SUM(K133:K185) -> 194088.18 | L186: =SUM(L133:L185) -> -0.005607927585
C190: Year | D190: 2017 | E190: IFRS
A192: Account | B192: Description | C192: Opening Regulatory Gross PP&E as at Jan 1, 2017 | D192: Less Fully Depreciated | E192: Net for Depreciation | F192: Additions | G192: Total for Depreciation | H192: Years | I192: Depreciation Rate | J192: 2017 Depreciation Expense | K192: 2017 Depreciation Expense per Appendix 2-B Fixed Assets, Column K (l) | L192: Variance 2
C193: (a) | D193: (b) | E193: (c) | F193: (d) | G193: (e) = (c) + ½ x (d) 1 | H193: (f) | I193: (g) = 1 / (f) | J193: (h) = (e) / (f) | L193: (m) = (h) - (l)
A194: 1611 | B194: Computer Software (Formally known as Account 1925) | C194: 76570.74 | D194: 27380.74 | E194: =C194-D194 -> 49190 | F194: 32399 | G194: =E194+0.5*F194 -> 65389.5 | H194: 5 | I194: =IF(H194=0,"",1/H194) -> 0.2 | J194: =IF(H194=0,0,G194/H194) -> 13077.9 | K194: 13078 | L194: =IF(ISERROR(+J194-K194),"",+J194-K194) -> -0.1
A195: 1612 | B195: Land Rights (Formally known as Account 1906) | C195: 5980 | E195: =C195-D195 -> 5980 | G195: =E195+0.5*F195 -> 5980 | H195: 0 | I195: =IF(H195=0,"",1/H195) ->  | J195: =IF(H195=0,0,G195/H195) -> 0 | L195: =IF(ISERROR(+J195-K195),"",+J195-K195) -> 0
A196: 1612 | B196: Land Rights (Formally known as Account 1906) | E196: 0 | G196: 0 | H196: 70 | I196: 0.01428571429 | J196: =IF(H196=0,0,G196/H196) -> 0 | L196: 0
A197: 1805 | B197: Land | C197: 20000 | E197: 20000 | G197: 20000 | H197: 0 | J197: 0 | L197: 0
A198: 1808 | B198: Buildings | E198: 0 | G198: 0 | H198: 10 | I198: 0.1 | J198: 0 | L198: 0
A199: 1808 | B199: Buildings | E199: 0 | G199: 0 | H199: 15 | I199: 0.06666666667 | J199: 0 | L199: 0
A200: 1808 | B200: Buildings | E200: 0 | G200: 0 | H200: 20 | I200: 0.05 | J200: 0 | L200: 0
A201: 1808 | B201: Buildings | E201: 0 | G201: 0 | H201: 25 | I201: 0.04 | J201: 0 | L201: 0
A202: 1808 | B202: Buildings | E202: 0 | G202: 0 | H202: 30 | I202: 0.03333333333 | J202: 0 | L202: 0
A203: 1808 | B203: Buildings | E203: 0 | G203: 0 | H203: 50 | I203: 0.02 | J203: 0 | L203: 0
A204: 1810 | B204: Leasehold Improvements | E204: 0 | G204: 0 | J204: 0 | L204: 0
A205: 1815 | B205: Transformer Station Equipment >50 kV | C205: 435935.51 | D205: 1401125.51 | E205: -965190 | F205: 3525000 | G205: 797310 | H205: 45 | I205: 0.02222222222 | J205: 17718 | K205: 17718 | L205: 0
A206: 1820 | B206: Distribution Station Equipment <50 kV | C206: 1349339.58 | D206: -303485.42 | E206: 1652825 | F206: 3400 | G206: 1654525 | H206: 45 | I206: 0.02222222222 | J206: 36767.22222 | K206: 36767 | L206: 0.2222222222
A207: 1825 | B207: Storage Battery Equipment | E207: 0 | G207: 0 | J207: 0 | L207: 0
A208: 1830 | B208: Poles, Towers & Fixtures | C208: 577789.94 | D208: -498580.06 | E208: 1076370 | F208: 64182.82 | G208: 1108461.41 | H208: 45 | I208: 0.02222222222 | J208: 24632.47578 | K208: 24632 | L208: 0.4757777778
A209: 1835 | B209: Overhead Conductors & Devices | C209: 333768.76 | D209: -360759.24 | E209: 694528 | F209: 21532.87 | G209: 705294.435 | H209: 60 | I209: 0.01666666667 | J209: 11754.90725 | K209: 11755 | L209: -0.09275
A210: 1840 | B210: Underground Conduit | C210: 39269 | D210: -88381 | E210: 127650 | G210: 127650 | H210: 50 | I210: 0.02 | J210: 2553 | K210: 2553 | L210: 0
A211: 1845 | B211: Underground Conductors & Devices | C211: 146079.99 | D211: -133410.01 | E211: 279490 | F211: 134.76 | G211: 279557.38 | H211: 30 | I211: 0.03333333333 | J211: 9318.579333 | K211: 9319 | L211: -0.4206666667
A212: 1850 | B212: Line Transformers | C212: 218610.1 | D212: -163449.9 | E212: 382060 | F212: 10904.82 | G212: 387512.41 | H212: 40 | I212: 0.025 | J212: 9687.81025 | K212: 9688 | L212: -0.18975
A213: 1855 | B213: Services (Overhead & Underground) | C213: 25772.45 | D213: -9607.55 | E213: 35380 | F213: 986.57 | G213: 35873.285 | H213: 30 | I213: 0.03333333333 | J213: 1195.776167 | K213: 1196 | L213: -0.2238333333
... 90 more rows

Sheet App.2-D_Overhead
F1: File Number: | G1: =EBNUMBER -> EB-2017-0048
F2: Exhibit:
F3: Tab:
F4: Schedule:
F5: Page:
F7: Date:
A9: Appendix 2-D
A10: Overhead Expense
A12: Applicants are to provide a breakdown of OM&A before capitalization in the below table. OM&A before capitalization may be broken down by cost center, program, drivers or another format best suited to focus on capitalized vs. uncapitalized OM&A.
A14: OM&A Before Capitalization
B15: =F15-4 -> 2014 | C15: =F15-3 -> 2015 | D15: =F15-2 -> 2016 | E15: =F15-1 -> 2017 | F15: =TestYear -> 2018
B16: Historical Year | C16: Historical Year | D16: Historical Year | E16: Bridge Year | F16: Test Year
A27: Total OM&A Before Capitalization (B) | B27: =SUM(B17:B26) -> 0 | C27: =SUM(C17:C26) -> 0 | D27: 0 | E27: 0 | F27: 0
A29: Applicants are to provide a breakdown of capitalized OM&A in the below table. Capitalized OM&A may be broken down using the categories listed in the table below if possible. Otherwise, applicants are to provide its own break down of capitalized OM&A.
A31: Capitalized OM&A | G31: Directly | H31: Explanation for Change in Overhead Capitalized
B32: =F32-4 -> 2014 | C32: =F32-3 -> 2015 | D32: =F32-2 -> 2016 | E32: =F32-1 -> 2017 | F32: =TestYear -> 2018 | G32: Attributable?
B33: Historical Year | C33: Historical Year | D33: Historical Year | E33: Bridge Year | F33: Test Year | G33: (Yes/No)
A34: employee benefits
A35: costs of site preparation
A36: initial delivery and handling costs
A37: costs of testing whether the asset is functioning properly
A38: professional fees
A40: costs of opening a new facility
A41: costs of introducing a new product or service (including costs of advertising and promotional activities)
A42: costs of conducting business in a new location or with a new class of customer (including costs of staff training)
A43: administration and other general overhead costs
A45: Insert description of additional item(s) and new rows if needed
A47: Total Capitalized OM&A (A) | B47: =SUM(B34:B46) -> 0 | C47: =SUM(C34:C46) -> 0 | D47: =SUM(D34:D46) -> 0 | E47: =SUM(E34:E46) -> 0 | F47: =SUM(F34:F46) -> 0
A49: % of Capitalized OM&A (=A/B) | B49: =IF(ISERROR(B47/B27),"0%",B47/B27) -> 0% | C49: =IF(ISERROR(C47/C27),"0%",C47/C27) -> 0% | D49: 0% | E49: 0% | F49: 0%

Sheet App.2-EA_Account 1575 (2015)
H1: File Number: | I1: =EBNUMBER -> EB-2017-0048
H2: Exhibit:
H3: Tab:
H4: Schedule:
H5: Page:
H7: Date:
A9: Appendix 2-EA
A10: Account 1575 - IFRS-CGAAP Transitional PP&E Amounts
A11: 2015 Adopters of IFRS for Financial Reporting Purposes
A13: For applicants that adopted IFRS on January 1, 2015 for financial reporting purposes
B17: =RebaseYear &" Rebasing Year" -> 2014 Rebasing Year | C17: =TestYear-3 -> 2015 | D17: =TestYear-2 -> 2016 | E17: =CONCATENATE(TestYear-1," Bridge Year") -> 2017 Bridge Year | F17: =CONCATENATE(TestYear," Rebasing Year") -> 2018 Rebasing Year
A18: Reporting Basis | B18: CGAAP | C18: CGAAP | D18: CGAAP | E18: MIFRS | F18: MIFRS
B19: Forecast | C19: Actual | D19: Actual | E19: Forecast | F19: Forecast
D20: $ | E20: $
A21: PP&E Values under CGAAP
A22: Opening net PP&E - Note 1 | D22: =+C25 -> 0 | E22: =+D25 -> 0
A23: Net Additions - Note 4
A24: Net Depreciation (amounts should be negative) - Note 4
A25: Closing net PP&E (1) | C25: =C22+C23+C24 -> 0 | D25: =SUM(D22:D24) -> 0 | E25: =SUM(E22:E24) -> 0
A27: PP&E Values under MIFRS (Starts from 2014, the transition year)
A28: Opening net PP&E - Note 1 | D28: =+C31 -> 0 | E28: =+D31 -> 0
A29: Net Additions - Note 4
A30: Net Depreciation (amounts should be negative) - Note 4
A31: Closing net PP&E (2) | C31: =SUM(C28:C30) -> 0 | D31: =SUM(D28:D30) -> 0 | E31: =SUM(E28:E30) -> 0
A33: Difference in Closing net PP&E, former CGAAP vs. revised CGAAP | C33: =C25-C31 -> 0 | D33: =D25-D31 -> 0 | E33: =E25-E31 -> 0
A36: Effect on Deferral and Variance Account Rate Riders
A37: Closing balance in Account 1576 | F37: =IF(ISERROR(E33), 0, E33) -> 0 | H37: WACC
A38: Return on Rate Base Associated with Account 1576 balance at WACC - Note 2 | F38: =E33*I37*I38 -> 0 | G38: # of years of rate rider disposition period
A39: Amount included in Deferral and Variance Account Rate Rider Calculation | F39: =F37+F38 -> 0
A41: Notes:
A42: 1 For an applicant that adopted IFRS on January 1, 2015, the PP&E values as of January 1, 2014 under both CGAAP and MIFRS should be the same.
A43: 2 Return on rate base associated with deferred balance is calculated as:
A44: the deferral account closing balance as of 2016 x WACC X # of years of rate rider disposition period
A45: * Please note that the calculation should be adjusted once WACC is updated and finalized in the rate application.
A46: 3 The PP&E deferral account is cleared by including the total balance in the deferral and variance account rate rider calculation.
A47: 4 Net additions are additions net of disposals; Net depreciation is additions to depreciation net of disposals.

Sheet App.2-EB_Account 1576 (2012)
J1: File Number: | K1: =EBNUMBER -> EB-2017-0048
J2: Exhibit:
J3: Tab:
J4: Schedule:
J5: Page:
J7: Date:
A9: Appendix 2-EB
A10: Account 1576 - Accounting Changes under CGAAP
A11: 2012 Changes in Accounting Policies under CGAAP
A13: For applicants with a balance in Account 1576 and made capitalization and depreciation expense accounting policy changes under CGAAP effective January 1, 2012
B17: 2011 Rebasing Year | C17: 2012 | D17: 2013 | E17: 2014 | F17: 2015 | G17: 2016 | H17: 2017 Rebasing Year
A18: Reporting Basis | B18: CGAAP | C18: CGAAP | D18: CGAAP | E18: CGAAP | F18: MIFRS - Note 5 | G18: MIFRS | H18: MIFRS
B19: Forecast | C19: Actual | D19: Actual | E19: Actual | F19: Actual | G19: Forecast | H19: Forecast
C20: $ | D20: $ | E20: $ | G20: $
A21: PP&E Values under former CGAAP
A22: Opening net PP&E - Note 1 | D22: =+C25 -> 0 | E22: =+D25 -> 0 | F22: =+D25 -> 0 | G22: =+E25 -> 0
A23: Net Additions - Note 4
A24: Net Depreciation (amounts should be negative) - Note 4
A25: Closing net PP&E (1) | C25: =C22+C23+C24 -> 0 | D25: =D22+D23+D24 -> 0 | E25: =E22+E23+E24 -> 0 | F25: =F22+F23+F24 -> 0 | G25: =G22+G23+G24 -> 0
A27: PP&E Values under revised CGAAP (Starts from 2012)
A28: Opening net PP&E - Note 1 | D28: =+C31 -> 0 | E28: =+D31 -> 0 | F28: =+D31 -> 0 | G28: =+E31 -> 0
A29: Net Additions - Note 4
A30: Net Depreciation (amounts should be negative) - Note 4
A31: Closing net PP&E (2) | C31: =SUM(C28:C30) -> 0 | D31: =SUM(D28:D30) -> 0 | E31: =SUM(E28:E30) -> 0 | F31: =SUM(F28:F30) -> 0 | G31: =SUM(G28:G30) -> 0
A33: Difference in Closing net PP&E, former CGAAP vs. revised CGAAP | C33: =C25-C31 -> 0 | D33: =D25-D31 -> 0 | E33: =E25-E31 -> 0 | F33: =F25-F31 -> 0 | G33: =G25-G31 -> 0
A36: Effect on Deferral and Variance Account Rate Riders
A37: Closing balance in Account 1576 | H37: =IF(ISERROR(G33), 0, G33) -> 0 | J37: WACC
A38: Return on Rate Base Associated with Account 1576 balance at WACC - Note 2 | H38: =G33*K37*K38 -> 0 | I38: # of years of rate rider disposition period
A39: Amount included in Deferral and Variance Account Rate Rider Calculation | H39: =H37+H38 -> 0
A41: Notes:
A42: 1 For an applicant that made the capitalization and depreciation expense accounting policy changes on January 1, 2012, the PP&E values as of January 1, 2012 under both former CGAAP and revised CGAAP should be the same.
A43: 2 Return on rate base associated with Account 1576 balance is calculated as:
A44: the variance account ending balance as of 2016 x WACC X # of years of rate rider disposition period
A45: * Please note that the calculation should be adjusted once WACC is updated and finalized in the rate application.
A46: 3 Account 1576 is cleared by including the total balance in the deferral and variance account rate rider calculation.
A47: 4 Net additions are additions net of disposals; Net depreciation is additions to depreciation net of disposals.
A48: 5 Differences due to the adoption of MIFRS are to be shown separately in Account 1575 in Appendix 2-EA as Accounts 1575 and 1576 cannot be used interchangably.

Sheet App.2-EC_Account 1576 (2013)
I1: File Number: | J1: =EBNUMBER -> EB-2017-0048
I2: Exhibit:
I3: Tab:
I4: Schedule:
I5: Page:
I7: Date:
A9: Appendix 2-EC
A10: Account 1576 - Accounting Changes under CGAAP
A11: 2013 Changes in Accounting Policies under CGAAP
A13: For applicants with a balance in Account 1576 and made capitalization and depreciation expense accounting policy changes under CGAAP effective January 1, 2013
B17: 2012 Rebasing Year | C17: 2013 | D17: 2014 | E17: 2015 | F17: 2016 | G17: 2017 Rebasing Year
A18: Reporting Basis | B18: CGAAP | C18: CGAAP | D18: CGAAP | E18: MIFRS - Note 5 | F18: MIFRS | G18: MIFRS
B19: Actual | C19: Actual | D19: Actual | E19: Actual | F19: Forecast | G19: Forecast
C20: $ | D20: $ | F20: $
A21: PP&E Values under former CGAAP
A22: Opening net PP&E - Note 1 | D22: =+C25 -> 0 | E22: =+D25 -> 0 | F22: =+D25 -> 0
A23: Net Additions - Note 4
A24: Net Depreciation (amounts should be negative) - Note 4
A25: Closing net PP&E (1) | C25: =C22+C23+C24 -> 0 | D25: =D22+D23+D24 -> 0 | E25: =E22+E23+E24 -> 0 | F25: =F22+F23+F24 -> 0
A27: PP&E Values under revised CGAAP (Starts from 2012)
A28: Opening net PP&E - Note 1 | D28: =+C31 -> 0 | E28: =+D31 -> 0 | F28: =+D31 -> 0
A29: Net Additions - Note 4
A30: Net Depreciation (amounts should be negative) - Note 4
A31: Closing net PP&E (2) | C31: =SUM(C28:C30) -> 0 | D31: =SUM(D28:D30) -> 0 | E31: =SUM(E28:E30) -> 0 | F31: =SUM(F28:F30) -> 0
A33: Difference in Closing net PP&E, former CGAAP vs. revised CGAAP | C33: =C25-C31 -> 0 | D33: =D25-D31 -> 0 | E33: =E25-E31 -> 0 | F33: =F25-F31 -> 0
A36: Effect on Deferral and Variance Account Rate Riders
A37: Closing balance in Account 1576 | G37: =IF(ISERROR(F33), 0, F33) -> 0 | I37: WACC
A38: Return on Rate Base Associated with Account 1576 balance at WACC - Note 2 | G38: =F33*J37*J38 -> 0 | H38: # of years of rate rider disposition period
A39: Amount included in Deferral and Variance Account Rate Rider Calculation | G39: =G37+G38 -> 0
A41: Notes:
A42: 1 For an applicant that made the capitalization and depreciation expense accounting policy changes on January 1, 2013, the PP&E values as of January 1, 2013 under both former CGAAP and revised CGAAP should be the same.
A43: 2 Return on rate base associated with Account 1576 balance is calculated as:
A44: the variance account ending balance as of 2016 x WACC X # of years of rate rider disposition period
A45: * Please note that the calculation should be adjusted once WACC is updated and finalized in the rate application.
A46: 3 Account 1576 is cleared by including the total balance in the deferral and variance account rate rider calculation.
A47: 4 Net additions are additions net of disposals; Net depreciation is additions to depreciation net of disposals.
A48: 5 Differences due to the adoption of MIFRS are to be shown separately in Account 1575 in Appendix 2-EA as Accounts 1575 and 1576 cannot be used interchangably.

Sheet App.2-FA Proposed REG Invest.
J1: File Number: | K1: =EBNUMBER -> EB-2017-0048
J2: Exhibit:
J3: Tab:
J4: Schedule:
J5: Page:
J7: Date:
A9: Appendix 2-FA
A10: Renewable Generation Connection Investment Summary (past investments or over the future rate setting period)
A12: Enter the details of the Renewable Generation Connection projects as described in the appropriate section of the Filing Requirements.
A13: All costs entered on this page will be transferred to the appropriate cells in the appendices that follow.
A14: For Part A, Renewable Enabling Improvements (REI), these amounts will be transferred to Appendix 2 - FB
A15: For Part B, Expansions, these amounts will be transferred to Appendix 2 - FC
A17: If there are more than five projects proposed to be in-service in a certain year, please amend the tables below and ensure that the formulae for the Total Amounts in any given rate year are updated.
A18: Based on the current methodology and allocation, amounts allocated represent 6% for REI Connection Investments and 17% for Expansion Investments. (EB-2009-0349, 6-10-2010, p. 15, note 9)
A20: There are two scenarios described below. Separate sets of spreadsheets (2-FA, 2-FB, 2-FC) should be submited for each scenario as required.
A21: Scenario 1: Past Investments with No Recovery. The distributor has made investments in the past (during the IRM Years), but has not received approval for these projects and therefore did not receive
A22: revenue from the IESO under Regulation 330/09 and did not receive ratepayer revenue for the direct benefit portion of the investment.
A23: The WCA percentage, debt percentages, interest rates, kWh, tax rates, amortization period, CCA Class and percentage should correspond to the distributor's last Cost of Service approval.
A24: The Direct Benefit portion of the calculated Revenue Requirement for each year should be summed and can be applied for recovery from the distributor's ratepayers through a rate rider.
A25: The Provincial Recovery portion of the calculated Revenue Requirement for each year should be summed and can be applied for recovery from the IESO through a separate order.
A27: Scenario 2: Investments in the Test Year and Beyond. Distributor plans to make investments in 2017 and/or beyond. These investments should be added to 2-FA in the appropriate year.
A28: The WCA percentage, debt percentages, interest rates, kWh, tax rates, amortization period, CCA Class and percentage should correspond to the distributor's current application.
A30: Part A | G30: Test Year
A31: REI Investments (Direct Benefit at 6%) | C31: =D31-1 -> 2014 | D31: =E31-1 -> 2015 | E31: =F31-1 -> 2016 | F31: =G31-1 -> 2017 | G31: =TestYear -> 2018 | H31: =G31+1 -> 2019 | I31: =H31+1 -> 2020 | J31: =I31+1 -> 2021 | K31: =J31+1 -> 2022
A32: Project 1
A33: Name: REI Connection Project
A34: Capital Costs | C34: 0 | D34: 0 | E34: 0 | F34: 0 | G34: 0 | H34: 0 | I34: 0 | J34: 0 | K34: 0
A35: OM&A (Start-Up) | C35: 0 | D35: 0 | E35: 0 | F35: 0 | G35: 0 | H35: 0 | I35: 0 | J35: 0 | K35: 0
A36: OM&A (Ongoing) | C36: 0 | D36: 0 | E36: 0 | F36: 0 | G36: 0 | H36: 0 | I36: 0 | J36: 0 | K36: 0
A38: Project 2
A39: Name: REI Connection Project
A40: Capital Costs | C40: 0 | D40: 0 | E40: 0 | F40: 0 | G40: 0 | H40: 0 | I40: 0 | J40: 0 | K40: 0
A41: OM&A (Start-Up) | C41: 0 | D41: 0 | E41: 0 | F41: 0 | G41: 0 | H41: 0 | I41: 0 | J41: 0 | K41: 0
A42: OM&A (Ongoing) | C42: 0 | D42: 0 | E42: 0 | F42: 0 | G42: 0 | H42: 0 | I42: 0 | J42: 0 | K42: 0
A44: Project 3
A45: Name: REI Connection Project
A46: Capital Costs | C46: 0 | D46: 0 | E46: 0 | F46: 0 | G46: 0 | H46: 0 | I46: 0 | J46: 0 | K46: 0
A47: OM&A (Start-Up) | C47: 0 | D47: 0 | E47: 0 | F47: 0 | G47: 0 | H47: 0 | I47: 0 | J47: 0 | K47: 0
A48: OM&A (Ongoing) | C48: 0 | D48: 0 | E48: 0 | F48: 0 | G48: 0 | H48: 0 | I48: 0 | J48: 0 | K48: 0
A50: Project 4
A51: Name: REI Connection Project
A52: Capital Costs | C52: 0 | D52: 0 | E52: 0 | F52: 0 | G52: 0 | H52: 0 | I52: 0 | J52: 0 | K52: 0
A53: OM&A (Start-Up) | C53: 0 | D53: 0 | E53: 0 | F53: 0 | G53: 0 | H53: 0 | I53: 0 | J53: 0 | K53: 0
A54: OM&A (Ongoing) | C54: 0 | D54: 0 | E54: 0 | F54: 0 | G54: 0 | H54: 0 | I54: 0 | J54: 0 | K54: 0
A56: Project 5
A57: Name: REI Connection Project
A58: Capital Costs | C58: 0 | D58: 0 | E58: 0 | F58: 0 | G58: 0 | H58: 0 | I58: 0 | J58: 0 | K58: 0
A59: OM&A (Start-Up) | C59: 0 | D59: 0 | E59: 0 | F59: 0 | G59: 0 | H59: 0 | I59: 0 | J59: 0 | K59: 0
A60: OM&A (Ongoing) | C60: 0 | D60: 0 | E60: 0 | F60: 0 | G60: 0 | H60: 0 | I60: 0 | J60: 0 | K60: 0
A62: Total Capital Costs | C62: =SUM(C58,C52,C46,C40,C34) -> 0 | D62: 0 | E62: 0 | F62: 0 | G62: =SUM(G58,G52,G46,G40,G34) -> 0 | H62: =SUM(H58,H52,H46,H40,H34) -> 0 | I62: 0 | J62: 0 | K62: 0
A63: Total OM&A (Start-Up) | C63: 0 | D63: 0 | E63: 0 | F63: 0 | G63: =SUM(G59,G53,G47,G41,G35) -> 0 | H63: 0 | I63: 0 | J63: 0 | K63: 0
A64: Total OM&A (Ongoing) | C64: 0 | D64: 0 | E64: 0 | F64: 0 | G64: =SUM(G60,G54,G48,G42,G36) -> 0 | H64: 0 | I64: 0 | J64: 0 | K64: 0
A67: Part B | G67: Test Year
A68: Expansion Investments (Direct Benefit at 17%) | C68: =D68-1 -> 2014 | D68: =E68-1 -> 2015 | E68: =F68-1 -> 2016 | F68: =G68-1 -> 2017 | G68: =TestYear -> 2018 | H68: =G68+1 -> 2019 | I68: =H68+1 -> 2020 | J68: 2021 | K68: 2022
A69: Project 1
A70: Name: Expansion Connection Project
A71: Capital Costs | C71: 0 | D71: 0 | E71: 0 | F71: 0 | G71: 0 | H71: 0 | I71: 0 | J71: 0 | K71: 0
A72: OM&A (Start-Up) | C72: 0 | D72: 0 | E72: 0 | F72: 0 | G72: 0 | H72: 0 | I72: 0 | J72: 0 | K72: 0
A73: OM&A (Ongoing) | C73: 0 | D73: 0 | E73: 0 | F73: 0 | G73: 0 | H73: 0 | I73: 0 | J73: 0 | K73: 0
A75: Project 2
A76: Name: Expansion Connection Project
A77: Capital Costs | C77: 0 | D77: 0 | E77: 0 | F77: 0 | G77: 0 | H77: 0 | I77: 0 | J77: 0 | K77: 0
A78: OM&A (Start-Up) | C78: 0 | D78: 0 | E78: 0 | F78: 0 | G78: 0 | H78: 0 | I78: 0 | J78: 0 | K78: 0
A79: OM&A (Ongoing) | C79: 0 | D79: 0 | E79: 0 | F79: 0 | G79: 0 | H79: 0 | I79: 0 | J79: 0 | K79: 0
A81: Project 3
A82: Name: Expansion Connection Project
A83: Capital Costs | C83: 0 | D83: 0 | E83: 0 | F83: 0 | G83: 0 | H83: 0 | I83: 0 | J83: 0 | K83: 0
A84: OM&A (Start-Up) | C84: 0 | D84: 0 | E84: 0 | F84: 0 | G84: 0 | H84: 0 | I84: 0 | J84: 0 | K84: 0
A85: OM&A (Ongoing) | C85: 0 | D85: 0 | E85: 0 | F85: 0 | G85: 0 | H85: 0 | I85: 0 | J85: 0 | K85: 0
A87: Project 4
A88: Name: Expansion Connection Project
A89: Capital Costs | C89: 0 | D89: 0 | E89: 0 | F89: 0 | G89: 0 | H89: 0 | I89: 0 | J89: 0 | K89: 0
A90: OM&A (Start-Up) | C90: 0 | D90: 0 | E90: 0 | F90: 0 | G90: 0 | H90: 0 | I90: 0 | J90: 0 | K90: 0
A91: OM&A (Ongoing) | C91: 0 | D91: 0 | E91: 0 | F91: 0 | G91: 0 | H91: 0 | I91: 0 | J91: 0 | K91: 0
A93: Project 5
A94: Name: Expansion Connection Project
A95: Capital Costs | C95: 0 | D95: 0 | E95: 0 | F95: 0 | G95: 0 | H95: 0 | I95: 0 | J95: 0 | K95: 0
A96: OM&A (Start-Up) | C96: 0 | D96: 0 | E96: 0 | F96: 0 | G96: 0 | H96: 0 | I96: 0 | J96: 0 | K96: 0
A97: OM&A (Ongoing) | C97: 0 | D97: 0 | E97: 0 | F97: 0 | G97: 0 | H97: 0 | I97: 0 | J97: 0 | K97: 0
A99: Total Capital Costs | C99: =SUM(C95,C89,C83,C77,C71) -> 0 | D99: 0 | E99: 0 | F99: 0 | G99: =SUM(G95,G89,G83,G77,G71) -> 0 | H99: =SUM(H95,H89,H83,H77,H71) -> 0 | I99: 0 | J99: 0 | K99: 0
A100: Total OM&A (Start-Up) | C100: 0 | D100: 0 | E100: 0 | F100: 0 | G100: =SUM(G96,G90,G84,G78,G72) -> 0 | H100: 0 | I100: 0 | J100: 0 | K100: 0
A101: Total OM&A (Ongoing) | C101: 0 | D101: 0 | E101: 0 | F101: 0 | G101: =SUM(G97,G91,G85,G79,G73) -> 0 | H101: 0 | I101: 0 | J101: 0 | K101: 0

Sheet App.2-FB Calc of REG Improvemnt
N1: File Number: | O1: =EBNUMBER -> EB-2017-0048
N2: Exhibit:
N3: Tab:
N4: Schedule:
N5: Page:
N7: Date:
A9: Appendix 2-FB
A10: Calculation of Renewable Generation Connection Direct Benefits/Provincial Amount: Renewable Enabling Improvement Investments
A12: This table will calculate the distributor/provincial shares of the investments entered in Part A of Appendix 2-FA.
A13: Enter values in green shaded cells: WCA percentage, debt percentages, interest rates, kWh, tax rates, amortization period, CCA Class and percentage.
A14: For historical investments, enter these variables for your last cost of service test year. For 2017 and beyond, enter variables as in the application.
A15: Rate Riders are not calculated for the Test Year as these assets and costs are already in the distributor's rate base/revenue requirement.
C17: =F17-1 -> 2014 | F17: =I17-1 -> 2015 | I17: =L17-1 -> 2016 | L17: =BridgeYear -> 2017 | O17: =CONCATENATE(TestYear," Test Year") -> 2018 Test Year | R17: =TestYear+1 -> 2019 | U17: =R17+1 -> 2020 | V17: 2016 | X17: =U17+1 -> 2021 | AA17: =X17+1 -> 2022
D18: Direct Benefit | E18: Provincial | G18: Direct Benefit | H18: Provincial | J18: Direct Benefit | K18: Provincial | M18: Direct Benefit | N18: Provincial | P18: Direct Benefit | Q18: Provincial | S18: Direct Benefit | T18: Provincial | V18: Direct Benefit | W18: Provincial | Y18: Direct Benefit | Z18: Provincial | AB18: Direct Benefit | AC18: Provincial
C19: Total | D19: 0.06 | E19: 0.94 | F19: Total | G19: 0.06 | H19: 0.94 | I19: Total | J19: 0.06 | K19: 0.94 | L19: Total | M19: 0.06 | N19: 0.94 | O19: Total | P19: 0.06 | Q19: 0.94 | R19: Total | S19: 0.06 | T19: 0.94 | U19: Total | V19: 0.06 | W19: 0.94 | X19: Total | Y19: 0.06 | Z19: 0.94 | AA19: Total | AB19: 0.06 | AC19: 0.94
A20: Net Fixed Assets (average) | C20: =D82 -> 0 | D20: =C20*D19 -> 0 | E20: =C20*E19 -> 0 | F20: =E82 -> 0 | G20: =F20*G19 -> 0 | H20: =F20*H19 -> 0 | I20: =F82 -> 0 | J20: =I20*J19 -> 0 | K20: =I20*K19 -> 0 | L20: =G82 -> 0 | M20: =L20*M19 -> 0 | N20: =L20*N19 -> 0 | O20: =H82 -> 0 | P20: =O20*P19 -> 0 | Q20: =O20*Q19 -> 0 | R20: =I82 -> 0 | S20: =R20*S19 -> 0 | T20: =R20*T19 -> 0 | U20: =J82 -> 0 | V20: =U20*V19 -> 0 | W20: =U20*W19 -> 0 | X20: =K82 -> 0 | Y20: =X20*Y19 -> 0 | Z20: =X20*Z19 -> 0 | AA20: =L82 -> 0 | AB20: =AA20*AB19 -> 0 | AC20: =AA20*AC19 -> 0
A21: Incremental OM&A (on-going, N/A for Provincial Recovery) | C21: ='App.2-FA Proposed REG Invest.'!C64 -> 0 | D21: =C21 -> 0 | F21: ='App.2-FA Proposed REG Invest.'!D64 -> 0 | G21: =F21 -> 0 | I21: ='App.2-FA Proposed REG Invest.'!E64 -> 0 | J21: =I21 -> 0 | L21: ='App.2-FA Proposed REG Invest.'!F64 -> 0 | M21: =L21 -> 0 | O21: ='App.2-FA Proposed REG Invest.'!G64 -> 0 | P21: =O21 -> 0 | R21: ='App.2-FA Proposed REG Invest.'!H64 -> 0 | S21: =R21 -> 0 | U21: ='App.2-FA Proposed REG Invest.'!I64 -> 0 | V21: =U21 -> 0 | X21: ='App.2-FA Proposed REG Invest.'!J64 -> 0 | Y21: =X21 -> 0 | AA21: ='App.2-FA Proposed REG Invest.'!K64 -> 0 | AB21: =AA21 -> 0
A22: Incremental OM&A (start-up, applicable for Provincial Recovery) | C22: ='App.2-FA Proposed REG Invest.'!C63 -> 0 | D22: =C22*D19 -> 0 | E22: =C22*E19 -> 0 | F22: ='App.2-FA Proposed REG Invest.'!D63 -> 0 | G22: =F22*G19 -> 0 | H22: =F22*H19 -> 0 | I22: ='App.2-FA Proposed REG Invest.'!E63 -> 0 | J22: =I22*J19 -> 0 | K22: =I22*K19 -> 0 | L22: ='App.2-FA Proposed REG Invest.'!F63 -> 0 | M22: =L22*M19 -> 0 | N22: =L22*N19 -> 0 | O22: ='App.2-FA Proposed REG Invest.'!G63 -> 0 | P22: =O22*P19 -> 0 | Q22: =O22*Q19 -> 0 | R22: ='App.2-FA Proposed REG Invest.'!H63 -> 0 | S22: =R22*S19 -> 0 | T22: =R22*T19 -> 0 | U22: ='App.2-FA Proposed REG Invest.'!I63 -> 0 | V22: =U22*V19 -> 0 | W22: =U22*W19 -> 0 | X22: ='App.2-FA Proposed REG Invest.'!J63 -> 0 | Y22: =X22*Y19 -> 0 | Z22: =X22*Z19 -> 0 | AA22: ='App.2-FA Proposed REG Invest.'!K63 -> 0 | AB22: =AA22*AB19 -> 0 | AC22: =AA22*AC19 -> 0
A23: WCA | D23: =(D21+D22)*$B$23 -> 0 | E23: =E22*$B$23 -> 0 | G23: =(G21+G22)*$B$23 -> 0 | H23: =H22*$B$23 -> 0 | J23: =(J21+J22)*$B$23 -> 0 | K23: =K22*$B$23 -> 0 | M23: =(M21+M22)*$B$23 -> 0 | N23: =N22*$B$23 -> 0 | P23: =(P21+P22)*$B$23 -> 0 | Q23: =Q22*$B$23 -> 0 | S23: =(S21+S22)*$B$23 -> 0 | T23: =T22*$B$23 -> 0 | V23: =(V21+V22)*$B$23 -> 0 | W23: =W22*$B$23 -> 0 | Y23: =(Y21+Y22)*$B$23 -> 0 | Z23: =Z22*$B$23 -> 0 | AB23: =(AB21+AB22)*$B$23 -> 0 | AC23: =AC22*$B$23 -> 0
A24: Rate Base | D24: =SUM(D20+D23) -> 0 | E24: =SUM(E20+E23) -> 0 | G24: =SUM(G20+G23) -> 0 | H24: =SUM(H20+H23) -> 0 | J24: =SUM(J20+J23) -> 0 | K24: =SUM(K20+K23) -> 0 | M24: =SUM(M20+M23) -> 0 | N24: =SUM(N20+N23) -> 0 | P24: =SUM(P20+P23) -> 0 | Q24: =SUM(Q20+Q23) -> 0 | S24: =SUM(S20+S23) -> 0 | T24: =SUM(T20+T23) -> 0 | V24: =SUM(V20+V23) -> 0 | W24: =SUM(W20+W23) -> 0 | Y24: =SUM(Y20+Y23) -> 0 | Z24: =SUM(Z20+Z23) -> 0 | AB24: =SUM(AB20+AB23) -> 0 | AC24: =SUM(AC20+AC23) -> 0
A27: Deemed ST Debt | D27: =D24*$B$27 -> 0 | E27: =E24*$B$27 -> 0 | G27: =G24*$B$27 -> 0 | H27: =H24*$B$27 -> 0 | J27: =J24*$B$27 -> 0 | K27: =K24*$B$27 -> 0 | M27: =M24*$B$27 -> 0 | N27: =N24*$B$27 -> 0 | P27: =P24*$B$27 -> 0 | Q27: =Q24*$B$27 -> 0 | S27: =S24*$B$27 -> 0 | T27: =T24*$B$27 -> 0 | V27: =V24*$B$27 -> 0 | W27: =W24*$B$27 -> 0 | Y27: =Y24*$B$27 -> 0 | Z27: =Z24*$B$27 -> 0 | AB27: =AB24*$B$27 -> 0 | AC27: =AC24*$B$27 -> 0
A28: Deemed LT Debt | D28: =D24*$B$28 -> 0 | E28: =E24*$B$28 -> 0 | G28: =G24*$B$28 -> 0 | H28: =H24*$B$28 -> 0 | J28: =J24*$B$28 -> 0 | K28: =K24*$B$28 -> 0 | M28: =M24*$B$28 -> 0 | N28: =N24*$B$28 -> 0 | P28: =P24*$B$28 -> 0 | Q28: =Q24*$B$28 -> 0 | S28: =S24*$B$28 -> 0 | T28: =T24*$B$28 -> 0 | V28: =V24*$B$28 -> 0 | W28: =W24*$B$28 -> 0 | Y28: =Y24*$B$28 -> 0 | Z28: =Z24*$B$28 -> 0 | AB28: =AB24*$B$28 -> 0 | AC28: =AC24*$B$28 -> 0
A29: Deemed Equity | D29: =D24*$B$29 -> 0 | E29: =E24*$B$29 -> 0 | G29: =G24*$B$29 -> 0 | H29: =H24*$B$29 -> 0 | J29: =J24*$B$29 -> 0 | K29: =K24*$B$29 -> 0 | M29: =M24*$B$29 -> 0 | N29: =N24*$B$29 -> 0 | P29: =P24*$B$29 -> 0 | Q29: =Q24*$B$29 -> 0 | S29: =S24*$B$29 -> 0 | T29: =T24*$B$29 -> 0 | V29: =V24*$B$29 -> 0 | W29: =W24*$B$29 -> 0 | Y29: =Y24*$B$29 -> 0 | Z29: =Z24*$B$29 -> 0 | AB29: =AB24*$B$29 -> 0 | AC29: =AC24*$B$29 -> 0
A31: ST Interest | D31: =D27*$B31 -> 0 | E31: =E27*$B31 -> 0 | G31: =G27*$B31 -> 0 | H31: =H27*$B31 -> 0 | J31: =J27*$B31 -> 0 | K31: =K27*$B31 -> 0 | M31: =M27*$B31 -> 0 | N31: =N27*$B31 -> 0 | P31: =P27*$B31 -> 0 | Q31: =Q27*$B31 -> 0 | S31: =S27*$B31 -> 0 | T31: =T27*$B31 -> 0 | V31: =V27*$B31 -> 0 | W31: =W27*$B31 -> 0 | Y31: =Y27*$B31 -> 0 | Z31: =Z27*$B31 -> 0 | AB31: =AB27*$B31 -> 0 | AC31: =AC27*$B31 -> 0
A32: LT Interest | D32: =D28*$B32 -> 0 | E32: 0 | G32: =G28*$B32 -> 0 | H32: 0 | J32: =J28*$B32 -> 0 | K32: 0 | M32: =M28*$B32 -> 0 | N32: 0 | P32: =P28*$B32 -> 0 | Q32: 0 | S32: =S28*$B32 -> 0 | T32: 0 | V32: =V28*$B32 -> 0 | W32: 0 | Y32: =Y28*$B32 -> 0 | Z32: 0 | AB32: =AB28*$B32 -> 0 | AC32: 0
A33: ROE | D33: 0 | E33: 0 | G33: 0 | H33: 0 | J33: 0 | K33: 0 | M33: 0 | N33: 0 | P33: 0 | Q33: 0 | S33: 0 | T33: 0 | V33: 0 | W33: 0 | Y33: 0 | Z33: 0 | AB33: 0 | AC33: 0
A34: Cost of Capital Total | D34: =SUM(D31:D33) -> 0 | E34: =SUM(E31:E33) -> 0 | G34: =SUM(G31:G33) -> 0 | H34: =SUM(H31:H33) -> 0 | J34: =SUM(J31:J33) -> 0 | K34: =SUM(K31:K33) -> 0 | M34: =SUM(M31:M33) -> 0 | N34: =SUM(N31:N33) -> 0 | P34: =SUM(P31:P33) -> 0 | Q34: =SUM(Q31:Q33) -> 0 | S34: =SUM(S31:S33) -> 0 | T34: =SUM(T31:T33) -> 0 | V34: =SUM(V31:V33) -> 0 | W34: =SUM(W31:W33) -> 0 | Y34: =SUM(Y31:Y33) -> 0 | Z34: =SUM(Z31:Z33) -> 0 | AB34: =SUM(AB31:AB33) -> 0 | AC34: =SUM(AC31:AC33) -> 0
A36: OM&A | D36: =D21+D22 -> 0 | E36: =E22 -> 0 | G36: =G21+G22 -> 0 | H36: =H22 -> 0 | J36: =J21+J22 -> 0 | K36: =K22 -> 0 | M36: =M21+M22 -> 0 | N36: =N22 -> 0 | P36: =P21+P22 -> 0 | Q36: =Q22 -> 0 | S36: =S21+S22 -> 0 | T36: =T22 -> 0 | V36: =V21+V22 -> 0 | W36: =W22 -> 0 | Y36: =Y21+Y22 -> 0 | Z36: =Z22 -> 0 | AB36: =AB21+AB22 -> 0 | AC36: =AC22 -> 0
A37: Amortization | C37: =D77 -> 0 | D37: =C37*D$19 -> 0 | E37: =C37*E$19 -> 0 | F37: =E77 -> 0 | G37: =F37*G$19 -> 0 | H37: =F37*H$19 -> 0 | I37: =F77 -> 0 | J37: =I37*J$19 -> 0 | K37: =I37*K$19 -> 0 | L37: =G77 -> 0 | M37: =L37*M$19 -> 0 | N37: =L37*N$19 -> 0 | O37: =H77 -> 0 | P37: =O37*P$19 -> 0 | Q37: =O37*Q$19 -> 0 | R37: =I76+I77 -> 0 | S37: =R37*S$19 -> 0 | T37: =R37*T$19 -> 0 | U37: =J76+J77 -> 0 | V37: =U37*V$19 -> 0 | W37: =U37*W$19 -> 0 | X37: =K76+K77 -> 0 | Y37: =X37*Y$19 -> 0 | Z37: =X37*Z$19 -> 0 | AA37: =L76+L77 -> 0 | AB37: =AA37*AB$19 -> 0 | AC37: =AA37*AC$19 -> 0
A38: Grossed-up PILs | D38: =D65 -> 0 | E38: =E65 -> 0 | G38: =G65 -> 0 | H38: =H65 -> 0 | J38: =J65 -> 0 | K38: =K65 -> 0 | M38: =M65 -> 0 | N38: =N65 -> 0 | P38: =P65 -> 0 | Q38: =Q65 -> 0 | S38: =S65 -> 0 | T38: =T65 -> 0 | V38: =V65 -> 0 | W38: =W65 -> 0 | Y38: =Y65 -> 0 | Z38: =Z65 -> 0 | AB38: =AB65 -> 0 | AC38: =AC65 -> 0
A40: Revenue Requirement | D40: =SUM(D34:D38) -> 0 | E40: =SUM(E34:E38) -> 0 | G40: =SUM(G34:G38) -> 0 | H40: =SUM(H34:H38) -> 0 | J40: =SUM(J34:J38) -> 0 | K40: =SUM(K34:K38) -> 0 | M40: =SUM(M34:M38) -> 0 | N40: =SUM(N34:N38) -> 0 | P40: =SUM(P34:P38) -> 0 | Q40: =SUM(Q34:Q38) -> 0 | S40: =SUM(S34:S38) -> 0 | T40: =SUM(T34:T38) -> 0 | V40: =SUM(V34:V38) -> 0 | W40: =SUM(W34:W38) -> 0 | Y40: =SUM(Y34:Y38) -> 0 | Z40: =SUM(Z34:Z38) -> 0 | AB40: =SUM(AB34:AB38) -> 0 | AC40: =SUM(AC34:AC38) -> 0
A43: Provincial Rate Protection | E43: =E40 -> 0 | H43: =H40 -> 0 | K43: =K40 -> 0 | N43: =N40 -> 0 | Q43: =Q40 -> 0 | T43: =T40 -> 0 | W43: =W40 -> 0 | Z43: =Z40 -> 0 | AC43: =AC40 -> 0
A45: Monthly Amount Paid by IESO | E45: =E43/12 -> 0 | H45: =H43/12 -> 0 | K45: =K43/12 -> 0 | N45: =N43/12 -> 0 | Q45: =Q43/12 -> 0 | T45: =T43/12 -> 0 | W45: =W43/12 -> 0 | Z45: =Z43/12 -> 0 | AC45: =AC43/12 -> 0
A47: Note 1: The difference between the actual costs of approved eligible investments and revenue received from the IESO should be recorded in a variance account. The Board may provide
A48: regulatory accounting guidance regarding a variance account either in an individual proceeding or on a generic basis.
A49: Note 2: For the 2016 Test Year, Costs and Revenues of the Direct Benefit are to be included in the test year applicant Rate Base and Revenues.
A51: PILs Calculation
D52: =C17 -> 2014 | G52: =F17 -> 2015 | J52: =I17 -> 2016 | M52: =L17 -> 2017 | P52: =O17 -> 2018 Test Year | S52: =R17 -> 2019 | V52: =U17 -> 2020 | Y52: =X17 -> 2021 | AB52: =AA17 -> 2022
A53: Income Tax | D53: Direct Benefit | E53: Provincial | G53: Direct Benefit | H53: Provincial | J53: Direct Benefit | K53: Provincial | M53: Direct Benefit | N53: Provincial | P53: Direct Benefit | Q53: Provincial | S53: Direct Benefit | T53: Provincial | V53: Direct Benefit | W53: Provincial | Y53: Direct Benefit | Z53: Provincial | AB53: Direct Benefit | AC53: Provincial
X54: Total | AA54: Total
A55: Net Income - ROE on Rate Base | D55: =D33 -> 0 | E55: =E33 -> 0 | G55: =G33 -> 0 | H55: =H33 -> 0 | J55: =J33 -> 0 | K55: =K33 -> 0 | M55: =M33 -> 0 | N55: =N33 -> 0 | P55: =P33 -> 0 | Q55: =Q33 -> 0 | S55: =S33 -> 0 | T55: =T33 -> 0 | V55: =V33 -> 0 | W55: =W33 -> 0 | Y55: =Y33 -> 0 | Z55: =Z33 -> 0 | AB55: =AB33 -> 0 | AC55: =AC33 -> 0
A56: Amortization (6% DB and 94% P) | D56: =D37 -> 0 | E56: =E37 -> 0 | G56: =G37 -> 0 | H56: =H37 -> 0 | J56: =J37 -> 0 | K56: =K37 -> 0 | M56: =M37 -> 0 | N56: =N37 -> 0 | P56: =P37 -> 0 | Q56: =Q37 -> 0 | S56: =S37 -> 0 | T56: =T37 -> 0 | V56: =V37 -> 0 | W56: =W37 -> 0 | Y56: =Y37 -> 0 | Z56: =Z37 -> 0 | AB56: =AB37 -> 0 | AC56: =AC37 -> 0
A57: CCA (6% DB and 94% P) | D57: =-D94*D$19 -> 0 | E57: =-D94*E$19 -> 0 | G57: =-E94*G19 -> 0 | H57: =-E94*H$19 -> 0 | J57: =-F94*J$19 -> 0 | K57: =-F94*K$19 -> 0 | M57: =-G94*M$19 -> 0 | N57: =-G94*N$19 -> 0 | P57: =-H94*P$19 -> 0 | Q57: =-H94*Q$19 -> 0 | S57: =-I94*S$19 -> 0 | T57: =-I94*T$19 -> 0 | V57: =-J94*V$19 -> 0 | W57: =-J94*W$19 -> 0 | Y57: =-K94*Y$19 -> 0 | Z57: =-K94*Z$19 -> 0 | AB57: =-L94*AB$19 -> 0 | AC57: =-L94*AC$19 -> 0
A58: Taxable income | D58: =SUM(D55:D57) -> 0 | E58: =SUM(E55:E57) -> 0 | G58: =SUM(G55:G57) -> 0 | H58: =SUM(H55:H57) -> 0 | J58: =SUM(J55:J57) -> 0 | K58: =SUM(K55:K57) -> 0 | M58: =SUM(M55:M57) -> 0 | N58: =SUM(N55:N57) -> 0 | P58: =SUM(P55:P57) -> 0 | Q58: =SUM(Q55:Q57) -> 0 | S58: =SUM(S55:S57) -> 0 | T58: =SUM(T55:T57) -> 0 | V58: =SUM(V55:V57) -> 0 | W58: =SUM(W55:W57) -> 0 | Y58: =SUM(Y55:Y57) -> 0 | Z58: =SUM(Z55:Z57) -> 0 | AB58: =SUM(AB55:AB57) -> 0 | AC58: =SUM(AC55:AC57) -> 0
A60: Tax Rate (to be entered)
A62: Income Taxes Payable | D62: =D58*D60 -> 0 | E62: =E58*E60 -> 0 | G62: =G58*G60 -> 0 | H62: =H58*H60 -> 0 | J62: =J58*J60 -> 0 | K62: =K58*K60 -> 0 | M62: =M58*M60 -> 0 | N62: =N58*N60 -> 0 | P62: =P58*P60 -> 0 | Q62: =Q58*Q60 -> 0 | S62: =S58*S60 -> 0 | T62: =T58*T60 -> 0 | V62: =V58*V60 -> 0 | W62: =W58*W60 -> 0 | Y62: =Y58*Y60 -> 0 | Z62: =Z58*Z60 -> 0 | AB62: =AB58*AB60 -> 0 | AC62: =AC58*AC60 -> 0
A63: Gross Up
A64: Income Taxes Payable | D64: =D62/(1-D60) -> 0 | E64: =E62/(1-E60) -> 0 | G64: =G62/(1-G60) -> 0 | H64: =H62/(1-H60) -> 0 | J64: =J62/(1-J60) -> 0 | K64: =K62/(1-K60) -> 0 | M64: =M62/(1-M60) -> 0 | N64: =N62/(1-N60) -> 0 | P64: =P62/(1-P60) -> 0 | Q64: =Q62/(1-Q60) -> 0 | S64: =S62/(1-S60) -> 0 | T64: =T62/(1-T60) -> 0 | V64: =V62/(1-V60) -> 0 | W64: =W62/(1-W60) -> 0 | Y64: =Y62/(1-Y60) -> 0 | Z64: =Z62/(1-Z60) -> 0 | AB64: =AB62/(1-AB60) -> 0 | AC64: =AC62/(1-AC60) -> 0
A65: Grossed Up PILs | D65: =SUM(D64:D64) -> 0 | E65: =SUM(E64:E64) -> 0 | G65: =SUM(G64:G64) -> 0 | H65: =SUM(H64:H64) -> 0 | J65: =SUM(J64:J64) -> 0 | K65: =SUM(K64:K64) -> 0 | M65: =SUM(M64:M64) -> 0 | N65: =SUM(N64:N64) -> 0 | P65: =SUM(P64:P64) -> 0 | Q65: =SUM(Q64:Q64) -> 0 | S65: =SUM(S64:S64) -> 0 | T65: =SUM(T64:T64) -> 0 | V65: =SUM(V64:V64) -> 0 | W65: =SUM(W64:W64) -> 0 | Y65: =SUM(Y64:Y64) -> 0 | Z65: =SUM(Z64:Z64) -> 0 | AB65: =SUM(AB64:AB64) -> 0 | AC65: =SUM(AC64:AC64) -> 0
D68: =E68-1 -> 2014 | E68: =F68-1 -> 2015 | F68: =G68-1 -> 2016 | G68: =H68-1 -> 2017 | H68: =TestYear -> 2018 | I68: =H68+1 -> 2019 | J68: =I68+1 -> 2020 | K68: =J68+1 -> 2021 | L68: =K68+1 -> 2022
A69: Net Fixed Assets
B70: Enter applicable amortization in years: | C70: 25
A71: Opening Gross Fixed Assets | E71: =D73 -> 0 | F71: 0 | G71: 0 | H71: 0 | I71: =H73 -> 0 | J71: =I73 -> 0 | K71: =J73 -> 0 | L71: =K73 -> 0
A72: Gross Capital Additions | D72: ='App.2-FA Proposed REG Invest.'!C62 -> 0 | E72: ='App.2-FA Proposed REG Invest.'!D62 -> 0 | F72: ='App.2-FA Proposed REG Invest.'!E62 -> 0 | G72: ='App.2-FA Proposed REG Invest.'!F62 -> 0 | H72: ='App.2-FA Proposed REG Invest.'!G62 -> 0 | I72: ='App.2-FA Proposed REG Invest.'!H62 -> 0 | J72: ='App.2-FA Proposed REG Invest.'!I62 -> 0 | K72: ='App.2-FA Proposed REG Invest.'!J62 -> 0 | L72: ='App.2-FA Proposed REG Invest.'!K62 -> 0
A73: Closing Gross Fixed Assets | D73: =SUM(D71:D72) -> 0 | E73: 0 | F73: 0 | G73: 0 | H73: =SUM(H71:H72) -> 0 | I73: =SUM(I71:I72) -> 0 | J73: 0 | K73: 0 | L73: 0
A75: Opening Accumulated Amortization | E75: =+D78 -> 0 | F75: =E78 -> 0 | G75: 0 | H75: 0 | I75: 0 | J75: 0 | K75: 0 | L75: 0
A76: Current Year Amortization (before additions) | D76: =IF(ISERROR(D71/$C$70), 0, D71/$C$70) -> 0 | E76: 0 | F76: 0 | G76: 0 | H76: 0 | I76: =IF(ISERROR(I71/$C$70), 0, I71/$C$70) -> 0 | J76: =IF(ISERROR(J71/$C$70), 0, J71/$C$70) -> 0 | K76: =IF(ISERROR(K71/$C$70), 0, K71/$C$70) -> 0 | L76: =IF(ISERROR(L71/$C$70), 0, L71/$C$70) -> 0
A77: Additions (half year) | D77: =D72/$C$70/2 -> 0 | E77: =E72/$C$70/2 -> 0 | F77: =F72/$C$70/2 -> 0 | G77: 0 | H77: =H72/$C$70/2 -> 0 | I77: =I72/C70/2 -> 0 | J77: =J72/C70/2 -> 0 | K77: =K72/C70/2 -> 0 | L77: =L72/C70/2 -> 0
A78: Closing Accumulated Amortization | D78: =SUM(D75+D76+D77) -> 0 | E78: =SUM(E75+E76+E77) -> 0 | F78: =SUM(F75+F76+F77) -> 0 | G78: =SUM(G75+G76+G77) -> 0 | H78: =SUM(H75+H76+H77) -> 0 | I78: =SUM(I75:I77) -> 0 | J78: =SUM(J75:J77) -> 0 | K78: =SUM(K75:K77) -> 0 | L78: =SUM(L75:L77) -> 0
A80: Opening Net Fixed Assets | D80: =D71-D75 -> 0 | E80: 0 | F80: =F71-F75 -> 0 | G80: 0 | H80: =H71-H75 -> 0 | I80: =H81 -> 0 | J80: =I81 -> 0 | K80: =J81 -> 0 | L80: =K81 -> 0
A81: Closing Net Fixed Assets | D81: =D73-D78 -> 0 | E81: =E73-E78 -> 0 | F81: 0 | G81: 0 | H81: =H73-H78 -> 0 | I81: =I73-I78 -> 0 | J81: =J73-J78 -> 0 | K81: =K73-K78 -> 0 | L81: =L73-L78 -> 0
A82: Average Net Fixed Assets | D82: =SUM(D80:D81)/2 -> 0 | E82: 0 | F82: 0 | G82: 0 | H82: =SUM(H80:H81)/2 -> 0 | I82: =SUM(I80:I81)/2 -> 0 | J82: =SUM(J80:J81)/2 -> 0 | K82: =SUM(K80:K81)/2 -> 0 | L82: =SUM(L80:L81)/2 -> 0
A84: UCC for PILs Calculation
D85: =D68 -> 2014 | E85: =E68 -> 2015 | F85: 2016 | G85: 2017 | H85: 2018 | I85: 2019 | J85: 2020 | K85: 2021 | L85: 2022
A87: Opening UCC | E87: =D95 -> 0 | F87: 0 | G87: 0 | H87: 0 | I87: 0 | J87: 0 | K87: 0 | L87: 0
A88: Capital Additions (from Appendix 2-FA) | D88: =D72 -> 0 | E88: 0 | F88: 0 | G88: 0 | H88: =H72 -> 0 | I88: =I72 -> 0 | J88: 0 | K88: 0 | L88: 0
A89: UCC Before Half Year Rule | D89: =SUM(D87:D88) -> 0 | E89: 0 | F89: 0 | G89: 0 | H89: =SUM(H87:H88) -> 0 | I89: =SUM(I87:I88) -> 0 | J89: =SUM(J87:J88) -> 0 | K89: =SUM(K87:K88) -> 0 | L89: =SUM(L87:L88) -> 0
A90: Half Year Rule (1/2 Additions - Disposals) | D90: =D88/2 -> 0 | E90: 0 | F90: 0 | G90: 0 | H90: =H88/2 -> 0 | I90: =I88/2 -> 0 | J90: =J88/2 -> 0 | K90: =K88/2 -> 0 | L90: =L88/2 -> 0
A91: Reduced UCC | D91: =D89-D90 -> 0 | E91: 0 | F91: 0 | G91: 0 | H91: =H89-H90 -> 0 | I91: =I89-I90 -> 0 | J91: =J89-J90 -> 0 | K91: =K89-K90 -> 0 | L91: =L89-L90 -> 0
A92: CCA Rate Class (to be entered) | C92: 47 | D92: =C92 -> 47 | E92: =D92 -> 47 | F92: 47 | G92: 47 | H92: 47 | I92: 47 | J92: 47 | K92: 47 | L92: 47
A93: CCA Rate (to be entered) | C93: 0.08 | D93: =C93 -> 0.08 | E93: 0.08 | F93: 0.08 | G93: 0.08 | H93: 0.08 | I93: 0.08 | J93: 0.08 | K93: 0.08 | L93: 0.08
A94: CCA | D94: =D91*D93 -> 0 | E94: 0 | F94: 0 | G94: 0 | H94: =H91*H93 -> 0 | I94: =I91*I93 -> 0 | J94: 0 | K94: 0 | L94: =L91*L93 -> 0
A95: Closing UCC | D95: =D89-D94 -> 0 | E95: 0 | F95: 0 | G95: 0 | H95: =H89-H94 -> 0 | I95: =I89-I94 -> 0 | J95: =J89-J94 -> 0 | K95: =K89-K94 -> 0 | L95: =L89-L94 -> 0

Sheet App.2-FC Calc of REG Expansion
N1: File Number: | O1: =EBNUMBER -> EB-2017-0048
N2: Exhibit:
N3: Tab:
N4: Schedule:
N5: Page:
N7: Date:
A9: Appendix 2-FC
A10: Calculation of Renewable Generation Connection Direct Benefits/Provincial Amount: Renewable Expansion Investments
A12: This table will calculate the distributor/provincial shares of the investments entered in Part B of Appendix 2-FA.
A13: Enter values in green shaded cells: WCA percentage, debt percentages, interest rates, kWh, tax rates, amortization period, CCA Class and percentage.
A14: For historical investments, enter these variables for your last cost of service test year. For 2016 and beyond, enter variables as in the application.
A15: Rate Riders are not calculated for the Test Year as these assets and costs are already in the distributor's rate base.
D18: =G18-1 -> 2014 | G18: =J18-1 -> 2015 | J18: =M18-1 -> 2016 | M18: =BridgeYear -> 2017 | P18: =CONCATENATE(TestYear," Test Year") -> 2018 Test Year | S18: =TestYear+1 -> 2019 | T18: 2016 | V18: =S18+1 -> 2020 | Y18: =V18+1 -> 2021 | AB18: =Y18+1 -> 2022
E19: Direct Benefit | F19: Provincial | H19: Direct Benefit | I19: Provincial | K19: Direct Benefit | L19: Provincial | N19: Direct Benefit | O19: Provincial | Q19: Direct Benefit | R19: Provincial | T19: Direct Benefit | U19: Provincial | W19: Direct Benefit | X19: Provincial | Z19: Direct Benefit | AA19: Provincial | AC19: Direct Benefit | AD19: Provincial
D20: Total | E20: 0.17 | F20: 0.83 | G20: Total | H20: 0.17 | I20: 0.83 | J20: Total | K20: 0.17 | L20: 0.83 | M20: Total | N20: 0.17 | O20: 0.83 | P20: Total | Q20: 0.17 | R20: 0.83 | S20: Total | T20: 0.17 | U20: 0.83 | V20: Total | W20: 0.17 | X20: 0.83 | Y20: Total | Z20: 0.17 | AA20: 0.83 | AB20: Total | AC20: 0.17 | AD20: 0.83
A21: Net Fixed Assets (average) | D21: =D82 -> 0 | E21: =D21*E20 -> 0 | F21: =D21*F20 -> 0 | G21: =E82 -> 0 | H21: =G21*H20 -> 0 | I21: =G21*I20 -> 0 | J21: =F82 -> 0 | K21: =J21*K20 -> 0 | L21: =J21*L20 -> 0 | M21: =G82 -> 0 | N21: =M21*N20 -> 0 | O21: =M21*O20 -> 0 | P21: =H82 -> 0 | Q21: =P21*Q20 -> 0 | R21: =P21*R20 -> 0 | S21: =I82 -> 0 | T21: =S21*T20 -> 0 | U21: =S21*U20 -> 0 | V21: =J82 -> 0 | W21: =V21*W20 -> 0 | X21: =V21*X20 -> 0 | Y21: =K82 -> 0 | Z21: =Y21*Z20 -> 0 | AA21: =Y21*AA20 -> 0 | AB21: =L82 -> 0 | AC21: =AB21*AC20 -> 0 | AD21: =AB21*AD20 -> 0
A22: Incremental OM&A (on-going, N/A for Provincial Recovery) | D22: ='App.2-FA Proposed REG Invest.'!C101 -> 0 | E22: =D22 -> 0 | G22: ='App.2-FA Proposed REG Invest.'!D$101 -> 0 | H22: =G22 -> 0 | J22: ='App.2-FA Proposed REG Invest.'!E$101 -> 0 | K22: =J22 -> 0 | M22: ='App.2-FA Proposed REG Invest.'!F$101 -> 0 | N22: =M22 -> 0 | P22: ='App.2-FA Proposed REG Invest.'!G$101 -> 0 | Q22: =P22 -> 0 | S22: ='App.2-FA Proposed REG Invest.'!H$101 -> 0 | T22: =S22 -> 0 | V22: ='App.2-FA Proposed REG Invest.'!I$101 -> 0 | W22: =V22 -> 0 | Y22: ='App.2-FA Proposed REG Invest.'!J$101 -> 0 | Z22: =Y22 -> 0 | AB22: ='App.2-FA Proposed REG Invest.'!K$101 -> 0 | AC22: =AB22 -> 0
A23: Incremental OM&A (start-up, applicable for Provincial Recovery) | D23: ='App.2-FA Proposed REG Invest.'!C100 -> 0 | E23: =D23*E20 -> 0 | F23: =D23*F20 -> 0 | G23: ='App.2-FA Proposed REG Invest.'!D$100 -> 0 | H23: =G23*H20 -> 0 | I23: =G23*I20 -> 0 | J23: ='App.2-FA Proposed REG Invest.'!E$100 -> 0 | K23: =J23*K20 -> 0 | L23: =J23*L20 -> 0 | M23: ='App.2-FA Proposed REG Invest.'!F$100 -> 0 | N23: =M23*N20 -> 0 | O23: =M23*O20 -> 0 | P23: ='App.2-FA Proposed REG Invest.'!G$100 -> 0 | Q23: =P23*Q20 -> 0 | R23: =P23*R20 -> 0 | S23: ='App.2-FA Proposed REG Invest.'!H$100 -> 0 | T23: =S23*T20 -> 0 | U23: =S23*U20 -> 0 | V23: ='App.2-FA Proposed REG Invest.'!I$100 -> 0 | W23: =V23*W20 -> 0 | X23: =V23*X20 -> 0 | Y23: ='App.2-FA Proposed REG Invest.'!J$100 -> 0 | Z23: =Y23*Z20 -> 0 | AA23: =Y23*AA20 -> 0 | AB23: ='App.2-FA Proposed REG Invest.'!K$100 -> 0 | AC23: =AB23*AC20 -> 0 | AD23: =AB23*AD20 -> 0
A24: WCA | E24: =(E22+E23)*$B$24 -> 0 | F24: =F23*$B$24 -> 0 | H24: =(H22+H23)*$B$24 -> 0 | I24: =I23*$B$24 -> 0 | K24: =(K22+K23)*$B$24 -> 0 | L24: =L23*$B$24 -> 0 | N24: =(N22+N23)*$B$24 -> 0 | O24: =O23*$B$24 -> 0 | Q24: =(Q22+Q23)*$B$24 -> 0 | R24: =R23*$B$24 -> 0 | T24: =(T22+T23)*$B$24 -> 0 | U24: =U23*$B$24 -> 0 | W24: =(W22+W23)*$B$24 -> 0 | X24: =X23*$B$24 -> 0 | Z24: =(Z22+Z23)*$B$24 -> 0 | AA24: =AA23*$B$24 -> 0 | AC24: =(AC22+AC23)*$B$24 -> 0 | AD24: =AD23*$B$24 -> 0
A25: Rate Base | E25: =SUM(E21+E24) -> 0 | F25: =SUM(F21+F24) -> 0 | H25: =SUM(H21+H24) -> 0 | I25: =SUM(I21+I24) -> 0 | K25: =SUM(K21+K24) -> 0 | L25: =SUM(L21+L24) -> 0 | N25: =SUM(N21+N24) -> 0 | O25: =SUM(O21+O24) -> 0 | Q25: =SUM(Q21+Q24) -> 0 | R25: =SUM(R21+R24) -> 0 | T25: =SUM(T21+T24) -> 0 | U25: =SUM(U21+U24) -> 0 | W25: =SUM(W21+W24) -> 0 | X25: =SUM(X21+X24) -> 0 | Z25: =SUM(Z21+Z24) -> 0 | AA25: =SUM(AA21+AA24) -> 0 | AC25: =SUM(AC21+AC24) -> 0 | AD25: =SUM(AD21+AD24) -> 0
A28: Deemed ST Debt | E28: =E25*$B$28 -> 0 | F28: =F25*$B$28 -> 0 | H28: =H25*$B$28 -> 0 | I28: =I25*$B$28 -> 0 | K28: =K25*$B$28 -> 0 | L28: =L25*$B$28 -> 0 | N28: =N25*$B$28 -> 0 | O28: =O25*$B$28 -> 0 | Q28: =Q25*$B$28 -> 0 | R28: =R25*$B$28 -> 0 | T28: =T25*$B$28 -> 0 | U28: =U25*$B$28 -> 0 | W28: =W25*$B$28 -> 0 | X28: =X25*$B$28 -> 0 | Z28: =Z25*$B$28 -> 0 | AA28: =AA25*$B$28 -> 0 | AC28: =AC25*$B$28 -> 0 | AD28: =AD25*$B$28 -> 0
A29: Deemed LT Debt | E29: =E25*$B$29 -> 0 | F29: =F25*$B$29 -> 0 | H29: =H25*$B$29 -> 0 | I29: =I25*$B$29 -> 0 | K29: =K25*$B$29 -> 0 | L29: =L25*$B$29 -> 0 | N29: =N25*$B$29 -> 0 | O29: =O25*$B$29 -> 0 | Q29: =Q25*$B$29 -> 0 | R29: =R25*$B$29 -> 0 | T29: =T25*$B$29 -> 0 | U29: =U25*$B$29 -> 0 | W29: =W25*$B$29 -> 0 | X29: =X25*$B$29 -> 0 | Z29: =Z25*$B$29 -> 0 | AA29: =AA25*$B$29 -> 0 | AC29: =AC25*$B$29 -> 0 | AD29: =AD25*$B$29 -> 0
A30: Deemed Equity | E30: =E25*$B$30 -> 0 | F30: =F25*$B$30 -> 0 | H30: =H25*$B$30 -> 0 | I30: =I25*$B$30 -> 0 | K30: =K25*$B$30 -> 0 | L30: =L25*$B$30 -> 0 | N30: =N25*$B$30 -> 0 | O30: =O25*$B$30 -> 0 | Q30: =Q25*$B$30 -> 0 | R30: =R25*$B$30 -> 0 | T30: =T25*$B$30 -> 0 | U30: =U25*$B$30 -> 0 | W30: =W25*$B$30 -> 0 | X30: =X25*$B$30 -> 0 | Z30: =Z25*$B$30 -> 0 | AA30: =AA25*$B$30 -> 0 | AC30: =AC25*$B$30 -> 0 | AD30: =AD25*$B$30 -> 0
A32: ST Interest | E32: =E28*$B$32 -> 0 | F32: =F28*$B$32 -> 0 | H32: =H28*$B$32 -> 0 | I32: =I28*$B$32 -> 0 | K32: =K28*$B$32 -> 0 | L32: =L28*$B$32 -> 0 | N32: =N28*$B$32 -> 0 | O32: =O28*$B$32 -> 0 | Q32: =Q28*$B$32 -> 0 | R32: =R28*$B$32 -> 0 | T32: =T28*$B$32 -> 0 | U32: =U28*$B$32 -> 0 | W32: =W28*$B$32 -> 0 | X32: =X28*$B$32 -> 0 | Z32: =Z28*$B$32 -> 0 | AA32: =AA28*$B$32 -> 0 | AC32: =AC28*$B$32 -> 0 | AD32: =AD28*$B$32 -> 0
A33: LT Interest | E33: =E29*$B$33 -> 0 | F33: =F29*$B$33 -> 0 | H33: =H29*$B$33 -> 0 | I33: =I29*$B$33 -> 0 | K33: =K29*$B$33 -> 0 | L33: =L29*$B$33 -> 0 | N33: =N29*$B$33 -> 0 | O33: =O29*$B$33 -> 0 | Q33: =Q29*$B$33 -> 0 | R33: =R29*$B$33 -> 0 | T33: =T29*$B$33 -> 0 | U33: =U29*$B$33 -> 0 | W33: =W29*$B$33 -> 0 | X33: =X29*$B$33 -> 0 | Z33: =Z29*$B$33 -> 0 | AA33: =AA29*$B$33 -> 0 | AC33: =AC29*$B$33 -> 0 | AD33: =AD29*$B$33 -> 0
A34: ROE | E34: =E30*$B$34 -> 0 | F34: =F30*$B$34 -> 0 | H34: =H30*$B$34 -> 0 | I34: =I30*$B$34 -> 0 | K34: =K30*$B$34 -> 0 | L34: =L30*$B$34 -> 0 | N34: =N30*$B$34 -> 0 | O34: =O30*$B$34 -> 0 | Q34: =Q30*$B$34 -> 0 | R34: =R30*$B$34 -> 0 | T34: =T30*$B$34 -> 0 | U34: =U30*$B$34 -> 0 | W34: =W30*$B$34 -> 0 | X34: =X30*$B$34 -> 0 | Z34: =Z30*$B$34 -> 0 | AA34: =AA30*$B$34 -> 0 | AC34: =AC30*$B$34 -> 0 | AD34: =AD30*$B$34 -> 0
A35: Cost of Capital Total | E35: =SUM(E32:E34) -> 0 | F35: =SUM(F32:F34) -> 0 | H35: =SUM(H32:H34) -> 0 | I35: =SUM(I32:I34) -> 0 | K35: =SUM(K32:K34) -> 0 | L35: =SUM(L32:L34) -> 0 | N35: =SUM(N32:N34) -> 0 | O35: =SUM(O32:O34) -> 0 | Q35: =SUM(Q32:Q34) -> 0 | R35: =SUM(R32:R34) -> 0 | T35: =SUM(T32:T34) -> 0 | U35: =SUM(U32:U34) -> 0 | W35: =SUM(W32:W34) -> 0 | X35: =SUM(X32:X34) -> 0 | Z35: =SUM(Z32:Z34) -> 0 | AA35: =SUM(AA32:AA34) -> 0 | AC35: =SUM(AC32:AC34) -> 0 | AD35: =SUM(AD32:AD34) -> 0
A37: OM&A | E37: =E22+E23 -> 0 | F37: =F23 -> 0 | H37: =H22+H23 -> 0 | I37: =I23 -> 0 | K37: =K22+K23 -> 0 | L37: =L23 -> 0 | N37: =N22+N23 -> 0 | O37: =O23 -> 0 | Q37: =Q22+Q23 -> 0 | R37: =R23 -> 0 | T37: =T22+T23 -> 0 | U37: =U23 -> 0 | W37: =W22+W23 -> 0 | X37: =X23 -> 0 | Z37: =Z22+Z23 -> 0 | AA37: =AA23 -> 0 | AC37: =AC22+AC23 -> 0 | AD37: =AD23 -> 0
A38: Amortization | D38: =D78 -> 0 | E38: =D38*E$20 -> 0 | F38: =D38*F$20 -> 0 | G38: =E78 -> 0 | H38: =G38*H$20 -> 0 | I38: =G38*I$20 -> 0 | J38: =F78 -> 0 | K38: =J38*K$20 -> 0 | L38: =J38*L$20 -> 0 | M38: =G78 -> 0 | N38: =M38*N$20 -> 0 | O38: =M38*O$20 -> 0 | P38: =H76+H77 -> 0 | Q38: =P38*Q$20 -> 0 | R38: =P38*R$20 -> 0 | S38: =I76+I77 -> 0 | T38: =S38*T$20 -> 0 | U38: =S38*U$20 -> 0 | V38: =J76+J77 -> 0 | W38: =V38*W$20 -> 0 | X38: =V38*X$20 -> 0 | Y38: =K76+K77 -> 0 | Z38: =Y38*Z$20 -> 0 | AA38: =Y38*AA$20 -> 0 | AB38: =L76+L77 -> 0 | AC38: =AB38*AC$20 -> 0 | AD38: =AB38*AD$20 -> 0
A39: Grossed-up PILs | E39: =E66 -> 0 | F39: =F66 -> 0 | H39: =H66 -> 0 | I39: =I66 -> 0 | K39: =K66 -> 0 | L39: =L66 -> 0 | N39: =N66 -> 0 | O39: =O66 -> 0 | Q39: =Q66 -> 0 | R39: =R66 -> 0 | T39: =T66 -> 0 | U39: =U66 -> 0 | W39: =W66 -> 0 | X39: =X66 -> 0 | Z39: =Z66 -> 0 | AA39: =AA66 -> 0 | AC39: =AC66 -> 0 | AD39: =AD66 -> 0
A41: Revenue Requirement | E41: =SUM(E35:E39) -> 0 | F41: =SUM(F35:F39) -> 0 | H41: =SUM(H35:H39) -> 0 | I41: =SUM(I35:I39) -> 0 | K41: =SUM(K35:K39) -> 0 | L41: =SUM(L35:L39) -> 0 | N41: =SUM(N35:N39) -> 0 | O41: =SUM(O35:O39) -> 0 | Q41: =SUM(Q35:Q39) -> 0 | R41: =SUM(R35:R39) -> 0 | T41: =SUM(T35:T39) -> 0 | U41: =SUM(U35:U39) -> 0 | W41: =SUM(W35:W39) -> 0 | X41: =SUM(X35:X39) -> 0 | Z41: =SUM(Z35:Z39) -> 0 | AA41: =SUM(AA35:AA39) -> 0 | AC41: =SUM(AC35:AC39) -> 0 | AD41: =SUM(AD35:AD39) -> 0
A44: Provincial Rate Protection | F44: =F41 -> 0 | I44: =I41 -> 0 | L44: =L41 -> 0 | O44: =O41 -> 0 | R44: =R41 -> 0 | U44: =U41 -> 0 | X44: =X41 -> 0 | AA44: =AA41 -> 0 | AD44: =AD41 -> 0
A46: Monthly Amount Paid by IESO | F46: =F44/12 -> 0 | I46: =I44/12 -> 0 | L46: =L44/12 -> 0 | O46: =O44/12 -> 0 | R46: =R44/12 -> 0 | U46: =U44/12 -> 0 | X46: =X44/12 -> 0 | AA46: =AA44/12 -> 0 | AD46: =AD44/12 -> 0
A48: Note 1: The difference between the actual costs of approved eligible investments and revenue received from the IESO should be recorded in a variance account. The Board may provide
A49: regulatory accounting guidance regarding a variance account either in an individual proceeding or on a generic basis.
A50: Note 2: For the 2016 Test Year, Costs and Revenues of the Direct Benefit are to be included in the test year applicant Rate Base and Revenues.
A52: PILs Calculation
E53: =D18 -> 2014 | H53: =G18 -> 2015 | K53: =J18 -> 2016 | N53: =M18 -> 2017 | Q53: =P18 -> 2018 Test Year | T53: =S18 -> 2019 | W53: =V18 -> 2020 | Z53: =Y18 -> 2021 | AC53: =AB18 -> 2022
A54: Income Tax | E54: Direct Benefit | F54: Provincial | H54: Direct Benefit | I54: Provincial | K54: Direct Benefit | L54: Provincial | N54: Direct Benefit | O54: Provincial | Q54: Direct Benefit | R54: Provincial | T54: Direct Benefit | U54: Provincial | W54: Direct Benefit | X54: Provincial | Z54: Direct Benefit | AA54: Provincial | AC54: Direct Benefit | AD54: Provincial
V55: Total | Y55: Total | AB55: Total
A56: Net Income - ROE on Rate Base | E56: =E34 -> 0 | F56: =F34 -> 0 | H56: =H34 -> 0 | I56: =I34 -> 0 | K56: =K34 -> 0 | L56: =L34 -> 0 | N56: =N34 -> 0 | O56: =O34 -> 0 | Q56: =Q34 -> 0 | R56: =R34 -> 0 | T56: =T34 -> 0 | U56: =U34 -> 0 | W56: =W34 -> 0 | X56: =X34 -> 0 | Z56: =Z34 -> 0 | AA56: =AA34 -> 0 | AC56: =AC34 -> 0 | AD56: =AD34 -> 0
A57: Amortization (17% DB and 83% P) | E57: =E38 -> 0 | F57: =F38 -> 0 | H57: =H38 -> 0 | I57: =I38 -> 0 | K57: =K38 -> 0 | L57: =L38 -> 0 | N57: =N38 -> 0 | O57: =O38 -> 0 | Q57: =Q38 -> 0 | R57: =R38 -> 0 | T57: =T38 -> 0 | U57: =U38 -> 0 | W57: =W38 -> 0 | X57: =X38 -> 0 | Z57: =Z38 -> 0 | AA57: =AA38 -> 0 | AC57: =AC38 -> 0 | AD57: =AD38 -> 0
A58: CCA (17% DB and 83% P) | E58: =-D94*E$20 -> 0 | F58: =-D94*F$20 -> 0 | H58: =-E94*H$20 -> 0 | I58: =-E94*I$20 -> 0 | K58: =-F94*K$20 -> 0 | L58: =-F94*L$20 -> 0 | N58: =-G94*N$20 -> 0 | O58: =-G94*O$20 -> 0 | Q58: =-H94*Q$20 -> 0 | R58: =-H94*R$20 -> 0 | T58: =-I94*T$20 -> 0 | U58: =-I94*U$20 -> 0 | W58: =-J94*W$20 -> 0 | X58: =-J94*X$20 -> 0 | Z58: =-K94*Z$20 -> 0 | AA58: =-K94*AA$20 -> 0 | AC58: =-L94*AC$20 -> 0 | AD58: =-L94*AD$20 -> 0
A59: Taxable income | E59: =SUM(E56:E58) -> 0 | F59: =SUM(F56:F58) -> 0 | H59: =SUM(H56:H58) -> 0 | I59: =SUM(I56:I58) -> 0 | K59: =SUM(K56:K58) -> 0 | L59: =SUM(L56:L58) -> 0 | N59: =SUM(N56:N58) -> 0 | O59: =SUM(O56:O58) -> 0 | Q59: =SUM(Q56:Q58) -> 0 | R59: =SUM(R56:R58) -> 0 | T59: =SUM(T56:T58) -> 0 | U59: =SUM(U56:U58) -> 0 | W59: =SUM(W56:W58) -> 0 | X59: =SUM(X56:X58) -> 0 | Z59: =SUM(Z56:Z58) -> 0 | AA59: =SUM(AA56:AA58) -> 0 | AC59: =SUM(AC56:AC58) -> 0 | AD59: =SUM(AD56:AD58) -> 0
A61: Tax Rate (to be entered)
A63: Income Taxes Payable | E63: =E59*E61 -> 0 | F63: =F59*F61 -> 0 | H63: =H59*H61 -> 0 | I63: =I59*I61 -> 0 | K63: =K59*K61 -> 0 | L63: =L59*L61 -> 0 | N63: =N59*N61 -> 0 | O63: =O59*O61 -> 0 | Q63: =Q59*Q61 -> 0 | R63: =R59*R61 -> 0 | T63: =T59*T61 -> 0 | U63: =U59*U61 -> 0 | W63: =W59*W61 -> 0 | X63: =X59*X61 -> 0 | Z63: =Z59*Z61 -> 0 | AA63: =AA59*AA61 -> 0 | AC63: =AC59*AC61 -> 0 | AD63: =AD59*AD61 -> 0
A64: Gross Up
A65: Income Taxes Payable | E65: =E63/(1-E61) -> 0 | F65: =F63/(1-F61) -> 0 | H65: =H63/(1-H61) -> 0 | I65: =I63/(1-I61) -> 0 | K65: =K63/(1-K61) -> 0 | L65: =L63/(1-L61) -> 0 | N65: =N63/(1-N61) -> 0 | O65: =O63/(1-O61) -> 0 | Q65: =Q63/(1-Q61) -> 0 | R65: =R63/(1-R61) -> 0 | T65: =T63/(1-T61) -> 0 | U65: =U63/(1-U61) -> 0 | W65: =W63/(1-W61) -> 0 | X65: =X63/(1-X61) -> 0 | Z65: =Z63/(1-Z61) -> 0 | AA65: =AA63/(1-AA61) -> 0 | AC65: =AC63/(1-AC61) -> 0 | AD65: =AD63/(1-AD61) -> 0
A66: Grossed Up PILs | E66: =SUM(E65:E65) -> 0 | F66: =SUM(F65:F65) -> 0 | H66: =SUM(H65:H65) -> 0 | I66: =SUM(I65:I65) -> 0 | K66: =SUM(K65:K65) -> 0 | L66: =SUM(L65:L65) -> 0 | N66: =SUM(N65:N65) -> 0 | O66: =SUM(O65:O65) -> 0 | Q66: =SUM(Q65:Q65) -> 0 | R66: =SUM(R65:R65) -> 0 | T66: =SUM(T65:T65) -> 0 | U66: =SUM(U65:U65) -> 0 | W66: =SUM(W65:W65) -> 0 | X66: =SUM(X65:X65) -> 0 | Z66: =SUM(Z65:Z65) -> 0 | AA66: =SUM(AA65:AA65) -> 0 | AC66: =SUM(AC65:AC65) -> 0 | AD66: =SUM(AD65:AD65) -> 0
A69: Net Fixed Assets | D69: 2011 | E69: 2012 | F69: 2013 | G69: 2014 | H69: 2015 | I69: 2016 | J69: 2017 | K69: 2018 | L69: 2019
B70: Enter applicable amortization in years: | C70: 25
A71: Opening Gross Fixed Assets | E71: =D73 -> 0 | F71: 0 | G71: 0 | H71: 0 | I71: 0 | J71: 0 | K71: 0 | L71: 0
A72: Gross Capital Additions | D72: ='App.2-FA Proposed REG Invest.'!C99 -> 0 | E72: ='App.2-FA Proposed REG Invest.'!D99 -> 0 | F72: ='App.2-FA Proposed REG Invest.'!E99 -> 0 | G72: ='App.2-FA Proposed REG Invest.'!F99 -> 0 | H72: ='App.2-FA Proposed REG Invest.'!G99 -> 0 | I72: ='App.2-FA Proposed REG Invest.'!H99 -> 0 | J72: ='App.2-FA Proposed REG Invest.'!I99 -> 0 | K72: ='App.2-FA Proposed REG Invest.'!J99 -> 0 | L72: ='App.2-FA Proposed REG Invest.'!K99 -> 0
A73: Closing Gross Fixed Assets | D73: =SUM(D71:D72) -> 0 | E73: 0 | F73: 0 | G73: 0 | H73: 0 | I73: 0 | J73: 0 | K73: 0 | L73: 0
A75: Opening Accumulated Amortization | E75: =+D78 -> 0 | F75: =E78 -> 0 | G75: 0 | H75: =G78 -> 0 | I75: =H78 -> 0 | J75: =I78 -> 0 | K75: =J78 -> 0 | L75: =K78 -> 0
A76: Current Year Amortization (before additions) | E76: =IF(ISERROR(E71/$C$70), 0, E71/$C$70) -> 0 | F76: 0 | G76: 0 | H76: =H71/$C$70 -> 0 | I76: =I71/$C$70 -> 0 | J76: =J71/$C$70 -> 0 | K76: =K71/$C$70 -> 0 | L76: =L71/$C$70 -> 0
A77: Additions (half year) | D77: =D72/C70/2 -> 0 | E77: =E72/C70/2 -> 0 | F77: =F72/C70/2 -> 0 | G77: =G72/C70/2 -> 0 | H77: =H72/C70/2 -> 0 | I77: =I72/C70/2 -> 0 | J77: =J72/C70/2 -> 0 | K77: =K72/C70/2 -> 0 | L77: =L72/C70/2 -> 0
A78: Closing Accumulated Amortization | D78: =SUM(D75+D77) -> 0 | E78: =SUM(E75:E77) -> 0 | F78: 0 | G78: 0 | H78: 0 | I78: 0 | J78: 0 | K78: 0 | L78: 0
A80: Opening Net Fixed Assets | D80: =D71-D75 -> 0 | E80: =E71-E75 -> 0 | F80: =F71-F75 -> 0 | G80: =G71-G75 -> 0 | H80: =G81 -> 0 | I80: =H81 -> 0 | J80: =I81 -> 0 | K80: =J81 -> 0 | L80: =K81 -> 0
A81: Closing Net Fixed Assets | D81: =D73-D78 -> 0 | E81: 0 | F81: 0 | G81: 0 | H81: 0 | I81: 0 | J81: 0 | K81: 0 | L81: 0
A82: Average Net Fixed Assets | D82: =SUM(D80:D81)/2 -> 0 | E82: 0 | F82: 0 | G82: 0 | H82: 0 | I82: 0 | J82: 0 | K82: 0 | L82: 0
A84: UCC for PILs Calculation
D85: 2014 | E85: 2014 | F85: 2014 | G85: 2014 | H85: 2015 | I85: 2016 | J85: 2017 | K85: 2018 | L85: 2019
A87: Opening UCC | E87: =D95 -> 0 | F87: 0 | G87: 0 | H87: 0 | I87: 0 | J87: 0 | K87: 0 | L87: 0
A88: Capital Additions (from Appendix 2-FA) | D88: =D72 -> 0 | E88: 0 | F88: 0 | G88: 0 | H88: 0 | I88: 0 | J88: 0 | K88: 0 | L88: 0
A89: UCC Before Half Year Rule | D89: =SUM(D87:D88) -> 0 | E89: 0 | F89: 0 | G89: 0 | H89: 0 | I89: 0 | J89: 0 | K89: 0 | L89: 0
A90: Half Year Rule (1/2 Additions - Disposals) | D90: =D88/2 -> 0 | E90: 0 | F90: 0 | G90: 0 | H90: 0 | I90: 0 | J90: 0 | K90: 0 | L90: 0
A91: Reduced UCC | D91: =D89-D90 -> 0 | E91: 0 | F91: 0 | G91: 0 | H91: 0 | I91: 0 | J91: 0 | K91: 0 | L91: 0
A92: CCA Rate Class (to be entered) | C92: 47 | D92: =$C$92 -> 47 | E92: =$C$92 -> 47 | F92: 47 | G92: 47 | H92: 47 | I92: 47 | J92: 47 | K92: 47 | L92: 47
A93: CCA Rate (to be entered) | C93: 0.08 | D93: =$C$93 -> 0.08 | E93: =$C$93 -> 0.08 | F93: 0.08 | G93: 0.08 | H93: 0.08 | I93: 0.08 | J93: 0.08 | K93: 0.08 | L93: 0.08
A94: CCA | D94: =D91*D$93 -> 0 | E94: =E91*E$93 -> 0 | F94: =F91*F$93 -> 0 | G94: =G91*G$93 -> 0 | H94: =H91*H$93 -> 0 | I94: 0 | J94: 0 | K94: 0 | L94: 0
A95: Closing UCC | D95: =D89-D94 -> 0 | E95: 0 | F95: 0 | G95: 0 | H95: 0 | I95: 0 | J95: 0 | K95: 0 | L95: 0

Sheet App.2-G SQI
M1: File Number: | O1: =EBNUMBER -> EB-2017-0048
M2: Exhibit:
M3: Tab:
M4: Schedule:
M5: Page:
M7: Date:
A9: Appendix 2-G
A10: Service Reliability and Quality Indicators
A11: 2011 - 2015
A13: Service Reliability
A15: Index | B15: Including outages caused by loss of supply | G15: Excluding outages caused by loss of supply | L15: Excluding Major Event Days
B16: =TestYear-6 -> 2012 | C16: =TestYear-5 -> 2013 | D16: =TestYear-4 -> 2014 | E16: =TestYear-3 -> 2015 | F16: =TestYear-2 -> 2016 | G16: =B16 -> 2012 | H16: 2013 | I16: 2014 | J16: 2015 | K16: 2016 | L16: 2012 | M16: 2013 | N16: 2014 | O16: 2015 | P16: 2016
A17: SAIDI | B17: 0.7771314 | C17: 4.605978 | D17: 11.33052 | E17: 2.638378 | F17: 7.653 | G17: 0.7576 | H17: 1.08953 | I17: 0.13341 | J17: 1.10862 | K17: 1.393 | L17: 0.7576 | M17: 1.08953 | N17: 0.13341 | O17: 1.10862 | P17: 1.393
A18: SAIFI | B18: 0.88858964 | C18: 1.6728 | D18: 5.0727 | E18: 1.444 | F18: 1.823 | G18: 0.6932 | H18: 0.4715 | I18: 0.2542 | J18: 0.4829 | K18: 0.603 | L18: 0.6932 | M18: 0.4715 | N18: 0.2542 | O18: 0.4829 | P18: 0.603
A20: 5 Year Historical Average
A21: SAIDI | F21: =IF(ISERROR(AVERAGE(B17:F17)), "", AVERAGE(B17:F17)) -> 5.40100148 | K21: =IF(ISERROR(AVERAGE(G17:K17)), "", AVERAGE(G17:K17)) -> 0.896432 | P21: =IF(ISERROR(AVERAGE(L17:P17)), "", AVERAGE(L17:P17)) -> 0.896432
A22: SAIFI | F22: =IF(ISERROR(AVERAGE(B18:F18)), "", AVERAGE(B18:F18)) -> 2.180217928 | K22: =IF(ISERROR(AVERAGE(G18:K18)), "", AVERAGE(G18:K18)) -> 0.50096 | P22: =IF(ISERROR(AVERAGE(L18:P18)), "", AVERAGE(L18:P18)) -> 0.50096
A24: SAIDI = System Average Interruption Duration Index
A25: SAIFI = System Average Interruption Frequency Index
A27: Service Quality
A29: Indicator | F29: Oeb minimum standard | G29: 2012 | H29: 2013 | I29: 2014 | J29: 2015 | K29: 2016
A30: Low voltage connections | F30: 0.9 | G30: 1 | H30: 1 | I30: 1 | J30: 1 | K30: 1
A31: High voltage connections | F31: 0.9 | G31: 1 | H31: 1 | I31: 1 | J31: 1 | K31: 1
A32: Appointment scheduling | F32: 0.65 | G32: 1 | H32: 1 | I32: 1 | J32: 1 | K32: 0.983
A33: Appointments met | F33: 0.9 | G33: 0.978 | H33: 0.974 | I33: 1 | J33: 1 | K33: 0.952
A34: Telephone accessibility | F34: 0.8 | G34: 0.999 | H34: 1 | I34: 0.999 | J34: 0.999 | K34: 1
A35: Rescheduling a missed appointment | F35: 0.8 | G35: 1 | H35: 1 | I35: 1 | J35: 1 | K35: 1
A36: Telephone call abandon rate | F36: 0.1 | G36: 0.001 | H36: 0 | I36: 0 | J36: 0 | K36: 0
A37: Written response to enquires | F37: 0.8 | G37: 1 | H37: 1 | I37: 1 | J37: 1 | K37: 0.996
A38: Emergency urban response | F38: 0.9 | G38: 1 | H38: 1 | I38: 1 | J38: 1 | K38: 1
A39: Emergency rural response | F39: 1 | G39: N/a | H39: N/a | I39: N/a | J39: N/a | K39: n/a
A40: Reconnection performance standard | F40: 0.85 | G40: 1 | H40: 1 | I40: 1 | J40: 1 | K40: 1
A41: Micro-embedded generation facilities | F41: 0.9 | G41: 1 | H41: 1 | I41: 1 | J41: 1 | K41: 1

Sheet App.2-H_Other_Oper_Rev
G1: File Number: | H1: =EBNUMBER -> EB-2017-0048
G2: Exhibit:
G3: Tab:
G4: Schedule:
G5: Page:
G7: Date:
A9: Appendix 2-H
A10: Other Operating Revenue
A12: USoA # | B12: USoA Description | C12: =F13-2 & " Actual" -> 2014 Actual | D12: =F13-1 & " Actual" -> 2015 Actual | E12: =F13 & " Actual" & CHAR(178) -> 2016 Actual² | F12: ="Actual Year" & CHAR(178) -> Actual Year² | G12: ="Bridge Year" & CHAR(178) -> Bridge Year² | H12: Test Year
C13: =D13-1 -> 2014 | D13: =E13-1 -> 2015 | E13: =F13 -> 2016 | F13: =G13-1 -> 2016 | G13: =BridgeYear -> 2017 | H13: =TestYear -> 2018
B14: Reporting Basis
B15: 4235-Miscellaneous Service Revenues | C15: 70000 | D15: -64182.41 | E15: -68253.77 | F15: -64302.88 | G15: -64625 | H15: -64948
B16: 4225-Late Payment Charges | C16: 30000 | D16: -36576 | E16: -29927.62 | F16: -29444.89 | G16: -29592 | H16: -29740
B17: 4082-Retail Services Revenues | C17: 0 | D17: 0 | E17: 0 | F17: 0 | G17: -6349 | H17: -6381
B18: 4084-Service Transaction Requests (STR) Revenues | C18: 0 | D18: 0 | E18: 0 | F18: 0 | G18: -110 | H18: -111
B19: 4086-SSS Administration Revenue | C19: 0 | D19: 0 | E19: 0 | F19: 0 | G19: 0 | H19: 0
B20: 4205-Interdepartmental Rents | C20: 0 | D20: 0 | E20: 0 | F20: 0 | G20: 0 | H20: 0
B21: 4210-Rent from Electric Property | C21: -16739.44 | D21: -17377.39 | E21: -25479.1 | F21: -26790.7 | G21: -24164 | H21: -24285
B22: 4215-Other Utility Operating Income | C22: 0 | D22: 0 | E22: 0 | F22: 0 | G22: 0 | H22: 0
B23: 4220-Other Electric Revenues | C23: 0 | D23: 0 | E23: 0 | F23: 0 | G23: 0 | H23: 0
B24: 4240-Provision for Rate Refunds | C24: 0 | D24: 0 | E24: 0 | F24: 0 | G24: 0 | H24: 0
B25: 4245-Government Assistance Directly Credited to Income | C25: 0 | D25: 0 | E25: 0 | F25: 0 | G25: 0 | H25: 0
B26: 4305-Regulatory Debits | C26: 0 | D26: 0 | E26: 0 | F26: 0 | G26: 0 | H26: 0
B27: 4310-Regulatory Credits | C27: 0 | D27: 0 | E27: 0 | F27: 0 | G27: 0 | H27: 0
B28: 4315-Revenues from Electric Plant Leased to Others | C28: 0 | D28: 0 | E28: 0 | F28: 0 | G28: 0 | H28: 0
B29: 4320-Expenses of Electric Plant Leased to Others | C29: 0 | D29: 0 | E29: 0 | F29: 0 | G29: 0 | H29: 0
B30: 4324-Special Purpose Charge Recovery | C30: 0 | D30: 0 | E30: 0 | F30: 0 | G30: 0 | H30: 0
B31: 4325-Revenues from Merchandise Jobbing, Etc. | C31: -20000 | D31: -4939.02 | E31: -23398.58 | F31: -33006.73 | G31: -26200 | H31: -26331
B32: 4330-Costs and Expenses of Merchandising Jobbing, Etc. | C32: 15000 | D32: 3827.66 | E32: 16039.43 | F32: 26809.86 | G32: 21555 | H32: 21663
B33: 4335-Profits and Losses from Financial Instrument Hedges | C33: 0 | D33: 0 | E33: 0 | F33: 0 | G33: 0 | H33: 0
B34: 4340-Profits and Losses from Financial Instrument Investments | C34: 0 | D34: 0 | E34: 0 | F34: 0 | G34: 0 | H34: 0
B35: 4345-Gains from Disposition of Future Use Utility Plant | C35: 0 | D35: 0 | E35: 0 | F35: 0 | G35: 0 | H35: 0
B36: 4350-Losses from Disposition of Future Use Utility Plant | C36: 0 | D36: 0 | E36: 0 | F36: 0 | G36: 0 | H36: 0
B37: 4355-Gain on Disposition of Utility and Other Property | C37: 0 | D37: 0 | E37: 0 | F37: 6186.81 | G37: 0 | H37: -6000
B38: 4360-Loss on Disposition of Utility and Other Property | C38: 0 | D38: 0 | E38: 7704.68 | F38: 0 | G38: 0 | H38: 0
B39: 4365-Gains from Disposition of Allowances for Emission | C39: 0 | D39: 0 | E39: 0 | F39: 0 | G39: 0 | H39: 0
B40: 4370-Losses from Disposition of Allowances for Emission | C40: 0 | D40: 0 | E40: 0 | F40: 0 | G40: 0 | H40: 0
B41: 4375-Revenues from Non-Utility Operations | C41: 0 | D41: 0 | E41: -183521.95 | F41: -307341.57 | G41: -293315 | H41: -294781
B42: 4375-Sub-account Generation Facility Revenues | C42: 0 | D42: 0 | E42: 0 | F42: 0 | G42: 0 | H42: 0
B43: 4380-Expenses of Non-Utility Operations | C43: 0 | D43: 41.32 | E43: 182627.99 | F43: 223797.72 | G43: 222555 | H43: 223667
B44: 4380-Sub-account Generation Facility Expenses | C44: 0 | D44: 0 | E44: 0 | F44: 0 | G44: 0 | H44: 0
B45: 4385-Non-Utility Rental Income | C45: 0 | D45: 0 | E45: 0 | F45: 0 | G45: 0 | H45: 0
B46: 4390-Miscellaneous Non-Operating Income | C46: 0 | D46: -395 | E46: -2790.31 | F46: -1269.38 | G46: 0 | H46: 0
B47: 4395-Rate-Payer Benefit Including Interest | C47: 0 | D47: 0 | E47: 0 | F47: 0 | G47: 0 | H47: 0
B48: 4398-Foreign Exchange Gains and Losses, Including Amortization | C48: 0 | D48: 0 | E48: 0 | F48: 0 | G48: 0 | H48: 0
B49: 4405-Interest and Dividend Income | C49: -20000 | D49: -13148.12 | E49: -7567.31 | F49: -8175.3 | G49: -6614 | H49: -6647
B50: 4415-Equity in Earnings of Subsidiary Companies | C50: 0 | D50: 0 | E50: 0 | F50: 0 | G50: 0 | H50: 0
A58: Specific Service Charges | C58: 70000 | D58: -64182.41 | E58: -68253.77 | F58: -64302.88 | G58: -64625 | H58: -65270
A59: Late Payment Charges | C59: 30000 | D59: -36576 | E59: -29927.62 | F59: -29444.89 | G59: -29592 | H59: -29740
A60: Other Operating Revenues | C60: -16739.44 | D60: -17377.39 | E60: -25479.1 | F60: -26790.7 | G60: -30623 | H60: -30777
A61: Other Income or Deductions | C61: -25000 | D61: -14613.16 | E61: -10906.05 | F61: -92998.59 | G61: -82019 | H61: -88429
A62: Total | C62: 58260.56 | D62: -132748.96 | E62: -134566.54 | F62: -213537.06 | G62: -206859 | H62: -214216
A64: Description | C64: Account(s)
A65: Specific Service Charges: | C65: 4235
A66: Late Payment Charges: | C66: 4225
A67: Other Distribution Revenues: | C67: 4080, 4082, 4084, 4090, 4205, 4210, 4215, 4220, 4240, 4245
A68: Other Income and Expenses: | C68: 4305, 4310, 4315, 4320, 4325, 4330, 4335, 4340, 4345, 4350, 4355, 4360, 4365, 4370, 4375, 4380, 4385, 4390, 4395, 4398, 4405, 4415
A71: Note: Add all applicable accounts listed above to the table and include all relevant information.
A73: Account Breakdown Details
A75: For each "Other Operating Revenue" and "Other Income or Deductions" Account, a detailed breakdown of the account components is required. See the example below for Account 4405, Interest and Dividend Income.
A77: Account 4405 - Interest and Dividend Income
C78: =C12 -> 2014 Actual | D78: 2015 Actual | E78: 2016 Actual² | F78: Actual Year² | G78: Bridge Year² | H78: Test Year
F79: =F13 -> 2016 | G79: =G13 -> 2017 | H79: =H13 -> 2018
A80: Reporting Basis | C80: =IF(C14=0, "", C14) -> 
A81: Interest and Dividend Income | C81: -3800.37 | D81: -2592.86 | E81: -2544.12 | F81: -2544.12
A82: Interest and Dividend Income - Carrying Charges | C82: -9347.75 | D82: -4974.45 | E82: -5631.18 | F82: -5631.18
A83: Miscellaneous Interest Revenue
A84: etc.1
A86: Total | C86: =SUM(C81:C85) -> -13148.12 | D86: -7567.31 | E86: =SUM(E81:E85) -> -8175.3 | F86: -8175.3 | G86: 0 | H86: 0
A89: Notes:
A90: 1 | B90: List and specify any other interest revenue.
A91: 2 | B91: In the transition year to IFRS, the applicant is to present information in both MIFRS and CGAAP. For the typical applicant that adopted IFRS on January 1, 2015, 2014 must be presented in both a CGAAP and MIFRS basis.

Sheet App_2-I LF_CDM
A1: =+#REF!+1 ->  | G1: File Number: | H1: =EBNUMBER -> EB-2017-0048
G2: Exhibit:
G3: Tab:
G4: Schedule:
G5: Page:
G7: Date:
A9: Appendix 2-I
A10: Load Forecast CDM Adjustment Work Form (2017)
A12: Appendix 2-I was initially developed to help determine what would be the amount of CDM savings needed in each year to cumulatively achieve the four year 2011-2014 CDM target. This then determined the amount of kWh (and with translation, kW of demand) savings that were converted into dollar balances for the LRAMVA, and also to determine the related adjustment to the load forecast to account for OPA-reported savings. Beginning for the 2015 year, it has been adjusted because the persistence of 2011-2014 CDM programs will be an adjustment to the load forecast in addition to the estimated savings for the first year (2015) for the new 2015-2020 CDM plan.
A14: 2017 is the third year of the six-year (2015-2020) Conservation First program. Final results for the 2011-14 program were issued in the fall of 2015, and the program in completed, although in some instances disposition of the amounts has been deferred. For the purposes of the 2015-2020 LRAMVA, and the impact of CDM on the load forecast, CDM programs in 2014 and earlier are implicit in the historical data on which the base load forecast is developed. Only impacts of 2015 to 2017 CDM programs need to be reflected in the manual load forecast adjustment and for the LRAMVA threshold amount in 2017 and carrying forward, although the half-year impact of 2015 CDM programs on the 2015 historical data is also assumed to be reflected in the base load forecast.
A16: The new six year (2015-2020) CDM program works similarly to the previous 2011-2014 CDM program, meaning that distributors will offer programs each year that, over the six years (from January 1, 2015 to December 31, 2020) will strive to cumulatively achieve savings meeting the new six year CDM target. In other words, distributors will be able to offer and execute programs on a basis so that cumulatively over the period, the measured impacts, including persistence, of the CDM programs will accumulate towards achieving each distributor's 2015-2020 CDM target.
A18: 2015-2020 CDM Program - 2017, third year of the current CDM plan
A20: For the first year of the new 2015-2020 CDM plan, it is assumed that each year's program will achieve an equal amount of new CDM savings. The new targets for 2015-2020 do not take into account persistence beyond the first year, but the IESO will encourage distributors to promote and implement CDM plans that will have longer term persistence of savings. This results in each year's program being about 1/6 (18.67%) of the cumulative 2015-2020 CDM target for kWh savings. A distributor may propose an alternative approach but would be expected to document in its application why it believes that its proposal is more reasonable. In its proposal, the distributor should ensure that the sum of the results for each year's CDM program from 2015 to 2020 add up to its 2015-2020 CDM target as established by the IESO.
A23: 2011-2014 CDM Program - 2014, last year of the current CDM plan
A24: 4 Year (2011-2014) kWh Target: | H24: HHI Note: The formulas were updated by Keith Richie
A25: 9280000
B26: 2011 | C26: 2012 | D26: 2013 | E26: 2014 | F26: Total
A27: 2011 CDM Programs | B27: =B33/$F$37 -> 0.09415158668 | C27: =C33/$F$37 -> 0.09415158668 | D27: 0.09415158668 | E27: 0.08720167847 | F27: =SUM(B27:E27) -> 0.3696564385
A28: 2012 CDM Programs | C28: 0.08982428534 | D28: 0.08982428534 | E28: 0.08916863362 | F28: =SUM(B28:E28) -> 0.2688172043
A29: 2013 CDM Programs | D29: 0.07710464201 | E29: 0.07710464201 | F29: =SUM(B29:E29) -> 0.154209284
A30: 2014 CDM Programs | E30: 0.1641751901 | F30: =SUM(B30:E30) -> 0.1641751901
A31: Total in Year | B31: =SUM(B27:B30) -> 0.09415158668 | C31: =SUM(C27:C30) -> 0.183975872 | D31: =SUM(D27:D30) -> 0.261080514 | E31: =SUM(E27:E30) -> 0.4176501442 | F31: =SUM(B31:E31) -> 0.956858117
A32: kWh
A33: 2011 CDM Programs | B33: =0.718*1000000 -> 718000 | C33: =0.718*1000000 -> 718000 | D33: =0.718*1000000 -> 718000 | E33: =0.665*1000000 -> 665000 | F33: =SUM(B33:E33) -> 2819000
A34: 2012 CDM Programs | B34: =0.009*1000000 -> 9000 | C34: =0.685*1000000 -> 685000 | D34: =0.685*1000000 -> 685000 | E34: =0.68*1000000 -> 680000 | F34: =SUM(B34:E34) -> 2059000
A35: 2013 CDM Programs | B35: 0 | C35: =0.08*1000000 -> 80000 | D35: =0.588*1000000 -> 588000 | E35: =0.588*1000000 -> 588000 | F35: =SUM(B35:E35) -> 1256000
A36: 2014 CDM Programs | B36: 0 | C36: =0.054*1000000 -> 54000 | D36: =0.186*1000000 -> 186000 | E36: =1.252*1000000 -> 1252000 | F36: =SUM(B36:E36) -> 1492000
A37: Total in Year | B37: =SUM(B33:B36) -> 727000 | C37: =SUM(C33:C36) -> 1537000 | D37: =SUM(D33:D36) -> 2177000 | E37: =SUM(E33:E36) -> 3185000 | F37: =SUM(F33:F36) -> 7626000
A40: 2015-2020 CDM Program - 2015, first year of the current CDM plan
A41: 6 Year (2015-2020) kWh Target:
A42: 7920000
B43: 2015 | C43: 2016 | D43: 2017 | E43: 2018 | F43: 2019 | G43: 2020 | H43: Total
A44: %
A45: 2015 CDM Programs | B45: =B53/$H$59 -> 0.0450319452 | C45: =C53/$H$59 -> 0.04339788846 | D45: 0.04159417801 | E45: 0.04123295743 | F45: 0.04121530901 | G45: 0.04121530901 | H45: =SUM(B45:G45) -> 0.2536875871
A46: 2016 CDM Programs | C46: 0.04717485903 | D46: 0.04645307667 | E46: 0.04645307667 | F46: 0.04645307667 | G46: 0.04645307667 | H46: =SUM(B46:G46) -> 0.2329871657
A47: 2017 CDM Programs | D47: 0.0574631269 | E47: 0.0574631269 | F47: 0.0574631269 | G47: 0.0574631269 | H47: =SUM(B47:G47) -> 0.2298525076
A48: 2018 CDM Programs | E48: 0.04802520791 | F48: 0.04802520791 | G48: 0.04802520791 | H48: =SUM(E48:G48) -> 0.1440756237
A49: 2019 CDM Programs | F49: 0.04643131641 | G49: 0.04643131641 | H49: =SUM(F49:G49) -> 0.09286263281
A50: 2020 CDM Programs | G50: 0.04653448305 | H50: =SUM(B50:G50) -> 0.04653448305
A51: Total in Year | B51: =SUM(B45:B50) -> 0.0450319452 | C51: =SUM(C45:C50) -> 0.09057274749 | D51: =SUM(D45:D50) -> 0.1455103816 | E51: =SUM(E45:E48) -> 0.1931743689 | F51: =SUM(F45:F49) -> 0.2395880369 | G51: =SUM(G45:G50) -> 0.2861225199 | H51: =SUM(B51:G51) -> 1
A52: kWh
A53: =A45 -> 2015 CDM Programs | B53: 1298771 | C53: 1251643 | D53: 1199622 | E53: 1189204 | F53: 1188695 | G53: 1188695 | H53: =SUM(B53:G53) -> 7316630
A54: 2016 CDM Programs | C54: 1360575 | D54: 1339758 | E54: 1339758 | F54: 1339758 | G54: 1339758 | H54: =SUM(B54:G54) -> 6719607
A55: 2017 CDM Programs | D55: 1657300 | E55: 1657300 | F55: 1657300 | G55: 1657300 | H55: =SUM(B55:G55) -> 6629200
A56: 2018 CDM Programs | E56: 1385100 | F56: 1385100 | G56: 1385100 | H56: =SUM(E56:G56) -> 4155300
A57: 2019 CDM Programs | F57: 1339130.41 | G57: 1339130.41 | H57: =SUM(F57:G57) -> 2678260.82
A58: 2020 CDM Programs | G58: 1342105.85 | H58: =SUM(B58:G58) -> 1342105.85
A59: Total in Year | B59: =SUM(B53:B58) -> 1298771 | C59: =SUM(C53:C58) -> 2612218 | D59: =SUM(D53:D58) -> 4196680 | E59: =SUM(E53:E56) -> 5571362 | F59: =SUM(F53:F57) -> 6909983.41 | G59: =SUM(G53:G58) -> 8252089.26 | H59: =SUM(H53:H58) -> 28841103.67
A62: Weight Factor for Inclusion in CDM Adjustment to 2014 Load Forecast
B63: 2011 | C63: 2012 | D63: 2013 | E63: 2014 | F63: 2015 | G63: 2016 | H63: 2017 | I63: 2018
A64: Weight Factor for each year's CDM program impact on 2014 load forecast | B64: 0 | C64: 0 | D64: 0 | E64: 0 | F64: 0 | G64: 0.5 | H64: 1 | I64: 0.5
A65: Default Value selection rationale.
A68: 2011-2014 and 2015-2020 LRAMVA and 2015 CDM adjustment to Load Forecast
B69: 2011 | C69: 2012 | D69: 2013 | E69: 2014 | F69: 2015 | G69: 2016 | H69: 2017 | I69: 2018 | O69: Total for 2018
B70: kWh
A71: Amount used for CDM threshold for LRAMVA (2014) | B71: 0 | C71: 0 | D71: =E35 -> 588000 | E71: =E36 -> 1252000 | F71: =D53 -> 1199622 | O71: =SUM(B71:N71) -> 3039622
A73: 2011 CDM adjustment (per Board Decision in 2011 Cost of Service Application) | B73: 0 | C73: =B73 -> 0 | D73: =B73 -> 0 | E73: =B73 -> 0 | G73: =SUM(B73:E74) -> 0
A75: Amount used for CDM threshold for LRAMVA (2015) | F75: 1298771 | G75: =E54 -> 1339758 | H75: =E55 -> 1657300 | I75: =E56 -> 1385100 | O75: =SUM(B75:K75) -> 5680929
A77: Manual Adjustment for 2015 Load Forecast (billed basis) | B77: 0 | F77: =F71*F64 -> 0 | G77: =G75*G64 -> 669879 | H77: =H75*H64 -> 1657300 | I77: =I75*I64 -> 692550 | O77: =SUM(B77:L77) -> 3019729

Sheet App.2-IA_Load_Forecast_Instrct
Q1: File Number: | R1: =EBNUMBER -> EB-2017-0048
Q2: Exhibit:
Q3: Tab:
Q4: Schedule:
Q5: Page:
Q7: Date:
B9: Appendix 2-IA
B10: Instructions on Customer, Connections, Load Forecast and Revenues Data and Analysis
B12: This sheet requires no inputs, but serves as a summary of the hiostorical and forecasted data to be provided with respect to:
B14: 1) | C14: Customers and connections
B15: 2) | C15: Consumption (kWh)
B16: 3) | C16: Demand (kW or kCA) for applicable demand-billed customer classes
B17: 4) | C17: Revenues
B19: The spreadsheet summarizes the data provided and the analyses (variance or year-over-year) that are required. Data are required to be provided on a customer class level. Consumption (kWh) must also be provided on a total distribution system level.
B21: Appendix 2-IB (formerly 2-IA) is the appendix spreadsheet that the distributor populates, and the spreadsheet is laid out for inputting the necessary data. The spreadsheet also calculates necessary statistics such as average consumption per customer/connection per year, and variances and % annual changes, as necessary.
B23: The distributor is required to provide suitable documentation in Exhibit 3 of its Application, in accordance with section 2.3.2 of Chaoter 2 of the Filing Requirements. This would include explanations for material variations or of trends in the data.
B25: The distributor is also required to input its test year customer/connection and load forecast in Sheet 10 - Load Forecast of the Revenue Requirement Work Form. This sheet should also be updated to reflect changes in the load forecast made through the stages of processing of the rates application.
B27: The applicant must demonstrate the historical accuracy of its load forecast approach for at least the past 5 years. Such analysis will cover both customer/connections and consumption (kWh) and demand (kW or kVA) by providing the following, as shown in the following table:
D29: Calendar Year | F29: Customers / Connections | I29: Consumption (kWh) (3) | M29: Demand (kW or kVA) | Q29: Revenues
D30: (for 2017 Cost of Service) | I30: Weather-actual | J30: Weather-normalized | M30: Weather-actual | N30: Weather-normalized | Q30: Weather-actual | R30: Weather-normalized
C31: Historical | D31: 2012 | F31: 5537 | I31: 155160223 | J31: 155160223 | M31: 210711 | N31: 206655
C32: Historical | D32: 2013 | F32: 5459 | I32: 154796479 | J32: 154796478.7 | M32: 204152 | N32: 200068
C33: Historical | D33: 2014 | F33: 4973 | G33: Board-approved (2) | I33: 155638082 | J33: 148208227.4 | K33: Board-approved (2) | M33: 201575 | N33: 201575 | O33: Board-approved (2) | Q33: 1574050
C34: Historical | D34: 2015 | F34: 5652 | I34: 145328620 | J34: 145328620.4 | M34: 189287 | N34: 186098 | Q34: 1539695
C35: Historical | D35: 2016 | F35: 5600 | I35: 143768237 | J35: 143768237 | M35: 190705 | N35: 188567 | Q35: 1563222
C36: Bridge Year (Forecast) | D36: 2017 | F36: 5562 | J36: 155972137.1 | N36: 226183 | R36: 1785404.467
C37: Test Year (Forecast) | D37: 2018 | F37: 5575 | J37: 154939572 | N37: 224104 | R37: 1770101.099
B40: Notes:
B42: (1) | C42: “Weather-normalized actuals” are estimated by replacing the actual weather-related values (typically Heating Degree Days (HDD) and Cooling Degree Days (CDD)) by the “typical” or “weather-normalized” values. These “weather-normalized HDD and CDD values would be the same as used to estimate the Bridge Year and Test Year forecasts.
B43: (2) | C43: For 2017 Cost of Service rebasers, the typical situation is that 2013 would have been the most recent cost of service rebasing application. If the most recent rebasing application was for a rate year other than 2013, that year should be used. An applicant must provide historical information back to the greater of: a) at least five (5) historical actual years; or b) to its last cost of service application.
B44: (3) | C44: Consumption must be provided on a total distribution system basis as well as at a customer class level.
B45: (4) | C45: Revenues exclude commodity charges.

Sheet App.2-IB_Load_Forecast_Analysis
T1: File Number: | U1: =EBNUMBER -> EB-2017-0048
T2: Exhibit:
T3: Tab:
T4: Schedule:
T5: Page:
T7: Date:
B9: Appendix 2-IB
B10: Customer, Connections, Load Forecast and Revenues Data and Analysis
B12: This sheet requires no inputs, but serves as a summary of the hiostorical and forecasted data to be provided with respect to:
B14: 1) | C14: Customers and connections
B15: 2) | C15: Consumption (kWh)
B16: 3) | C16: Demand (kW or kCA) for applicable demand-billed customer classes
B17: 4) | C17: Revenues
B19: The spreadsheet summarizes the data provided and the analyses (variance or year-over-year) that are required. Data are required to be provided on a customer class level. Consumption (kWh) must also be provided on a total distribution system level.
B21: Appendix 2-IB (formerly 2-IA) is the appendix spreadsheet that the distributor populates, and the spreadsheet is laid out for inputting the necessary data. The spreadsheet also calculates necessary statistics such as average consumption per customer/connection per year, and variances and % annual changes, as necessary.
B23: The distributor is required to provide suitable documentation in Exhibit 3 of its Application, in accordance with section 2.3.2 of Chaoter 2 of the Filing Requirements. This would include explanations for material variations or of trends in the data.
B25: The distributor is also required to input its test year customer/connection and load forecast in Sheet 10 - Load Forecast of the Revenue Requirement Work Form. This sheet should also be updated to reflect changes in the load forecast made through the stages of processing of the rates application.
B27: The applicant must demonstrate the historical accuracy of its load forecast approach for at least the past 5 years. Such analysis will cover both customer/connections and consumption (kWh) and demand (kW or kVA) by providing the following, as shown in the following table:
B29: This sheet is to be filled in accordance with the instructions documented in section 2.3.2 of Chapter 2 of the Filing Requirements for Distribution Rate Applications, in terms of one set of tables per customer class.
B31: Color coding for Cells: | F31: Data input | K31: Drop-down List
F33: No data entry required | K33: Blank or calculated value
B35: Distribution System (Total)
D37: Calendar Year | K37: Consumption (kWh) (3)
D38: =CONCATENATE("(for ",TestYear," Cost of Service") -> (for 2018 Cost of Service | L38: Actual (Weather actual) | M38: Weather-normalized | O38: Weather-normalized
C39: Historical | D39: =D40-1 -> 2012 | K39: Actual | L39: 155160223 | M39: 155874182 | N39: =IF(D39=RebaseYear,"Board-approved","") -> 
C40: Historical | D40: 2013 | K40: Actual | L40: 154796478.7 | M40: 158171428
C41: Historical | D41: 2014 | K41: Actual | L41: 148208227.4 | M41: 159419905 | N41: Board-approved | O41: 163411598.2
C42: Historical | D42: 2015 | K42: Actual | L42: 145328620.4 | M42: 157653967
C43: Historical | D43: 2016 | K43: Actual | L43: 143768237 | M43: 155444130
C44: Bridge Year | D44: 2017 | K44: Forecast | M44: 157664096
C45: Test Year | D45: =TestYear -> 2018 | K45: Forecast | M45: 154644367
O46: =SUM(O39:O44) -> 163411598.2
C47: Variance Analysis | K47: Year | L47: Year-over-year | O47: Versus Board-approved
D48: =D39 -> 2012 | K48: =D48 -> 2012
D49: 2013 | K49: =D49 -> 2013 | L49: =IF(L39=0,"",L40/L39-1) -> -0.002344314045 | M49: 0.01473782233
D50: 2014 | K50: 2014 | L50: -0.04256073126 | M50: 0.007893189154
D51: 2015 | K51: 2015 | L51: -0.01942946772 | M51: -0.0110772742
D52: 2016 | K52: 2016 | L52: -0.01073693128 | M52: -0.01401700853
D53: 2017 | K53: 2017 | L53: =IF(K44="Forecast","",IF(L43=0,"",L44/L43-1)) ->  | M53: =IF(M43=0,"",M44/M43-1) -> 0.0142814399
D54: 2018 | K54: 2018 | L54: =IF(K45="Forecast","",IF(L44=0,"",L45/L44-1)) ->  | M54: =IF(M44=0,"",M45/M44-1) -> -0.0191529275 | O54: =IF(O46=0,"",M45/O46-1) -> -0.05365121751
D55: Geometric Mean | K55: Geometric Mean | M55: =IF(M39=0,"",(M45/M39)^(1/(K54-K48-1)-1)) -> 1.006356986 | O55: =IF(O46=0,"",(M45/O46)^(1/(TestYear-RebaseYear-1))-1) -> -0.01821345513
B57: Customer Class Analysis (one for each Customer Class, excluding MicroFIT and Standby)
B59: 1 | C59: Customer Class: | D59: Residential | H59: Is the customer class billed on consumption (kWh) or demand (kW or kVA)? | N59: kWh
D61: Calendar Year | F61: Customers | K61: Consumption (kWh) (3) | Q61: =CONCATENATE("Consumption (kWh) per ",LEFT(F61,LEN(F61)-1)) -> Consumption (kWh) per Customer
D62: =CONCATENATE("(for ",TestYear," Cost of Service") -> (for 2018 Cost of Service | L62: Actual (Weather actual) | M62: Weather-normalized | O62: Weather-normalized | R62: =L62 -> Actual (Weather actual) | S62: =M62 -> Weather-normalized | U62: =O62 -> Weather-normalized
C63: Historical | D63: =D64-1 -> 2012 | F63: =K39 -> Actual | G63: 4777 | H63: =IF(D63=RebaseYear,"Board-approved","") ->  | K63: =F63 -> Actual | L63: 51132834 | M63: 51368118 | N63: =H63 ->  | Q63: =K63 -> Actual | R63: =IF(G63=0,"",L63/G63) -> 10703.96358 | S63: =IF(G63=0,"",M63/G63) -> 10753.21708 | T63: =N63 ->  | U63: =IF(T63="","",IF(I63=0,"",O63/I63)) -> 
C64: Historical | D64: 2013 | F64: =K40 -> Actual | G64: 4884 | K64: =F64 -> Actual | L64: 52109144 | M64: 53245253 | N64: =H64 ->  | Q64: =K64 -> Actual | R64: =IF(G64=0,"",L64/G64) -> 10669.3579 | S64: =IF(G64=0,"",M64/G64) -> 10901.97645 | T64: =N64 ->  | U64: =IF(T64="","",IF(I64=0,"",O64/I64)) -> 
C65: Historical | D65: 2014 | F65: Actual | G65: 4900.5 | H65: Board-approved | I65: 4950 | K65: Actual | L65: 51395624 | M65: 55283608 | N65: Board-approved | O65: 54009078 | Q65: Actual | R65: 10487.83267 | S65: 11281.21783 | T65: Board-approved | U65: 10910.92485
C66: Historical | D66: 2015 | F66: Actual | G66: 4859 | K66: Actual | L66: 49584777 | M66: 53790071 | Q66: Actual | R66: 10204.72875 | S66: 11070.19366
C67: Historical | D67: 2016 | F67: Actual | G67: 4824 | K67: Actual | L67: 48033529 | M67: 50699914 | Q67: Actual | R67: 9957.199212 | S67: 10509.93242
C68: Bridge Year | D68: 2017 | F68: Forecast | G68: 4829.970617 | K68: Forecast | M68: 51250254 | Q68: Forecast | R68: 0 | S68: 10610.88318
C69: Test Year | D69: =TestYear -> 2018 | F69: Forecast | G69: 4835.948624 | K69: Forecast | M69: 51208459 | Q69: Forecast | R69: 0 | S69: 10589.12387
I70: =SUM(I63:I68) -> 4950 | L70: CDM Adjust | M70: 50454856 | O70: =SUM(O63:O68) -> 54009078 | U70: =SUM(U63:U68) -> 10910.92485
C71: Variance Analysis | D71: Year | G71: Year-over-year | I71: Test Year Versus Board-approved | K71: Year | L71: Year-over-year | O71: =I71 -> Test Year Versus Board-approved | Q71: Year | R71: Year-over-year | U71: =O71 -> Test Year Versus Board-approved
D72: =D63 -> 2012 | K72: =D72 -> 2012 | Q72: =K72 -> 2012
D73: 2013 | G73: =IF(G63=0,"",G64/G63-1) -> 0.02239899519 | K73: =D73 -> 2013 | L73: =IF(L63=0,"",L64/L63-1) -> 0.01909360236 | M73: 0.03654280268 | Q73: =K73 -> 2013 | R73: =IF(R63="","",IF(R63=0,"",R64/R63-1)) -> -0.003232977379 | S73: =IF(S63="","",IF(S63=0,"",S64/S63-1)) -> 0.01383394111
D74: 2014 | G74: 0.003378378378 | K74: 2014 | L74: -0.01369279833 | M74: 0.03828237984 | Q74: 2014 | R74: =IF(R64="","",IF(R64=0,"",R65/R64-1)) -> -0.017013698 | S74: 0.03478647957
D75: 2015 | G75: -0.00846852362 | K75: 2015 | L75: -0.03523348603 | M75: -0.02701591039 | Q75: 2015 | R75: -0.02699355799 | S75: -0.01870579726
D76: 2016 | G76: -0.007203128216 | K76: 2016 | L76: -0.03128476306 | M76: -0.05744846479 | Q76: 2016 | R76: -0.02425635649 | S76: -0.05060988607
D77: 2017 | G77: 0.001237690144 | K77: 2017 | L77: =IF(K68="Forecast","",IF(L67=0,"",L68/L67-1)) ->  | M77: =IF(M67=0,"",M68/M67-1) -> 0.01085485076 | Q77: 2017 | R77: =IF(Q68="Forecast","",IF(R67=0,"",R68/R67-1)) ->  | S77: =IF(S67="","",IF(S67=0,"",S68/S67-1)) -> 0.009605272265
D78: 2018 | G78: 0.001237690144 | I78: =IF(I70=0,"",G69/I70-1) -> -0.02304068196 | K78: 2018 | L78: =IF(K69="Forecast","",IF(L68=0,"",L69/L68-1)) ->  | M78: =IF(M68=0,"",M69/M68-1) -> -0.0008155081534 | O78: =IF(O70=0,"",M69/O70-1) -> -0.05185459748 | Q78: 2018 | R78: =IF(Q69="Forecast","",IF(R68=0,"",R69/R68-1)) ->  | S78: -0.002050660216 | U78: =IF(U70=0,"",S69/U70-1) -> -0.02949346507
D79: Geometric Mean | G79: =IF(G63=0,"",GEOMEAN(G73:G78)) ->  | I79: =IF(I70=0,"",(G69/I70)^(1/(TestYear-RebaseYear-1))-1) -> -0.007739980052 | K79: Geometric Mean | M79: =IF(M63=0,"",(M69/M63)^(1/(K78-K72-1)-1)) -> 1.002493483 | O79: =IF(O70=0,"",(M69/O70)^(1/(TestYear-RebaseYear-1))-1) -> -0.01759254864 | Q79: Geometric Mean | S79: =IF(S63="","",IF(S63=0,"",(S69/S63)^(1/(Q78-Q72-1)-1))) -> 1.012378021 | U79: =IF(U70=0,"",(S69/U70)^(1/(TestYear-RebaseYear-1))-1) -> -0.009929422121
D82: Calendar Year | F82: Revenues | K82: =IF(ISBLANK(N59),"",CONCATENATE("Demand (",N59,")")) -> Demand (kWh) | Q82: =CONCATENATE("Demand (",N59,") per ",LEFT(F61,LEN(F61)-1)) -> Demand (kWh) per Customer
D83: =CONCATENATE("(for ",TestYear," Cost of Service") -> (for 2018 Cost of Service | L83: Actual (Weather actual) | M83: Weather-normalized | O83: =M83 -> Weather-normalized | R83: =L83 -> Actual (Weather actual) | S83: =M83 -> Weather-normalized | U83: =O83 -> Weather-normalized
C84: Historical | D84: =D85-1 -> 2012 | F84: =F63 -> Actual | H84: =IF(D84=RebaseYear,"Board-approved","") ->  | K84: =K63 -> Actual | N84: =N63 ->  | Q84: =K84 -> Actual | R84: =IF(G84=0,"",L84/G84) ->  | S84: =IF(G84=0,"",M84/G84) ->  | T84: =N84 ->  | U84: =IF(T84="","",IF(I84=0,"",O84/I84)) -> 
C85: Historical | D85: 2013 | F85: Actual | K85: Actual | Q85: =K85 -> Actual | R85: =IF(G85=0,"",L85/G85) ->  | S85: =IF(G85=0,"",M85/G85) ->  | T85: =N85 ->  | U85: =IF(T85="","",IF(I85=0,"",O85/I85)) -> 
C86: Historical | D86: 2014 | F86: Actual | G86: 908568 | H86: Board-approved | I86: 939851 | K86: Actual | N86: Board-approved | Q86: Actual | R86: 0 | S86: 0 | T86: Board-approved | U86: 0
C87: Historical | D87: 2015 | F87: Actual | G87: 903999 | K87: Actual | Q87: Actual | R87: 0 | S87: 0
C88: Historical | D88: 2016 | F88: Actual | G88: 920780 | K88: Actual | Q88: Actual | R88: 0 | S88: 0
C89: Bridge Year (Forecast) | D89: 2017 | F89: Forecast | G89: 945460 | K89: Forecast | Q89: Forecast | R89: 0 | S89: 0
C90: Test Year (Forecast) | D90: =TestYear -> 2018 | F90: Forecast | G90: 1027839 | K90: Forecast | Q90: Forecast | R90: 0 | S90: 0
I91: =SUM(I84:I89) -> 939851 | O91: =SUM(O84:O89) -> 0 | U91: =SUM(U84:U89) -> 0
C92: Variance Analysis | D92: Year | G92: Year-over-year | I92: =I71 -> Test Year Versus Board-approved | K92: Year | L92: Year-over-year | O92: =I92 -> Test Year Versus Board-approved | Q92: Year | R92: Year-over-year | U92: =O92 -> Test Year Versus Board-approved
D93: =D84 -> 2012 | K93: =D93 -> 2012 | Q93: =K93 -> 2012
D94: =D85 -> 2013 | G94: =IF(G84=0,"",G85/G84-1) ->  | K94: =D94 -> 2013 | L94: =IF(L84=0,"",L85/L84-1) ->  | M94: =IF(M84=0,"",M85/M84-1) ->  | Q94: =K94 -> 2013 | R94: =IF(R84="","",IF(R84=0,"",R85/R84-1)) ->  | S94: =IF(S84="","",IF(S84=0,"",S85/S84-1)) -> 
D95: =D86 -> 2014 | G95: =IF(G85=0,"",G86/G85-1) ->  | K95: 2014 | L95: =IF(L85=0,"",L86/L85-1) ->  | Q95: 2014 | R95: =IF(R85="","",IF(R85=0,"",R86/R85-1)) -> 
D96: 2015 | G96: -0.005028792561 | K96: 2015 | L96: =IF(L86=0,"",L87/L86-1) ->  | Q96: 2015
D97: 2016 | G97: 0.01856307363 | K97: 2016 | L97: =IF(L87=0,"",L88/L87-1) ->  | Q97: 2016
D98: 2017 | G98: 0.02680336237 | K98: 2017 | L98: =IF(K89="Forecast","",IF(L88=0,"",L89/L88-1)) ->  | M98: =IF(M88=0,"",M89/M88-1) ->  | Q98: 2017 | R98: =IF(Q89="Forecast","",IF(R88=0,"",R89/R88-1)) ->  | S98: =IF(S88="","",IF(S88=0,"",S89/S88-1)) -> 
D99: 2018 | G99: 0.08713113194 | I99: =IF(I91=0,"",G90/I91-1) -> 0.09361909494 | K99: 2018 | L99: =IF(K90="Forecast","",IF(L89=0,"",L90/L89-1)) ->  | M99: =IF(M89=0,"",M90/M89-1) ->  | O99: =IF(O91=0,"",M90/O91-1) ->  | Q99: 2018 | R99: =IF(Q90="Forecast","",IF(R89=0,"",R90/R89-1)) ->  | U99: =IF(U91=0,"",S90/U91-1) -> 
D100: Geometric Mean | G100: =IF(G84=0,"",GEOMEAN(G94:G99)) ->  | I100: =IF(I91=0,"",(G90/I91)^(1/(TestYear-RebaseYear-1))-1) -> 0.03028021877 | K100: Geometric Mean | M100: =IF(M84=0,"",GEOMEAN(M94:M99)) ->  | O100: =IF(O91=0,"",(M90/O91)^(1/(TestYear-RebaseYear-1))-1) ->  | Q100: Geometric Mean | S100: =IF(S84="","",IF(S84=0,"",(S90/S84)^(1/(Q99-Q93-1)-1))) ->  | U100: =IF(U91=0,"",(S90/U91)^(1/(TestYear-RebaseYear-1))-1) -> 
B102: 2 | C102: Customer Class: | D102: GS < 50 kW | H102: Is the customer class billed on consumption (kWh) or demand (kW or kVA)? | N102: kWh
D104: Calendar Year | F104: Customers | K104: Consumption (kWh) (3) | Q104: =CONCATENATE("Consumption (kWh) per ",LEFT(F104,LEN(F104)-1)) -> Consumption (kWh) per Customer
D105: =CONCATENATE("(for ",TestYear," Cost of Service") -> (for 2018 Cost of Service | L105: Actual (Weather actual) | M105: Weather-normalized | O105: Weather-normalized | R105: =L105 -> Actual (Weather actual) | S105: =M105 -> Weather-normalized | U105: =O105 -> Weather-normalized
C106: Historical | D106: =D107-1 -> 2012 | F106: =F63 -> Actual | G106: 575 | H106: =IF(D106=RebaseYear,"Board-approved","") ->  | K106: =F106 -> Actual | L106: 18531354 | M106: 18616625 | N106: =H106 ->  | Q106: =K106 -> Actual | R106: =IF(G106=0,"",L106/G106) -> 32228.44174 | S106: =IF(G106=0,"",M106/G106) -> 32376.73913 | T106: =N106 ->  | U106: =IF(T106="","",IF(I106=0,"",O106/I106)) -> 
C107: Historical | D107: 2013 | F107: =F64 -> Actual | G107: 617 | K107: =F107 -> Actual | L107: 18952242.37 | M107: 19365448 | N107: =H107 ->  | Q107: =K107 -> Actual | R107: =IF(G107=0,"",L107/G107) -> 30716.76235 | S107: =IF(G107=0,"",M107/G107) -> 31386.46353 | T107: =N107 ->  | U107: =IF(T107="","",IF(I107=0,"",O107/I107)) -> 
C108: Historical | D108: 2014 | F108: Actual | G108: 628.5 | H108: Board-approved | I108: 634 | K108: Actual | L108: 18998366.6 | M108: 20435558 | N108: Board-approved | O108: 19278522 | Q108: Actual | R108: 30228.10915 | S108: 32514.80986 | T108: Board-approved | U108: 30407.76341
C109: Historical | D109: 2015 | F109: Actual | G109: 623 | K109: Actual | L109: 19208910.76 | M109: 20838022 | Q109: Actual | R109: 30832.92257 | S109: 33447.86838
C110: Historical | D110: 2016 | F110: Actual | G110: 609 | K110: Actual | L110: 18569272.48 | M110: 19073256 | Q110: Actual | R110: 30491.41622 | S110: 31318.97537
C111: Bridge Year | D111: 2017 | F111: Forecast | G111: 613.255771 | K111: Forecast | M111: 19280293 | Q111: Forecast | R111: 0 | S111: 31439.23614
C112: Test Year | D112: =TestYear -> 2018 | F112: Forecast | G112: 617.5412818 | K112: Forecast | M112: 19264570 | Q112: Forecast | R112: 0 | S112: 31195.59869
I113: =SUM(I106:I111) -> 634 | L113: CDM Adjust | M113: 17883115 | O113: =SUM(O106:O111) -> 19278522 | U113: =SUM(U106:U111) -> 30407.76341
C114: Variance Analysis | D114: Year | G114: Year-over-year | I114: Test Year Versus Board-approved | K114: Year | L114: Year-over-year | O114: =I114 -> Test Year Versus Board-approved | Q114: Year | R114: Year-over-year | U114: =O114 -> Test Year Versus Board-approved
D115: =D106 -> 2012 | K115: =D115 -> 2012 | Q115: =K115 -> 2012
D116: 2013 | G116: =IF(G106=0,"",G107/G106-1) -> 0.07304347826 | K116: =D116 -> 2013 | L116: =IF(L106=0,"",L107/L106-1) -> 0.02271222977 | M116: 0.04022334875 | Q116: =K116 -> 2013 | R116: =IF(R106="","",IF(R106=0,"",R107/R106-1)) -> -0.04690513433 | S116: =IF(S106="","",IF(S106=0,"",S107/S106-1)) -> -0.0305860202
D117: 2014 | G117: 0.01863857374 | K117: 2014 | L117: =IF(L107=0,"",L108/L107-1) -> 0.002433708323 | M117: 0.05525872678 | Q117: 2014 | R117: =IF(R107="","",IF(R107=0,"",R108/R107-1)) -> -0.01590835635 | S117: 0.03595009455
D118: 2015 | G118: -0.008750994431 | K118: 2015 | L118: =IF(L108=0,"",L109/L108-1) -> 0.0110822243 | M118: 0.01969429951 | Q118: 2015 | R118: =IF(R108="","",IF(R108=0,"",R109/R108-1)) -> 0.02000831135 | S118: 0.02869641612
D119: 2016 | G119: -0.02247191011 | K119: 2016 | L119: =IF(L109=0,"",L110/L109-1) -> -0.0332990396 | M119: -0.08468970807 | Q119: 2016 | R119: =IF(R109="","",IF(R109=0,"",R110/R109-1)) -> -0.01107602901 | S119: -0.06364809217
D120: 2017 | G120: 0.006988129695 | K120: 2017 | L120: =IF(K111="Forecast","",IF(L110=0,"",L111/L110-1)) ->  | M120: =IF(M110=0,"",M111/M110-1) -> 0.01085483255 | Q120: 2017 | R120: =IF(Q111="Forecast","",IF(R110=0,"",R111/R110-1)) ->  | S120: 0.003839869346
D121: 2018 | G121: 0.006988129695 | I121: =IF(I113=0,"",G112/I113-1) -> -0.02596012327 | K121: 2018 | L121: =IF(K112="Forecast","",IF(L111=0,"",L112/L111-1)) ->  | M121: =IF(M111=0,"",M112/M111-1) -> -0.0008154959056 | O121: =IF(O113=0,"",M112/O113-1) -> -0.0007237069315 | Q121: 2018 | R121: =IF(Q112="Forecast","",IF(R111=0,"",R112/R111-1)) ->  | S121: -0.00774947129 | U121: =IF(U113=0,"",S112/U113-1) -> 0.02590901763
D122: Geometric Mean | G122: =IF(G106=0,"",GEOMEAN(G116:G121)) ->  | I122: =IF(I113=0,"",(G112/I113)^(1/(TestYear-RebaseYear-1))-1) -> -0.008729354319 | K122: Geometric Mean | M122: =IF(M106=0,"",(M112/M106)^(1/(K121-K115-1)-1)) -> 0.9730010408 | O122: =IF(O113=0,"",(M112/O113)^(1/(TestYear-RebaseYear-1))-1) -> -0.0002412938619 | Q122: Geometric Mean | S122: =IF(S106="","",IF(S106=0,"",(S112/S106)^(1/(Q121-Q115-1)-1))) -> 1.030176942 | U122: =IF(U113=0,"",(S112/U113)^(1/(TestYear-RebaseYear-1))-1) -> 0.008562808244
D125: Calendar Year | F125: Revenues | K125: =IF(ISBLANK(N102),"",CONCATENATE("Demand (",N102,")")) -> Demand (kWh) | Q125: =CONCATENATE("Demand (",N102,") per ",LEFT(F104,LEN(F104)-1)) -> Demand (kWh) per Customer
D126: =CONCATENATE("(for ",TestYear," Cost of Service") -> (for 2018 Cost of Service | L126: Actual (Weather actual) | M126: Weather-normalized | O126: =M126 -> Weather-normalized | R126: =L126 -> Actual (Weather actual) | S126: =M126 -> Weather-normalized | U126: =O126 -> Weather-normalized
C127: Historical | D127: =D128-1 -> 2012 | F127: =F106 -> Actual | H127: =IF(D127=RebaseYear,"Board-approved","") ->  | K127: =K106 -> Actual | N127: =N106 ->  | Q127: =K127 -> Actual | R127: =IF(G127=0,"",L127/G127) ->  | S127: =IF(G127=0,"",M127/G127) ->  | T127: =N127 ->  | U127: =IF(T127="","",IF(I127=0,"",O127/I127)) -> 
C128: Historical | D128: 2013 | F128: Actual | K128: Actual | Q128: =K128 -> Actual | R128: =IF(G128=0,"",L128/G128) ->  | S128: =IF(G128=0,"",M128/G128) ->  | T128: =N128 ->  | U128: =IF(T128="","",IF(I128=0,"",O128/I128)) -> 
C129: Historical | D129: 2014 | F129: Actual | G129: 224542 | H129: Board-approved | I129: 227179 | K129: Actual | N129: Board-approved | Q129: Actual | R129: 0 | S129: 0 | T129: Board-approved | U129: 0
C130: Historical | D130: 2015 | F130: Actual | G130: 228515 | K130: Actual | Q130: Actual | R130: 0 | S130: 0
C131: Historical | D131: 2016 | F131: Actual | G131: 226327 | K131: Actual | Q131: Actual | R131: 0 | S131: 0
C132: Bridge Year (Forecast) | D132: 2017 | F132: Forecast | G132: 228919 | K132: Forecast | Q132: Forecast | R132: 0 | S132: 0
C133: Test Year (Forecast) | D133: =TestYear -> 2018 | F133: Forecast | G133: 247889 | K133: Forecast | Q133: Forecast | R133: 0 | S133: 0
I134: =SUM(I127:I132) -> 227179 | O134: =SUM(O127:O132) -> 0 | U134: =SUM(U127:U132) -> 0
C135: Variance Analysis | D135: Year | G135: Year-over-year | I135: =I114 -> Test Year Versus Board-approved | K135: Year | L135: Year-over-year | O135: =I135 -> Test Year Versus Board-approved | Q135: Year | R135: Year-over-year | U135: =O135 -> Test Year Versus Board-approved
D136: =D127 -> 2012 | K136: =D136 -> 2012 | Q136: =K136 -> 2012
D137: =D128 -> 2013 | G137: =IF(G127=0,"",G128/G127-1) ->  | K137: =D137 -> 2013 | L137: =IF(L127=0,"",L128/L127-1) ->  | M137: =IF(M127=0,"",M128/M127-1) ->  | Q137: =K137 -> 2013 | R137: =IF(R127="","",IF(R127=0,"",R128/R127-1)) ->  | S137: =IF(S127="","",IF(S127=0,"",S128/S127-1)) -> 
D138: =D129 -> 2014 | G138: =IF(G128=0,"",G129/G128-1) ->  | K138: 2014 | L138: =IF(L128=0,"",L129/L128-1) ->  | Q138: 2014 | R138: =IF(R128="","",IF(R128=0,"",R129/R128-1)) -> 
D139: 2015 | G139: 0.01769379448 | K139: 2015 | L139: =IF(L129=0,"",L130/L129-1) ->  | Q139: 2015 | R139: =IF(R129="","",IF(R129=0,"",R130/R129-1)) -> 
D140: 2016 | G140: -0.009574863794 | K140: 2016 | L140: =IF(L130=0,"",L131/L130-1) ->  | Q140: 2016 | R140: =IF(R130="","",IF(R130=0,"",R131/R130-1)) -> 
D141: 2017 | G141: 0.01145245596 | K141: 2017 | L141: =IF(K132="Forecast","",IF(L131=0,"",L132/L131-1)) ->  | Q141: 2017 | R141: =IF(Q132="Forecast","",IF(R131=0,"",R132/R131-1)) -> 
D142: 2018 | G142: 0.08286773924 | I142: =IF(I134=0,"",G133/I134-1) -> 0.09116159504 | K142: 2018 | L142: =IF(K133="Forecast","",IF(L132=0,"",L133/L132-1)) ->  | O142: =IF(O134=0,"",M133/O134-1) ->  | Q142: 2018 | R142: =IF(Q133="Forecast","",IF(R132=0,"",R133/R132-1)) ->  | U142: =IF(U134=0,"",S133/U134-1) -> 
D143: Geometric Mean | G143: =IF(G127=0,"",GEOMEAN(G137:G142)) ->  | I143: =IF(I134=0,"",(G133/I134)^(1/(TestYear-RebaseYear-1))-1) -> 0.02950791684 | K143: Geometric Mean | M143: =IF(M127=0,"",GEOMEAN(M137:M142)) ->  | O143: =IF(O134=0,"",(M133/O134)^(1/(TestYear-RebaseYear-1))-1) ->  | Q143: Geometric Mean | S143: =IF(S127="","",IF(S127=0,"",(S133/S127)^(1/(Q142-Q136-1)-1))) ->  | U143: =IF(U134=0,"",(S133/U134)^(1/(TestYear-RebaseYear-1))-1) -> 
B145: 3 | C145: Customer Class: | D145: GS > 50 kW | H145: Is the customer class billed on consumption (kWh) or demand (kW or kVA)? | N145: kW
D147: Calendar Year | F147: Customers | K147: Consumption (kWh) (3) | Q147: =CONCATENATE("Consumption (kWh) per ",LEFT(F147,LEN(F147)-1)) -> Consumption (kWh) per Customer
D148: =CONCATENATE("(for ",TestYear," Cost of Service") -> (for 2018 Cost of Service | L148: Actual (Weather actual) | M148: Weather-normalized | O148: Weather-normalized | R148: =L148 -> Actual (Weather actual) | S148: =M148 -> Weather-normalized | U148: =O148 -> Weather-normalized
C149: Historical | D149: =D150-1 -> 2012 | F149: =F106 -> Actual | G149: 80 | H149: =IF(D149=RebaseYear,"Board-approved","") ->  | K149: =F149 -> Actual | L149: 77875019 | M149: 78233355 | N149: =H149 ->  | Q149: =K149 -> Actual | R149: =IF(G149=0,"",L149/G149) -> 973437.7375 | S149: =IF(G149=0,"",M149/G149) -> 977916.9375 | T149: =N149 ->  | U149: =IF(T149="","",IF(I149=0,"",O149/I149)) -> 
C150: Historical | D150: 2013 | F150: =F107 -> Actual | G150: 97 | K150: =F150 -> Actual | L150: 77368540.03 | M150: 79055367 | N150: =H150 ->  | Q150: =K150 -> Actual | R150: =IF(G150=0,"",L150/G150) -> 797613.8147 | S150: =IF(G150=0,"",M150/G150) -> 815003.7835 | T150: =N150 ->  | U150: =IF(T150="","",IF(I150=0,"",O150/I150)) -> 
C151: Historical | D151: 2014 | F151: Actual | G151: 95 | H151: Board-approved | I151: 98 | K151: Actual | L151: 71672278.37 | M151: 77094153 | N151: Board-approved | O151: 80885161 | Q151: Actual | R151: 754445.0355 | S151: 811517.4 | T151: Board-approved | U151: 825358.7857
C152: Historical | D152: 2015 | F152: Actual | G152: 89.5 | K152: Actual | L152: 70137954.32 | M152: 76086367 | Q152: Actual | R152: 783664.2941 | S152: 850127.0056
C153: Historical | D153: 2016 | F153: Actual | G153: 87 | K153: Actual | L153: 73896609.92 | M153: 85173248 | Q153: Actual | R153: 849386.3209 | S153: 979002.8506
C154: Bridge Year | D154: 2017 | F154: Forecast | G154: 87.91701025 | K154: Forecast | M154: 86097791 | Q154: Forecast | R154: 0 | S154: 979307.5397
C155: Test Year | D155: =TestYear -> 2018 | F155: Forecast | G155: 88.8436861 | K155: Forecast | M155: 86027578 | Q155: Forecast | R155: 0 | S155: 968302.6647
I156: =SUM(I149:I154) -> 98 | L156: CDM Adjust | M156: 85142906 | O156: =SUM(O149:O154) -> 80885161 | U156: =SUM(U149:U154) -> 825358.7857
C157: Variance Analysis | D157: Year | G157: Year-over-year | I157: Test Year Versus Board-approved | K157: Year | L157: Year-over-year | O157: =I157 -> Test Year Versus Board-approved | Q157: Year | R157: Year-over-year | U157: =O157 -> Test Year Versus Board-approved
D158: =D149 -> 2012 | K158: =D158 -> 2012 | Q158: =K158 -> 2012
D159: 2013 | G159: =IF(G149=0,"",G150/G149-1) -> 0.2125 | K159: =D159 -> 2013 | L159: =IF(L149=0,"",L150/L149-1) -> -0.006503741206 | M159: 0.01050718073 | Q159: =K159 -> 2013 | R159: =IF(R149="","",IF(R149=0,"",R150/R149-1)) -> -0.1806216422 | S159: =IF(S149="","",IF(S149=0,"",S150/S149-1)) -> -0.1665920159
D160: 2014 | G160: -0.0206185567 | K160: 2014 | L160: =IF(L150=0,"",L151/L150-1) -> -0.07362503749 | M160: -0.02480810696 | Q160: 2014 | R160: =IF(R150="","",IF(R150=0,"",R151/R150-1)) -> -0.0541224067 | S160: -0.004277751313
D161: 2015 | G161: -0.05789473684 | K161: 2015 | L161: =IF(L151=0,"",L152/L151-1) -> -0.02140749652 | M161: -0.01307214569 | Q161: 2015 | R161: =IF(R151="","",IF(R151=0,"",R152/R151-1)) -> 0.03872947296 | S161: 0.04757705206
D162: 2016 | G162: -0.02793296089 | K162: 2016 | L162: =IF(L152=0,"",L153/L152-1) -> 0.05358946716 | M162: 0.1194285042 | Q162: 2016 | R162: =IF(R152="","",IF(R152=0,"",R153/R152-1)) -> 0.08386502657 | S162: 0.1515959899
D163: 2017 | G163: 0.01054034768 | K163: 2017 | L163: =IF(K154="Forecast","",IF(L153=0,"",L154/L153-1)) ->  | M163: =IF(M153=0,"",M154/M153-1) -> 0.01085485198 | Q163: 2017 | R163: =IF(Q154="Forecast","",IF(R153=0,"",R154/R153-1)) ->  | S163: =IF(S153="","",IF(S153=0,"",S154/S153-1)) -> 0.0003112238938
D164: 2018 | G164: 0.01054034768 | I164: =IF(I156=0,"",G155/I156-1) -> -0.09343177445 | K164: 2018 | L164: =IF(K155="Forecast","",IF(L154=0,"",L155/L154-1)) ->  | M164: =IF(M154=0,"",M155/M154-1) -> -0.0008155029204 | O164: =IF(O156=0,"",M155/O156-1) -> 0.06357676657 | Q164: 2018 | R164: =IF(Q155="Forecast","",IF(R154=0,"",R155/R154-1)) ->  | S164: =IF(S154="","",IF(S154=0,"",S155/S154-1)) -> -0.01123740445 | U164: =IF(U156=0,"",S155/U156-1) -> 0.173189989
D165: Geometric Mean | G165: =IF(G149=0,"",GEOMEAN(G159:G164)) ->  | I165: =IF(I156=0,"",(G155/I156)^(1/(TestYear-RebaseYear-1))-1) -> -0.03216758305 | K165: Geometric Mean | M165: =IF(M149=0,"",(M155/M149)^(1/(K164-K158-1)-1)) -> 0.9268370949 | O165: =IF(O156=0,"",(M155/O156)^(1/(TestYear-RebaseYear-1))-1) -> 0.02075836418 | Q165: Geometric Mean | S165: =IF(S149="","",IF(S149=0,"",(S155/S149)^(1/(Q164-Q158-1)-1))) -> 1.007935341 | U165: =IF(U156=0,"",(S155/U156)^(1/(TestYear-RebaseYear-1))-1) -> 0.05468503255
D168: Calendar Year | F168: Revenues | K168: =IF(ISBLANK(N145),"",CONCATENATE("Demand (",N145,")")) -> Demand (kW) | Q168: =CONCATENATE("Demand (",N145,") per ",LEFT(F147,LEN(F147)-1)) -> Demand (kW) per Customer
D169: =CONCATENATE("(for ",TestYear," Cost of Service") -> (for 2018 Cost of Service | L169: Actual (Weather actual) | M169: Weather-normalized | O169: =M169 -> Weather-normalized | R169: =L169 -> Actual (Weather actual) | S169: =M169 -> Weather-normalized | U169: =O169 -> Weather-normalized
C170: Historical | D170: =D171-1 -> 2012 | F170: =F149 -> Actual | H170: =IF(D170=RebaseYear,"Board-approved","") ->  | K170: =K149 -> Actual | L170: 206655 | M170: 206655 | N170: =N149 ->  | Q170: =K170 -> Actual | R170: =IF(G170=0,"",L170/G170) ->  | S170: =IF(G170=0,"",M170/G170) ->  | T170: =N170 ->  | U170: =IF(T170="","",IF(I170=0,"",O170/I170)) -> 
C171: Historical | D171: 2013 | F171: Actual | K171: Actual | L171: 200067.82 | M171: 200068 | Q171: =K171 -> Actual | R171: =IF(G171=0,"",L171/G171) ->  | S171: =IF(G171=0,"",M171/G171) ->  | T171: =N171 ->  | U171: =IF(T171="","",IF(I171=0,"",O171/I171)) -> 
C172: Historical | D172: 2014 | F172: Actual | G172: 380882 | H172: Board-approved | I172: 398729 | K172: Actual | L172: 189092.13 | M172: 189092 | N172: Board-approved | O172: 201575 | Q172: Actual | R172: 0.496458562 | S172: 0.4964582207 | T172: Board-approved | U172: 0.5055438656
C173: Historical | D173: 2015 | F173: Actual | G173: 378803 | K173: Actual | L173: 186097.66 | M173: 186098 | Q173: Actual | R173: 0.4912782106 | S173: 0.4912791081
C174: Historical | D174: 2016 | F174: Actual | G174: 393405 | K174: Actual | L174: 188566.94 | M174: 188567 | Q174: Actual | R174: 0.4793201408 | S174: 0.4793202933
C175: Bridge Year (Forecast) | D175: 2017 | F175: Forecast | G175: 379018 | K175: Forecast | M175: 224269 | Q175: Forecast | R175: 0 | S175: 0.5917106839
C176: Test Year (Forecast) | D176: =TestYear -> 2018 | F176: Forecast | G176: 471143 | K176: Forecast | M176: 224086 | Q176: Forecast | R176: 0 | S176: 0.4756220511
I177: =SUM(I170:I175) -> 398729 | L177: CDM Adjust | M177: 221782 | O177: =SUM(O170:O175) -> 201575 | U177: =SUM(U170:U175) -> 0.5055438656
C178: Variance Analysis | D178: Year | G178: Year-over-year | I178: =I157 -> Test Year Versus Board-approved | K178: Year | L178: Year-over-year | O178: =I178 -> Test Year Versus Board-approved | Q178: Year | R178: Year-over-year | U178: =O178 -> Test Year Versus Board-approved
D179: =D170 -> 2012 | K179: =D179 -> 2012 | Q179: =K179 -> 2012
D180: =D171 -> 2013 | G180: =IF(G170=0,"",G171/G170-1) ->  | K180: =D180 -> 2013 | L180: =IF(L170=0,"",L171/L170-1) -> -0.03187525102 | M180: =IF(M170=0,"",M171/M170-1) -> -0.03187438001 | Q180: =K180 -> 2013 | R180: =IF(R170="","",IF(R170=0,"",R171/R170-1)) ->  | S180: =IF(S170="","",IF(S170=0,"",S171/S170-1)) -> 
D181: =D172 -> 2014 | G181: =IF(G171=0,"",G172/G171-1) ->  | K181: 2014 | L181: =IF(L171=0,"",L172/L171-1) -> -0.05485984703 | M181: -0.05486134714 | Q181: 2014 | R181: =IF(R171="","",IF(R171=0,"",R172/R171-1)) -> 
D182: 2015 | G182: -0.005458383436 | K182: 2015 | L182: =IF(L172=0,"",L173/L172-1) -> -0.01583603717 | M182: -0.0158335625 | Q182: 2015 | R182: =IF(R172="","",IF(R172=0,"",R173/R172-1)) -> -0.01043460984 | S182: -0.01043212158
D183: 2016 | G183: 0.03854774117 | K183: 2016 | L183: =IF(L173=0,"",L174/L173-1) -> 0.01326873213 | M183: 0.0132672033 | Q183: 2016 | R183: =IF(R173="","",IF(R173=0,"",R174/R173-1)) -> -0.02434072893 | S183: -0.02434220101
D184: 2017 | G184: -0.03657045538 | K184: 2017 | L184: =IF(K175="Forecast","",IF(L174=0,"",L175/L174-1)) ->  | M184: =IF(M174=0,"",M175/M174-1) -> 0.1893332343 | Q184: 2017 | R184: =IF(Q175="Forecast","",IF(R174=0,"",R175/R174-1)) ->  | S184: =IF(S174="","",IF(S174=0,"",S175/S174-1)) -> 0.2344786819
D185: 2018 | G185: 0.2430623348 | I185: =IF(I177=0,"",G176/I177-1) -> 0.1816120724 | K185: 2018 | L185: =IF(K176="Forecast","",IF(L175=0,"",L176/L175-1)) ->  | M185: =IF(M175=0,"",M176/M175-1) -> -0.0008159843759 | O185: =IF(O177=0,"",M176/O177-1) -> 0.111675555 | Q185: 2018 | R185: =IF(Q176="Forecast","",IF(R175=0,"",R176/R175-1)) ->  | S185: =IF(S175="","",IF(S175=0,"",S176/S175-1)) -> -0.1961915443 | U185: =IF(U177=0,"",S176/U177-1) -> -0.05918737544
D186: Geometric Mean | G186: =IF(G170=0,"",GEOMEAN(G180:G185)) ->  | I186: =IF(I177=0,"",(G176/I177)^(1/(TestYear-RebaseYear-1))-1) -> 0.05720280437 | K186: Geometric Mean | M186: =IF(M170=0,"",GEOMEAN(M180:M185)) ->  | O186: =IF(O177=0,"",(M176/O177)^(1/(TestYear-RebaseYear-1))-1) -> 0.0359195248 | Q186: Geometric Mean | S186: =IF(S170="","",IF(S170=0,"",(S176/S170)^(1/(Q185-Q179-1)-1))) ->  | U186: =IF(U177=0,"",(S176/U177)^(1/(TestYear-RebaseYear-1))-1) -> -0.02013169042
B188: 4 | C188: Customer Class: | D188: Streetlighting | H188: Is the customer class billed on consumption (kWh) or demand (kW or kVA)? | N188: kWh
D190: Calendar Year | F190: Customers | K190: Consumption (kWh) (3) | Q190: =CONCATENATE("Consumption (kWh) per ",LEFT(F190,LEN(F190)-1)) -> Consumption (kWh) per Customer
D191: =CONCATENATE("(for ",TestYear," Cost of Service") -> (for 2018 Cost of Service | L191: Actual (Weather actual) | M191: Weather-normalized | O191: Weather-normalized | R191: =L191 -> Actual (Weather actual) | S191: =M191 -> Weather-normalized | U191: =O191 -> Weather-normalized
C192: Historical | D192: =D193-1 -> 2012 | F192: =F149 -> Actual | G192: 1158 | H192: =IF(D192=RebaseYear,"Board-approved","") ->  | K192: =F192 -> Actual | L192: 1355855 | M192: 1355855 | N192: =H192 ->  | Q192: =K192 -> Actual | R192: =IF(G192=0,"",L192/G192) -> 1170.85924 | S192: =IF(G192=0,"",M192/G192) -> 1170.85924 | T192: =N192 ->  | U192: =IF(T192="","",IF(I192=0,"",O192/I192)) -> 
C193: Historical | D193: 2013 | F193: =F150 -> Actual | G193: 1204 | K193: =F193 -> Actual | L193: 1356160.59 | M193: 1356161 | N193: =H193 ->  | Q193: =K193 -> Actual | R193: =IF(G193=0,"",L193/G193) -> 1126.379228 | S193: =IF(G193=0,"",M193/G193) -> 1126.379568 | T193: =N193 ->  | U193: =IF(T193="","",IF(I193=0,"",O193/I193)) -> 
C194: Historical | D194: 2014 | F194: Actual | G194: 1204 | H194: Board-approved | K194: Actual | L194: 1356160.1 | M194: 1356160 | N194: Board-approved | O194: 1139294 | Q194: Actual | R194: 1126.378821 | S194: 1126.378738 | T194: Board-approved
C195: Historical | D195: 2015 | F195: Actual | G195: 1204 | K195: Actual | L195: 1040148.51 | M195: 1040149 | Q195: Actual | R195: 863.9107226 | S195: 863.9111296
C196: Historical | D196: 2016 | F196: Actual | G196: 1200.5 | K196: Actual | L196: 643598.726 | M196: 643599 | Q196: Actual | R196: 536.108893 | S196: 536.1091212
C197: Bridge Year | D197: 2017 | F197: Forecast | G197: 1205.921019 | K197: Forecast | M197: 643599 | Q197: Forecast | R197: 0 | S197: 533.6991309
C198: Test Year | D198: =TestYear -> 2018 | F198: Forecast | G198: 1211.366518 | K198: Forecast | M198: 646505 | Q198: Forecast | R198: 0 | S198: 533.698918
I199: =SUM(I192:I197) -> 0 | O199: =SUM(O192:O197) -> 1139294 | U199: =SUM(U192:U197) -> 0
C200: Variance Analysis | D200: Year | G200: Year-over-year | I200: Test Year Versus Board-approved | K200: Year | L200: Year-over-year | O200: =I200 -> Test Year Versus Board-approved | Q200: Year | R200: Year-over-year | U200: =O200 -> Test Year Versus Board-approved
D201: =D192 -> 2012 | K201: =D201 -> 2012 | Q201: =K201 -> 2012
D202: 2013 | G202: =IF(G192=0,"",G193/G192-1) -> 0.03972366149 | K202: =D202 -> 2013 | L202: =IF(L192=0,"",L193/L192-1) -> 0.0002253854579 | M202: 0.0002256878501 | Q202: =K202 -> 2013 | R202: =IF(R192="","",IF(R192=0,"",R193/R192-1)) -> -0.03798920568 | S202: =IF(S192="","",IF(S192=0,"",S193/S192-1)) -> -0.03798891484
D203: 2014 | G203: 0 | K203: 2014 | L203: =IF(L193=0,"",L194/L193-1) -> -3.613141418e-07 | M203: -7.37375577e-07 | Q203: 2014 | R203: =IF(R193="","",IF(R193=0,"",R194/R193-1)) -> -3.613141418e-07 | S203: -7.373755772e-07
D204: 2015 | G204: 0 | K204: 2015 | L204: =IF(L194=0,"",L195/L194-1) -> -0.2330193832 | M204: -0.2330189653 | Q204: 2015 | R204: =IF(R194="","",IF(R194=0,"",R195/R194-1)) -> -0.2330193832 | S204: -0.2330189653
D205: 2016 | G205: -0.002906976744 | K205: 2016 | L205: =IF(L195=0,"",L196/L195-1) -> -0.3812434284 | M205: -0.3812434565 | Q205: 2016 | R205: =IF(R195="","",IF(R195=0,"",R196/R195-1)) -> -0.3794394734 | S205: -0.3794395015
D206: 2017 | G206: 0.00451563458 | K206: 2017 | L206: =IF(K197="Forecast","",IF(L196=0,"",L197/L196-1)) ->  | M206: =IF(M196=0,"",M197/M196-1) -> 0 | Q206: 2017 | R206: =IF(Q197="Forecast","",IF(R196=0,"",R197/R196-1)) ->  | S206: =IF(S196="","",IF(S196=0,"",S197/S196-1)) -> -0.004495335288
D207: 2018 | G207: 0.00451563458 | I207: =IF(I199=0,"",G198/I199-1) ->  | K207: 2018 | L207: =IF(K198="Forecast","",IF(L197=0,"",L198/L197-1)) ->  | M207: =IF(M197=0,"",M198/M197-1) -> 0.004515233865 | O207: =IF(O199=0,"",M198/O199-1) -> -0.4325389232 | Q207: 2018 | R207: =IF(Q198="Forecast","",IF(R197=0,"",R198/R197-1)) ->  | S207: =IF(S197="","",IF(S197=0,"",S198/S197-1)) -> -3.989138332e-07 | U207: =IF(U199=0,"",S198/U199-1) -> 
